Workbook

Sheet BAF-4_TRM Spreadsheet
A1: Evergy MEEIA Technical Resource Manual - 2025-01-01 | K1: SCHEDULE BAF-4
A2: Measures updated with EM&V results | AO2: Link to CDD | AP2: Link to HDD
A3: New Measures
A4: Measure Description | H4: Gross Measure Values | AA4: Efficiency Values | AI4: Algorithms | AM4: Start/End Dates | AO4: Quantities
A5: Program | B5: Measure Name | C5: Primary Key | D5: Segment | E5: End Use | F5: Notes | G5: Unit Definition | H5: Incremental Measure Cost ($/Unit) | I5: Incremental Measure Cost Source | J5: Incremental Measure Cost Source Page Number | K5: Electric Energy Savings (Annual kWh/unit) | L5: Electric Energy Savings (Annual kWh/unit) Source | M5: Electric Energy Savings (Annual kWh/unit) Source Page Number | N5: Nameplate Demand Savings (kW/unit) | O5: Peak Coincidence Factor | P5: Peak Coincident Factor Source | Q5: Peak Coincident Factor Source Page Number | R5: Coincident Peak Demand Savings (kW/unit) | S5: Coincident Peak Demand Savings (kW/unit) Source | T5: Coincident Peak Demand Savings (kW/unit) Source Page Number | U5: Annual Operating Hours | V5: Annual Operating Hours Source | W5: Annual Operating Hours Source Page Number | X5: Measure Life (Years) | Y5: Measure Life (Years) Source | Z5: Measure Life (Years) Source Page Number | AA5: Measure Definition | AB5: Measure Efficiency Value | AC5: Measure Efficiency Value Source | AD5: Measure Efficiency Value Source Page Number | AE5: Baseline Definition | AF5: Baseline Efficiency Value | AG5: Baseline Efficiency Value Source | AH5: Baseline Efficiency Value Source Page Number | AI5: Electric Energy Savings Algorithm | AJ5: Electric Demand Savings Algorithm | AK5: Savings Algorithms Source | AL5: Savings Algorithms Source Page Number | AM5: Effective Start Date | AN5: Effective End Date | AO5: Cooling Degree Days (CDD) | AP5: Heating Degree Days (HDD) | AQ5: Degree Days Source | AR5: Degree Days Source Page Number | AS5: Quantity 1 | AT5: Quantity 1 Description | AU5: Quantity 1 Source | AV5: Quantity 1 Source Page Number | AW5: Quantity 2 | AX5: Quantity 2 Description | AY5: Quantity 2 Source | AZ5: Quantity 2 Source Page Number | BA5: Quantity 3 | BB5: Quantity 3 Description | BC5: Quantity 3 Source | BD5: Quantity 3 Source Page Number | BE5: Quantity 4 | BF5: Quantity 4 Description | BG5: Quantity 4 Source | BH5: Quantity 4 Source Page Number | BI5: Quantity 5 | BJ5: Quantity 5 Description | BK5: Quantity 5 Source | BL5: Quantity 5 Source Page Number | BM5: Quantity 6 | BN5: Quantity 6 Description | BO5: Quantity 6 Source | BP5: Quantity 6 Source Page Number | BQ5: Quantity 7 | BR5: Quantity 7 Description | BS5: Quantity 7 Source | BT5: Quantity 7 Source Page Number | BU5: Quantity 8 | BV5: Quantity 8 Description | BW5: Quantity 8 Source | BX5: Quantity 8 Source Page Number | BY5: Quantity 9 | BZ5: Quantity 9 Description | CA5: Quantity 9 Source | CB5: Quantity 9 Source Page Number | CC5: Quantity 10 | CD5: Quantity 10 Description | CE5: Quantity 10 Source | CF5: Quantity 10 Source Page Number | CG5: Quantity 11 | CH5: Quantity 11 Description | CI5: Quantity 11 Source | CJ5: Quantity 11 Source Page Number | CK5: Quantity 12 | CL5: Quantity 12 Description | CM5: Quantity 12 Source | CN5: Quantity 12 Source Page Number | CO5: Quantity 13 | CP5: Quantity 13 Description | CQ5: Quantity 13 Source | CR5: Quantity 13 Source Page Number | CS5: Quantity 14 | CT5: Quantity 14 Description | CU5: Quantity 14 Source | CV5: Quantity 14 Source Page Number | CW5: Quantity 15 | CX5: Quantity 15 Description | CY5: Quantity 15 Source | CZ5: Quantity 15 Source Page Number | DA5: Quantity 16 | DB5: Quantity 16 Description | DC5: Quantity 16 Source | DD5: Quantity 16 Source Page Number | DE5: Quantity 17 | DF5: Quantity 17 Description | DG5: Quantity 17 Source | DH5: Quantity 17 Source Page Number | DI5: Quantity 18 | DJ5: Quantity 18 Description | DK5: Quantity 18 Source | DL5: Quantity 18 Source Page Number | DM5: Quantity 19 | DN5: Quantity 19 Description | DO5: Quantity 19 Source | DP5: Quantity 19 Source Page Number | DQ5: Quantity 20 | DR5: Quantity 20 Description | DS5: Quantity 20 Source | DT5: Quantity 20 Source Page Number | DU5: Quantity 21 | DV5: Quantity 21 Description | DW5: Quantity 21 Source | DX5: Quantity 21 Source Page Number
A6: Business Demand Response Program | B6: Business Demand Response Custom Measure | C6: 0.19 | D6: C&I | E6: All | AI6: =cellformula(K6) ->  | AJ6: =cellformula(R6) ->  | AM6: 2020-01-01
A7: Business Demand Response Program | B7: Smart Thermostat | C7: 66.6 | D7: All | E7: HVAC | G7: per unit | H7: 170 | I7: Weighted average cost of actual units installed in PY2020. | K7: =ROUND(388,4) -> 388 | L7: ADM PY2021 Analysis | R7: =ROUND(0.9029,4) -> 0.9029 | S7: ADM PY2022 Analysis | X7: 11 | Y7: IL TRM 11 vol3 | Z7: 205 | AA7: PCT | AE7: No PCT | AI7: =cellformula(K7) -> =ROUND(388,4) | AJ7: =cellformula(R7) -> =ROUND(0.9029,4) | AM7: 2024-01-01 | AN7: 2024-12-31
A8: Whole Business Efficiency Program | B8: Air-Sealing Custom Measure | C8: 0.3 | D8: C&I | E8: All | AM8: 2025-01-01
A9: Hard-to-Reach Businesses Program | B9: Automatic door closer for walk-in freezers | C9: 300 | D9: Small C&I | E9: Refrigeration | G9: per unit | H9: 156.82 | I9: IL TRM v6 vol2 | J9: 434 | K9: =ROUND(2307,4) -> 2307 | L9: Calculated Value | O9: NA | P9: IL TRM v6 vol2 | Q9: 434 | R9: =ROUND(0.309,4) -> 0.309 | S9: Calculated Value | X9: 8 | Y9: IL TRM v6 vol2 | Z9: 434 | AA9: Installation of an automatic, hydraulic-type door closer | AC9: IL TRM v6 vol2 | AD9: 434 | AE9: Walk-in freezer without an automatic closure | AG9: IL TRM v6 vol2 | AH9: 434 | AI9: =ROUND(2307,4) | AJ9: =ROUND(0.309,4) | AK9: IL TRM v6 vol2 | AL9: 434 | AM9: 2020-01-01 | AN9: 2024-12-31
A10: Whole Business Efficiency Program | B10: Automatic door closer for walk-in freezers | C10: 300.1 | D10: Small C&I | E10: Refrigeration | G10: per unit | H10: 502 | I10: IL TRM v12 vol2 | J10: 794 | K10: =ROUND(6949,4) -> 6949 | L10: IL TRM v12 vol2, deemed value | M10: 794 | O10: NA | P10: IL TRM v12 vol2 | Q10: 794 | R10: =ROUND(1.3,4) -> 1.3 | S10: IL TRM v12 vol2, deemed value | T10: 795 | X10: 8 | Y10: IL TRM v12 vol2 | Z10: 794 | AA10: Installation of an automatic, hydraulic-type door closer | AC10: IL TRM v12 vol2 | AD10: 794 | AE10: Walk-in freezer without an automatic closure | AG10: IL TRM v12 vol2 | AH10: 794 | AI10: =ROUND(6949,4) | AJ10: =ROUND(1.3,4) | AK10: IL TRM v12 vol2 | AL10: 794, 795 | AM10: 2025-01-01
A11: Hard-to-Reach Businesses Program | B11: Automatic door closer for walk-in coolers | C11: 299 | D11: Small C&I | E11: Refrigeration | G11: per unit | H11: 156.82 | I11: IL TRM v6 vol2 | J11: 434 | K11: =ROUND(943,4) -> 943 | L11: Calculated Value | O11: NA | P11: IL TRM v6 vol2 | Q11: 434 | R11: =ROUND(0.137,4) -> 0.137 | S11: Calculated Value | X11: 8 | Y11: IL TRM v6 vol2 | Z11: 434 | AA11: Installation of an automatic, hydraulic-type door closer | AC11: IL TRM v6 vol2 | AD11: 434 | AE11: Walk-in cooler without an automatic closure | AG11: IL TRM v6 vol2 | AH11: 434 | AI11: =ROUND(943,4) | AJ11: =ROUND(0.137,4) | AK11: IL TRM v6 vol2 | AL11: 434 | AM11: 2020-01-01 | AN11: 2024-12-31
A12: Whole Business Efficiency Program | B12: Automatic door closer for walk-in coolers | C12: 299.1 | D12: Small C&I | E12: Refrigeration | G12: per unit | H12: 502 | I12: IL TRM v12 vol2 | J12: 794 | K12: =ROUND(2399,4) -> 2399 | L12: IL TRM v12 vol2, deemed value | M12: 794 | O12: NA | P12: IL TRM v12 vol2 | Q12: 794 | R12: =ROUND(0.621,4) -> 0.621 | S12: IL TRM v12 vol2, deemed value | T12: 795 | X12: 8 | Y12: IL TRM v12 vol2 | Z12: 794 | AA12: Installation of an automatic, hydraulic-type door closer | AC12: IL TRM v12 vol2 | AD12: 794 | AE12: Walk-in cooler without an automatic closure | AG12: IL TRM v12 vol2 | AH12: 794 | AI12: =ROUND(2399,4) | AJ12: =ROUND(0.621,4) | AK12: IL TRM v12 vol2 | AL12: 794, 795 | AM12: 2025-01-01
A13: Hard-to-Reach Businesses Program | B13: Door heater controls for cooler (Conductivity-based controls) | C13: 325 | D13: Small C&I | E13: Refrigeration | G13: per unit | H13: 200 | I13: IL TRM v6 vol2 | J13: 439 | K13: =ROUND(AS13*AW13*BA13*BE13*BI13,4) -> 688.7271 | L13: Calculated Value | O13: 0 | P13: IL TRM v6 vol2 | Q13: 439 | R13: =ROUND(0,4) -> 0 | S13: IL TRM v6 vol2 | T13: 440 | X13: 12 | Y13: IL TRM v6 vol2 | Z13: 439 | AA13: Door heater control utilizing humidity or conductivity control | AC13: IL TRM v6 vol2 | AD13: 439 | AE13: Standard heated door with no controls installed | AG13: IL TRM v6 vol2 | AH13: 439 | AI13: =ROUND(AS13*AW13*BA13*BE13*BI13,4) | AJ13: =ROUND(0,4) | AK13: IL TRM v6 vol2 | AL13: 440 | AM13: 2020-01-01 | AN13: 2024-12-31 | AS13: 0.092 | AT13: kWbase | AU13: IL TRM v6 vol2 | AV13: 440 | AW13: 1 | AX13: Numdoors | AY13: IL TRM v6 vol2 | AZ13: 440 | BA13: 0.7 | BB13: Energy Savings Factor (ESF) | BC13: IL TRM v6 vol2 | BD13: 440 | BE13: 1.22 | BF13: Bonus Factor (BF) | BG13: IL TRM v6 vol2 | BH13: 440 | BI13: 8766 | BJ13: Annual hours of operation | BK13: IL TRM v6 vol2 | BL13: 440
A14: Whole Business Efficiency Program | B14: Door heater controls for cooler (Conductivity-based controls) | C14: 325.1 | D14: Small C&I | E14: Refrigeration | G14: per unit | H14: 79.5 | I14: IL TRM v12 vol2 | J14: 800 | K14: =ROUND(AS14*AW14*BA14*BE14*U14,4) -> 338.4553 | L14: Calculated Value | O14: 0.44 | P14: IL TRM v12 vol2 | Q14: 800 | R14: =ROUND((K14/U14)*O14,4) -> 0.017 | S14: Calculated Value | U14: 8766 | V14: IL TRM v12 vol2 | W14: 801 | X14: 10 | Y14: IL TRM v12 vol2 | Z14: 800 | AA14: Door heater control utilizing humidity or conductivity control | AC14: IL TRM v12 vol2 | AD14: 800 | AE14: Standard heated door with no controls installed | AG14: IL TRM v12 vol2 | AH14: 800 | AI14: =ROUND(AS14*AW14*BA14*BE14*U14,4) | AJ14: =ROUND((K14/U14)*O14,4) | AK14: IL TRM v12 vol2 | AL14: 800, 801 | AM14: 2025-01-01 | AS14: 0.066 | AT14: kWbase | AU14: IL TRM v12 vol2 | AV14: 801 | AW14: 1 | AX14: Numdoors | AY14: IL TRM v12 vol2 | AZ14: 801 | BA14: 0.45 | BB14: Energy Savings Factor (ESF) | BC14: IL TRM v12 vol2 | BD14: 801 | BE14: 1.3 | BF14: Bonus Factor (BF) | BG14: IL TRM v12 vol2 | BH14: 801
A15: Hard-to-Reach Businesses Program | B15: Door heater controls for cooler (Humidity-based controls) | C15: 301 | D15: Small C&I | E15: Refrigeration | G15: per unit | H15: 300 | I15: IL TRM v6 vol2 | J15: 439 | K15: =ROUND(AS15*AW15*BA15*BE15*BI15,4) -> 541.1427 | L15: Calculated Value | O15: 0 | P15: IL TRM v6 vol2 | Q15: 439 | R15: =ROUND(0,4) -> 0 | S15: IL TRM v6 vol2 | T15: 440 | X15: 12 | Y15: IL TRM v6 vol2 | Z15: 439 | AA15: Door heater control utilizing humidity or conductivity control | AC15: IL TRM v6 vol2 | AD15: 439 | AE15: Standard heated door with no controls installed | AG15: IL TRM v6 vol2 | AH15: 439 | AI15: =ROUND(AS15*AW15*BA15*BE15*BI15,4) | AJ15: =ROUND(0,4) | AK15: IL TRM v6 vol2 | AL15: 440 | AM15: 2020-01-01 | AN15: 2024-12-31 | AS15: 0.092 | AT15: kWbase | AU15: IL TRM v6 vol2 | AV15: 440 | AW15: 1 | AX15: Numdoors | AY15: IL TRM v6 vol2 | AZ15: 440 | BA15: 0.55 | BB15: Energy Savings Factor (ESF) | BC15: IL TRM v6 vol2 | BD15: 440 | BE15: 1.22 | BF15: Bonus Factor (BF) | BG15: IL TRM v6 vol2 | BH15: 440 | BI15: 8766 | BJ15: Annual hours of operation | BK15: IL TRM v6 vol2 | BL15: 440
A16: Whole Business Efficiency Program | B16: Door heater controls for cooler (Humidity-based controls) | C16: 301.1 | D16: Small C&I | E16: Refrigeration | G16: per unit | H16: 79.5 | I16: IL TRM v12 vol2 | J16: 800 | K16: =ROUND(AS16*AW16*BA16*BE16*U16,4) -> 338.4553 | L16: Calculated Value | O16: 0.44 | P16: IL TRM v12 vol2 | Q16: 800 | R16: =ROUND((K16/U16)*O16,4) -> 0.017 | S16: Calculated Value | U16: 8766 | V16: IL TRM v12 vol2 | W16: 801 | X16: 10 | Y16: IL TRM v12 vol2 | Z16: 800 | AA16: Door heater control utilizing humidity or conductivity control | AC16: IL TRM v12 vol2 | AD16: 800 | AE16: Standard heated door with no controls installed | AG16: IL TRM v12 vol2 | AH16: 800 | AI16: =ROUND(AS16*AW16*BA16*BE16*U16,4) | AJ16: =ROUND((K16/U16)*O16,4) | AK16: IL TRM v12 vol2 | AL16: 800, 801 | AM16: 2025-01-01 | AS16: 0.066 | AT16: kW_base, cooler | AU16: IL TRM v12 vol2 | AV16: 801 | AW16: 1 | AX16: NUMdoors | AY16: IL TRM v12 vol2 | AZ16: 801 | BA16: 0.45 | BB16: ESF | BC16: IL TRM v12 vol2 | BD16: 801 | BE16: 1.3 | BF16: Bonus Factor (BF) | BG16: IL TRM v12 vol2 | BH16: 801
A17: Hard-to-Reach Businesses Program | B17: Door heater controls for freezer (Conductivity-based controls) | C17: 326 | D17: Small C&I | E17: Refrigeration | G17: per unit | H17: 200 | I17: IL TRM v6 vol2 | J17: 439 | K17: =ROUND(AS17*AW17*BA17*BE17*BI17,4) -> 1627.3202 | L17: Calculated Value | O17: 0 | P17: IL TRM v6 vol2 | Q17: 439 | R17: =ROUND(0,4) -> 0 | S17: IL TRM v6 vol2 | T17: 440 | X17: 12 | Y17: IL TRM v6 vol2 | Z17: 439 | AA17: Door heater control utilizing humidity or conductivity control | AC17: IL TRM v6 vol2 | AD17: 439 | AE17: Standard heated door with no controls installed | AG17: IL TRM v6 vol2 | AH17: 439 | AI17: =ROUND(AS17*AW17*BA17*BE17*BI17,4) | AJ17: =ROUND(0,4) | AK17: IL TRM v6 vol2 | AL17: 440 | AM17: 2020-01-01 | AN17: 2024-12-31 | AS17: 0.195 | AT17: kWbase | AU17: IL TRM v6 vol2 | AV17: 440 | AW17: 1 | AX17: Numdoors | AY17: IL TRM v6 vol2 | AZ17: 440 | BA17: 0.7 | BB17: Energy Savings Factor (ESF) | BC17: IL TRM v6 vol2 | BD17: 440 | BE17: 1.36 | BF17: Bonus Factor (BF) | BG17: IL TRM v6 vol2 | BH17: 440 | BI17: 8766 | BJ17: Annual hours of operation | BK17: IL TRM v6 vol2 | BL17: 440
A18: Whole Business Efficiency Program | B18: Door heater controls for freezer (Conductivity-based controls) | C18: 326.1 | D18: Small C&I | E18: Refrigeration | G18: per unit | H18: 90.77 | I18: IL TRM v12 vol2 | J18: 800 | K18: =ROUND(AS18*AW18*BA18*BE18*U18,4) -> 1360.9215 | L18: Calculated Value | O18: 0.44 | P18: IL TRM v12 vol2 | Q18: 800 | R18: =ROUND((K18/U18)*O18,4) -> 0.0683 | S18: Calculated Value | U18: 8766 | V18: IL TRM v12 vol2 | W18: 801 | X18: 10 | Y18: IL TRM v12 vol2 | Z18: 800 | AA18: Door heater control utilizing humidity or conductivity control | AC18: IL TRM v12 vol2 | AD18: 800 | AE18: Standard heated door with no controls installed | AG18: IL TRM v12 vol2 | AH18: 800 | AI18: =ROUND(AS18*AW18*BA18*BE18*U18,4) | AJ18: =ROUND((K18/U18)*O18,4) | AK18: IL TRM v12 vol2 | AL18: 800, 801 | AM18: 2025-01-01 | AS18: 0.23 | AT18: kWbase | AU18: IL TRM v12 vol2 | AV18: 801 | AW18: 1 | AX18: Numdoors | AY18: IL TRM v12 vol2 | AZ18: 801 | BA18: 0.45 | BB18: Energy Savings Factor (ESF) | BC18: IL TRM v12 vol2 | BD18: 801 | BE18: 1.5 | BF18: Bonus Factor (BF) | BG18: IL TRM v12 vol2 | BH18: 801
A19: Hard-to-Reach Businesses Program | B19: Door heater controls for freezer (Humidity-based controls) | C19: 302 | D19: Small C&I | E19: Refrigeration | G19: per unit | H19: 300 | I19: IL TRM v6 vol2 | J19: 439 | K19: =ROUND(AS19*AW19*BA19*BE19*BI19,4) -> 1278.6088 | L19: Calculated Value | O19: 0 | P19: IL TRM v6 vol2 | Q19: 439 | R19: =ROUND(0,4) -> 0 | S19: IL TRM v6 vol2 | T19: 440 | X19: 12 | Y19: IL TRM v6 vol2 | Z19: 439 | AA19: Door heater control utilizing humidity or conductivity control | AC19: IL TRM v6 vol2 | AD19: 439 | AE19: Standard heated door with no controls installed | AG19: IL TRM v6 vol2 | AH19: 439 | AI19: =ROUND(AS19*AW19*BA19*BE19*BI19,4) | AJ19: =ROUND(0,4) | AK19: IL TRM v6 vol2 | AL19: 440 | AM19: 2020-01-01 | AN19: 2024-12-31 | AS19: 0.195 | AT19: kWbase | AU19: IL TRM v6 vol2 | AV19: 440 | AW19: 1 | AX19: Numdoors | AY19: IL TRM v6 vol2 | AZ19: 440 | BA19: 0.55 | BB19: Energy Savings Factor (ESF) | BC19: IL TRM v6 vol2 | BD19: 440 | BE19: 1.36 | BF19: Bonus Factor (BF) | BG19: IL TRM v6 vol2 | BH19: 440 | BI19: 8766 | BJ19: Annual hours of operation | BK19: IL TRM v6 vol2 | BL19: 440
A20: Whole Business Efficiency Program | B20: Door heater controls for freezer (Humidity-based controls) | C20: 302.1 | D20: Small C&I | E20: Refrigeration | G20: per unit | H20: 90.77 | I20: IL TRM v12 vol2 | J20: 800 | K20: =ROUND(AS20*AW20*BA20*BE20*U20,4) -> 1360.9215 | L20: Calculated Value | O20: 0.44 | P20: IL TRM v12 vol2 | Q20: 800 | R20: =ROUND((K20/U20)*O20,4) -> 0.0683 | S20: Calculated Value | U20: 8766 | V20: IL TRM v12 vol2 | W20: 801 | X20: 10 | Y20: IL TRM v12 vol2 | Z20: 800 | AA20: Door heater control utilizing humidity or conductivity control | AC20: IL TRM v12 vol2 | AD20: 800 | AE20: Standard heated door with no controls installed | AG20: IL TRM v12 vol2 | AH20: 800 | AI20: =ROUND(AS20*AW20*BA20*BE20*U20,4) | AJ20: =ROUND((K20/U20)*O20,4) | AK20: IL TRM v12 vol2 | AL20: 800, 801 | AM20: 2025-01-01 | AS20: 0.23 | AT20: kW_base, freezer | AU20: IL TRM v12 vol2 | AV20: 801 | AW20: 1 | AX20: NUMdoors | AY20: IL TRM v12 vol2 | AZ20: 801 | BA20: 0.45 | BB20: ESF | BC20: IL TRM v12 vol2 | BD20: 801 | BE20: 1.5 | BF20: Bonus Factor (BF) | BG20: IL TRM v12 vol2 | BH20: 801
A21: Whole Business Efficiency Program | B21: Hard-to-Reach Businesses Custom Measure | C21: 0.16 | D21: C&I | E21: All | AM21: 2020-01-01
A22: Whole Business Efficiency Program | B22: Insulation Custom Measure | C22: 0.29 | D22: C&I | E22: All | AM22: 2025-01-01
A23: Hard-to-Reach Businesses Program | B23: Low Flow Faucet Aerator - Bathroom | C23: 327 | D23: Small C&I | E23: Hot Water | F23: Direct Install | G23: per unit | H23: 8 | I23: IL TRM v6 vol2 | J23: 90 | K23: =ROUND(AS23*(AW23-BA23)/AW23*BE23*BI23*BM23,4) -> 61.1263 | L23: Calculated Value | N23: =ROUND(K23/BQ23,4) -> 2.5469 | O23: 0.0064 | P23: IL TRM v6 vol2 | Q23: 94 | R23: =ROUND(K23/BQ23*BU23,4) -> 0.0163 | S23: Calculated Value | X23: 9 | Y23: IL TRM v6 vol2 | Z23: 90 | AA23: Energy Efficient Faucet Aerator rated at 1.5 GPM or less | AC23: IL TRM v6 vol2 | AD23: 90 | AE23: Standard Faucet Aerator rated at 2.25 GPM or more | AG23: IL TRM v6 vol2 | AH23: 90 | AI23: =ROUND(AS23*(AW23-BA23)/AW23*BE23*BI23*BM23,4) | AJ23: =ROUND(K23/BQ23*BU23,4) | AK23: IL TRM v6 vol2 | AL23: 91,93 | AM23: 2020-01-01 | AN23: 2024-12-31 | AS23: 1 | AT23: %Electric DHW | AU23: IL TRM v6 vol2 | AV23: 91 | AW23: 1.39 | AX23: GPM_base | AY23: IL TRM v6 vol2 | AZ23: 91 | BA23: 0.94 | BB23: GPM_low | BC23: IL TRM v6 vol2 | BD23: 91 | BE23: 2500 | BF23: Usage | BG23: IL TRM v6 vol2 | BH23: 92 | BI23: 0.0795 | BJ23: EPG_electric | BK23: IL TRM v6 vol2 | BL23: 92 | BM23: 0.95 | BN23: In Service Rate (ISR) | BO23: IL TRM v6 vol2 | BP23: 93 | BQ23: 24 | BR23: Annual Recovery Hours | BS23: IL TRM v6 vol2 | BT23: 93 | BU23: 0.0064 | BV23: Coincidence Factor | BW23: IL TRM v6 vol2 | BX23: 94
A24: Whole Business Efficiency Program | B24: Low Flow Faucet Aerator - Bathroom | C24: 327.1 | D24: Small C&I | E24: Hot Water | F24: Direct Install, small office | G24: per unit | H24: 8 | I24: IL TRM v12 vol2 | J24: 222 | K24: =ROUND(((AF24-AB24)/AF24)*BE24*BI24*BM24,4) -> 67.585 | L24: Calculated Value | N24: =ROUND(K24/U24,4) -> 3.3793 | O24: 0.0064 | P24: IL TRM v12 vol2, Small Office | Q24: 227 | R24: =ROUND(K24/U24*O24,4) -> 0.0216 | S24: Calculated Value | U24: =ROUND((BE24*0.44)/BY24,0) -> 20 | V24: IL TRM v12 vol2 | W24: 226 | X24: 10 | Y24: IL TRM v12 vol2 | Z24: 222 | AA24: Energy Efficient Faucet Aerator rated at 1.5 GPM or less | AB24: 0.94 | AC24: IL TRM v12 vol2 | AD24: 222 | AE24: Standard Faucet Aerator rated at 2.25 GPM or more | AF24: 1.39 | AG24: IL TRM v12 vol2 | AH24: 222 | AI24: =ROUND(((AF24-AB24)/AF24)*BE24*BI24*BM24,4) | AJ24: =ROUND(K24/U24*O24,4) | AK24: IL TRM v12 vol2 | AL24: 223, 226 | AM24: 2025-01-01 | AS24: 1 | AT24: %Electric DHW | AU24: IL TRM v12 vol2 | AV24: 223 | BE24: 2500 | BF24: Usage - Estimated usage of mixed water (mixture of hot water from water heater line and cold water line) per faucet (gallons per year), Small Office | BG24: IL TRM v12 vol2 | BH24: 224 | BI24: 0.0879 | BJ24: EPG_electric - Energy per gallon of mixed water used by faucet (electric water heater) | BK24: IL TRM v12 vol2 | BL24: 224 | BM24: 0.95 | BN24: ISR - in service rate | BO24: IL TRM v12 vol2 | BP24: 225 | BY24: 53.9 | BZ24: GPH | CA24: IL TRM v12 vol2 | CB24: 226
A25: Hard-to-Reach Businesses Program | B25: Low Flow Faucet Aerator - Kitchen | C25: 287 | D25: Small C&I | E25: Hot Water | F25: Direct Install | G25: per unit | H25: 8 | I25: IL TRM v6 vol2 | J25: 90 | K25: =ROUND(AS25*(AW25-BA25)/AW25*BE25*BI25*BM25,4) -> 74.5049 | L25: Calculated Value | N25: =ROUND(K25/BQ25,4) -> 3.1044 | O25: 0.0064 | P25: IL TRM v6 vol2 | Q25: 94 | R25: =ROUND(K25/BQ25*BU25,4) -> 0.0199 | S25: Calculated Value | X25: 9 | Y25: IL TRM v6 vol2 | Z25: 90 | AA25: Energy Efficient Faucet Aerator rated at 2.2 GPM or less | AC25: IL TRM v6 vol2 | AD25: 90 | AE25: Standard Faucet Aerator rated at 2.75 GPM or more | AG25: IL TRM v6 vol2 | AH25: 90 | AI25: =ROUND(AS25*(AW25-BA25)/AW25*BE25*BI25*BM25,4) | AJ25: =ROUND(K25/BQ25*BU25,4) | AK25: IL TRM v6 vol2 | AL25: 91,93 | AM25: 2020-01-01 | AN25: 2024-12-31 | AS25: 1 | AT25: %Electric DHW | AU25: IL TRM v6 vol2 | AV25: 91 | AW25: 1.39 | AX25: GPM_base | AY25: IL TRM v6 vol2 | AZ25: 91 | BA25: 0.94 | BB25: GPM_low | BC25: IL TRM v6 vol2 | BD25: 91 | BE25: 2500 | BF25: Usage | BG25: IL TRM v6 vol2 | BH25: 92 | BI25: 0.0969 | BJ25: EPG_electric | BK25: IL TRM v6 vol2 | BL25: 92 | BM25: 0.95 | BN25: In Service Rate (ISR) | BO25: IL TRM v6 vol2 | BP25: 93 | BQ25: 24 | BR25: Annual Recovery Hours | BS25: IL TRM v6 vol2 | BT25: 93 | BU25: 0.0064 | BV25: Coincidence Factor | BW25: IL TRM v6 vol2 | BX25: 94
A26: Whole Business Efficiency Program | B26: Low Flow Faucet Aerator - Kitchen | C26: 287.1 | D26: Small C&I | E26: Hot Water | F26: Direct Install, small office | G26: per unit | H26: 8 | I26: IL TRM v12 vol2 | J26: 222 | K26: =ROUND(((AF26-AB26)/AF26)*BE26*BI26*BM26,4) -> 81.0405 | L26: Calculated Value | N26: =ROUND(K26/U26,4) -> 4.052 | O26: 0.0064 | P26: IL TRM v12 vol2, Small Office | Q26: 227 | R26: =ROUND(K26/U26*O26,4) -> 0.0259 | S26: Calculated Value | U26: =ROUND((BE26*0.44)/BY26,0) -> 20 | V26: IL TRM v12 vol2 | W26: 226 | X26: 10 | Y26: IL TRM v12 vol2 | Z26: 222 | AA26: Energy Efficient Faucet Aerator rated at 2.2 GPM or less | AB26: 0.94 | AC26: IL TRM v12 vol2 | AD26: 222 | AE26: Standard Faucet Aerator rated at 2.75 GPM or more | AF26: 1.39 | AG26: IL TRM v12 vol2 | AH26: 222 | AI26: =ROUND(((AF26-AB26)/AF26)*BE26*BI26*BM26,4) | AJ26: =ROUND(K26/U26*O26,4) | AK26: IL TRM v12 vol2 | AL26: 223, 226 | AM26: 2025-01-01 | AS26: 1 | AT26: %Electric DHW | AU26: IL TRM v12 vol2 | AV26: 223 | BE26: 2500 | BF26: Usage - Estimated usage of mixed water (mixture of hot water from water heater line and cold water line) per faucet (gallons per year), Small Office | BG26: IL TRM v12 vol2 | BH26: 224 | BI26: 0.1054 | BJ26: EPG_electric - Energy per gallon of mixed water used by faucet (electric water heater) | BK26: IL TRM v12 vol2 | BL26: 224 | BM26: 0.95 | BN26: ISR - in service rate | BO26: IL TRM v12 vol2 | BP26: 225 | BY26: 53.9 | BZ26: GPH | CA26: IL TRM v12 vol2 | CB26: 226
A27: Hard-to-Reach Businesses Program | B27: Low Flow Showerhead | C27: 11.6 | D27: Single Family | E27: Hot Water | F27: Kits | G27: per unit | H27: Equals Incentive | I27: Program Tracking Data | K27: =ROUND(((AF27*AS27-AB27*AS27)*BA27*365.25*AW27/BI27)*BM27*BE27,4) -> 217.0881 | L27: Calculated Value | N27: =K27/U27 -> 0.7951945055 | O27: 0.0278 | P27: IL TRM v11 vol3 | Q27: 268 | R27: =ROUND(((K27/U27)*O27),4) -> 0.0221 | S27: Calculated Value | U27: 273 | V27: IL TRM v11 vol3 | W27: 273 | X27: 10 | Y27: IL TRM v11 vol3 | Z27: 268 | AA27: Low Flow (GPM) | AB27: 1.5 | AC27: Spec sheet (as reported by implementer) | AE27: Standard (GPM) | AF27: 2.24 | AG27: IL TRM v11 vol3 | AH27: 270 | AI27: =ROUND(((AF27*AS27-AB27*AS27)*BA27*365.25*AW27/BI27)*BM27*BE27,4) | AJ27: =ROUND(((K27/U27)*O27),4) | AK27: IL TRM v11 vol3 | AL27: 269, 272 | AM27: 2024-01-01 | AN27: 2024-12-31 | AS27: 7.8 | AT27: L_base = L_ee | AU27: IL TRM v11 vol3 | AV27: 270 | AW27: 0.6 | AX27: SCPD | AY27: IL TRM v11 vol3 | AZ27: 271 | BA27: 2.56 | BB27: Persons per household | BC27: IL TRM v11 vol3 | BD27: 270 | BE27: 0.96 | BF27: Installation Rate | BG27: IL TRM v11 vol3 | BH27: 272 | BI27: 1.79 | BJ27: SPH | BK27: IL TRM v11 vol3 | BL27: 271 | BM27: 0.125 | BN27: EPG_electric | BO27: IL TRM v11 vol3 | BP27: 271
A28: Hard-to-Reach Businesses Program | B28: Radon Fans - Continous Inline Fan | C28: 689 | D28: Single Family | E28: Misc | F28: If DI program, % EE Fans Installed can be set to 1 | G28: per unit | H28: 0 | J28: 343 | K28: =ROUND((1-AS28)*(AF28-AB28)*U28,4) -> 275.502 | L28: Calculated Value | N28: =K28/U28 -> 0.03145 | O28: 1 | P28: CO TRM 2023 Deemed Savings Technical Assumptions | Q28: 343 | R28: =ROUND((K28/U28)*O28,4) -> 0.0315 | S28: Calculated Value | U28: 8760 | V28: CO TRM 2023 Deemed Savings Technical Assumptions | W28: 343 | X28: 10 | Y28: CO TRM 2023 Deemed Savings Technical Assumptions | Z28: 343 | AA28: ENERGY STAR Radon Fans | AB28: 0.017 | AC28: CO TRM 2023 Deemed Savings Technical Assumptions | AD28: 343 | AE28: Baseline Efficiency | AF28: 0.054 | AG28: CO TRM 2023 Deemed Savings Technical Assumptions | AH28: 343 | AI28: =ROUND((1-AS28)*(AF28-AB28)*U28,4) | AJ28: =ROUND((K28/U28)*O28,4) | AK28: CO TRM 2023 Deemed Savings Technical Assumptions | AL28: 343 | AM28: 2024-01-01 | AN28: 2024-12-31 | AS28: 0.15 | AT28: % EE Fans Installed | AU28: CO TRM 2023 Deemed Savings Technical Assumptions | AV28: 343
A29: Hard-to-Reach Businesses Program | B29: Smart Power Strip - Wh7-Plug- SMB (direct install) | C29: 606.2 | D29: SMB | E29: Electronics | G29: per unit | H29: 10 | I29: IL TRM v11 vol 3 | J29: 78 | K29: =ROUND(AS29*AW29,4) -> 103 | L29: IL TRM v11 vol 3 (algorithm) | M29: 79 | N29: =K29/U29 -> 0.01444802918 | O29: 0.8 | P29: IL TRM v11 vol 3 | Q29: 80 | R29: =ROUND((K29/U29)*O29,4) -> 0.0116 | S29: IL TRM v11 vol 3 | T29: 80 | U29: 7129 | V29: IL TRM v11 vol3 | W29: 80 | X29: 7 | Y29: IL TRM v11 vol3 | Z29: 78 | AA29: Smart strip with at least 2 controlled plugs | AC29: IL TRM v11 vol3 | AD29: 78 | AE29: Standard outlet strip | AG29: IL TRM v11 vol 3 | AH29: 674 | AI29: =ROUND(AS29*AW29,4) | AJ29: =ROUND((K29/U29)*O29,4) | AK29: IL TRM v11 vol3 | AL29: 79,80 | AM29: 2024-01-01 | AN29: 2024-12-31 | AS29: 103 | AT29: kWh | AU29: IL TRM v11 vol3 | AV29: 79 | AW29: 1 | AX29: ISR (direct install) | AY29: IL TRM v11 vol3 | AZ29: 79
A30: Whole Business Efficiency Program | B30: Smart Power Strip - Wh7-Plug- SMB (direct install) | C30: 606.3 | D30: SMB | E30: Electronics | G30: per unit | H30: 10 | I30: IL TRM v12 vol 3 | J30: 87 | K30: =ROUND(AS30*AW30,4) -> 103 | L30: IL TRM v12 vol 3 (algorithm) | M30: 89 | N30: =K30/U30 -> 0.01444802918 | O30: 0.8 | P30: IL TRM v12 vol3 | Q30: 90 | R30: =ROUND((K30/U30)*O30,4) -> 0.0116 | S30: IL TRM v12 vol 3 | T30: 90 | U30: 7129 | V30: IL TRM v12 vol3 | W30: 90 | X30: 7 | Y30: IL TRM v12 vol3 | Z30: 87 | AA30: Smart strip with at least 2 controlled plugs | AC30: IL TRM v12 vol3 | AD30: 87 | AE30: Standard outlet strip | AG30: IL TRM v12 vol3 | AH30: 87 | AI30: =ROUND(AS30*AW30,4) | AJ30: =ROUND((K30/U30)*O30,4) | AK30: IL TRM v12 vol3 | AL30: 89,90 | AM30: 2025-01-01 | AS30: 103 | AT30: kWh | AU30: IL TRM v12 vol3 | AV30: 90 | AW30: 1 | AX30: ISR (direct install) | AY30: IL TRM v12 vol3 | AZ30: 89
A31: Hard-to-Reach Businesses Program | B31: Strip curtain for walk-in coolers - Convenience Store (No strip curtain) | C31: 304 | D31: Small C&I | E31: Refrigeration | G31: sq.ft of door opening | H31: 10.22 | I31: IL TRM v6 vol2 | J31: 450 | K31: =ROUND(20,4) -> 20 | L31: IL TRM v6 vol2 | M31: 451 | O31: 1 | P31: IL TRM v6 vol2 | Q31: 452 | R31: =ROUND(AS31/8766*O31,4) -> 0.0023 | S31: Calculated Value | X31: 4 | Y31: IL TRM v6 vol2 | Z31: 450 | AA31: Strip curtain at least 0.06 inches thick | AC31: IL TRM v6 vol2 | AD31: 450 | AE31: No strip curtain | AG31: IL TRM v6 vol2 | AH31: 450 | AI31: =ROUND(20,4) | AJ31: =ROUND(AS31/8766*O31,4) | AK31: IL TRM v6 vol2 | AL31: 451452 | AM31: 2020-01-01 | AN31: 2024-12-31 | AS31: 20 | AT31: ΔkWh/sq ft | AU31: IL TRM v6 vol2 | AV31: 450 | AW31: 21 | AX31: Area | AY31: IL TRM v6 vol2 | AZ31: 450 | BA31: 1 | BB31: Coincidence Factor (CF) | BC31: IL TRM v6 vol2 | BD31: 450
A32: Whole Business Efficiency Program | B32: Strip curtain for walk-in coolers - Convenience Store (No strip curtain) | C32: 304.1 | D32: Small C&I | E32: Refrigeration | G32: per sq. ft. | H32: 10.22 | I32: IL TRM v12 vol2 | J32: 812 | K32: =ROUND(AB32*AW32,4) -> 23.6 | L32: IL TRM v12 vol2 | M32: 813 | O32: 1 | P32: IL TRM v12 vol2 | Q32: 814 | R32: =ROUND(K32/U32*O32,4) -> 0.0027 | S32: Calculated Value | U32: 8766 | V32: IL TRM v12 vol2 | W32: 814 | X32: 4 | Y32: IL TRM v12 vol2 | Z32: 812 | AA32: Strip curtain at least 0.06 inches thick, convenience store cooler | AB32: 23.6 | AC32: IL TRM v12 vol2 | AD32: 813 | AE32: No strip curtain | AG32: IL TRM v12 vol2 | AH32: 813 | AI32: =ROUND(AB32*AW32,4) | AJ32: =ROUND(K32/U32*O32,4) | AK32: IL TRM v12 vol2 | AL32: 813 | AM32: 2025-01-01 | AW32: 1 | AX32: Square Footage | AY32: Deemed value, to allow for per ft calculation
A33: Hard-to-Reach Businesses Program | B33: Strip curtain for walk-in coolers - Convenience Store (Old strip curtain) | C33: 330 | D33: Small C&I | E33: Refrigeration | G33: sq.ft of door opening | H33: 10.22 | I33: IL TRM v6 vol2 | J33: 450 | K33: =ROUND(5,4) -> 5 | L33: IL TRM v6 vol2 | M33: 451 | O33: 1 | P33: IL TRM v6 vol2 | Q33: 452 | R33: =ROUND(AS33/8766*O33,4) -> 0.0006 | S33: Calculated Value | X33: 4 | Y33: IL TRM v6 vol2 | Z33: 450 | AA33: Strip curtain at least 0.06 inches thick | AC33: IL TRM v6 vol2 | AD33: 450 | AE33: Old, ineffective strip curtain | AG33: IL TRM v6 vol2 | AH33: 450 | AI33: =ROUND(5,4) | AJ33: =ROUND(AS33/8766*O33,4) | AK33: IL TRM v6 vol2 | AL33: 451452 | AM33: 2020-01-01 | AN33: 2024-12-31 | AS33: 5 | AT33: ΔkWh/sq ft | AU33: IL TRM v6 vol2 | AV33: 450 | AW33: 21 | AX33: Area | AY33: IL TRM v6 vol2 | AZ33: 450 | BA33: 1 | BB33: Coincidence Factor (CF) | BC33: IL TRM v6 vol2 | BD33: 450
A34: Whole Business Efficiency Program | B34: Strip curtain for walk-in coolers - Convenience Store (Old strip curtain) | C34: 330.1 | D34: Small C&I | E34: Refrigeration | G34: per sq. ft. | H34: 10.22 | I34: IL TRM v12 vol2 | J34: 812 | K34: =ROUND(AB34,4) -> 6.3 | L34: IL TRM v12 vol2 | M34: 813 | O34: 1 | P34: IL TRM v12 vol2 | Q34: 812 | R34: =ROUND(K34/U34*O34,4) -> 0.0007 | S34: Calculated Value | U34: 8766 | V34: IL TRM v12 vol2 | W34: 814 | X34: 4 | Y34: IL TRM v12 vol2 | Z34: 812 | AA34: Strip curtain at least 0.06 inches thick | AB34: 6.3 | AC34: IL TRM v12 vol2 | AD34: 813 | AE34: Old, ineffective strip curtain | AG34: IL TRM v12 vol2 | AH34: 812 | AI34: =ROUND(AB34,4) | AJ34: =ROUND(K34/U34*O34,4) | AM34: 2025-01-01
A35: Hard-to-Reach Businesses Program | B35: Strip curtain for walk-in coolers - Restaurant (No strip curtain) | C35: 306 | D35: Small C&I | E35: Refrigeration | G35: sq.ft of door opening | H35: 10.22 | I35: IL TRM v6 vol2 | J35: 450 | K35: =ROUND(30,4) -> 30 | L35: IL TRM v6 vol2 | M35: 451 | O35: 1 | P35: IL TRM v6 vol2 | Q35: 452 | R35: =ROUND(AS35/8766*O35,4) -> 0.0034 | S35: Calculated Value | X35: 4 | Y35: IL TRM v6 vol2 | Z35: 450 | AA35: Strip curtain at least 0.06 inches thick | AC35: IL TRM v6 vol2 | AD35: 450 | AE35: No strip curtain | AG35: IL TRM v6 vol2 | AH35: 450 | AI35: =ROUND(30,4) | AJ35: =ROUND(AS35/8766*O35,4) | AK35: IL TRM v6 vol2 | AL35: 451452 | AM35: 2020-01-01 | AN35: 2024-12-31 | AS35: 30 | AT35: ΔkWh/sq ft | AU35: IL TRM v6 vol2 | AV35: 450 | AW35: 21 | AX35: Area | AY35: IL TRM v6 vol2 | AZ35: 450 | BA35: 1 | BB35: Coincidence Factor (CF) | BC35: IL TRM v6 vol2 | BD35: 450
A36: Whole Business Efficiency Program | B36: Strip curtain for walk-in coolers - Restaurant (No strip curtain) | C36: 306.1 | D36: Small C&I | E36: Refrigeration | G36: per sq. ft. | H36: 10.22 | I36: IL TRM v12 vol2 | J36: 812 | K36: =ROUND(AB36*AW36,4) -> 22.5 | L36: IL TRM v12 vol2 | M36: 813 | O36: 1 | P36: IL TRM v12 vol2 | Q36: 814 | R36: =ROUND(K36/U36*O36,4) -> 0.0026 | S36: Calculated Value | U36: 8766 | V36: IL TRM v12 vol2 | W36: 814 | X36: 4 | Y36: IL TRM v12 vol2 | Z36: 812 | AA36: Strip curtain at least 0.06 inches thick, restaurant cooler | AB36: 22.5 | AC36: IL TRM v12 vol2 | AD36: 813 | AE36: No strip curtain | AG36: IL TRM v12 vol2 | AH36: 813 | AI36: =ROUND(AB36*AW36,4) | AJ36: =ROUND(K36/U36*O36,4) | AK36: IL TRM v12 vol2 | AL36: 813 | AM36: 2025-01-01 | AW36: 1 | AX36: Square Footage | AY36: Deemed value, to allow for per ft calculation
A37: Hard-to-Reach Businesses Program | B37: Strip curtain for walk-in coolers - Restaurant (Old strip curtain) | C37: 331 | D37: Small C&I | E37: Refrigeration | G37: sq.ft of door opening | H37: 10.22 | I37: IL TRM v6 vol2 | J37: 450 | K37: =ROUND(8,4) -> 8 | L37: IL TRM v6 vol2 | M37: 451 | O37: 1 | P37: IL TRM v6 vol2 | Q37: 452 | R37: =ROUND(AS37/8766*O37,4) -> 0.0009 | S37: Calculated Value | X37: 4 | Y37: IL TRM v6 vol2 | Z37: 450 | AA37: Strip curtain at least 0.06 inches thick | AC37: IL TRM v6 vol2 | AD37: 450 | AE37: Old, ineffective strip curtain | AG37: IL TRM v6 vol2 | AH37: 450 | AI37: =ROUND(8,4) | AJ37: =ROUND(AS37/8766*O37,4) | AK37: IL TRM v6 vol2 | AL37: 451452 | AM37: 2020-01-01 | AN37: 2024-12-31 | AS37: 8 | AT37: ΔkWh/sq ft | AU37: IL TRM v6 vol2 | AV37: 450 | AW37: 21 | AX37: Area | AY37: IL TRM v6 vol2 | AZ37: 450 | BA37: 1 | BB37: Coincidence Factor (CF) | BC37: IL TRM v6 vol2 | BD37: 450
A38: Whole Business Efficiency Program | B38: Strip curtain for walk-in coolers - Restaurant (Old strip curtain) | C38: 331.1 | D38: Small C&I | E38: Refrigeration | G38: per sq. ft. | H38: 10.22 | I38: IL TRM v12 vol2 | J38: 812 | K38: =ROUND(AB38,4) -> 6.2 | L38: IL TRM v12 vol2 | M38: 813 | O38: 1 | P38: IL TRM v12 vol2 | Q38: 812 | R38: =ROUND(K38/U38*O38,4) -> 0.0007 | S38: Calculated Value | U38: 8766 | V38: IL TRM v12 vol2 | W38: 814 | X38: 4 | Y38: IL TRM v12 vol2 | Z38: 812 | AA38: Strip curtain at least 0.06 inches thick | AB38: 6.2 | AC38: IL TRM v12 vol2 | AD38: 813 | AE38: Old, ineffective strip curtain | AG38: IL TRM v12 vol2 | AH38: 812 | AI38: =ROUND(AB38,4) | AJ38: =ROUND(K38/U38*O38,4) | AM38: 2025-01-01
A39: Hard-to-Reach Businesses Program | B39: Strip curtain for walk-in freezers - Convenience Store (No strip curtain) | C39: 305 | D39: Small C&I | E39: Refrigeration | G39: sq.ft of door opening | H39: 10.22 | I39: IL TRM v6 vol2 | J39: 450 | K39: =ROUND(27,4) -> 27 | L39: IL TRM v6 vol2 | M39: 451 | O39: 1 | P39: IL TRM v6 vol2 | Q39: 452 | R39: =ROUND(AS39/8766*O39,4) -> 0.0031 | S39: Calculated Value | X39: 4 | Y39: IL TRM v6 vol2 | Z39: 450 | AA39: Strip curtain at least 0.06 inches thick | AC39: IL TRM v6 vol2 | AD39: 450 | AE39: No strip curtain | AG39: IL TRM v6 vol2 | AH39: 450 | AI39: =ROUND(27,4) | AJ39: =ROUND(AS39/8766*O39,4) | AK39: IL TRM v6 vol2 | AL39: 451452 | AM39: 2020-01-01 | AN39: 2024-12-31 | AS39: 27 | AT39: ΔkWh/sq ft | AU39: IL TRM v6 vol2 | AV39: 450 | AW39: 21 | AX39: Area | AY39: IL TRM v6 vol2 | AZ39: 450 | BA39: 1 | BB39: Coincidence Factor (CF) | BC39: IL TRM v6 vol2 | BD39: 450
A40: Whole Business Efficiency Program | B40: Strip curtain for walk-in freezers - Convenience Store (No strip curtain) | C40: 305.1 | D40: Small C&I | E40: Refrigeration | G40: per sq. ft. | H40: 10.22 | I40: IL TRM v12 vol2 | J40: 812 | K40: =ROUND(AB40*AW40,4) -> 33.2 | L40: IL TRM v12 vol2 | M40: 813 | O40: 1 | P40: IL TRM v12 vol2 | Q40: 814 | R40: =ROUND(K40/U40*O40,4) -> 0.0038 | S40: Calculated Value | U40: 8766 | V40: IL TRM v12 vol2 | W40: 814 | X40: 4 | Y40: IL TRM v12 vol2 | Z40: 812 | AA40: Strip curtain at least 0.06 inches thick, convenience store freezer | AB40: 33.2 | AC40: IL TRM v12 vol2 | AD40: 813 | AE40: No strip curtain | AG40: IL TRM v12 vol2 | AH40: 813 | AI40: =ROUND(AB40*AW40,4) | AJ40: =ROUND(K40/U40*O40,4) | AK40: IL TRM v12 vol2 | AL40: 813 | AM40: 2025-01-01 | AW40: 1 | AX40: Square Footage | AY40: Deemed value, to allow for per ft calculation
A41: Hard-to-Reach Businesses Program | B41: Strip curtain for walk-in freezers - Convenience Store (Old strip curtain) | C41: 328 | D41: Small C&I | E41: Refrigeration | G41: sq.ft of door opening | H41: 10.22 | I41: IL TRM v6 vol2 | J41: 450 | K41: =ROUND(8,4) -> 8 | L41: IL TRM v6 vol2 | M41: 451 | O41: 1 | P41: IL TRM v6 vol2 | Q41: 452 | R41: =ROUND(AS41/8766*O41,4) -> 0.0009 | S41: Calculated Value | X41: 4 | Y41: IL TRM v6 vol2 | Z41: 450 | AA41: Strip curtain at least 0.06 inches thick | AC41: IL TRM v6 vol2 | AD41: 450 | AE41: Old, ineffective strip curtain | AG41: IL TRM v6 vol2 | AH41: 450 | AI41: =ROUND(8,4) | AJ41: =ROUND(AS41/8766*O41,4) | AK41: IL TRM v6 vol2 | AL41: 451452 | AM41: 2020-01-01 | AN41: 2024-12-31 | AS41: 8 | AT41: ΔkWh/sq ft | AU41: IL TRM v6 vol2 | AV41: 450 | AW41: 21 | AX41: Area | AY41: IL TRM v6 vol2 | AZ41: 450 | BA41: 1 | BB41: Coincidence Factor (CF) | BC41: IL TRM v6 vol2 | BD41: 450
A42: Whole Business Efficiency Program | B42: Strip curtain for walk-in freezers - Convenience Store (Old strip curtain) | C42: 328.1 | D42: Small C&I | E42: Refrigeration | G42: per sq. ft. | H42: 10.22 | I42: IL TRM v12 vol2 | J42: 812 | K42: =ROUND(AB42,4) -> 10 | L42: IL TRM v12 vol2 | M42: 813 | O42: 1 | P42: IL TRM v12 vol2 | Q42: 812 | R42: =ROUND(K42/U42*O42,4) -> 0.0011 | S42: Calculated Value | U42: 8766 | V42: IL TRM v12 vol2 | W42: 814 | X42: 4 | Y42: IL TRM v12 vol2 | Z42: 812 | AA42: Strip curtain at least 0.06 inches thick | AB42: 10 | AC42: IL TRM v12 vol2 | AD42: 813 | AE42: Old, ineffective strip curtain | AG42: IL TRM v12 vol2 | AH42: 812 | AI42: =ROUND(AB42,4) | AJ42: =ROUND(K42/U42*O42,4) | AM42: 2025-01-01
A43: Hard-to-Reach Businesses Program | B43: Strip curtain for walk-in freezers - Restaurant (No strip curtain) | C43: 307 | D43: Small C&I | E43: Refrigeration | G43: sq.ft of door opening | H43: 10.22 | I43: IL TRM v6 vol2 | J43: 450 | K43: =ROUND(119,4) -> 119 | L43: IL TRM v6 vol2 | M43: 451 | O43: 1 | P43: IL TRM v6 vol2 | Q43: 452 | R43: =ROUND(AS43/8766*O43,4) -> 0.0136 | S43: Calculated Value | X43: 4 | Y43: IL TRM v6 vol2 | Z43: 450 | AA43: Strip curtain at least 0.06 inches thick | AC43: IL TRM v6 vol2 | AD43: 450 | AE43: No strip curtain | AG43: IL TRM v6 vol2 | AH43: 450 | AI43: =ROUND(119,4) | AJ43: =ROUND(AS43/8766*O43,4) | AK43: IL TRM v6 vol2 | AL43: 451452 | AM43: 2020-01-01 | AN43: 2024-12-31 | AS43: 119 | AT43: ΔkWh/sq ft | AU43: IL TRM v6 vol2 | AV43: 450 | AW43: 21 | AX43: Area | AY43: IL TRM v6 vol2 | AZ43: 450 | BA43: 1 | BB43: Coincidence Factor (CF) | BC43: IL TRM v6 vol2 | BD43: 450
A44: Whole Business Efficiency Program | B44: Strip curtain for walk-in freezers - Restaurant (No strip curtain) | C44: 307.1 | D44: Small C&I | E44: Refrigeration | G44: per sq. ft. | H44: 10.22 | I44: IL TRM v12 vol2 | J44: 812 | K44: =ROUND(AB44*AW44,4) -> 114 | L44: IL TRM v12 vol2 | M44: 813 | O44: 1 | P44: IL TRM v12 vol2 | Q44: 814 | R44: =ROUND(K44/U44*O44,4) -> 0.013 | S44: Calculated Value | U44: 8766 | V44: IL TRM v12 vol2 | W44: 814 | X44: 4 | Y44: IL TRM v12 vol2 | Z44: 812 | AA44: Strip curtain at least 0.06 inches thick, restaurant freezer | AB44: 114 | AC44: IL TRM v12 vol2 | AD44: 813 | AE44: No strip curtain | AG44: IL TRM v12 vol2 | AH44: 813 | AI44: =ROUND(AB44*AW44,4) | AJ44: =ROUND(K44/U44*O44,4) | AK44: IL TRM v12 vol2 | AL44: 813 | AM44: 2025-01-01 | AW44: 1 | AX44: Square Footage | AY44: Deemed value, to allow for per ft calculation
A45: Hard-to-Reach Businesses Program | B45: Strip curtain for walk-in freezers - Restaurant (Old strip curtain) | C45: 329 | D45: Small C&I | E45: Refrigeration | G45: sq.ft of door opening | H45: 10.22 | I45: IL TRM v6 vol2 | J45: 450 | K45: =ROUND(34,4) -> 34 | L45: IL TRM v6 vol2 | M45: 451 | O45: 1 | P45: IL TRM v6 vol2 | Q45: 452 | R45: =ROUND(AS45/8766*O45,4) -> 0.0039 | S45: Calculated Value | X45: 4 | Y45: IL TRM v6 vol2 | Z45: 450 | AA45: Strip curtain at least 0.06 inches thick | AC45: IL TRM v6 vol2 | AD45: 450 | AE45: Old, ineffective strip curtain | AG45: IL TRM v6 vol2 | AH45: 450 | AI45: =ROUND(34,4) | AJ45: =ROUND(AS45/8766*O45,4) | AK45: IL TRM v6 vol2 | AL45: 451452 | AM45: 2020-01-01 | AN45: 2024-12-31 | AS45: 34 | AT45: ΔkWh/sq ft | AU45: IL TRM v6 vol2 | AV45: 450 | AW45: 21 | AX45: Area | AY45: IL TRM v6 vol2 | AZ45: 450 | BA45: 1 | BB45: Coincidence Factor (CF) | BC45: IL TRM v6 vol2 | BD45: 450
A46: Whole Business Efficiency Program | B46: Strip curtain for walk-in freezers - Restaurant (Old strip curtain) | C46: 329.1 | D46: Small C&I | E46: Refrigeration | G46: per sq. ft. | H46: 10.22 | I46: IL TRM v12 vol2 | J46: 812 | K46: =ROUND(AB46,4) -> 32.4 | L46: IL TRM v12 vol2 | M46: 813 | O46: 1 | P46: IL TRM v12 vol2 | Q46: 812 | R46: =ROUND(K46/U46*O46,4) -> 0.0037 | S46: Calculated Value | U46: 8766 | V46: IL TRM v12 vol2 | W46: 814 | X46: 4 | Y46: IL TRM v12 vol2 | Z46: 812 | AA46: Strip curtain at least 0.06 inches thick | AB46: 32.4 | AC46: IL TRM v12 vol2 | AD46: 813 | AE46: Old, ineffective strip curtain | AG46: IL TRM v12 vol2 | AH46: 812 | AI46: =ROUND(AB46,4) | AJ46: =ROUND(K46/U46*O46,4) | AM46: 2025-01-01
A47: Hard-to-Reach Businesses Program | B47: Water Heater Pipe Insulation | C47: 290 | D47: Small C&I | E47: Hot Water | F47: Direct Install | G47: per foot | H47: 15 | I47: IL TRM v7 vol3 | J47: 171 | K47: =ROUND(((AS47/AW47-BA47/BE47)*BI47*BM47*BQ47/BU47/BY47),4) -> 102.7143 | L47: Calculated Value | N47: =ROUND(K47/U47,4) -> 0.0117 | O47: 1 | P47: IL TRM v7 vol3 | Q47: 171 | R47: =ROUND(K47/U47,4) -> 0.0117 | S47: Calculated Value | U47: 8766 | V47: IL TRM v7 vol3 | W47: 172 | X47: 15 | Y47: IL TRM v7 vol3 | Z47: 171 | AA47: 5 linear feet of insulation | AE47: none | AI47: =ROUND(((AS47/AW47-BA47/BE47)*BI47*BM47*BQ47/BU47/BY47),4) | AJ47: =ROUND(K47/U47,4) | AK47: IL TRM v7 vol3 | AL47: 171, 172 | AM47: 2020-01-01 | AN47: 2024-12-31 | AS47: 0.196 | AT47: Cexist | AU47: IL TRM v7 vol3 | AV47: 172 | AW47: 1 | AX47: Rexist | AY47: IL TRM v7 vol3 | AZ47: 172 | BA47: 0.327 | BB47: Cnew | BC47: IL TRM v7 vol3 | BD47: 172 | BE47: 5 | BF47: Rnew | BG47: IL TRM v7 vol3 | BH47: 172 | BI47: 5 | BJ47: L | BK47: Tracking Data | BM47: 60 | BN47: DeltaT | BO47: IL TRM v7 vol3 | BP47: 172 | BQ47: 8766 | BR47: Hours | BS47: IL TRM v7 vol3 | BT47: 172 | BU47: 0.98 | BV47: eta DHW | BW47: IL TRM v7 vol3 | BX47: 172 | BY47: 3412 | BZ47: Conversion from BTU to kWh | CA47: IL TRM v7 vol3 | CB47: 172
A48: Whole Business Efficiency Program | B48: Water Heater Pipe Insulation | C48: 290.1 | D48: Small C&I | E48: Hot Water | F48: Direct Install | G48: per foot | H48: 3 | I48: IL TRM v12 vol3 | J48: 237 | K48: =ROUND(((1/AW48-1/BE48)*AS48*CS48*BM48*U48*CO48)/BU48/BY48,4) -> 231.2044 | L48: Calculated Value | N48: =ROUND(K48/U48,4) -> 0.0264 | O48: 1 | P48: IL TRM v12 vol3 | Q48: 237 | R48: =ROUND(K48/U48,4) -> 0.0264 | S48: Calculated Value | U48: 8766 | V48: IL TRM v12 vol2 | W48: 240 | X48: 15 | Y48: IL TRM v12 vol3 | Z48: 237 | AA48: 5 linear feet of insulation | AE48: none | AI48: =ROUND(((1/AW48-1/BE48)*AS48*CS48*BM48*U48*CO48)/BU48/BY48,4) | AJ48: =ROUND(K48/U48,4) | AK48: IL TRM v12 vol3 | AL48: 237, 240 | AM48: 2025-01-01 | AS48: 0.2055 | AT48: Cinside | AU48: IL TRM v12 vol3 | AV48: 238 | AW48: 0.521 | AX48: Rexist | AY48: IL TRM v12 vol3 | AZ48: 239 | BE48: 5 | BF48: Rnew, actual | BG48: Program Tracking Data | BI48: 5 | BJ48: L | BK48: Tracking Data | BM48: 60 | BN48: DeltaT | BO48: IL TRM v12 vol2 | BP48: 239 | BU48: 0.98 | BV48: eta DHW | BW48: IL TRM v12 vol3 | BX48: 239 | BY48: 3412 | BZ48: Conversion from BTU to kWh | CA48: IL TRM v12 vol3 | CB48: 239 | CC48: =BE48-(CG48) -> 2 | CD48: Lhorizontal | CE48: IL TRM v12 vol3 | CF48: 238 | CG48: 3 | CH48: Lvertical | CI48: IL TRM v12 vol3 | CJ48: 238 | CK48: 0.72 | CL48: α | CM48: IL TRM v12 vol3 | CN48: 239 | CO48: 1 | CP48: ISR, Direct Install | CQ48: IL TRM v12 vol2 | CR48: 239 | CS48: =CC48+(CK48*CG48) -> 4.16 | CT48: Leffective | CU48: IL TRM v12 vol3 | CV48: 238
A49: Home Demand Response Program | B49: BYO - Thermostat (DR enrolled) | C49: 1116 | D49: Single/Multi-Family | E49: HVAC | G49: per unit | H49: 0 | I49: Based on non-influence of the purchase. Free Ridership. | K49: =ROUND(0, 4) -> 0 | L49: Based on non-influence of the purchase. Free Ridership. | R49: =ROUND(0.823,4) -> 0.823 | S49: ADM PY2023 Analysis | X49: 11 | Y49: IL TRM 12 vol3 | Z49: 204 | AA49: PCT | AI49: =ROUND(0, 4) | AJ49: =ROUND(0.823,4) | AM49: 2025-01-01
A50: Home Demand Response Program | B50: DIY - Marketplace - Thermostat (DR enrolled) | C50: 1117 | D50: Single/Multi-Family | E50: HVAC | G50: per unit | H50: 79 | I50: IL TRM v12 vol3 | J50: 204 | K50: =ROUND(0, 4) -> 0 | L50: ADM PY2021 Regression Analysis of participant billing data | R50: =ROUND(0.823,4) -> 0.823 | S50: ADM PY2023 Analysis | X50: 11 | Y50: IL TRM 12 vol3 | Z50: 204 | AA50: PCT | AI50: =ROUND(0, 4) | AJ50: =ROUND(0.823,4) | AM50: 2025-01-01
A51: Home Demand Response Program | B51: DR Water Heater DLC | C51: 308.1 | D51: All | E51: Hot Water | G51: per customer | H51: 200 | I51: MN TRM v3.3 | J51: 196 | K51: =ROUND(0,4) -> 0 | L51: Portland based IOU program evaluation | R51: =ROUND(0.17,4) -> 0.17 | S51: Portland based IOU program evaluation | X51: 15 | Y51: MN TRM v3.3 | Z51: 195 | AA51: Electric water heater during curtailment event. | AE51: Electric water heater on non-curtailment event days. | AI51: =ROUND(0,4) | AJ51: =ROUND(0.17,4) | AM51: 2024-01-01 | AN51: 2024-12-31 | AS51: Average # of events | AT51: Average number of load control events during a typical year, provided by utility, assumed to be 2 based on MN TRM v3.3.
A52: Home Demand Response Program | B52: DR Water Heater DLC | C52: 308.2 | D52: All | E52: Hot Water | G52: per customer | H52: 200 | I52: MN TRM v3.3 | J52: 196 | K52: =ROUND(0,4) -> 0 | L52: Portland based IOU program evaluation | R52: =ROUND(0.17,4) -> 0.17 | S52: Portland based IOU program evaluation | X52: 15 | Y52: MN TRM v3.3 | Z52: 195 | AA52: Electric water heater during curtailment event. | AE52: Electric water heater on non-curtailment event days. | AI52: =ROUND(0,4) | AJ52: =ROUND(0.17,4) | AM52: 2025-01-01 | AS52: Average # of events | AT52: Average number of load control events during a typical year, provided by utility, assumed to be 2 based on MN TRM v3.3.
A53: Home Demand Response Program | B53: Pro Installation - Thermostat (DR enrolled) | C53: 1118 | D53: Single/Multi-Family | E53: HVAC | G53: per unit | H53: 79 | I53: IL TRM v12 vol3 | J53: 204 | K53: =ROUND(0, 4) -> 0 | L53: ADM PY2021 Regression Analysis of participant billing data | R53: =ROUND(0.823,4) -> 0.823 | S53: ADM PY2023 Analysis | X53: 11 | Y53: IL TRM 12 vol3 | Z53: 204 | AA53: PCT | AI53: =ROUND(0, 4) | AJ53: =ROUND(0.823,4) | AM53: 2025-01-01
A54: Home Demand Response Program | B54: Smart Thermostat | C54: 65.6 | D54: All | E54: HVAC | G54: per unit | H54: 170 | I54: Weighted average cost of actual units installed in PY2020. | K54: =ROUND(185,4) -> 185 | L54: ADM PY2021 Regression Analysis of participant billing data | R54: =ROUND(1.314089,4) -> 1.3141 | S54: ADM PY2022 Analysis | X54: 11 | Y54: IL TRM 11 vol3 | Z54: 205 | AA54: PCT | AE54: No PCT | AI54: =ROUND(185,4) | AJ54: =ROUND(1.314089,4) | AM54: 2024-01-01 | AN54: 2024-12-31
A55: Home Demand Response Program | B55: Smart Thermostat | C55: 65.7 | D55: Residential | E55: HVAC | G55: per customer | H55: 79 | I55: IL TRM v12 vol3 | J55: 204 | K55: =ROUND(0,4) -> 0 | L55: ADM PY2021 Regression Analysis of participant billing data | R55: =ROUND(0.823,4) -> 0.823 | S55: ADM PY2023 Analysis | X55: 11 | Y55: IL TRM 12 vol3 | Z55: 204 | AA55: PCT | AI55: =ROUND(0,4) | AJ55: =ROUND(0.823,4) | AM55: 2025-01-01
A56: Home Demand Response Program | B56: Smart Thermostat - BYO | C56: 311.4 | D56: All | E56: HVAC | G56: per unit | H56: 170 | I56: Weighted average cost of actual units installed in PY2020. | K56: =ROUND(0,4) -> 0 | L56: Based on non-influence of the purchase. Free Ridership. | R56: =ROUND(1.314089,4) -> 1.3141 | S56: ADM PY2022 Analysis | X56: 11 | Y56: IL TRM 11 vol3 | Z56: 205 | AA56: PCT | AE56: No PCT | AI56: =ROUND(0,4) | AJ56: =ROUND(1.314089,4) | AM56: 2024-01-01 | AN56: 2024-12-31
A57: Home Demand Response Program | B57: Smart Thermostat - BYO | C57: 311.5 | D57: All | E57: HVAC | G57: per customer | H57: 0 | I57: Based on non-influence of the purchase. Free Ridership. | J57: 204 | K57: =ROUND(0,4) -> 0 | L57: Based on non-influence of the purchase. Free Ridership. | R57: =ROUND(0.823, 4) -> 0.823 | S57: ADM PY2023 Analysis | X57: 11 | Y57: IL TRM 11 vol3 | Z57: 205 | AA57: PCT | AE57: No PCT | AI57: =ROUND(0,4) | AJ57: =ROUND(0.823, 4) | AM57: 2025-01-01
A58: Income Eligible Program | B58: 1x4 LED retrofit kits (Com Area) | C58: 475.2 | D58: Multi-Family | E58: Lighting | F58: Common Area - DI | G58: per unit | H58: 75 | I58: IL TRM v11 vol2 | J58: 668 | K58: =ROUND((AF58-AB58)/1000*U58*AS58*BA58,4) -> 132.2034 | L58: Calculated Value | N58: =R58/O58 -> 0.0264516129 | O58: 0.62 | P58: IL TRM v11 vol2 (MF - Mid Rise - Common) | Q58: 636 | R58: =ROUND((AF58-AB58)/1000*AW58*O58*BA58,4) -> 0.0164 | S58: Calculated Value | U58: 5216 | V58: IL TRM v11 vol2 - MF Midrise Common | W58: 636 | X58: =50000/U58 -> 9.585889571 | Y58: IL TRM v11 vol2 | Z58: 659 | AA58: LED 1X4 Retrofit Kits - LED 1x4 Recessed Light Fixture, 3001-4500 lumens | AB58: 33.7 | AC58: IL TRM v11 vol3 | AD58: 668 | AE58: 2x4 T8, T12 or T5 Fluorescents - 18:82; 2-Lamp 34w T12 (BF < 0.85) :2-Lamp 32w T8 (BF < 0.89) | AF58: 57 | AG58: IL TRM v11 vol3 | AH58: 668 | AI58: =ROUND((AF58-AB58)/1000*U58*AS58*BA58,4) | AJ58: =ROUND((AF58-AB58)/1000*AW58*O58*BA58,4) | AK58: IL TRM v11 vol2 | AL58: 660, 665 | AM58: 2024-01-01 | AN58: 2024-12-31 | AS58: 1.11 | AT58: Waste Heat Factor_Energy | AU58: IL TRM v11 vol2 | AV58: 636 | AW58: 1.16 | AX58: Waste Heat Factor_Demand | AY58: IL TRM v11 vol2 | AZ58: 636 | BA58: 0.98 | BB58: ISR | BC58: IL TRM v11 vol2 | BD58: 664
A59: Income Eligible Program | B59: 1x4 LED retrofit kits (Com Area) | C59: 475.3 | D59: Multi-Family | E59: Lighting | F59: Common Area - DI | G59: per unit | H59: 75 | I59: IL TRM v12 vol2 | J59: 715 | K59: =ROUND(((AF59-AB59)/1000)*U59*AS59*BA59,4) -> 143.3487 | L59: Calculated Value | N59: =ROUND(R59/O59,4) -> 0.0287 | O59: 0.62 | P59: IL TRM v12 vol2 (MF - Mid Rise - Common) | R59: =ROUND(((AF59-AB59)/1000)*BA59*AW59*O59,4) -> 0.0178 | S59: Calculated Value | U59: 5216 | V59: IL TRM v12 vol2 - MF Mid Rise - Common | W59: 683 | X59: 8 | Y59: IL TRM v12 vol2 | Z59: 706 | AA59: LED 1X4 Retrofit Kits - LED 1x4 Recessed Light Fixture, 3001-4500 lumens | AB59: 30.8 | AC59: IL TRM v12 vol3 | AD59: 715 | AE59: 2x4 T8, T12 or T5 Fluorescents - 18:82; 2-Lamp 34w T12 (BF < 0.85) :2-Lamp 32w T8 (BF < 0.89) | AF59: 57 | AG59: IL TRM v12 vol2 | AH59: 715 | AI59: =ROUND(((AF59-AB59)/1000)*U59*AS59*BA59,4) | AJ59: =ROUND(((AF59-AB59)/1000)*BA59*AW59*O59,4) | AK59: IL TRM v12 vol3 | AL59: 707, 713 | AM59: 2025-01-01 | AS59: 1.11 | AT59: Waste Heat Factor (energy), LED Mid Rise - Common | AU59: IL TRM v12 vol2 | AV59: 683 | AW59: 1.16 | AX59: Waste Heat Factor (demand), LED Mid Rise - Common | AY59: IL TRM v12 vol2 | AZ59: 683 | BA59: 0.945 | BB59: ISR - Direct Install | BC59: IL TRM v12 vol3 | BD59: 696
A60: Income Eligible Program | B60: Air Sealing (Infiltration reduction) - 30% MF LI DI ASHP base- Heating Only | C60: 442.3 | D60: Multi-Family | E60: HVAC - Shell | G60: per sq ft (floor area) | H60: 0.12 | I60: Program tracking data, with 50% co-delivery costs shared with Spire Missouri | K60: =ROUND(((((AF60-AB60)/AS60)*AW60*AP60*BA60)/(BE60*BI60))*BM60,4) -> 1251.354 | L60: Calculated Value | O60: 0 | P60: Calculated Value | R60: =ROUND(O60*K60,4) -> 0 | S60: No cooling savings, no coincident savings | X60: 20 | Y60: IL TRM v12 vol3 | Z60: 375 | AA60: Efficient CFM | AB60: 3243 | AC60: Average CFM50 value by blower door test after air sealing in the 2022 HCHC program tracking data. | AE60: Baseline CFM | AF60: 4494 | AG60: Average CFM50 value by blower door test before air sealing in the 2022 HCHC program tracking data. | AI60: =ROUND(((((AF60-AB60)/AS60)*AW60*AP60*BA60)/(BE60*BI60))*BM60,4) | AJ60: =ROUND(O60*K60,4) | AK60: IL TRM v12 vol3 | AL60: 376 | AM60: 2025-01-01 | AO60: 1445 | AP60: 5155 | AQ60: MO TRM and Navigant Analysis | AS60: 22.5 | AT60: N_heat for 1.5 stoires in St. Louis, MO | AU60: IL TRM v12 vol3 | AV60: 379 | AW60: 1440 | AX60: Convert CFM to cubic ft per day (60 * 24) | AY60: IL TRM v12 vol3 | AZ60: 379 | BA60: 0.018 | BB60: Specific heat capacity of air | BC60: IL TRM v12 vol3 | BD60: 377 | BE60: 1.74 | BF60: Efficiency (effective COP estimate) of ASHP, using "Heat Pump After 2015" from IL TRM v11 vol3 | BG60: IL TRM v12 vol3 | BH60: 380 | BI60: 3412 | BJ60: Convert Btu to kWh | BK60: IL TRM v12 vol3 | BL60: 380 | BM60: 1 | BN60: %ElectricHeat | BO60: IL TRM v12 vol3 | BP60: 380
A61: Income Eligible Program | B61: Air Sealing (Infiltration reduction) - 30% MF LI DI electric furnace base/electric resistance | C61: 441.3 | D61: Multi-Family | E61: HVAC - Shell | G61: per sq ft (floor area) | H61: 0.12 | I61: Program tracking data, with 50% co-delivery costs shared with Spire Missouri | K61: =ROUND(((((AF61-AB61)/AS61)*AW61*AP61*BA61)/(BE61*BI61))*BM61,4) -> 2177.356 | L61: Calculated Value | O61: 0 | P61: Calculated Value | R61: =ROUND(O61*K61,4) -> 0 | S61: No cooling savings, no coincident savings | X61: 20 | Y61: IL TRM v12 vol3 | Z61: 375 | AA61: Efficient CFM | AB61: 3243 | AC61: Average CFM50 value by blower door test after air sealing in the 2022 HCHC program tracking data. | AE61: Baseline CFM | AF61: 4494 | AG61: Average CFM50 value by blower door test before air sealing in the 2022 HCHC program tracking data. | AI61: =ROUND(((((AF61-AB61)/AS61)*AW61*AP61*BA61)/(BE61*BI61))*BM61,4) | AJ61: =ROUND(O61*K61,4) | AK61: IL TRM v12 vol3 | AL61: 376 | AM61: 2025-01-01 | AO61: 1445 | AP61: 5155 | AQ61: MO TRM and Navigant Analysis | AS61: 22.5 | AT61: N_heat for 1.5 stoires in St. Louis, MO | AU61: IL TRM v12 vol3 | AV61: 379 | AW61: 1440 | AX61: Convert CFM to cubic ft per day (60 * 24) | AY61: IL TRM v12 vol3 | AZ61: 379 | BA61: 0.018 | BB61: Specific heat capacity of air | BC61: IL TRM v12 vol3 | BD61: 377 | BE61: 1 | BF61: Efficiency (effective COP estimate) of electric resistance heating from MO TRM | BG61: IL TRM v12 vol3 | BH61: 380 | BI61: 3412 | BJ61: Convert Btu to kWh | BK61: IL TRM v12 vol3 | BL61: 380 | BM61: 1 | BN61: %ElectricHeat | BO61: IL TRM v12 vol3 | BP61: 380
A62: Income Eligible Program | B62: ASHP SEER 15 - replace ASHP: MF | C62: 539.1 | D62: Multi-Family | E62: HVAC | G62: per ton | H62: =(((DA62*DM62)+DE62)/DM62)-DI62 -> 89.91097923 | I62: IL TRM v11 vol3 | J62: 91 | K62: =ROUND(((U62*AS62*(1/(AF62*(1-BU62))-1/(AB62*BY62*(1-CC62))))/1000)+((BQ62*AS62*(1/(BA62*CW62*(1-CG62))-1/(AW62*CW62*CK62*(1-CO62))))/1000),4) -> 2.3713 | L62: Calculated Value | N62: =R62 -> 0.0975 | O62: 0.67 | P62: IL TRM v11 vol3 | Q62: 92 | R62: =ROUND((AS62*(1/(BI62*(1-BU62))-1/(BE62*(1-CC62))))/1000*O62,4) -> 0.0975 | S62: Calculated Value | U62: 738 | V62: EFLHcool, from 2017 MO TRM | W62: 85 | X62: 6 | Y62: IL TRM v11 vol3 | Z62: 73 | AA62: SEERee | AB62: 15 | AC62: Measure Definition | AE62: SEERexist | AF62: 15 | AG62: Federal minimum efficiency standard - Northern region of U.S. | AI62: =ROUND(((U62*AS62*(1/(AF62*(1-BU62))-1/(AB62*BY62*(1-CC62))))/1000)+((BQ62*AS62*(1/(BA62*CW62*(1-CG62))-1/(AW62*CW62*CK62*(1-CO62))))/1000),4) | AJ62: =ROUND((AS62*(1/(BI62*(1-BU62))-1/(BE62*(1-CC62))))/1000*O62,4) | AK62: IL TRM v11 vol3 | AL62: 92, 102 | AM62: 2024-01-01 | AN62: 2024-12-31 | AS62: 12000 | AT62: Allows for Capacity input in Tons; converts tons to BTUs | AW62: 8.71 | AX62: HSPFee | AY62: Average efficient HSPF value from all SEER 15 ASHP units in the 2022 HCHC program tracking data | BA62: 8.8 | BB62: HSPFbase | BC62: 2023 Federal Minimum Baseline | BE62: 12.5 | BF62: EERee | BG62: IL TRM v11 vol3 | BH62: 103 | BI62: 11 | BJ62: EERexist | BK62: IL TRM v11 vol3 | BL62: 103 | BM62: 738 | BN62: EFLHcool | BO62: EFLHcool, from 2017 MO TRM | BP62: 85 | BQ62: 1376 | BR62: EFLHheat | BS62: The EFLH Cooling and Heating hours are based on a EnergyStar study that was normalized (based on HDD and CDD) to Kansas City. This was for both AC and HP units. | BU62: 0.1 | BV62: Derating_Cool_Base | BW62: IL TRM v11 vol3 | BX62: 95 | BY62: =0.805*(BE62/AB62)+0.367 -> 1.037833333 | BZ62: SEERadj | CA62: IL TRM v11 vol3 | CB62: 95 | CC62: 0.1 | CD62: Derating_Cool_Eff | CE62: IL TRM v11 vol3 | CF62: 95 | CG62: 0.1 | CH62: Derating_Heat_Base | CI62: IL TRM v11 vol3 | CJ62: 97 | CK62: 1 | CL62: HSPFadj | CM62: IL TRM v11 vol3 | CN62: 97 | CO62: 0.1 | CP62: Derating_Heat_Eff | CQ62: IL TRM v11 vol3 | CR62: 97 | CS62: 0.03 | CT62: Societal Discount Rate | CU62: Evergy Standard | CW62: 1 | CX62: HSPF_ClimateAdj, Statewide weighted average, when using HSPF rating | CY62: IL TRM v11 vol3 | CZ62: 92 | DA62: 600 | DB62: First Cost $/ton | DC62: IL TRM v11 vol3 | DD62: 91 | DE62: 6865 | DF62: One-time per-system labor cost | DG62: IL TRM v11 vol3 | DH62: 91 | DI62: =((DA62*DM62)+6562)/DM62 -> 2547.181009 | DJ62: Deferred cost savings | DK62: IL TRM v11 vol3 | DL62: 91 | DM62: 3.37 | DN62: Equipment size (tons) | DO62: Average equipment size (in tons) from the SEER 15 ASHP units in the 2022 HCHC program tracking data
A63: Income Eligible Program | B63: ASHP SEER 15 - replace electric furnace / CAC - Early Replacement: MF | C63: 533.1 | D63: Multi-Family | E63: HVAC | G63: per ton | H63: =(((DA63*DM63)+DE63)/DM63)-DI63 -> 1168.595349 | I63: IL TRM v11 vol3 | J63: 91 | K63: 3656.2099 | L63: Calculated Value | N63: 0.4262 | O63: 0.67 | P63: IL TRM v11 vol3 | Q63: 92 | R63: 0.4262 | S63: Calculated Value | U63: 738 | V63: EFLHcool, from 2017 MO TRM | W63: 85 | X63: 6 | Y63: IL TRM v11 vol3 | Z63: 73 | AA63: SEERee | AB63: 15 | AC63: Measure Definition | AE63: SEERexist | AF63: 9.7 | AG63: IL TRM v11 vol3 | AH63: 94 | AI63: =ROUND(((U63*AS63*(1/(AF63*(1-BU63))-1/(AB63*BY63*(1-CC63))))/1000)+((BQ63*AS63*(1/(BA63*CW63*(1-CG63))-1/(AW63*CW63*CK63*(1-CO63))))/1000),4) | AJ63: =ROUND((AS63*(1/(BI63*(1-BU63))-1/(BE63*(1-CC63))))/1000*O63,4) | AK63: IL TRM v11 vol3 | AL63: 92, 102 | AM63: 2024-01-01 | AN63: 2024-12-31 | AS63: 12000 | AT63: Allows for Capacity input in Tons; converts tons to BTUs | AW63: 8.71 | AX63: HSPFee | AY63: Average efficient HSPF value from all SEER 15 ASHP units in the 2022 HCHC program tracking data | BA63: 3.41 | BB63: HSPFexist | BC63: IL TRM v11 vol3 | BD63: 96 | BE63: 12.5 | BF63: EERee | BG63: IL TRM v11 vol3 | BH63: 103 | BI63: 7.83 | BJ63: EERexist | BK63: IL TRM v11 vol3 | BL63: 103 | BM63: 738 | BN63: EFLHcool | BO63: EFLHcool, from 2017 MO TRM | BP63: 85 | BQ63: 1376 | BR63: EFLHheat | BS63: The EFLH Cooling and Heating hours are based on a EnergyStar study that was normalized (based on HDD and CDD) to Kansas City. This was for both AC and HP units. | BU63: 0.1 | BV63: Derating_Cool_Base | BW63: IL TRM v11 vol3 | BX63: 95 | BY63: 1.037833333 | BZ63: SEERadj | CA63: IL TRM v11 vol3 | CB63: 95 | CC63: 0.1 | CD63: Derating_Cool_Eff | CE63: IL TRM v11 vol3 | CF63: 95 | CG63: 0.1 | CH63: Derating_Heat_Base | CI63: IL TRM v11 vol3 | CJ63: 97 | CK63: 1 | CL63: HSPFadj | CM63: IL TRM v11 vol3 | CN63: 97 | CO63: 0.1 | CP63: Derating_Heat_Eff | CQ63: IL TRM v11 vol3 | CR63: 97 | CS63: 0.03 | CT63: Societal Discount Rate | CU63: Evergy Standard | CW63: 1 | CX63: HSPF_ClimateAdj, Statewide weighted average, when using HSPF rating | CY63: IL TRM v11 vol3 | CZ63: 92 | DA63: 600 | DB63: First Cost $/ton | DC63: IL TRM v11 vol3 | DD63: 91 | DE63: 6865 | DF63: One-time per-system labor cost | DG63: IL TRM v11 vol3 | DH63: 91 | DI63: =(-PV(CS63, 6, 0, (1092*DM63))+-PV(CS63, 7, 0, (2296)))/DM63 -> 1468.496639 | DJ63: Deferred cost savings | DK63: IL TRM v11 vol3 | DL63: 91 | DM63: 3.37 | DN63: Equipment size (tons) | DO63: Average equipment size (in tons) from the SEER 15 ASHP units in the 2022 HCHC program tracking data
A64: Income Eligible Program | B64: ASHP SEER 15 - replace electric furnace / CAC - Early Replacement: MF (future) | C64: 534 | D64: Multi-Family | E64: HVAC | G64: per ton | H64: 0 | I64: IL TRM v11 vol3 | J64: 91 | K64: 3297.777 | L64: Calculated Value | N64: 0.1361 | O64: 0.67 | P64: IL TRM v11 vol3 | Q64: 92 | R64: 0.1361 | S64: Calculated Value | U64: 738 | V64: EFLHcool, from 2017 MO TRM | W64: 85 | X64: 6 | Y64: IL TRM v11 vol3 | Z64: 73 | AA64: SEERee | AB64: 15 | AC64: Measure Definition | AE64: SEERexist | AF64: 15 | AG64: Federal minimum efficiency standard - Northern region of U.S. | AI64: =ROUND(((U64*AS64*(1/(AF64*(1-BU64))-1/(AB64*BY64*(1-CC64))))/1000)+((BQ64*AS64*(1/(BA64*CW64*(1-CG64))-1/(AW64*CW64*CK64*(1-CO64))))/1000),4) | AJ64: =ROUND((AS64*(1/(BI64*(1-BU64))-1/(BE64*(1-CC64))))/1000*O64,4) | AK64: IL TRM v11 vol3 | AL64: 92, 102 | AM64: 2024-01-01 | AN64: 2024-12-31 | AS64: 12000 | AT64: Allows for Capacity input in Tons; converts tons to BTUs | AW64: 8.71 | AX64: HSPFee | AY64: Average efficient HSPF value from all SEER 15 ASHP units in the 2022 HCHC program tracking data | BA64: 3.41 | BB64: HSPFbase | BC64: IL TRM v11 vol3 | BD64: 96 | BE64: 12.5 | BF64: EERee | BG64: IL TRM v11 vol3 | BH64: 103 | BI64: 10.5 | BJ64: EERexist | BK64: IL TRM v11 vol3 | BL64: 103 | BM64: 738 | BN64: EFLHcool | BO64: EFLHcool, from 2017 MO TRM | BP64: 85 | BQ64: 1376 | BR64: EFLHheat | BS64: The EFLH Cooling and Heating hours are based on a EnergyStar study that was normalized (based on HDD and CDD) to Kansas City. This was for both AC and HP units. | BU64: 0.1 | BV64: Derating_Cool_Base | BW64: IL TRM v11 vol3 | BX64: 95 | BY64: 1.037833333 | BZ64: SEERadj | CA64: IL TRM v11 vol3 | CB64: 95 | CC64: 0.1 | CD64: Derating_Cool_Eff | CE64: IL TRM v11 vol3 | CF64: 95 | CG64: 0.1 | CH64: Derating_Heat_Base | CI64: IL TRM v11 vol3 | CJ64: 97 | CK64: 1 | CL64: HSPFadj | CM64: IL TRM v11 vol3 | CN64: 97 | CO64: 0.1 | CP64: Derating_Heat_Eff | CQ64: IL TRM v11 vol3 | CR64: 97 | CS64: 0.03 | CT64: Societal Discount Rate | CU64: Evergy Standard | CW64: 1 | CX64: HSPF_ClimateAdj, Statewide weighted average, when using HSPF rating | CY64: IL TRM v11 vol3 | CZ64: 92 | DA64: 600 | DB64: First Cost $/ton | DC64: IL TRM v11 vol3 | DD64: 91 | DE64: 6865 | DF64: One-time per-system labor cost | DG64: IL TRM v11 vol3 | DH64: 91 | DI64: =(-PV(CS64, 6, 0, (1092*DM64))+-PV(CS64, 7, 0, (2296)))/DM64 -> 1468.496639 | DJ64: Deferred cost savings | DK64: IL TRM v11 vol3 | DL64: 91 | DM64: 3.37 | DN64: Equipment size (tons) | DO64: Average equipment size (in tons) from the SEER 15 ASHP units in the 2022 HCHC program tracking data
A65: Income Eligible Program | B65: ASHP SEER 15 - replace electric furnace / CAC: MF | C65: 532.1 | D65: Multi-Family | E65: HVAC | G65: per ton | H65: =(((DA65*DM65)+DE65)/DM65)-DI65 -> 1088.356083 | I65: IL TRM v11 vol3 | J65: 91 | K65: 3297.777 | L65: Calculated Value | N65: 0.1361 | O65: 0.67 | P65: IL TRM v11 vol3 | Q65: 92 | R65: 0.1361 | S65: Calculated Value | U65: 738 | V65: EFLHcool, from 2017 MO TRM | W65: 85 | X65: 6 | Y65: IL TRM v11 vol3 | Z65: 73 | AA65: SEERee | AB65: 15 | AC65: Measure Definition | AE65: SEERexist | AF65: 15 | AG65: Federal minimum efficiency standard - Northern region of U.S. | AI65: =ROUND(((U65*AS65*(1/(AF65*(1-BU65))-1/(AB65*BY65*(1-CC65))))/1000)+((BQ65*AS65*(1/(BA65*CW65*(1-CG65))-1/(AW65*CW65*CK65*(1-CO65))))/1000),4) | AJ65: =ROUND((AS65*(1/(BI65*(1-BU65))-1/(BE65*(1-CC65))))/1000*O65,4) | AK65: IL TRM v11 vol3 | AL65: 92, 102 | AM65: 2024-01-01 | AN65: 2024-12-31 | AS65: 12000 | AT65: Allows for Capacity input in Tons; converts tons to BTUs | AW65: 8.71 | AX65: HSPFee | AY65: Average efficient HSPF value from all SEER 15 ASHP units in the 2022 HCHC program tracking data | BA65: 3.41 | BB65: HSPFbase | BC65: IL TRM v11 vol3 | BD65: 96 | BE65: 12.5 | BF65: EERee | BG65: IL TRM v11 vol3 | BH65: 103 | BI65: 10.5 | BJ65: EERexist | BK65: IL TRM v11 vol3 | BL65: 103 | BM65: 738 | BN65: EFLHcool | BO65: EFLHcool, from 2017 MO TRM | BP65: 85 | BQ65: 1376 | BR65: EFLHheat | BS65: The EFLH Cooling and Heating hours are based on a EnergyStar study that was normalized (based on HDD and CDD) to Kansas City. This was for both AC and HP units. | BU65: 0.1 | BV65: Derating_Cool_Base | BW65: IL TRM v11 vol3 | BX65: 95 | BY65: 1.037833333 | BZ65: SEERadj | CA65: IL TRM v11 vol3 | CB65: 95 | CC65: 0.1 | CD65: Derating_Cool_Eff | CE65: IL TRM v11 vol3 | CF65: 95 | CG65: 0.1 | CH65: Derating_Heat_Base | CI65: IL TRM v11 vol3 | CJ65: 97 | CK65: 1 | CL65: HSPFadj | CM65: IL TRM v11 vol3 | CN65: 97 | CO65: 0.1 | CP65: Derating_Heat_Eff | CQ65: IL TRM v11 vol3 | CR65: 97 | CS65: 0.03 | CT65: Societal Discount Rate | CU65: Evergy Standard | CW65: 1 | CX65: HSPF_ClimateAdj, Statewide weighted average, when using HSPF rating | CY65: IL TRM v11 vol3 | CZ65: 92 | DA65: 600 | DB65: First Cost $/ton | DC65: IL TRM v11 vol3 | DD65: 91 | DE65: 6865 | DF65: One-time per-system labor cost | DG65: IL TRM v11 vol3 | DH65: 91 | DI65: =(2011/DM65)+952 -> 1548.735905 | DJ65: Baseline install cost | DK65: IL TRM v11 vol3 | DL65: 91 | DM65: 3.37 | DN65: Equipment size (tons) | DO65: Average equipment size (in tons) from the SEER 15 ASHP units in the 2022 HCHC program tracking data
A66: Income Eligible Program | B66: ASHP SEER 16 - replace ASHP - Early Replacement: MF | C66: 705 | D66: Multi-Family | E66: HVAC | G66: per ton | H66: =(((DA66*DM66)+DE66)/DM66)-DI66 -> 304.4554028 | I66: IL TRM v11 vol3 | J66: 91 | K66: 1992.3451 | L66: Calculated Value | N66: 0.4262 | O66: 0.67 | P66: IL TRM v11 vol3 | Q66: 92 | R66: 0.4262 | S66: Calculated Value | U66: 738 | V66: EFLHcool, from 2017 MO TRM | W66: 85 | X66: 6 | Y66: IL TRM v11 vol3 | Z66: 90 | AA66: SEERee | AB66: 16 | AC66: Nameplate rating | AE66: SEERexist | AF66: 9.7 | AG66: IL TRM v11 vol3 | AH66: 94 | AI66: =ROUND(((U66*AS66*(1/(AF66*(1-BU66))-1/(AB66*BY66*(1-CC66))))/1000)+((BQ66*AS66*(1/(BA66*CW66*(1-CG66))-1/(AW66*CW66*CK66*(1-CO66))))/1000),4) | AJ66: =ROUND((AS66*(1/(BI66*(1-BU66))-1/(BE66*(1-CC66))))/1000*O66,4) | AK66: IL TRM v11 vol3 | AL66: 92, 102 | AM66: 2024-01-01 | AN66: 2024-12-31 | AS66: 12000 | AT66: Allows for Capacity input in Tons; converts tons to BTUs | AW66: 9.13 | AX66: HSPFee | AY66: Average efficient HSPF value from all SEER 16 ASHP units in the 2022 HCHC program tracking data | BA66: 5.78 | BB66: HSPFexist | BC66: IL TRM v11 vol3 | BD66: 96 | BE66: 12.5 | BF66: EERee | BG66: IL TRM v11 vol3 | BH66: 103 | BI66: 7.83 | BJ66: EERexist | BK66: IL TRM v11 vol3 | BL66: 103 | BM66: 738 | BN66: EFLHcool | BO66: EFLHcool, from 2017 MO TRM | BP66: 85 | BQ66: 1376 | BR66: EFLHheat | BS66: The EFLH Cooling and Heating hours are based on a EnergyStar study that was normalized (based on HDD and CDD) to Kansas City. This was for both AC and HP units. | BU66: 0.1 | BV66: Derating_Cool_Base | BW66: IL TRM v11 vol3 | BX66: 95 | BY66: 0.99590625 | BZ66: SEERadj | CA66: IL TRM v11 vol3 | CB66: 95 | CC66: 0.1 | CD66: Derating_Cool_Eff | CE66: IL TRM v11 vol3 | CF66: 95 | CG66: 0.1 | CH66: Derating_Heat_Base | CI66: IL TRM v11 vol3 | CJ66: 97 | CK66: 1 | CL66: HSPFadj | CM66: IL TRM v11 vol3 | CN66: 97 | CO66: 0.1 | CP66: Derating_Heat_Eff | CQ66: IL TRM v11 vol3 | CR66: 97 | CS66: 0.03 | CT66: Societal Discount Rate | CU66: Evergy Standard | CW66: 0.73 | CX66: HSPF_ClimateAdj, Statewide weighted average, when using HSPF rating | CY66: IL TRM v11 vol3 | CZ66: 92 | DA66: 600 | DB66: First Cost $/ton | DC66: IL TRM v11 vol3 | DD66: 91 | DE66: 7286 | DF66: One-time per-system labor cost | DG66: IL TRM v11 vol3 | DH66: 91 | DI66: =-PV(CS66,6, 0, (7527+(688*DM66)))/DM66 -> 2377.258883 | DJ66: Deferred cost savings | DK66: IL TRM v11 vol3 | DL66: 91 | DM66: 3.5 | DN66: Assumed average system tons | DO66: Tracking Data
A67: Income Eligible Program | B67: ASHP SEER 16 - replace ASHP - Early Replacement: MF (future) | C67: 706 | D67: Multi-Family | E67: HVAC | G67: per ton | H67: 0 | I67: IL TRM v11 vol3 | J67: 91 | K67: 113.828 | L67: Calculated Value | N67: 0.0975 | O67: 0.67 | P67: IL TRM v11 vol3 | Q67: 92 | R67: 0.0975 | S67: Calculated Value | U67: 738 | V67: EFLHcool, from 2017 MO TRM | W67: 85 | X67: 10 | Y67: IL TRM v11 vol3 | Z67: 90 | AA67: SEERee | AB67: 16 | AC67: Nameplate rating | AE67: SEERbase | AF67: 15 | AG67: Federal minimum efficiency standard - Northern region of U.S. | AI67: =ROUND(((U67*AS67*(1/(AF67*(1-BU67))-1/(AB67*BY67*(1-CC67))))/1000)+((BQ67*AS67*(1/(BA67*CW67*(1-CG67))-1/(AW67*CW67*CK67*(1-CO67))))/1000),4) | AJ67: =ROUND((AS67*(1/(BI67*(1-BU67))-1/(BE67*(1-CC67))))/1000*O67,4) | AK67: IL TRM v11 vol3 | AL67: 92, 102 | AM67: 2024-01-01 | AN67: 2024-12-31 | AS67: 12000 | AT67: Allows for Capacity input in Tons; converts tons to BTUs | AW67: 9.13 | AX67: HSPFee | AY67: Average efficient HSPF value from all SEER 16 ASHP units in the 2022 HCHC program tracking data | BA67: 8.8 | BB67: HSPFbase | BC67: 2023 Federal Minimum Baseline | BE67: 12.5 | BF67: EERee | BG67: IL TRM v11 vol3 | BH67: 103 | BI67: 11 | BJ67: EERbase | BK67: IL TRM v11 vol3 | BL67: 103 | BM67: 738 | BN67: EFLHcool | BO67: EFLHcool, from 2017 MO TRM | BP67: 85 | BQ67: 1376 | BR67: EFLHheat | BS67: The EFLH Cooling and Heating hours are based on a EnergyStar study that was normalized (based on HDD and CDD) to Kansas City. This was for both AC and HP units. | BU67: 0.1 | BV67: Derating_Cool_Base | BW67: IL TRM v11 vol3 | BX67: 95 | BY67: 0.99590625 | BZ67: SEERadj | CA67: IL TRM v11 vol3 | CB67: 95 | CC67: 0.1 | CD67: Derating_Cool_Eff | CE67: IL TRM v11 vol3 | CF67: 95 | CG67: 0.1 | CH67: Derating_Heat_Base | CI67: IL TRM v11 vol3 | CJ67: 97 | CK67: 1 | CL67: HSPFadj | CM67: IL TRM v11 vol3 | CN67: 97 | CO67: 0.1 | CP67: Derating_Heat_Eff | CQ67: IL TRM v11 vol3 | CR67: 97 | CS67: 0.03 | CT67: Societal Discount Rate | CU67: Evergy Standard | CW67: 1 | CX67: HSPF_ClimateAdj, Statewide weighted average, when using HSPF rating | CY67: IL TRM v11 vol3 | CZ67: 92 | DA67: 600 | DB67: First Cost $/ton | DC67: IL TRM v11 vol3 | DD67: 91 | DE67: 7000 | DF67: One-time per-system labor cost | DG67: IL TRM v11 vol3 | DH67: 91 | DI67: =-PV(CS67,6, 0, (7527+(688*DM67)))/DM67 -> 2603.1165 | DJ67: Deferred cost savings | DK67: IL TRM v7 vol3 | DL67: 91 | DM67: 3.11 | DN67: Equipment size (tons) | DO67: Average equipment size (in tons) from the SEER 16 ASHP units in the 2022 HCHC program tracking data
A68: Income Eligible Program | B68: ASHP SEER2 15 - replace ASHP - Early Replacement: MF | C68: 772 | D68: Multi-Family | E68: HVAC | G68: per ton | H68: =(((CW68*DI68)+DA68)/DI68)-DE68 -> 190.3556385 | I68: IL TRM v11 vol3 / Program Tracking Data | J68: 91 | K68: =ROUND(((BM68*AS68*(1/(AF68*(1-BU68))-1/(AB68*BY68*(1-CC68))))/1000)+((BQ68*AS68*(1/(BA68*DM68*(1-CG68))-1/(AW68*DM68*CK68*(1-CO68))))/1000),4) -> 2049.3006 | L68: Calculated Value | N68: =K68/U68 -> 2.776830081 | O68: 0.72 | P68: IL TRM v11 vol3 | Q68: 92 | R68: 0.5105 | S68: Calculated Value | U68: 738 | V68: EFLHcool, from 2017 MO TRM Vol. 3 | W68: 85 | X68: 6 | Y68: IL TRM v11 vol3 | Z68: 90 | AA68: SEER2ee | AB68: 15 | AC68: Nameplate rating | AE68: SEER2exist | AF68: =9.7*0.955 -> 9.2635 | AG68: IL TRM v11 vol3 | AH68: 94 | AI68: =ROUND(((BM68*AS68*(1/(AF68*(1-BU68))-1/(AB68*BY68*(1-CC68))))/1000)+((BQ68*AS68*(1/(BA68*DM68*(1-CG68))-1/(AW68*DM68*CK68*(1-CO68))))/1000),4) | AJ68: =ROUND((AS68*(1/(BI68*(1-BU68))-1/(BE68*(1-CC68))))/1000*O68,4) | AK68: IL TRM v11 vol3 | AL68: 92, 102 | AM68: 2024-01-01 | AN68: 2024-12-31 | AS68: 12000 | AT68: Allows for Capacity input in Tons; converts tons to BTUs | AW68: 8.71 | AX68: HSPF2ee | AY68: Average efficient HSPF value from all SEER 15 ASHP units in the 2022 HCHC program tracking data | BA68: =5.78*0.852 -> 4.92456 | BB68: HSPF2exist | BC68: IL TRM v11 vol3 | BD68: 96 | BE68: 12.5 | BF68: EER2ee | BG68: IL TRM v11 vol3 | BH68: 103 | BI68: =7.83*0.959 -> 7.50897 | BJ68: EER2exist | BK68: IL TRM v11 vol3 | BL68: 103 | BM68: 738 | BN68: EFLHcool | BO68: EFLHcool, from 2017 MO TRM Vol. 3 | BP68: 85 | BQ68: 1376 | BR68: EFLHheat | BS68: The EFLH Cooling and Heating hours are based on a EnergyStar study that was normalized (based on HDD and CDD) to Kansas City. This was for both AC and HP units. | BU68: 0.1 | BV68: Derating_Cool_Base | BW68: IL TRM v11 vol3 | BX68: 97 | BY68: 1.037833333 | BZ68: SEER2adj | CA68: IL TRM v11 vol3 | CB68: 95 | CC68: 0.1 | CD68: Derating_Cool_Eff | CE68: IL TRM v11 vol3 | CF68: 95 | CG68: 0.1 | CH68: Derating_Heat_Base | CI68: IL TRM v11 vol3 | CJ68: 97 | CK68: 1 | CL68: HSPFadj | CM68: IL TRM v11 vol3 | CN68: 97 | CO68: 0.1 | CP68: Derating_Heat_Eff | CQ68: IL TRM v11 vol3 | CR68: 97 | CS68: 0.03 | CT68: Societal Discount Rate | CU68: Evergy Standard | CW68: 600 | CX68: First Cost $/ton | CY68: IL TRM v11 vol3 | CZ68: 91 | DA68: 6865 | DB68: One-time per-system labor cost | DC68: IL TRM v11 vol3 | DD68: 91 | DE68: =-PV(CS68,6,0,(7527 +(688*DI68)))/DI68 -> 2446.73635 | DF68: Deferred cost savings | DG68: IL TRM v11 vol3 | DH68: 91 | DI68: 3.37 | DJ68: Equipment size (tons) | DK68: Average equipment size (in tons) from the SEER 15 ASHP units in the 2022 HCHC program tracking data | DM68: 1 | DN68: HSPF_ClimateAdj | DO68: IL TRM v11 vol3 | DP68: 97
A69: Income Eligible Program | B69: ASHP SEER2 15 - replace ASHP - Early Replacement: MF | C69: 772.1 | D69: Multi-Family | E69: HVAC | G69: per ton | H69: =(((CW69*DI69)+DA69)/DI69)-DE69 -> 193.6799938 | I69: IL TRM v12 vol3 | J69: 105 | K69: =ROUND(((((BM69*AS69)/BY69*(1/(AF69*(1-CC69))))-(BM69*AS69*1/(AB69*(1-BU69))))/1000)+(((BQ69*AS69*CK69)/BY69*(1/(BA69*DM69*(1-CG69))))-((BQ69*AS69*CK69)*1/(AW69*DM69*(1-CO69))))/1000,4) -> 2451.3163 | L69: Calculated Value | N69: =ROUND(K69/U69,4) -> 3.3216 | O69: 0.72 | P69: IL TRM v12 vol3 | Q69: 107 | R69: =ROUND((((AS69)/BY69*(1/(BI69*(1-CC69))))-(AS69*1/(BE69*(1-BU69))))/1000*O69,4) -> 0.5231 | S69: Calculated Value | U69: 738 | V69: EFLHcool, from 2017 MO TRM Vol. 3 | W69: 122 | X69: 6 | Y69: IL TRM v12 vol3 | Z69: 105 | AA69: SEER2ee | AB69: 15 | AC69: Nameplate rating | AE69: SEER2exist | AF69: 9.2 | AG69: IL TRM v12 vol3 | AH69: 110 | AI69: =ROUND(((((BM69*AS69)/BY69*(1/(AF69*(1-CC69))))-(BM69*AS69*1/(AB69*(1-BU69))))/1000)+(((BQ69*AS69*CK69)/BY69*(1/(BA69*DM69*(1-CG69))))-((BQ69*AS69*CK69)*1/(AW69*DM69*(1-CO69))))/1000,4) | AJ69: =ROUND((((AS69)/BY69*(1/(BI69*(1-CC69))))-(AS69*1/(BE69*(1-BU69))))/1000*O69,4) | AK69: IL TRM v12 vol3 | AL69: 107, 118 | AM69: 2025-01-01 | AS69: 12000 | AT69: Allows for Capacity input in Tons; converts tons to BTUs | AW69: 8.71 | AX69: HSPF2ee | AY69: Average efficient HSPF value from all SEER 15 ASHP units in the 2022 HCHC program tracking data | BA69: 4.91 | BB69: HSPF2exist | BC69: IL TRM v12 vol3 | BD69: 112 | BE69: 12.4 | BF69: EER2ee | BG69: IL TRM v12 vol3 | BH69: 119 | BI69: 7.4 | BJ69: EER2exist | BK69: IL TRM v12 vol3 | BL69: 119 | BM69: 738 | BN69: EFLHcool | BO69: EFLHcool, from 2017 MO TRM Vol. 3 | BP69: 85 | BQ69: 1376 | BR69: EFLHheat | BS69: The EFLH Cooling and Heating hours are based on a EnergyStar study that was normalized (based on HDD and CDD) to Kansas City. This was for both AC and HP units. | BU69: 0.1 | BV69: DeratingCoolEff | BW69: IL TRM v12 vol3 | BX69: 112 | BY69: 1 | BZ69: DuctlessSave | CA69: IL TRM v12 vol3 | CB69: 109 | CC69: 0.1 | CD69: Derating_Cool_Base | CE69: IL TRM v12 vol3 | CF69: 110 | CG69: 0.1 | CH69: Derating_Heat_Base | CI69: IL TRM v12 vol3 | CJ69: 112 | CK69: 1 | CL69: HeatLoadFactor | CM69: IL TRM v12 vol3 | CN69: 110 | CO69: 0.1 | CP69: Derating_Heat_Eff | CQ69: IL TRM v12 vol3 | CR69: 112 | CS69: 0.03 | CT69: Societal Discount Rate | CU69: Evergy Standard | CW69: 600 | CX69: First Cost $/ton | CY69: IL TRM v12 vol3 | CZ69: 105 | DA69: 7000 | DB69: One-time per-system labor cost | DC69: IL TRM v12 vol3 | DD69: 105 | DE69: =-PV(CS69,6,0,(7722 +(674*DI69)))/DI69 -> 2483.471342 | DF69: Deferred cost savings | DG69: IL TRM v12 vol3 | DH69: 105 | DI69: 3.37 | DJ69: Equipment size (tons) | DK69: Average equipment size (in tons) from the SEER 15 ASHP units in the 2022 HCHC program tracking data | DM69: 0.8 | DN69: HSPF_ClimateAdj | DO69: IL TRM v12 vol3 - Statewide | DP69: 113
A70: Income Eligible Program | B70: ASHP SEER2 15 - replace ASHP - Early Replacement: MF (future) | C70: 773 | D70: Multi-Family | E70: HVAC | G70: per ton | H70: 0 | I70: IL TRM v11 vol3 | J70: 91 | K70: =ROUND(((BM70*AS70*(1/(AF70*(1-BU70))-1/(AB70*BY70*(1-CC70))))/1000)+((BQ70*AS70*(1/(BA70*DM70*(1-CG70))-1/(AW70*DM70*CK70*(1-CO70))))/1000),4) -> 395.8569 | L70: Calculated Value | N70: =K70/U70 -> 0.5363914634 | O70: 0.72 | P70: IL TRM v11 vol3 | Q70: 92 | R70: =ROUND((AS70*(1/(BI70*(1-BU70))-1/(BE70*(1-CC70))))/1000*O70,4) -> 0.142 | S70: Calculated Value | U70: 738 | V70: EFLHcool, from 2017 MO TRM Vol. 3 | W70: 85 | X70: 10 | Y70: IL TRM v11 vol3 | Z70: 90 | AA70: SEER2ee | AB70: 15 | AC70: Nameplate rating | AE70: SEER2base | AF70: 14.3 | AG70: Federal minimum efficiency standard - Northern region of U.S. | AI70: =ROUND(((BM70*AS70*(1/(AF70*(1-BU70))-1/(AB70*BY70*(1-CC70))))/1000)+((BQ70*AS70*(1/(BA70*DM70*(1-CG70))-1/(AW70*DM70*CK70*(1-CO70))))/1000),4) | AJ70: =ROUND((AS70*(1/(BI70*(1-BU70))-1/(BE70*(1-CC70))))/1000*O70,4) | AK70: IL TRM v11 vol3 | AL70: 92, 102 | AM70: 2024-01-01 | AN70: 2024-12-31 | AS70: 12000 | AT70: Allows for Capacity input in Tons; converts tons to BTUs | AW70: 8.71 | AX70: HSPF2ee | AY70: Average efficient HSPF value from all SEER 15 ASHP units in the 2022 HCHC program tracking data | BA70: 7.5 | BB70: HSPF2base | BC70: 2023 Federal Minimum Baseline | BE70: 12.5 | BF70: EER2ee | BG70: IL TRM v11 vol3 | BH70: 103 | BI70: =11*0.959 -> 10.549 | BJ70: EER2base | BK70: IL TRM v11 vol3 | BL70: 103 | BM70: 738 | BN70: EFLHcool | BO70: EFLHcool, from 2017 MO TRM Vol. 3 | BP70: 85 | BQ70: 1376 | BR70: EFLHheat | BS70: The EFLH Cooling and Heating hours are based on a EnergyStar study that was normalized (based on HDD and CDD) to Kansas City. This was for both AC and HP units. | BU70: 0.1 | BV70: Derating_Cool_Base | BW70: IL TRM v11 vol3 | BX70: 97 | BY70: =0.805*(BE70/AB70)+0.367 -> 1.037833333 | BZ70: SEER2adj | CA70: IL TRM v11 vol3 | CB70: 95 | CC70: 0.1 | CD70: Derating_Cool_Eff | CE70: IL TRM v11 vol3 | CF70: 95 | CG70: 0.1 | CH70: Derating_Heat_Base | CI70: IL TRM v11 vol3 | CJ70: 97 | CK70: 1 | CL70: HSPFadj | CM70: IL TRM v11 vol3 | CN70: 97 | CO70: 0.1 | CP70: Derating_Heat_Eff | CQ70: IL TRM v11 vol3 | CR70: 97 | CS70: 0.03 | CT70: Societal Discount Rate | CU70: Evergy Standard | CW70: 600 | CX70: First Cost $/ton | CY70: IL TRM v11 vol3 | CZ70: 91 | DA70: 6865 | DB70: One-time per-system labor cost | DC70: IL TRM v11 vol3 | DD70: 91 | DE70: =-PV(CS70,6,0,(7527 +(688*DI70)))/DI70 -> 2446.73635 | DF70: Deferred cost savings | DG70: IL TRM v11 vol3 | DH70: 91 | DI70: 3.37 | DJ70: Equipment size (tons) | DK70: Average equipment size (in tons) from the SEER 15 ASHP units in the 2022 HCHC program tracking data | DM70: 1 | DN70: HSPF_ClimateAdj | DO70: IL TRM v11 vol3 | DP70: 97
A71: Income Eligible Program | B71: ASHP SEER2 15 - replace ASHP - Early Replacement: MF (future) | C71: 773.1 | D71: Multi-Family | E71: HVAC | G71: per ton | H71: 0 | I71: IL TRM v12 vol3 | J71: 105 | K71: =ROUND(((((BM71*AS71)/BY71*(1/(AF71*(1-CC71))))-(BM71*AS71*1/(AB71*(1-BU71))))/1000)+(((BQ71*AS71*CK71)/BY71*(1/(BA71*DM71*(1-CG71))))-((BQ71*AS71*CK71)*1/(AW71*DM71*(1-CO71))))/1000,4) -> 456.9008 | L71: Calculated Value | N71: =ROUND(K71/U71,4) -> 0.6191 | O71: 0.72 | P71: IL TRM v12 vol3 | Q71: 107 | R71: =ROUND((((AS71)/BY71*(1/(BI71*(1-CC71))))-(AS71*1/(BE71*(1-BU71))))/1000*O71,4) -> 0.2471 | S71: Calculated Value | U71: 738 | V71: EFLHcool, from 2017 MO TRM Vol. 3 | W71: 122 | X71: 10 | Y71: IL TRM v12 vol3 | Z71: 105 | AA71: SEER2ee | AB71: 15 | AC71: Nameplate rating | AE71: SEER2base | AF71: 14.3 | AG71: IL TRM v12 vol3, Federal minimum efficiency standard - Northern region of U.S. | AH71: 110 | AI71: =cellformula(K71) -> =ROUND(((((BM71*AS71)/BY71*(1/(AF71*(1-CC71))))-(BM71*AS71*1/(AB71*(1-BU71))))/1000)+(((BQ71*AS71*CK71)/BY71*(1/(BA71*DM71*(1-CG71))))-((BQ71*AS71*CK71)*1/(AW71*DM71*(1-CO71))))/1000,4) | AJ71: =cellformula(R71) -> =ROUND((((AS71)/BY71*(1/(BI71*(1-CC71))))-(AS71*1/(BE71*(1-BU71))))/1000*O71,4) | AK71: IL TRM v12 vol3 | AL71: 107, 118 | AM71: 2025-01-01 | AS71: 12000 | AT71: Allows for Capacity input in Tons; converts tons to BTUs | AW71: 8.71 | AX71: HSPF2ee | AY71: Average efficient HSPF value from all SEER 15 ASHP units in the 2022 HCHC program tracking data | BA71: 7.5 | BB71: HSPF2base | BC71: IL TRM v12 vol3 - 2023 Federal Minimum Baseline | BD71: 112 | BE71: 12.4 | BF71: EER2ee | BG71: IL TRM v12 vol3 | BH71: 119 | BI71: 9.4 | BJ71: EER2base | BK71: IL TRM v12 vol3 | BL71: 119 | BM71: 738 | BN71: EFLHcool | BO71: EFLHcool, from 2017 MO TRM Vol. 3 | BP71: 85 | BQ71: 1376 | BR71: EFLHheat | BS71: The EFLH Cooling and Heating hours are based on a EnergyStar study that was normalized (based on HDD and CDD) to Kansas City. This was for both AC and HP units. | BU71: 0.1 | BV71: DeratingCoolEff | BW71: IL TRM v12 vol3 | BX71: 112 | BY71: 1 | BZ71: DuctlessSave | CA71: IL TRM v12 vol3 | CB71: 109 | CC71: 0.1 | CD71: Derating_Cool_Base | CE71: IL TRM v12 vol3 | CF71: 110 | CG71: 0.1 | CH71: Derating_Heat_Base | CI71: IL TRM v12 vol3 | CJ71: 112 | CK71: 1 | CL71: HeatLoadFactor | CM71: IL TRM v12 vol3 | CN71: 110 | CO71: 0.1 | CP71: Derating_Heat_Eff | CQ71: IL TRM v12 vol3 | CR71: 112 | CS71: 0.03 | CT71: Societal Discount Rate | CU71: Evergy Standard | CW71: 600 | CX71: First Cost $/ton | CY71: IL TRM v12 vol3 | CZ71: 105 | DA71: 7000 | DB71: One-time per-system labor cost | DC71: IL TRM v12 vol3 | DD71: 105 | DE71: =-PV(CS71,6,0,(7722 +(674*DI71)))/DI71 -> 2483.471342 | DF71: Deferred cost savings | DG71: IL TRM v12 vol3 | DH71: 105 | DI71: 3.37 | DJ71: Equipment size (tons) | DK71: Average equipment size (in tons) from the SEER 15 ASHP units in the 2022 HCHC program tracking data | DM71: 0.8 | DN71: HSPF_ClimateAdj | DO71: IL TRM v12 vol3 - Statewide | DP71: 113
A72: Income Eligible Program | B72: ASHP SEER2 15 - replace ASHP-ROF: MF | C72: 771 | D72: Multi-Family | E72: HVAC | G72: per ton | H72: =(((CW72*DI72)+DA72)/DI72)-DE72 -> 89.91097923 | I72: IL TRM v11 vol3 / Program Tracking Data | J72: 91 | K72: =ROUND(((BM72*AS72*(1/(AF72*(1-BU72))-1/(AB72*BY72*(1-CC72))))/1000)+((BQ72*AS72*(1/(BA72*DM72*(1-CG72))-1/(AW72*DM72*CK72*(1-CO72))))/1000),4) -> 395.8569 | L72: Calculated Value | N72: =K72/U72 -> 0.5363914634 | O72: 0.72 | P72: IL TRM v11 vol3 | Q72: 92 | R72: =ROUND((AS72*(1/(BI72*(1-BU72))-1/(BE72*(1-CC72))))/1000*O72,4) -> 0.142 | S72: Calculated Value | U72: 738 | V72: EFLHcool, from 2017 MO TRM Vol. 3 | W72: 85 | X72: 16 | Y72: IL TRM v11 vol3 | Z72: 90 | AA72: SEER2ee | AB72: 15 | AC72: Nameplate rating | AE72: SEER2base | AF72: 14.3 | AG72: Federal minimum efficiency standard - Northern region of U.S. | AI72: =ROUND(((BM72*AS72*(1/(AF72*(1-BU72))-1/(AB72*BY72*(1-CC72))))/1000)+((BQ72*AS72*(1/(BA72*DM72*(1-CG72))-1/(AW72*DM72*CK72*(1-CO72))))/1000),4) | AJ72: =ROUND((AS72*(1/(BI72*(1-BU72))-1/(BE72*(1-CC72))))/1000*O72,4) | AK72: IL TRM v11 vol3 | AL72: 92, 102 | AM72: 2024-01-01 | AN72: 2024-12-31 | AS72: 12000 | AT72: Allows for Capacity input in Tons; converts tons to BTUs | AW72: 8.71 | AX72: HSPF2ee | AY72: Average efficient HSPF value from all SEER 15 ASHP units in the 2022 HCHC program tracking data | BA72: 7.5 | BB72: HSPF2base | BC72: 2023 Federal Minimum Baseline | BE72: 12.5 | BF72: EER2ee | BG72: IL TRM v11 vol3 | BH72: 103 | BI72: =11*0.959 -> 10.549 | BJ72: EER2base | BK72: IL TRM v11 vol3 | BL72: 103 | BM72: 738 | BN72: EFLHcool | BO72: EFLHcool, from 2017 MO TRM Vol. 3 | BP72: 85 | BQ72: 1376 | BR72: EFLHheat | BS72: The EFLH Cooling and Heating hours are based on a EnergyStar study that was normalized (based on HDD and CDD) to Kansas City. This was for both AC and HP units. | BU72: 0.1 | BV72: Derating_Cool_Base | BW72: IL TRM v11 vol3 | BX72: 97 | BY72: =0.805*(BE72/AB72)+0.367 -> 1.037833333 | BZ72: SEER2adj | CA72: IL TRM v11 vol3 | CB72: 95 | CC72: 0.1 | CD72: Derating_Cool_Eff | CE72: IL TRM v11 vol3 | CF72: 95 | CG72: 0.1 | CH72: Derating_Heat_Base | CI72: IL TRM v11 vol3 | CJ72: 97 | CK72: 1 | CL72: HSPFadj | CM72: IL TRM v11 vol3 | CN72: 97 | CO72: 0.1 | CP72: Derating_Heat_Eff | CQ72: IL TRM v11 vol3 | CR72: 97 | CW72: 600 | CX72: First Cost $/ton | CY72: IL TRM v11 vol3 | CZ72: 91 | DA72: 6865 | DB72: One-time per-system labor cost | DC72: IL TRM v11 vol3 | DD72: 91 | DE72: =(CW72*DI72+6562)/DI72 -> 2547.181009 | DF72: Baseline install cost | DG72: IL TRM v11 vol3 | DH72: 91 | DI72: 3.37 | DJ72: Equipment size (tons) | DK72: Average equipment size (in tons) from the SEER 15 ASHP units in the 2022 HCHC program tracking data | DM72: 1 | DN72: HSPF_ClimateAdj | DO72: IL TRM v11 vol3 | DP72: 97
A73: Income Eligible Program | B73: ASHP SEER2 15 - replace ASHP-ROF: MF | C73: 771.1 | D73: Multi-Family | E73: HVAC | G73: per ton | H73: =(((CW73*DI73)+DA73)/DI73)-DE73 -> 40.05934718 | I73: IL TRM v12 vol3 | J73: 105 | K73: =ROUND(((((BM73*AS73)/BY73*(1/(AF73*(1-CC73))))-(BM73*AS73*1/(AB73*(1-BU73))))/1000)+(((BQ73*AS73*CK73)/BY73*(1/(BA73*DM73*(1-CG73))))-((BQ73*AS73*CK73)*1/(AW73*DM73*(1-CO73))))/1000,4) -> 456.9008 | L73: Calculated Value | N73: =ROUND(K73/U73,4) -> 0.6191 | O73: 0.72 | P73: IL TRM v12 vol3 | Q73: 107 | R73: =ROUND((((AS73)/BY73*(1/(BI73*(1-CC73))))-(AS73*1/(BE73*(1-BU73))))/1000*O73,4) -> 0.2471 | S73: Calculated Value | U73: 738 | V73: EFLHcool, from 2017 MO TRM Vol. 3 | W73: 122 | X73: 16 | Y73: IL TRM v12 vol3 | Z73: 105 | AA73: SEER2ee | AB73: 15 | AC73: Nameplate rating | AE73: SEER2base | AF73: 14.3 | AG73: IL TRM v12 vol3, Federal minimum efficiency standard - Northern region of U.S. | AH73: 110 | AI73: =ROUND(((((BM73*AS73)/BY73*(1/(AF73*(1-CC73))))-(BM73*AS73*1/(AB73*(1-BU73))))/1000)+(((BQ73*AS73*CK73)/BY73*(1/(BA73*DM73*(1-CG73))))-((BQ73*AS73*CK73)*1/(AW73*DM73*(1-CO73))))/1000,4) | AJ73: =ROUND((((AS73)/BY73*(1/(BI73*(1-CC73))))-(AS73*1/(BE73*(1-BU73))))/1000*O73,4) | AK73: IL TRM v12 vol3 | AL73: 107, 118 | AM73: 2025-01-01 | AS73: 12000 | AT73: Allows for Capacity input in Tons; converts tons to BTUs | AW73: 8.71 | AX73: HSPF2ee | AY73: Average efficient HSPF value from all SEER 15 ASHP units in the 2022 HCHC program tracking data | BA73: 7.5 | BB73: HSPF2base | BC73: IL TRM v12 vol3 - 2023 Federal Minimum Baseline | BD73: 112 | BE73: 12.4 | BF73: EER2ee | BG73: IL TRM v12 vol3 | BH73: 119 | BI73: 9.4 | BJ73: EER2base | BK73: IL TRM v12 vol3 | BL73: 119 | BM73: 738 | BN73: EFLHcool | BO73: EFLHcool, from 2017 MO TRM Vol. 3 | BP73: 85 | BQ73: 1376 | BR73: EFLHheat | BS73: The EFLH Cooling and Heating hours are based on a EnergyStar study that was normalized (based on HDD and CDD) to Kansas City. This was for both AC and HP units. | BU73: 0.1 | BV73: DeratingCoolEff | BW73: IL TRM v12 vol3 | BX73: 112 | BY73: 1 | BZ73: DuctlessSave | CA73: IL TRM v12 vol3 | CB73: 109 | CC73: 0.1 | CD73: Derating_Cool_Base | CE73: IL TRM v12 vol3 | CF73: 110 | CG73: 0.1 | CH73: Derating_Heat_Base | CI73: IL TRM v12 vol3 | CJ73: 112 | CK73: 1 | CL73: HeatLoadFactor | CM73: IL TRM v12 vol3 | CN73: 110 | CO73: 0.1 | CP73: Derating_Heat_Eff | CQ73: IL TRM v12 vol3 | CR73: 112 | CW73: 600 | CX73: First Cost $/ton | CY73: IL TRM v12 vol3 | CZ73: 105 | DA73: 7000 | DB73: One-time per-system labor cost | DC73: IL TRM v12 vol3 | DD73: 105 | DE73: =(CW73*DI73+6865)/DI73 -> 2637.091988 | DF73: Baseline install cost - ASHP | DG73: IL TRM v12 vol3 | DH73: 105 | DI73: 3.37 | DJ73: Equipment size (tons) | DK73: Average equipment size (in tons) from the SEER 15 ASHP units in the 2022 HCHC program tracking data | DM73: 0.8 | DN73: HSPF_ClimateAdj | DO73: IL TRM v12 vol3 - Statewide | DP73: 113
A74: Income Eligible Program | B74: ASHP SEER2 15 - replace electric furnace / CAC - Early Replacement: MF | C74: 769 | D74: Multi-Family | E74: HVAC | G74: per ton | H74: =(((CW74*DI74)+DA74)/DI74)-DE74 -> 1168.595349 | I74: IL TRM v11 vol3 / Program Tracking Data | J74: 91 | K74: =ROUND(((BM74*AS74*(1/(AF74*(1-BU74))-1/(AB74*BY74*(1-CC74))))/1000)+((BQ74*AS74*(1/(BA74*DM74*(1-CG74))-1/(AW74*DM74*CK74*(1-CO74))))/1000),4) -> 3704.0105 | L74: Calculated Value | N74: =K74/U74 -> 5.018984417 | O74: 0.72 | P74: IL TRM v11 vol3 | Q74: 92 | R74: =ROUND((AS74*(1/(BI74*(1-BU74))-1/(BE74*(1-CC74))))/1000*O74,4) -> 0.5105 | S74: Calculated Value | U74: 738 | V74: EFLHcool, from 2017 MO TRM Vol. 3 | W74: 85 | X74: 6 | Y74: IL TRM v11 vol3 | Z74: 90 | AA74: SEER2ee | AB74: 15 | AC74: Nameplate rating | AE74: SEER2exist | AF74: =9.7*0.955 -> 9.2635 | AG74: IL TRM v11 vol3 | AH74: 94 | AI74: =ROUND(((BM74*AS74*(1/(AF74*(1-BU74))-1/(AB74*BY74*(1-CC74))))/1000)+((BQ74*AS74*(1/(BA74*DM74*(1-CG74))-1/(AW74*DM74*CK74*(1-CO74))))/1000),4) | AJ74: =ROUND((AS74*(1/(BI74*(1-BU74))-1/(BE74*(1-CC74))))/1000*O74,4) | AK74: IL TRM v11 vol3 | AL74: 92, 102 | AM74: 2024-01-01 | AN74: 2024-12-31 | AS74: 12000 | AT74: Allows for Capacity input in Tons; converts tons to BTUs | AW74: 8.71 | AX74: HSPF2ee | AY74: Average efficient HSPF value from all SEER 15 ASHP units in the 2022 HCHC program tracking data | BA74: 3.41 | BB74: HSPF2exist | BC74: IL TRM v11 vol3 | BD74: 96 | BE74: 12.5 | BF74: EER2ee | BG74: IL TRM v11 vol3 | BH74: 103 | BI74: =7.83*0.959 -> 7.50897 | BJ74: EER2exist | BK74: IL TRM v11 vol3 | BL74: 103 | BM74: 738 | BN74: EFLHcool | BO74: EFLHcool, from 2017 MO TRM Vol. 3 | BP74: 85 | BQ74: 1376 | BR74: EFLHheat | BS74: The EFLH Cooling and Heating hours are based on a EnergyStar study that was normalized (based on HDD and CDD) to Kansas City. This was for both AC and HP units. | BU74: 0.1 | BV74: Derating_Cool_Base | BW74: IL TRM v11 vol3 | BX74: 97 | BY74: =0.805*(BE74/AB74)+0.367 -> 1.037833333 | BZ74: SEER2adj | CA74: IL TRM v11 vol3 | CB74: 95 | CC74: 0.1 | CD74: Derating_Cool_Eff | CE74: IL TRM v11 vol3 | CF74: 95 | CG74: 0.1 | CH74: Derating_Heat_Base | CI74: IL TRM v11 vol3 | CJ74: 97 | CK74: 1 | CL74: HSPFadj | CM74: IL TRM v11 vol3 | CN74: 97 | CO74: 0.1 | CP74: Derating_Heat_Eff | CQ74: IL TRM v11 vol3 | CR74: 97 | CS74: 0.03 | CT74: Societal Discount Rate | CU74: Evergy Standard | CW74: 600 | CX74: First Cost $/ton | CY74: IL TRM v11 vol3 | CZ74: 91 | DA74: 6865 | DB74: One-time per-system labor cost | DC74: IL TRM v11 vol3 | DD74: 91 | DE74: =-PV(CS74, 6, 0, (1092))+-PV(CS74, 7, 0, (2296))/DI74 -> 1468.496639 | DF74: Deferred cost savings | DG74: IL TRM v11 vol3 | DH74: 91 | DI74: 3.37 | DJ74: Equipment size (tons) | DK74: Average equipment size (in tons) from the SEER 15 ASHP units in the 2022 HCHC program tracking data | DM74: 1 | DN74: HSPF_ClimateAdj | DO74: IL TRM v11 vol3 | DP74: 97
A75: Income Eligible Program | B75: ASHP SEER2 15 - replace electric furnace / CAC - Early Replacement: MF | C75: 769.1 | D75: Multi-Family | E75: HVAC | G75: per ton | H75: =(((CW75*DI75)+DA75)/DI75)-DE75 -> 1208.654696 | I75: IL TRM v12 vol3 | J75: 105 | K75: =ROUND(((((BM75*AS75)/BY75*(1/(AF75*(1-CC75))))-(BM75*AS75*1/(AB75*(1-BU75))))/1000)+(((BQ75*AS75*CK75)/BY75*(1/(BA75*DM75*(1-CG75))))-((BQ75*AS75*CK75)*1/(AW75*DM75*(1-CO75))))/1000,4) -> 4505.894 | L75: Calculated Value | N75: =ROUND(K75/U75,4) -> 6.1055 | O75: 0.72 | P75: IL TRM v12 vol3 | Q75: 107 | R75: =ROUND((((AS75)/BY75*(1/(BI75*(1-CC75))))-(AS75*1/(BE75*(1-BU75))))/1000*O75,4) -> 0.5231 | S75: Calculated Value | U75: 738 | V75: EFLHcool, from 2017 MO TRM Vol. 3 | W75: 122 | X75: 6 | Y75: IL TRM v12 vol3 | Z75: 105 | AA75: SEER2ee | AB75: 15 | AC75: Nameplate rating | AE75: SEER2exist | AF75: 9.2 | AG75: IL TRM v12 vol3 | AH75: 110 | AI75: =ROUND(((((BM75*AS75)/BY75*(1/(AF75*(1-CC75))))-(BM75*AS75*1/(AB75*(1-BU75))))/1000)+(((BQ75*AS75*CK75)/BY75*(1/(BA75*DM75*(1-CG75))))-((BQ75*AS75*CK75)*1/(AW75*DM75*(1-CO75))))/1000,4) | AJ75: =ROUND((((AS75)/BY75*(1/(BI75*(1-CC75))))-(AS75*1/(BE75*(1-BU75))))/1000*O75,4) | AK75: IL TRM v12 vol3 | AL75: 107, 118 | AM75: 2025-01-01 | AS75: 12000 | AT75: Allows for Capacity input in Tons; converts tons to BTUs | AW75: 8.71 | AX75: HSPF2ee | AY75: Average efficient HSPF value from all SEER 15 ASHP units in the 2022 HCHC program tracking data | BA75: 3.41 | BB75: HSPF2exist | BC75: IL TRM v12 vol3 | BD75: 112 | BE75: 12.4 | BF75: EER2ee | BG75: IL TRM v12 vol3 | BH75: 119 | BI75: 7.4 | BJ75: EER2exist | BK75: IL TRM v12 vol3 | BL75: 119 | BM75: 738 | BN75: EFLHcool | BO75: EFLHcool, from 2017 MO TRM Vol. 3 | BP75: 85 | BQ75: 1376 | BR75: EFLHheat | BS75: The EFLH Cooling and Heating hours are based on a EnergyStar study that was normalized (based on HDD and CDD) to Kansas City. This was for both AC and HP units. | BU75: 0.1 | BV75: DeratingCoolEff | BW75: IL TRM v12 vol3 | BX75: 112 | BY75: 1 | BZ75: DuctlessSave | CA75: IL TRM v12 vol3 | CB75: 109 | CC75: 0.1 | CD75: Derating_Cool_Base | CE75: IL TRM v12 vol3 | CF75: 110 | CG75: 0.1 | CH75: Derating_Heat_Base | CI75: IL TRM v12 vol3 | CJ75: 112 | CK75: 1 | CL75: HeatLoadFactor | CM75: IL TRM v12 vol3 | CN75: 110 | CO75: 0.1 | CP75: Derating_Heat_Eff | CQ75: IL TRM v12 vol3 | CR75: 112 | CS75: 0.03 | CT75: Societal Discount Rate | CU75: Evergy Standard | CW75: 600 | CX75: First Cost $/ton | CY75: IL TRM v12 vol3 | CZ75: 105 | DA75: 7000 | DB75: One-time per-system labor cost | DC75: IL TRM v12 vol3 | DD75: 105 | DE75: =-PV(CS75, 6, 0, (1092))+-PV(CS75, 7, 0, (2296))/DI75 -> 1468.496639 | DF75: Deferred cost savings | DG75: IL TRM v12 vol3 | DH75: 105 | DI75: 3.37 | DJ75: Equipment size (tons) | DK75: Average equipment size (in tons) from the SEER 15 ASHP units in the 2022 HCHC program tracking data | DM75: 0.8 | DN75: HSPF_ClimateAdj | DO75: IL TRM v12 vol3 - Statewide | DP75: 113
A76: Income Eligible Program | B76: ASHP SEER2 15 - replace electric furnace / CAC - Early Replacement: MF (future) | C76: 770 | D76: Multi-Family | E76: HVAC | G76: per ton | H76: 0 | I76: IL TRM v11 vol3 | J76: 91 | K76: =ROUND(((BM76*AS76*(1/(AF76*(1-BU76))-1/(AB76*BY76*(1-CC76))))/1000)+((BQ76*AS76*(1/(BA76*DM76*(1-CG76))-1/(AW76*DM76*CK76*(1-CO76))))/1000),4) -> 3329.8888 | L76: Calculated Value | N76: =K76/U76 -> 4.512044444 | O76: 0.72 | P76: IL TRM v11 vol3 | Q76: 92 | R76: =ROUND((AS76*(1/(BI76*(1-BU76))-1/(BE76*(1-CC76))))/1000*O76,4) -> 0.142 | S76: Calculated Value | U76: 738 | V76: EFLHcool, from 2017 MO TRM | W76: 85 | X76: 10 | Y76: IL TRM v11 vol3 | Z76: 90 | AA76: SEER2ee | AB76: 15 | AC76: Nameplate rating | AE76: SEER2base | AF76: 14.3 | AG76: Federal minimum efficiency standard - Northern region of U.S. | AI76: =ROUND(((BM76*AS76*(1/(AF76*(1-BU76))-1/(AB76*BY76*(1-CC76))))/1000)+((BQ76*AS76*(1/(BA76*DM76*(1-CG76))-1/(AW76*DM76*CK76*(1-CO76))))/1000),4) | AJ76: =ROUND((AS76*(1/(BI76*(1-BU76))-1/(BE76*(1-CC76))))/1000*O76,4) | AK76: IL TRM v11 vol3 | AL76: 92, 102 | AM76: 2024-01-01 | AN76: 2024-12-31 | AS76: 12000 | AT76: Allows for Capacity input in Tons; converts tons to BTUs | AW76: 8.71 | AX76: HSPF2ee | AY76: Average efficient HSPF value from all SEER 15 ASHP units in the 2022 HCHC program tracking data | BA76: 3.41 | BB76: HSPF2base | BC76: IL TRM v11 vol3 | BD76: 96 | BE76: 12.5 | BF76: EER2ee | BG76: IL TRM v11 vol3 | BH76: 103 | BI76: =11*0.959 -> 10.549 | BJ76: EER2base | BK76: IL TRM v11 vol3 | BL76: 103 | BM76: 738 | BN76: EFLHcool | BO76: EFLHcool, from 2017 MO TRM | BP76: 85 | BQ76: 1376 | BR76: EFLHheat | BS76: The EFLH Cooling and Heating hours are based on a EnergyStar study that was normalized (based on HDD and CDD) to Kansas City. This was for both AC and HP units. | BU76: 0.1 | BV76: Derating_Cool_Base | BW76: IL TRM v11 vol3 | BX76: 97 | BY76: =0.805*(BE76/AB76)+0.367 -> 1.037833333 | BZ76: SEER2adj | CA76: IL TRM v11 vol3 | CB76: 95 | CC76: 0.1 | CD76: Derating_Cool_Eff | CE76: IL TRM v11 vol3 | CF76: 95 | CG76: 0.1 | CH76: Derating_Heat_Base | CI76: IL TRM v11 vol3 | CJ76: 97 | CK76: 1 | CL76: HSPFadj | CM76: IL TRM v11 vol3 | CN76: 97 | CO76: 0.1 | CP76: Derating_Heat_Eff | CQ76: IL TRM v11 vol3 | CR76: 97 | CS76: 0.03 | CT76: Societal Discount Rate | CU76: Evergy Standard | CW76: 600 | CX76: First Cost $/ton | CY76: IL TRM v11 vol3 | CZ76: 91 | DA76: 6865 | DB76: One-time per-system labor cost | DC76: IL TRM v11 vol3 | DD76: 91 | DE76: =-PV(CS76, 6, 0, (1092))+-PV(CS76, 7, 0, (2296))/DI76 -> 1468.496639 | DF76: Baseline install cost | DG76: IL TRM v11 vol3 | DH76: 91 | DI76: 3.37 | DJ76: Equipment size (tons) | DK76: Average equipment size (in tons) from the SEER 15 ASHP units in the 2022 HCHC program tracking data | DM76: 1 | DN76: HSPF_ClimateAdj | DO76: IL TRM v11 vol3 | DP76: 97
A77: Income Eligible Program | B77: ASHP SEER2 15 - replace electric furnace / CAC - Early Replacement: MF (future) | C77: 770.1 | D77: Multi-Family | E77: HVAC | G77: per ton | H77: 0 | I77: IL TRM v12 vol3 | J77: 105 | K77: =ROUND(((((BM77*AS77)/BY77*(1/(AF77*(1-CC77))))-(BM77*AS77*1/(AB77*(1-BU77))))/1000)+(((BQ77*AS77*CK77)/BY77*(1/(BA77*DM77*(1-CG77))))-((BQ77*AS77*CK77)*1/(AW77*DM77*(1-CO77))))/1000,4) -> 4124.4407 | L77: Calculated Value | N77: =ROUND(K77/U77,4) -> 5.5887 | O77: 0.72 | P77: IL TRM v12 vol3 | Q77: 107 | R77: =ROUND((((AS77)/BY77*(1/(BI77*(1-CC77))))-(AS77*1/(BE77*(1-BU77))))/1000*O77,4) -> 0.1315 | S77: Calculated Value | U77: 738 | V77: EFLHcool, from 2017 MO TRM Vol. 3 | W77: 122 | X77: 10 | Y77: IL TRM v12 vol3 | Z77: 105 | AA77: SEER2ee | AB77: 15 | AC77: Nameplate rating | AE77: SEER2base | AF77: 14.3 | AG77: IL TRM v12 vol3, Federal minimum efficiency standard - Northern region of U.S. | AH77: 110 | AI77: =ROUND(((((BM77*AS77)/BY77*(1/(AF77*(1-CC77))))-(BM77*AS77*1/(AB77*(1-BU77))))/1000)+(((BQ77*AS77*CK77)/BY77*(1/(BA77*DM77*(1-CG77))))-((BQ77*AS77*CK77)*1/(AW77*DM77*(1-CO77))))/1000,4) | AJ77: =ROUND((((AS77)/BY77*(1/(BI77*(1-CC77))))-(AS77*1/(BE77*(1-BU77))))/1000*O77,4) | AK77: IL TRM v12 vol3 | AL77: 107, 118 | AM77: 2025-01-01 | AS77: 12000 | AT77: Allows for Capacity input in Tons; converts tons to BTUs | AW77: 8.71 | AX77: HSPF2ee | AY77: Average efficient HSPF value from all SEER 15 ASHP units in the 2022 HCHC program tracking data | BA77: 3.41 | BB77: HSPF2base | BC77: IL TRM v12 vol3 | BD77: 112 | BE77: 12.4 | BF77: EER2ee | BG77: IL TRM v12 vol3 | BH77: 119 | BI77: 10.6 | BJ77: EER2base | BK77: IL TRM v12 vol3 | BL77: 119 | BM77: 738 | BN77: EFLHcool | BO77: EFLHcool, from 2017 MO TRM Vol. 3 | BP77: 85 | BQ77: 1376 | BR77: EFLHheat | BS77: The EFLH Cooling and Heating hours are based on a EnergyStar study that was normalized (based on HDD and CDD) to Kansas City. This was for both AC and HP units. | BU77: 0.1 | BV77: DeratingCoolEff | BW77: IL TRM v12 vol3 | BX77: 112 | BY77: 1 | BZ77: DuctlessSave | CA77: IL TRM v12 vol3 | CB77: 109 | CC77: 0.1 | CD77: Derating_Cool_Base | CE77: IL TRM v12 vol3 | CF77: 110 | CG77: 0.1 | CH77: Derating_Heat_Base | CI77: IL TRM v12 vol3 | CJ77: 112 | CK77: 1 | CL77: HeatLoadFactor | CM77: IL TRM v12 vol3 | CN77: 110 | CO77: 0.1 | CP77: Derating_Heat_Eff | CQ77: IL TRM v12 vol3 | CR77: 112 | CS77: 0.03 | CT77: Societal Discount Rate | CU77: Evergy Standard | CW77: 600 | CX77: First Cost $/ton | CY77: IL TRM v12 vol3 | CZ77: 105 | DA77: 7000 | DB77: One-time per-system labor cost | DC77: IL TRM v12 vol3 | DD77: 105 | DE77: =-PV(CS77, 6, 0, (1092))+-PV(CS77, 7, 0, (2296))/DI77 -> 1468.496639 | DF77: Baseline install cost | DG77: IL TRM v12 vol3 | DH77: 105 | DI77: 3.37 | DJ77: Equipment size (tons) | DK77: Average equipment size (in tons) from the SEER 15 ASHP units in the 2022 HCHC program tracking data | DM77: 0.8 | DN77: HSPF_ClimateAdj | DO77: IL TRM v12 vol3 - Statewide | DP77: 113
A78: Income Eligible Program | B78: ASHP SEER2 15 - replace electric furnace / CAC - ROF: MF | C78: 768 | D78: Multi-Family | E78: HVAC | G78: per ton | H78: =(((CW78*DI78)+DA78)/DI78)-DE78 -> 1088.356083 | I78: IL TRM v11 vol3 / Program Tracking Data | J78: 91 | K78: =ROUND(((BM78*AS78*(1/(AF78*(1-BU78))-1/(AB78*BY78*(1-CC78))))/1000)+((BQ78*AS78*(1/(BA78*DM78*(1-CG78))-1/(AW78*DM78*CK78*(1-CO78))))/1000),4) -> 3329.8888 | L78: Calculated Value | N78: =K78/U78 -> 4.512044444 | O78: 0.72 | P78: IL TRM v11 vol3 | Q78: 92 | R78: =ROUND((AS78*(1/(BI78*(1-BU78))-1/(BE78*(1-CC78))))/1000*O78,4) -> 0.142 | S78: Calculated Value | U78: 738 | V78: EFLHcool, from 2017 MO TRM Vol. 3 | W78: 85 | X78: 16 | Y78: IL TRM v11 vol3 | Z78: 90 | AA78: SEER2ee | AB78: 15 | AC78: Nameplate rating | AE78: SEER2base | AF78: 14.3 | AG78: Federal minimum efficiency standard - Northern region of U.S. | AI78: =ROUND(((BM78*AS78*(1/(AF78*(1-BU78))-1/(AB78*BY78*(1-CC78))))/1000)+((BQ78*AS78*(1/(BA78*DM78*(1-CG78))-1/(AW78*DM78*CK78*(1-CO78))))/1000),4) | AJ78: =ROUND((AS78*(1/(BI78*(1-BU78))-1/(BE78*(1-CC78))))/1000*O78,4) | AK78: IL TRM v11 vol3 | AL78: 92, 102 | AM78: 2024-01-01 | AN78: 2024-12-31 | AS78: 12000 | AT78: Allows for Capacity input in Tons; converts tons to BTUs | AW78: 8.71 | AX78: HSPF2ee | AY78: Average efficient HSPF value from all SEER 15 ASHP units in the 2022 HCHC program tracking data | BA78: 3.41 | BB78: HSPF2base | BC78: IL TRM v11 vol3 | BD78: 96 | BE78: 12.5 | BF78: EER2ee | BG78: IL TRM v11 vol3 | BH78: 103 | BI78: =11*0.959 -> 10.549 | BJ78: EER2base | BK78: IL TRM v11 vol3 | BL78: 103 | BM78: 738 | BN78: EFLHcool | BO78: EFLHcool, from 2017 MO TRM Vol. 3 | BP78: 85 | BQ78: 1376 | BR78: EFLHheat | BS78: The EFLH Cooling and Heating hours are based on a EnergyStar study that was normalized (based on HDD and CDD) to Kansas City. This was for both AC and HP units. | BU78: 0.1 | BV78: Derating_Cool_Base | BW78: IL TRM v11 vol3 | BX78: 97 | BY78: =0.805*(BE78/AB78)+0.367 -> 1.037833333 | BZ78: SEER2adj | CA78: IL TRM v11 vol3 | CB78: 95 | CC78: 0.1 | CD78: Derating_Cool_Eff | CE78: IL TRM v11 vol3 | CF78: 95 | CG78: 0.1 | CH78: Derating_Heat_Base | CI78: IL TRM v11 vol3 | CJ78: 97 | CK78: 1 | CL78: HSPFadj | CM78: IL TRM v11 vol3 | CN78: 97 | CO78: 0.1 | CP78: Derating_Heat_Eff | CQ78: IL TRM v11 vol3 | CR78: 97 | CS78: 2011 | CT78: Assumed installation cost for 80% AFUE furnace | CU78: IL TRM v11 vol3 | CV78: 91 | CW78: 600 | CX78: First Cost $/ton | CY78: IL TRM v11 vol3 | CZ78: 91 | DA78: 6865 | DB78: One-time per-system labor cost | DC78: IL TRM v11 vol3 | DD78: 91 | DE78: =(CS78/DI78)+952 -> 1548.735905 | DF78: Baseline install cost | DG78: IL TRM v11 vol3 | DH78: 91 | DI78: 3.37 | DJ78: Equipment size (tons) | DK78: Average equipment size (in tons) from the SEER 15 ASHP units in the 2022 HCHC program tracking data | DM78: 1 | DN78: HSPF_ClimateAdj | DO78: IL TRM v11 vol3 | DP78: 97
A79: Income Eligible Program | B79: ASHP SEER2 15 - replace electric furnace / CAC - ROF: MF | C79: 768.1 | D79: Multi-Family | E79: HVAC | G79: per ton | H79: =(((CW79*DI79)+DA79)/DI79)-DE79 -> 1128.41543 | I79: IL TRM v12 vol3 | J79: 105 | K79: =ROUND(((((BM79*AS79)/BY79*(1/(AF79*(1-CC79))))-(BM79*AS79*1/(AB79*(1-BU79))))/1000)+(((BQ79*AS79*CK79)/BY79*(1/(BA79*DM79*(1-CG79))))-((BQ79*AS79*CK79)*1/(AW79*DM79*(1-CO79))))/1000,4) -> 4124.4407 | L79: Calculated Value | N79: =ROUND(K79/U79,4) -> 5.5887 | O79: 0.72 | P79: IL TRM v12 vol3 | Q79: 107 | R79: =ROUND((((AS79)/BY79*(1/(BI79*(1-CC79))))-(AS79*1/(BE79*(1-BU79))))/1000*O79,4) -> 0.1315 | S79: Calculated Value | U79: 738 | V79: EFLHcool, from 2017 MO TRM Vol. 3 | W79: 122 | X79: 16 | Y79: IL TRM v12 vol3 | Z79: 105 | AA79: SEER2ee | AB79: 15 | AC79: Nameplate rating | AE79: SEER2base | AF79: 14.3 | AG79: IL TRM v12 vol3, Federal minimum efficiency standard - Northern region of U.S. | AH79: 110 | AI79: =ROUND(((((BM79*AS79)/BY79*(1/(AF79*(1-CC79))))-(BM79*AS79*1/(AB79*(1-BU79))))/1000)+(((BQ79*AS79*CK79)/BY79*(1/(BA79*DM79*(1-CG79))))-((BQ79*AS79*CK79)*1/(AW79*DM79*(1-CO79))))/1000,4) | AJ79: =ROUND((((AS79)/BY79*(1/(BI79*(1-CC79))))-(AS79*1/(BE79*(1-BU79))))/1000*O79,4) | AK79: IL TRM v12 vol3 | AL79: 107, 118 | AM79: 2025-01-01 | AS79: 12000 | AT79: Allows for Capacity input in Tons; converts tons to BTUs | AW79: 8.71 | AX79: HSPF2ee | AY79: Average efficient HSPF value from all SEER 15 ASHP units in the 2022 HCHC program tracking data | BA79: 3.41 | BB79: HSPF2base | BC79: IL TRM v12 vol3 | BD79: 112 | BE79: 12.4 | BF79: EER2ee | BG79: IL TRM v12 vol3 | BH79: 119 | BI79: 10.6 | BJ79: EER2base | BK79: IL TRM v12 vol3 | BL79: 119 | BM79: 738 | BN79: EFLHcool | BO79: EFLHcool, from 2017 MO TRM Vol. 3 | BP79: 85 | BQ79: 1376 | BR79: EFLHheat | BS79: The EFLH Cooling and Heating hours are based on a EnergyStar study that was normalized (based on HDD and CDD) to Kansas City. This was for both AC and HP units. | BU79: 0.1 | BV79: DeratingCoolEff | BW79: IL TRM v12 vol3 | BX79: 112 | BY79: 1 | BZ79: DuctlessSave | CA79: IL TRM v12 vol3 | CB79: 109 | CC79: 0.1 | CD79: Derating_Cool_Base | CE79: IL TRM v12 vol3 | CF79: 110 | CG79: 0.1 | CH79: Derating_Heat_Base | CI79: IL TRM v12 vol3 | CJ79: 112 | CK79: 1 | CL79: HeatLoadFactor | CM79: IL TRM v12 vol3 | CN79: 110 | CO79: 0.1 | CP79: Derating_Heat_Eff | CQ79: IL TRM v12 vol3 | CR79: 112 | CS79: 2011 | CT79: Assumed installation cost for 80% AFUE furnace | CU79: IL TRM v12 vol3 | CV79: 105 | CW79: 600 | CX79: First Cost $/ton | CY79: IL TRM v12 vol3 | CZ79: 105 | DA79: 7000 | DB79: One-time per-system labor cost | DC79: IL TRM v12 vol3 | DD79: 105 | DE79: =(CS79/DI79)+952 -> 1548.735905 | DF79: Baseline install cost - CAC | DG79: IL TRM v12 vol3 | DH79: 105 | DI79: 3.37 | DJ79: Equipment size (tons) | DK79: Average equipment size (in tons) from the SEER 15 ASHP units in the 2022 HCHC program tracking data | DM79: 0.8 | DN79: HSPF_ClimateAdj | DO79: IL TRM v12 vol3 - Statewide | DP79: 113
A80: Income Eligible Program | B80: ASHP SEER2 16 - replace ASHP - Early Replacement: MF | C80: 778 | D80: Multi-Family | E80: HVAC | G80: per ton | H80: =(((CW80*DI80)+DA80)/DI80)-DE80 -> 247.6873587 | I80: IL TRM v11 vol3 / Program Tracking Data | J80: 91 | K80: =ROUND(((BM80*AS80*(1/(AF80*(1-BU80))-1/(AB80*BY80*(1-CC80))))/1000)+((BQ80*AS80*(1/(BA80*DM80*(1-CG80))-1/(AW80*DM80*CK80*(1-CO80))))/1000),4) -> 2160.7573 | L80: Calculated Value | N80: =K80/U80 -> 2.92785542 | O80: 0.72 | P80: IL TRM v11 vol3 | Q80: 92 | R80: =ROUND((AS80*(1/(BI80*(1-BU80))-1/(BE80*(1-CC80))))/1000*O80,4) -> 0.5105 | S80: Calculated Value | U80: 738 | V80: EFLHcool, from 2017 MO TRM Vol. 3 | W80: 85 | X80: 6 | Y80: IL TRM v11 vol3 | Z80: 90 | AA80: SEER2ee | AB80: 16 | AC80: Nameplate rating | AE80: SEER2exist | AF80: =9.7*0.955 -> 9.2635 | AG80: IL TRM v11 vol3 | AH80: 94 | AI80: =ROUND(((BM80*AS80*(1/(AF80*(1-BU80))-1/(AB80*BY80*(1-CC80))))/1000)+((BQ80*AS80*(1/(BA80*DM80*(1-CG80))-1/(AW80*DM80*CK80*(1-CO80))))/1000),4) | AJ80: =ROUND((AS80*(1/(BI80*(1-BU80))-1/(BE80*(1-CC80))))/1000*O80,4) | AK80: IL TRM v11 vol3 | AL80: 92, 102 | AM80: 2024-01-01 | AN80: 2024-12-31 | AS80: 12000 | AT80: Allows for Capacity input in Tons; converts tons to BTUs | AW80: 9.13 | AX80: HSPF2ee | AY80: Average efficient HSPF value from all SEER 16 ASHP units in the 2022 HCHC program tracking data | BA80: =5.78*0.852 -> 4.92456 | BB80: HSPF2exist | BC80: IL TRM v11 vol3 | BD80: 96 | BE80: 12.5 | BF80: EER2ee | BG80: IL TRM v11 vol3 | BH80: 103 | BI80: =7.83*0.959 -> 7.50897 | BJ80: EER2exist | BK80: IL TRM v11 vol3 | BL80: 103 | BM80: 738 | BN80: EFLHcool | BO80: EFLHcool, from 2017 MO TRM Vol. 3 | BP80: 85 | BQ80: 1376 | BR80: EFLHheat | BS80: The EFLH Cooling and Heating hours are based on a EnergyStar study that was normalized (based on HDD and CDD) to Kansas City. This was for both AC and HP units. | BU80: 0.1 | BV80: Derating_Cool_Base | BW80: IL TRM v11 vol3 | BX80: 97 | BY80: =0.805*(BE80/AB80)+0.367 -> 0.99590625 | BZ80: SEER2adj | CA80: IL TRM v11 vol3 | CB80: 95 | CC80: 0.1 | CD80: Derating_Cool_Eff | CE80: IL TRM v11 vol3 | CF80: 95 | CG80: 0.1 | CH80: Derating_Heat_Base | CI80: IL TRM v11 vol3 | CJ80: 97 | CK80: 1 | CL80: HSPFadj | CM80: IL TRM v11 vol3 | CN80: 97 | CO80: 0.1 | CP80: Derating_Heat_Eff | CQ80: IL TRM v11 vol3 | CR80: 97 | CS80: 0.03 | CT80: Societal Discount Rate | CU80: Evergy Standard | CW80: 600 | CX80: First Cost $/ton | CY80: IL TRM v11 vol3 | CZ80: 91 | DA80: 7000 | DB80: One-time per-system labor cost | DC80: IL TRM v11 vol3 | DD80: 91 | DE80: =-PV(CS80,6,0,(7527 +(688*DI80)))/DI80 -> 2603.1165 | DF80: Deferred cost savings | DG80: IL TRM v11 vol3 | DH80: 91 | DI80: 3.11 | DJ80: Equipment size (tons) | DK80: Average equipment size (in tons) from the SEER 16 ASHP units in the 2022 HCHC program tracking data | DM80: 1 | DN80: HSPF_ClimateAdj | DO80: IL TRM v11 vol3 | DP80: 97
A81: Income Eligible Program | B81: ASHP SEER2 16 - replace ASHP - Early Replacement: MF | C81: 778.1 | D81: Multi-Family | E81: HVAC | G81: per ton | H81: =(((CW81*DI81)+DA81)/DI81)-DE81 -> 298.8624823 | I81: IL TRM v12 vol3 | J81: 105 | K81: =ROUND(((((BM81*AS81)/BY81*(1/(AF81*(1-CC81))))-(BM81*AS81*1/(AB81*(1-BU81))))/1000)+(((BQ81*AS81*CK81)/BY81*(1/(BA81*DM81*(1-CG81))))-((BQ81*AS81*CK81)*1/(AW81*DM81*(1-CO81))))/1000,4) -> 2613.4396 | L81: Calculated Value | N81: =ROUND(K81/U81,4) -> 3.5412 | O81: 0.72 | P81: IL TRM v12 vol3 | Q81: 107 | R81: =ROUND((((AS81)/BY81*(1/(BI81*(1-CC81))))-(AS81*1/(BE81*(1-BU81))))/1000*O81,4) -> 0.5231 | S81: Calculated Value | U81: 738 | V81: EFLHcool, from 2017 MO TRM Vol. 3 | W81: 122 | X81: 6 | Y81: IL TRM v12 vol3 | Z81: 105 | AA81: SEER2ee | AB81: 16 | AC81: Nameplate rating | AE81: SEER2exist | AF81: 9.2 | AG81: IL TRM v12 vol3 | AH81: 110 | AI81: =ROUND(((((BM81*AS81)/BY81*(1/(AF81*(1-CC81))))-(BM81*AS81*1/(AB81*(1-BU81))))/1000)+(((BQ81*AS81*CK81)/BY81*(1/(BA81*DM81*(1-CG81))))-((BQ81*AS81*CK81)*1/(AW81*DM81*(1-CO81))))/1000,4) | AJ81: =ROUND((((AS81)/BY81*(1/(BI81*(1-CC81))))-(AS81*1/(BE81*(1-BU81))))/1000*O81,4) | AK81: IL TRM v12 vol3 | AL81: 107, 118 | AM81: 2025-01-01 | AS81: 12000 | AT81: Allows for Capacity input in Tons; converts tons to BTUs | AW81: 9.13 | AX81: HSPF2ee | AY81: Average efficient HSPF value from all SEER 16 ASHP units in the 2022 HCHC program tracking data | BA81: 4.91 | BB81: HSPF2exist | BC81: IL TRM v12 vol3 | BD81: 112 | BE81: 12.4 | BF81: EER2ee | BG81: IL TRM v12 vol3 | BH81: 119 | BI81: 7.4 | BJ81: EER2exist | BK81: IL TRM v12 vol3 | BL81: 119 | BM81: 738 | BN81: EFLHcool | BO81: EFLHcool, from 2017 MO TRM Vol. 3 | BP81: 85 | BQ81: 1376 | BR81: EFLHheat | BS81: The EFLH Cooling and Heating hours are based on a EnergyStar study that was normalized (based on HDD and CDD) to Kansas City. This was for both AC and HP units. | BU81: 0.1 | BV81: DeratingCoolEff | BW81: IL TRM v12 vol3 | BX81: 112 | BY81: 1 | BZ81: DuctlessSave | CA81: IL TRM v12 vol3 | CB81: 109 | CC81: 0.1 | CD81: Derating_Cool_Base | CE81: IL TRM v12 vol3 | CF81: 110 | CG81: 0.1 | CH81: Derating_Heat_Base | CI81: IL TRM v12 vol3 | CJ81: 112 | CK81: 1 | CL81: HeatLoadFactor | CM81: IL TRM v12 vol3 | CN81: 110 | CO81: 0.1 | CP81: Derating_Heat_Eff | CQ81: IL TRM v12 vol3 | CR81: 112 | CS81: 0.03 | CT81: Societal Discount Rate | CU81: Evergy Standard | CW81: 600 | CX81: First Cost $/ton | CY81: IL TRM v12 vol3 | CZ81: 105 | DA81: 7286 | DB81: One-time per-system labor cost | DC81: IL TRM v12 vol3 | DD81: 105 | DE81: =-PV(CS81,6,0,(7722 +(674*DI81)))/DI81 -> 2643.902791 | DF81: Deferred cost savings | DG81: IL TRM v12 vol3 | DH81: 105 | DI81: 3.11 | DJ81: Equipment size (tons) | DK81: Average equipment size (in tons) from the SEER 16 ASHP units in the 2022 HCHC program tracking data | DM81: 0.8 | DN81: HSPF_ClimateAdj | DO81: IL TRM v12 vol3 - Statewide | DP81: 113
A82: Income Eligible Program | B82: ASHP SEER2 16 - replace ASHP - Early Replacement: MF (future) | C82: 779 | D82: Multi-Family | E82: HVAC | G82: per ton | H82: 0 | I82: IL TRM v11 vol3 | J82: 91 | K82: =ROUND(((BM82*AS82*(1/(AF82*(1-BU82))-1/(AB82*BY82*(1-CC82))))/1000)+((BQ82*AS82*(1/(BA82*DM82*(1-CG82))-1/(AW82*DM82*CK82*(1-CO82))))/1000),4) -> 507.3136 | L82: Calculated Value | N82: =K82/U82 -> 0.6874168022 | O82: 0.72 | P82: IL TRM v11 vol3 | Q82: 92 | R82: =ROUND((AS82*(1/(BI82*(1-BU82))-1/(BE82*(1-CC82))))/1000*O82,4) -> 0.142 | S82: Calculated Value | U82: 738 | V82: EFLHcool, from 2017 MO TRM Vol. 3 | W82: 85 | X82: 10 | Y82: IL TRM v11 vol3 | Z82: 90 | AA82: SEER2ee | AB82: 16 | AC82: Nameplate rating | AE82: SEER2base | AF82: 14.3 | AG82: Federal minimum efficiency standard - Northern region of U.S. | AI82: =ROUND(((BM82*AS82*(1/(AF82*(1-BU82))-1/(AB82*BY82*(1-CC82))))/1000)+((BQ82*AS82*(1/(BA82*DM82*(1-CG82))-1/(AW82*DM82*CK82*(1-CO82))))/1000),4) | AJ82: =ROUND((AS82*(1/(BI82*(1-BU82))-1/(BE82*(1-CC82))))/1000*O82,4) | AK82: IL TRM v11 vol3 | AL82: 92, 102 | AM82: 2024-01-01 | AN82: 2024-12-31 | AS82: 12000 | AT82: Allows for Capacity input in Tons; converts tons to BTUs | AW82: 9.13 | AX82: HSPF2ee | AY82: Average efficient HSPF value from all SEER 16 ASHP units in the 2022 HCHC program tracking data | BA82: 7.5 | BB82: HSPF2base | BC82: 2023 Federal Minimum Baseline | BE82: 12.5 | BF82: EER2ee | BG82: IL TRM v11 vol3 | BH82: 103 | BI82: =11*0.959 -> 10.549 | BJ82: EER2base | BK82: IL TRM v11 vol3 | BL82: 103 | BM82: 738 | BN82: EFLHcool | BO82: EFLHcool, from 2017 MO TRM Vol. 3 | BP82: 85 | BQ82: 1376 | BR82: EFLHheat | BS82: The EFLH Cooling and Heating hours are based on a EnergyStar study that was normalized (based on HDD and CDD) to Kansas City. This was for both AC and HP units. | BU82: 0.1 | BV82: Derating_Cool_Base | BW82: IL TRM v11 vol3 | BX82: 97 | BY82: =0.805*(BE82/AB82)+0.367 -> 0.99590625 | BZ82: SEER2adj | CA82: IL TRM v11 vol3 | CB82: 95 | CC82: 0.1 | CD82: Derating_Cool_Eff | CE82: IL TRM v11 vol3 | CF82: 95 | CG82: 0.1 | CH82: Derating_Heat_Base | CI82: IL TRM v11 vol3 | CJ82: 97 | CK82: 1 | CL82: HSPFadj | CM82: IL TRM v11 vol3 | CN82: 97 | CO82: 0.1 | CP82: Derating_Heat_Eff | CQ82: IL TRM v11 vol3 | CR82: 97 | CS82: 0.03 | CT82: Societal Discount Rate | CU82: Evergy Standard | CW82: 600 | CX82: First Cost $/ton | CY82: IL TRM v11 vol3 | CZ82: 91 | DA82: 7000 | DB82: One-time per-system labor cost | DC82: IL TRM v11 vol3 | DD82: 91 | DE82: =-PV(CS82,6,0,(7527 +(688*DI82)))/DI82 -> 2603.1165 | DF82: Deferred cost savings | DG82: IL TRM v11 vol3 | DH82: 91 | DI82: 3.11 | DJ82: Equipment size (tons) | DK82: Average equipment size (in tons) from the SEER 16 ASHP units in the 2022 HCHC program tracking data | DM82: 1 | DN82: HSPF_ClimateAdj | DO82: IL TRM v11 vol3 | DP82: 97
A83: Income Eligible Program | B83: ASHP SEER2 16 - replace ASHP - Early Replacement: MF (future) | C83: 779.1 | D83: Multi-Family | E83: HVAC | G83: per ton | H83: 0 | I83: IL TRM v12 vol3 | J83: 105 | K83: =ROUND(((((BM83*AS83)/BY83*(1/(AF83*(1-CC83))))-(BM83*AS83*1/(AB83*(1-BU83))))/1000)+(((BQ83*AS83*CK83)/BY83*(1/(BA83*DM83*(1-CG83))))-((BQ83*AS83*CK83)*1/(AW83*DM83*(1-CO83))))/1000,4) -> 619.024 | L83: Calculated Value | N83: =ROUND(K83/U83,4) -> 0.8388 | O83: 0.72 | P83: IL TRM v12 vol3 | Q83: 107 | R83: =ROUND((((AS83)/BY83*(1/(BI83*(1-CC83))))-(AS83*1/(BE83*(1-BU83))))/1000*O83,4) -> 0.2471 | S83: Calculated Value | U83: 738 | V83: EFLHcool, from 2017 MO TRM Vol. 3 | W83: 122 | X83: 10 | Y83: IL TRM v12 vol3 | Z83: 105 | AA83: SEER2ee | AB83: 16 | AC83: Nameplate rating | AE83: SEER2base | AF83: 14.3 | AG83: IL TRM v12 vol3, Federal minimum efficiency standard - Northern region of U.S. | AH83: 110 | AI83: =ROUND(((((BM83*AS83)/BY83*(1/(AF83*(1-CC83))))-(BM83*AS83*1/(AB83*(1-BU83))))/1000)+(((BQ83*AS83*CK83)/BY83*(1/(BA83*DM83*(1-CG83))))-((BQ83*AS83*CK83)*1/(AW83*DM83*(1-CO83))))/1000,4) | AJ83: =ROUND((((AS83)/BY83*(1/(BI83*(1-CC83))))-(AS83*1/(BE83*(1-BU83))))/1000*O83,4) | AK83: IL TRM v12 vol3 | AL83: 107, 118 | AM83: 2025-01-01 | AS83: 12000 | AT83: Allows for Capacity input in Tons; converts tons to BTUs | AW83: 9.13 | AX83: HSPF2ee | AY83: Average efficient HSPF value from all SEER 16 ASHP units in the 2022 HCHC program tracking data | BA83: 7.5 | BB83: HSPF2base | BC83: IL TRM v12 vol3 - 2023 Federal Minimum Baseline | BD83: 112 | BE83: 12.4 | BF83: EER2ee | BG83: IL TRM v12 vol3 | BH83: 119 | BI83: 9.4 | BJ83: EER2base | BK83: IL TRM v12 vol3 | BL83: 119 | BM83: 738 | BN83: EFLHcool | BO83: EFLHcool, from 2017 MO TRM Vol. 3 | BP83: 85 | BQ83: 1376 | BR83: EFLHheat | BS83: The EFLH Cooling and Heating hours are based on a EnergyStar study that was normalized (based on HDD and CDD) to Kansas City. This was for both AC and HP units. | BU83: 0.1 | BV83: DeratingCoolEff | BW83: IL TRM v12 vol3 | BX83: 112 | BY83: 1 | BZ83: DuctlessSave | CA83: IL TRM v12 vol3 | CB83: 109 | CC83: 0.1 | CD83: Derating_Cool_Base | CE83: IL TRM v12 vol3 | CF83: 110 | CG83: 0.1 | CH83: Derating_Heat_Base | CI83: IL TRM v12 vol3 | CJ83: 112 | CK83: 1 | CL83: HeatLoadFactor | CM83: IL TRM v12 vol3 | CN83: 110 | CO83: 0.1 | CP83: Derating_Heat_Eff | CQ83: IL TRM v12 vol3 | CR83: 112 | CS83: 0.03 | CT83: Societal Discount Rate | CU83: Evergy Standard | CW83: 600 | CX83: First Cost $/ton | CY83: IL TRM v12 vol3 | CZ83: 105 | DA83: 7286 | DB83: One-time per-system labor cost | DC83: IL TRM v12 vol3 | DD83: 105 | DE83: =-PV(CS83,6,0,(7722 +(674*DI83)))/DI83 -> 2643.902791 | DF83: Deferred cost savings | DG83: IL TRM v12 vol3 | DH83: 105 | DI83: 3.11 | DJ83: Equipment size (tons) | DK83: Average equipment size (in tons) from the SEER 16 ASHP units in the 2022 HCHC program tracking data | DM83: 0.8 | DN83: HSPF_ClimateAdj | DO83: IL TRM v12 vol3 - Statewide | DP83: 113
A84: Income Eligible Program | B84: ASHP SEER2 16 - replace ASHP-ROF: MF | C84: 777 | D84: Multi-Family | E84: HVAC | G84: per ton | H84: =(((CW84*DI84)+DA84)/DI84)-DE84 -> 140.8360129 | I84: IL TRM v11 vol3 / Program Tracking Data | J84: 91 | K84: =ROUND(((BM84*AS84*(1/(AF84*(1-BU84))-1/(AB84*BY84*(1-CC84))))/1000)+((BQ84*AS84*(1/(BA84*DM84*(1-CG84))-1/(AW84*DM84*CK84*(1-CO84))))/1000),4) -> 507.3136 | L84: Calculated Value | N84: =K84/U84 -> 0.6874168022 | O84: 0.72 | P84: IL TRM v11 vol3 | Q84: 92 | R84: =ROUND((AS84*(1/(BI84*(1-BU84))-1/(BE84*(1-CC84))))/1000*O84,4) -> 0.142 | S84: Calculated Value | U84: 738 | V84: EFLHcool, from 2017 MO TRM Vol. 3 | W84: 85 | X84: 16 | Y84: IL TRM v11 vol3 | Z84: 90 | AA84: SEER2ee | AB84: 16 | AC84: Nameplate rating | AE84: SEER2base | AF84: 14.3 | AG84: Federal minimum efficiency standard - Northern region of U.S. | AI84: =ROUND(((BM84*AS84*(1/(AF84*(1-BU84))-1/(AB84*BY84*(1-CC84))))/1000)+((BQ84*AS84*(1/(BA84*DM84*(1-CG84))-1/(AW84*DM84*CK84*(1-CO84))))/1000),4) | AJ84: =ROUND((AS84*(1/(BI84*(1-BU84))-1/(BE84*(1-CC84))))/1000*O84,4) | AK84: IL TRM v11 vol3 | AL84: 92, 102 | AM84: 2024-01-01 | AN84: 2024-12-31 | AS84: 12000 | AT84: Allows for Capacity input in Tons; converts tons to BTUs | AW84: 9.13 | AX84: HSPF2ee | AY84: Average efficient HSPF value from all SEER 16 ASHP units in the 2022 HCHC program tracking data | BA84: 7.5 | BB84: HSPF2base | BC84: 2023 Federal Minimum Baseline | BE84: 12.5 | BF84: EER2ee | BG84: IL TRM v11 vol3 | BH84: 103 | BI84: =11*0.959 -> 10.549 | BJ84: EER2base | BK84: IL TRM v11 vol3 | BL84: 103 | BM84: 738 | BN84: EFLHcool | BO84: EFLHcool, from 2017 MO TRM Vol. 3 | BP84: 85 | BQ84: 1376 | BR84: EFLHheat | BS84: The EFLH Cooling and Heating hours are based on a EnergyStar study that was normalized (based on HDD and CDD) to Kansas City. This was for both AC and HP units. | BU84: 0.1 | BV84: Derating_Cool_Base | BW84: IL TRM v11 vol3 | BX84: 97 | BY84: =0.805*(BE84/AB84)+0.367 -> 0.99590625 | BZ84: SEER2adj | CA84: IL TRM v11 vol3 | CB84: 95 | CC84: 0.1 | CD84: Derating_Cool_Eff | CE84: IL TRM v11 vol3 | CF84: 95 | CG84: 0.1 | CH84: Derating_Heat_Base | CI84: IL TRM v11 vol3 | CJ84: 97 | CK84: 1 | CL84: HSPFadj | CM84: IL TRM v11 vol3 | CN84: 97 | CO84: 0.1 | CP84: Derating_Heat_Eff | CQ84: IL TRM v11 vol3 | CR84: 97 | CW84: 600 | CX84: First Cost $/ton | CY84: IL TRM v11 vol3 | CZ84: 91 | DA84: 7000 | DB84: One-time per-system labor cost | DC84: IL TRM v11 vol3 | DD84: 91 | DE84: =(CW84*DI84+6562)/DI84 -> 2709.967846 | DF84: Baseline install cost | DG84: IL TRM v11 vol3 | DH84: 91 | DI84: 3.11 | DJ84: Equipment size (tons) | DK84: Average equipment size (in tons) from the SEER 16 ASHP units in the 2022 HCHC program tracking data | DM84: 1 | DN84: HSPF_ClimateAdj | DO84: IL TRM v11 vol3 | DP84: 97
A85: Income Eligible Program | B85: ASHP SEER2 16 - replace ASHP-ROF: MF | C85: 777.1 | D85: Multi-Family | E85: HVAC | G85: per ton | H85: =(((CW85*DI85)+DA85)/DI85)-DE85 -> 135.3697749 | I85: IL TRM v12 vol3 | J85: 105 | K85: =ROUND(((((BM85*AS85)/BY85*(1/(AF85*(1-CC85))))-(BM85*AS85*1/(AB85*(1-BU85))))/1000)+(((BQ85*AS85*CK85)/BY85*(1/(BA85*DM85*(1-CG85))))-((BQ85*AS85*CK85)*1/(AW85*DM85*(1-CO85))))/1000,4) -> 619.024 | L85: Calculated Value | N85: =ROUND(K85/U85,4) -> 0.8388 | O85: 0.72 | P85: IL TRM v12 vol3 | Q85: 107 | R85: =ROUND((((AS85)/BY85*(1/(BI85*(1-CC85))))-(AS85*1/(BE85*(1-BU85))))/1000*O85,4) -> 0.2471 | S85: Calculated Value | U85: 738 | V85: EFLHcool, from 2017 MO TRM Vol. 3 | W85: 122 | X85: 16 | Y85: IL TRM v12 vol3 | Z85: 105 | AA85: SEER2ee | AB85: 16 | AC85: Nameplate rating | AE85: SEER2base | AF85: 14.3 | AG85: IL TRM v12 vol3, Federal minimum efficiency standard - Northern region of U.S. | AH85: 110 | AI85: =ROUND(((((BM85*AS85)/BY85*(1/(AF85*(1-CC85))))-(BM85*AS85*1/(AB85*(1-BU85))))/1000)+(((BQ85*AS85*CK85)/BY85*(1/(BA85*DM85*(1-CG85))))-((BQ85*AS85*CK85)*1/(AW85*DM85*(1-CO85))))/1000,4) | AJ85: =ROUND((((AS85)/BY85*(1/(BI85*(1-CC85))))-(AS85*1/(BE85*(1-BU85))))/1000*O85,4) | AK85: IL TRM v12 vol3 | AL85: 107, 118 | AM85: 2025-01-01 | AS85: 12000 | AT85: Allows for Capacity input in Tons; converts tons to BTUs | AW85: 9.13 | AX85: HSPF2ee | AY85: Average efficient HSPF value from all SEER 16 ASHP units in the 2022 HCHC program tracking data | BA85: 7.5 | BB85: HSPF2base | BC85: IL TRM v12 vol3 - 2023 Federal Minimum Baseline | BD85: 112 | BE85: 12.4 | BF85: EER2ee | BG85: IL TRM v12 vol3 | BH85: 119 | BI85: 9.4 | BJ85: EER2base | BK85: IL TRM v12 vol3 | BL85: 119 | BM85: 738 | BN85: EFLHcool | BO85: EFLHcool, from 2017 MO TRM Vol. 3 | BP85: 85 | BQ85: 1376 | BR85: EFLHheat | BS85: The EFLH Cooling and Heating hours are based on a EnergyStar study that was normalized (based on HDD and CDD) to Kansas City. This was for both AC and HP units. | BU85: 0.1 | BV85: DeratingCoolEff | BW85: IL TRM v12 vol3 | BX85: 112 | BY85: 1 | BZ85: DuctlessSave | CA85: IL TRM v12 vol3 | CB85: 109 | CC85: 0.1 | CD85: Derating_Cool_Base | CE85: IL TRM v12 vol3 | CF85: 110 | CG85: 0.1 | CH85: Derating_Heat_Base | CI85: IL TRM v12 vol3 | CJ85: 112 | CK85: 1 | CL85: HeatLoadFactor | CM85: IL TRM v12 vol3 | CN85: 110 | CO85: 0.1 | CP85: Derating_Heat_Eff | CQ85: IL TRM v12 vol3 | CR85: 112 | CW85: 600 | CX85: First Cost $/ton | CY85: IL TRM v12 vol3 | CZ85: 105 | DA85: 7286 | DB85: One-time per-system labor cost | DC85: IL TRM v12 vol3 | DD85: 105 | DE85: =(CW85*DI85+6865)/DI85 -> 2807.395498 | DF85: Baseline install cost - ASHP | DG85: IL TRM v12 vol3 | DH85: 105 | DI85: 3.11 | DJ85: Equipment size (tons) | DK85: Average equipment size (in tons) from the SEER 16 ASHP units in the 2022 HCHC program tracking data | DM85: 0.8 | DN85: HSPF_ClimateAdj | DO85: IL TRM v12 vol3 - Statewide | DP85: 113
A86: Income Eligible Program | B86: ASHP SEER2 16 - replace electric furnace / CAC - Early Replacement: MF | C86: 775 | D86: Multi-Family | E86: HVAC | G86: per ton | H86: =(((CW86*DI86)+DA86)/DI86)-DE86 -> 1335.995131 | I86: IL TRM v11 vol3 / Program Tracking Data | J86: 91 | K86: =ROUND(((BM86*AS86*(1/(AF86*(1-BU86))-1/(AB86*BY86*(1-CC86))))/1000)+((BQ86*AS86*(1/(BA86*DM86*(1-CG86))-1/(AW86*DM86*CK86*(1-CO86))))/1000),4) -> 3815.4671 | L86: Calculated Value | N86: =K86/U86 -> 5.170009621 | O86: 0.72 | P86: IL TRM v11 vol3 | Q86: 92 | R86: =ROUND((AS86*(1/(BI86*(1-BU86))-1/(BE86*(1-CC86))))/1000*O86,4) -> 0.5105 | S86: Calculated Value | U86: 738 | V86: EFLHcool, from 2017 MO TRM | W86: 85 | X86: 6 | Y86: IL TRM v11 vol3 | Z86: 90 | AA86: SEER2ee | AB86: 16 | AC86: Nameplate rating | AE86: SEER2exist | AF86: =9.7*0.955 -> 9.2635 | AG86: IL TRM v11 vol3 | AH86: 94 | AI86: =ROUND(((BM86*AS86*(1/(AF86*(1-BU86))-1/(AB86*BY86*(1-CC86))))/1000)+((BQ86*AS86*(1/(BA86*DM86*(1-CG86))-1/(AW86*DM86*CK86*(1-CO86))))/1000),4) | AJ86: =ROUND((AS86*(1/(BI86*(1-BU86))-1/(BE86*(1-CC86))))/1000*O86,4) | AK86: IL TRM v11 vol3 | AL86: 92, 102 | AM86: 2024-01-01 | AN86: 2024-12-31 | AS86: 12000 | AT86: Allows for Capacity input in Tons; converts tons to BTUs | AW86: 9.13 | AX86: HSPF2ee | AY86: Average efficient HSPF value from all SEER 16 ASHP units in the 2022 HCHC program tracking data | BA86: 3.41 | BB86: HSPF2exist | BC86: IL TRM v11 vol3 | BD86: 96 | BE86: 12.5 | BF86: EER2ee | BG86: IL TRM v11 vol3 | BH86: 103 | BI86: =7.83*0.959 -> 7.50897 | BJ86: EER2exist | BK86: IL TRM v11 vol3 | BL86: 103 | BM86: 738 | BN86: EFLHcool | BO86: EFLHcool, from 2017 MO TRM | BP86: 85 | BQ86: 1376 | BR86: EFLHheat | BS86: The EFLH Cooling and Heating hours are based on a EnergyStar study that was normalized (based on HDD and CDD) to Kansas City. This was for both AC and HP units. | BU86: 0.1 | BV86: Derating_Cool_Base | BW86: IL TRM v11 vol3 | BX86: 97 | BY86: =0.805*(BE86/AB86)+0.367 -> 0.99590625 | BZ86: SEER2adj | CA86: IL TRM v11 vol3 | CB86: 95 | CC86: 0.1 | CD86: Derating_Cool_Eff | CE86: IL TRM v11 vol3 | CF86: 95 | CG86: 0.1 | CH86: Derating_Heat_Base | CI86: IL TRM v11 vol3 | CJ86: 97 | CK86: 1 | CL86: HSPFadj | CM86: IL TRM v11 vol3 | CN86: 97 | CO86: 0.1 | CP86: Derating_Heat_Eff | CQ86: IL TRM v11 vol3 | CR86: 97 | CS86: 0.03 | CT86: Societal Discount Rate | CU86: Evergy Standard | CW86: 600 | CX86: First Cost $/ton | CY86: IL TRM v11 vol3 | CZ86: 91 | DA86: 7000 | DB86: One-time per-system labor cost | DC86: IL TRM v11 vol3 | DD86: 91 | DE86: =-PV(CS86, 6, 0, (1092))+-PV(CS86, 7, 0, (2296))/DI86 -> 1514.808728 | DF86: Deferred cost savings | DG86: IL TRM v11 vol3 | DH86: 91 | DI86: 3.11 | DJ86: Equipment size (tons) | DK86: Average equipment size (in tons) from the SEER 16 ASHP units in the 2022 HCHC program tracking data | DM86: 1 | DN86: HSPF_ClimateAdj | DO86: IL TRM v11 vol3 | DP86: 97
A87: Income Eligible Program | B87: ASHP SEER2 16 - replace electric furnace / CAC - Early Replacement: MF | C87: 775.1 | D87: Multi-Family | E87: HVAC | G87: per ton | H87: =(((CW87*DI87)+DA87)/DI87)-DE87 -> 1427.956545 | I87: IL TRM v12 vol3 | J87: 105 | K87: =ROUND(((((BM87*AS87)/BY87*(1/(AF87*(1-CC87))))-(BM87*AS87*1/(AB87*(1-BU87))))/1000)+(((BQ87*AS87*CK87)/BY87*(1/(BA87*DM87*(1-CG87))))-((BQ87*AS87*CK87)*1/(AW87*DM87*(1-CO87))))/1000,4) -> 4668.0173 | L87: Calculated Value | N87: =ROUND(K87/U87,4) -> 6.3252 | O87: 0.72 | P87: IL TRM v12 vol3 | Q87: 107 | R87: =ROUND((((AS87)/BY87*(1/(BI87*(1-CC87))))-(AS87*1/(BE87*(1-BU87))))/1000*O87,4) -> 0.5231 | S87: Calculated Value | U87: 738 | V87: EFLHcool, from 2017 MO TRM Vol. 3 | W87: 122 | X87: 6 | Y87: IL TRM v12 vol3 | Z87: 105 | AA87: SEER2ee | AB87: 16 | AC87: Nameplate rating | AE87: SEER2exist | AF87: 9.2 | AG87: IL TRM v12 vol3 | AH87: 110 | AI87: =ROUND(((((BM87*AS87)/BY87*(1/(AF87*(1-CC87))))-(BM87*AS87*1/(AB87*(1-BU87))))/1000)+(((BQ87*AS87*CK87)/BY87*(1/(BA87*DM87*(1-CG87))))-((BQ87*AS87*CK87)*1/(AW87*DM87*(1-CO87))))/1000,4) | AJ87: =ROUND((((AS87)/BY87*(1/(BI87*(1-CC87))))-(AS87*1/(BE87*(1-BU87))))/1000*O87,4) | AK87: IL TRM v12 vol3 | AL87: 107, 118 | AM87: 2025-01-01 | AS87: 12000 | AT87: Allows for Capacity input in Tons; converts tons to BTUs | AW87: 9.13 | AX87: HSPF2ee | AY87: Average efficient HSPF value from all SEER 16 ASHP units in the 2022 HCHC program tracking data | BA87: 3.41 | BB87: HSPF2exist | BC87: IL TRM v12 vol3 | BD87: 112 | BE87: 12.4 | BF87: EER2ee | BG87: IL TRM v12 vol3 | BH87: 119 | BI87: 7.4 | BJ87: EER2exist | BK87: IL TRM v12 vol3 | BL87: 119 | BM87: 738 | BN87: EFLHcool | BO87: EFLHcool, from 2017 MO TRM Vol. 3 | BP87: 85 | BQ87: 1376 | BR87: EFLHheat | BS87: The EFLH Cooling and Heating hours are based on a EnergyStar study that was normalized (based on HDD and CDD) to Kansas City. This was for both AC and HP units. | BU87: 0.1 | BV87: DeratingCoolEff | BW87: IL TRM v12 vol3 | BX87: 112 | BY87: 1 | BZ87: DuctlessSave | CA87: IL TRM v12 vol3 | CB87: 109 | CC87: 0.1 | CD87: Derating_Cool_Base | CE87: IL TRM v12 vol3 | CF87: 110 | CG87: 0.1 | CH87: Derating_Heat_Base | CI87: IL TRM v12 vol3 | CJ87: 112 | CK87: 1 | CL87: HeatLoadFactor | CM87: IL TRM v12 vol3 | CN87: 110 | CO87: 0.1 | CP87: Derating_Heat_Eff | CQ87: IL TRM v12 vol3 | CR87: 112 | CS87: 0.03 | CT87: Societal Discount Rate | CU87: Evergy Standard | CW87: 600 | CX87: First Cost $/ton | CY87: IL TRM v12 vol3 | CZ87: 105 | DA87: 7286 | DB87: One-time per-system labor cost | DC87: IL TRM v12 vol3 | DD87: 105 | DE87: =-PV(CS87, 6, 0, (1092))+-PV(CS87, 7, 0, (2296))/DI87 -> 1514.808728 | DF87: Deferred cost savings | DG87: IL TRM v12 vol3 | DH87: 105 | DI87: 3.11 | DJ87: Equipment size (tons) | DK87: Average equipment size (in tons) from the SEER 16 ASHP units in the 2022 HCHC program tracking data | DM87: 0.8 | DN87: HSPF_ClimateAdj | DO87: IL TRM v12 vol3 - Statewide | DP87: 113
A88: Income Eligible Program | B88: ASHP SEER2 16 - replace electric furnace / CAC - Early Replacement: MF (future) | C88: 776 | D88: Multi-Family | E88: HVAC | G88: per ton | H88: 0 | I88: IL TRM v11 vol3 | J88: 91 | K88: =ROUND(((BM88*AS88*(1/(AF88*(1-BU88))-1/(AB88*BY88*(1-CC88))))/1000)+((BQ88*AS88*(1/(BA88*DM88*(1-CG88))-1/(AW88*DM88*CK88*(1-CO88))))/1000),4) -> 3441.3455 | L88: Calculated Value | N88: =K88/U88 -> 4.663069783 | O88: 0.72 | P88: IL TRM v11 vol3 | Q88: 92 | R88: =ROUND((AS88*(1/(BI88*(1-BU88))-1/(BE88*(1-CC88))))/1000*O88,4) -> 0.142 | S88: Calculated Value | U88: 738 | V88: EFLHcool, from 2017 MO TRM | W88: 85 | X88: 10 | Y88: IL TRM v11 vol3 | Z88: 90 | AA88: SEER2ee | AB88: 16 | AC88: Nameplate rating | AE88: SEER2base | AF88: 14.3 | AG88: Federal minimum efficiency standard - Northern region of U.S. | AI88: =ROUND(((BM88*AS88*(1/(AF88*(1-BU88))-1/(AB88*BY88*(1-CC88))))/1000)+((BQ88*AS88*(1/(BA88*DM88*(1-CG88))-1/(AW88*DM88*CK88*(1-CO88))))/1000),4) | AJ88: =ROUND((AS88*(1/(BI88*(1-BU88))-1/(BE88*(1-CC88))))/1000*O88,4) | AK88: IL TRM v11 vol3 | AL88: 92, 102 | AM88: 2024-01-01 | AN88: 2024-12-31 | AS88: 12000 | AT88: Allows for Capacity input in Tons; converts tons to BTUs | AW88: 9.13 | AX88: HSPF2ee | AY88: Average efficient HSPF value from all SEER 16 ASHP units in the 2022 HCHC program tracking data | BA88: 3.41 | BB88: HSPF2base | BC88: IL TRM v11 vol3 | BD88: 96 | BE88: 12.5 | BF88: EER2ee | BG88: IL TRM v11 vol3 | BH88: 103 | BI88: =11*0.959 -> 10.549 | BJ88: EER2base | BK88: IL TRM v11 vol3 | BL88: 103 | BM88: 738 | BN88: EFLHcool | BO88: EFLHcool, from 2017 MO TRM | BP88: 85 | BQ88: 1376 | BR88: EFLHheat | BS88: The EFLH Cooling and Heating hours are based on a EnergyStar study that was normalized (based on HDD and CDD) to Kansas City. This was for both AC and HP units. | BU88: 0.1 | BV88: Derating_Cool_Base | BW88: IL TRM v11 vol3 | BX88: 97 | BY88: =0.805*(BE88/AB88)+0.367 -> 0.99590625 | BZ88: SEER2adj | CA88: IL TRM v11 vol3 | CB88: 95 | CC88: 0.1 | CD88: Derating_Cool_Eff | CE88: IL TRM v11 vol3 | CF88: 95 | CG88: 0.1 | CH88: Derating_Heat_Base | CI88: IL TRM v11 vol3 | CJ88: 97 | CK88: 1 | CL88: HSPFadj | CM88: IL TRM v11 vol3 | CN88: 97 | CO88: 0.1 | CP88: Derating_Heat_Eff | CQ88: IL TRM v11 vol3 | CR88: 97 | CS88: 0.03 | CT88: Societal Discount Rate | CU88: Evergy Standard | CW88: 600 | CX88: First Cost $/ton | CY88: IL TRM v11 vol3 | CZ88: 91 | DA88: 7000 | DB88: One-time per-system labor cost | DC88: IL TRM v11 vol3 | DD88: 91 | DE88: =-PV(CS88, 6, 0, (1092))+-PV(CS88, 7, 0, (2296))/DI88 -> 1514.808728 | DF88: Deferred cost savings | DG88: IL TRM v11 vol3 | DH88: 91 | DI88: 3.11 | DJ88: Equipment size (tons) | DK88: Average equipment size (in tons) from the SEER 16 ASHP units in the 2022 HCHC program tracking data | DM88: 1 | DN88: HSPF_ClimateAdj | DO88: IL TRM v11 vol3 | DP88: 97
A89: Income Eligible Program | B89: ASHP SEER2 16 - replace electric furnace / CAC - Early Replacement: MF (future) | C89: 776.1 | D89: Multi-Family | E89: HVAC | G89: per ton | H89: 0 | I89: IL TRM v12 vol3 | J89: 105 | K89: =ROUND(((((BM89*AS89)/BY89*(1/(AF89*(1-CC89))))-(BM89*AS89*1/(AB89*(1-BU89))))/1000)+(((BQ89*AS89*CK89)/BY89*(1/(BA89*DM89*(1-CG89))))-((BQ89*AS89*CK89)*1/(AW89*DM89*(1-CO89))))/1000,4) -> 4286.5639 | L89: Calculated Value | N89: =ROUND(K89/U89,4) -> 5.8084 | O89: 0.72 | P89: IL TRM v12 vol3 | Q89: 107 | R89: =ROUND((((AS89)/BY89*(1/(BI89*(1-CC89))))-(AS89*1/(BE89*(1-BU89))))/1000*O89,4) -> 0.1315 | S89: Calculated Value | U89: 738 | V89: EFLHcool, from 2017 MO TRM Vol. 3 | W89: 122 | X89: 10 | Y89: IL TRM v12 vol3 | Z89: 105 | AA89: SEER2ee | AB89: 16 | AC89: Nameplate rating | AE89: SEER2base | AF89: 14.3 | AG89: IL TRM v12 vol3, Federal minimum efficiency standard - Northern region of U.S. | AH89: 110 | AI89: =ROUND(((((BM89*AS89)/BY89*(1/(AF89*(1-CC89))))-(BM89*AS89*1/(AB89*(1-BU89))))/1000)+(((BQ89*AS89*CK89)/BY89*(1/(BA89*DM89*(1-CG89))))-((BQ89*AS89*CK89)*1/(AW89*DM89*(1-CO89))))/1000,4) | AJ89: =ROUND((((AS89)/BY89*(1/(BI89*(1-CC89))))-(AS89*1/(BE89*(1-BU89))))/1000*O89,4) | AK89: IL TRM v12 vol3 | AL89: 107, 118 | AM89: 2025-01-01 | AS89: 12000 | AT89: Allows for Capacity input in Tons; converts tons to BTUs | AW89: 9.13 | AX89: HSPF2ee | AY89: Average efficient HSPF value from all SEER 16 ASHP units in the 2022 HCHC program tracking data | BA89: 3.41 | BB89: HSPF2base | BC89: IL TRM v12 vol3 | BD89: 112 | BE89: 12.4 | BF89: EER2ee | BG89: IL TRM v12 vol3 | BH89: 119 | BI89: 10.6 | BJ89: EER2base | BK89: IL TRM v12 vol3 | BL89: 119 | BM89: 738 | BN89: EFLHcool | BO89: EFLHcool, from 2017 MO TRM Vol. 3 | BP89: 85 | BQ89: 1376 | BR89: EFLHheat | BS89: The EFLH Cooling and Heating hours are based on a EnergyStar study that was normalized (based on HDD and CDD) to Kansas City. This was for both AC and HP units. | BU89: 0.1 | BV89: DeratingCoolEff | BW89: IL TRM v12 vol3 | BX89: 112 | BY89: 1 | BZ89: DuctlessSave | CA89: IL TRM v12 vol3 | CB89: 109 | CC89: 0.1 | CD89: Derating_Cool_Base | CE89: IL TRM v12 vol3 | CF89: 110 | CG89: 0.1 | CH89: Derating_Heat_Base | CI89: IL TRM v12 vol3 | CJ89: 112 | CK89: 1 | CL89: HeatLoadFactor | CM89: IL TRM v12 vol3 | CN89: 110 | CO89: 0.1 | CP89: Derating_Heat_Eff | CQ89: IL TRM v12 vol3 | CR89: 112 | CS89: 0.03 | CT89: Societal Discount Rate | CU89: Evergy Standard | CW89: 600 | CX89: First Cost $/ton | CY89: IL TRM v12 vol3 | CZ89: 105 | DA89: 7286 | DB89: One-time per-system labor cost | DC89: IL TRM v12 vol3 | DD89: 105 | DE89: =-PV(CS89, 6, 0, (1092))+-PV(CS89, 7, 0, (2296))/DI89 -> 1514.808728 | DF89: Deferred cost savings | DG89: IL TRM v12 vol3 | DH89: 105 | DI89: 3.11 | DJ89: Equipment size (tons) | DK89: Average equipment size (in tons) from the SEER 16 ASHP units in the 2022 HCHC program tracking data | DM89: 0.8 | DN89: HSPF_ClimateAdj | DO89: IL TRM v12 vol3 - Statewide | DP89: 113
A90: Income Eligible Program | B90: ASHP SEER2 16 - replace electric furnace / CAC - ROF: MF | C90: 774 | D90: Multi-Family | E90: HVAC | G90: per ton | H90: =(((CW90*DI90)+DA90)/DI90)-DE90 -> 1252.180064 | I90: IL TRM v11 vol3 / Program Tracking Data | J90: 91 | K90: =ROUND(((BM90*AS90*(1/(AF90*(1-BU90))-1/(AB90*BY90*(1-CC90))))/1000)+((BQ90*AS90*(1/(BA90*DM90*(1-CG90))-1/(AW90*DM90*CK90*(1-CO90))))/1000),4) -> 3441.3455 | L90: Calculated Value | N90: =K90/U90 -> 4.663069783 | O90: 0.72 | P90: IL TRM v11 vol3 | Q90: 92 | R90: =ROUND((AS90*(1/(BI90*(1-BU90))-1/(BE90*(1-CC90))))/1000*O90,4) -> 0.142 | S90: Calculated Value | U90: 738 | V90: EFLHcool, from 2017 MO TRM Vol. 3 | W90: 85 | X90: 16 | Y90: IL TRM v11 vol3 | Z90: 90 | AA90: SEER2ee | AB90: 16 | AC90: Nameplate rating | AE90: SEER2base | AF90: 14.3 | AG90: Federal minimum efficiency standard - Northern region of U.S. | AI90: =ROUND(((BM90*AS90*(1/(AF90*(1-BU90))-1/(AB90*BY90*(1-CC90))))/1000)+((BQ90*AS90*(1/(BA90*DM90*(1-CG90))-1/(AW90*DM90*CK90*(1-CO90))))/1000),4) | AJ90: =ROUND((AS90*(1/(BI90*(1-BU90))-1/(BE90*(1-CC90))))/1000*O90,4) | AK90: IL TRM v11 vol3 | AL90: 92, 102 | AM90: 2024-01-01 | AN90: 2024-12-31 | AS90: 12000 | AT90: Allows for Capacity input in Tons; converts tons to BTUs | AW90: 9.13 | AX90: HSPF2ee | AY90: Average efficient HSPF value from all SEER 16 ASHP units in the 2022 HCHC program tracking data | BA90: 3.41 | BB90: HSPF2base | BC90: IL TRM v11 vol3 | BD90: 96 | BE90: 12.5 | BF90: EER2ee | BG90: IL TRM v11 vol3 | BH90: 103 | BI90: =11*0.959 -> 10.549 | BJ90: EER2base | BK90: IL TRM v11 vol3 | BL90: 103 | BM90: 738 | BN90: EFLHcool | BO90: EFLHcool, from 2017 MO TRM Vol. 3 | BP90: 85 | BQ90: 1376 | BR90: EFLHheat | BS90: The EFLH Cooling and Heating hours are based on a EnergyStar study that was normalized (based on HDD and CDD) to Kansas City. This was for both AC and HP units. | BU90: 0.1 | BV90: Derating_Cool_Base | BW90: IL TRM v11 vol3 | BX90: 97 | BY90: =0.805*(BE90/AB90)+0.367 -> 0.99590625 | BZ90: SEER2adj | CA90: IL TRM v11 vol3 | CB90: 95 | CC90: 0.1 | CD90: Derating_Cool_Eff | CE90: IL TRM v11 vol3 | CF90: 95 | CG90: 0.1 | CH90: Derating_Heat_Base | CI90: IL TRM v11 vol3 | CJ90: 97 | CK90: 1 | CL90: HSPFadj | CM90: IL TRM v11 vol3 | CN90: 97 | CO90: 0.1 | CP90: Derating_Heat_Eff | CQ90: IL TRM v11 vol3 | CR90: 97 | CS90: 2011 | CT90: assumed installation cost for 80% AFUE furnace | CU90: IL TRM v11 vol3 | CV90: 91 | CW90: 600 | CX90: First Cost $/ton | CY90: IL TRM v11 vol3 | CZ90: 91 | DA90: 7000 | DB90: One-time per-system labor cost | DC90: IL TRM v11 vol3 | DD90: 91 | DE90: =(CS90/DI90)+952 -> 1598.623794 | DF90: Baseline install cost | DG90: IL TRM v11 vol3 | DH90: 91 | DI90: 3.11 | DJ90: Equipment size (tons) | DK90: Average equipment size (in tons) from the SEER 16 ASHP units in the 2022 HCHC program tracking data | DM90: 1 | DN90: HSPF_ClimateAdj | DO90: IL TRM v11 vol3 | DP90: 97
A91: Income Eligible Program | B91: ASHP SEER2 16 - replace electric furnace / CAC - ROF: MF | C91: 774.1 | D91: Multi-Family | E91: HVAC | G91: per ton | H91: =(((CW91*DI91)+DA91)/DI91)-DE91 -> 1344.141479 | I91: IL TRM v12 vol3 | J91: 105 | K91: =ROUND(((((BM91*AS91)/BY91*(1/(AF91*(1-CC91))))-(BM91*AS91*1/(AB91*(1-BU91))))/1000)+(((BQ91*AS91*CK91)/BY91*(1/(BA91*DM91*(1-CG91))))-((BQ91*AS91*CK91)*1/(AW91*DM91*(1-CO91))))/1000,4) -> 4286.5639 | L91: Calculated Value | N91: =ROUND(K91/U91,4) -> 5.8084 | O91: 0.72 | P91: IL TRM v12 vol3 | Q91: 107 | R91: =ROUND((((AS91)/BY91*(1/(BI91*(1-CC91))))-(AS91*1/(BE91*(1-BU91))))/1000*O91,4) -> 0.1315 | S91: Calculated Value | U91: 738 | V91: EFLHcool, from 2017 MO TRM Vol. 3 | W91: 122 | X91: 16 | Y91: IL TRM v12 vol3 | Z91: 105 | AA91: SEER2ee | AB91: 16 | AC91: Nameplate rating | AE91: SEER2base | AF91: 14.3 | AG91: IL TRM v12 vol3, Federal minimum efficiency standard - Northern region of U.S. | AH91: 110 | AI91: =ROUND(((((BM91*AS91)/BY91*(1/(AF91*(1-CC91))))-(BM91*AS91*1/(AB91*(1-BU91))))/1000)+(((BQ91*AS91*CK91)/BY91*(1/(BA91*DM91*(1-CG91))))-((BQ91*AS91*CK91)*1/(AW91*DM91*(1-CO91))))/1000,4) | AJ91: =ROUND((((AS91)/BY91*(1/(BI91*(1-CC91))))-(AS91*1/(BE91*(1-BU91))))/1000*O91,4) | AK91: IL TRM v12 vol3 | AL91: 107, 118 | AM91: 2025-01-01 | AS91: 12000 | AT91: Allows for Capacity input in Tons; converts tons to BTUs | AW91: 9.13 | AX91: HSPF2ee | AY91: Average efficient HSPF value from all SEER 16 ASHP units in the 2022 HCHC program tracking data | BA91: 3.41 | BB91: HSPF2base | BC91: IL TRM v12 vol3 | BD91: 112 | BE91: 12.4 | BF91: EER2ee | BG91: IL TRM v12 vol3 | BH91: 119 | BI91: 10.6 | BJ91: EER2base | BK91: IL TRM v12 vol3 | BL91: 119 | BM91: 738 | BN91: EFLHcool | BO91: EFLHcool, from 2017 MO TRM Vol. 3 | BP91: 85 | BQ91: 1376 | BR91: EFLHheat | BS91: The EFLH Cooling and Heating hours are based on a EnergyStar study that was normalized (based on HDD and CDD) to Kansas City. This was for both AC and HP units. | BU91: 0.1 | BV91: DeratingCoolEff | BW91: IL TRM v12 vol3 | BX91: 112 | BY91: 1 | BZ91: DuctlessSave | CA91: IL TRM v12 vol3 | CB91: 109 | CC91: 0.1 | CD91: Derating_Cool_Base | CE91: IL TRM v12 vol3 | CF91: 110 | CG91: 0.1 | CH91: Derating_Heat_Base | CI91: IL TRM v12 vol3 | CJ91: 112 | CK91: 1 | CL91: HeatLoadFactor | CM91: IL TRM v12 vol3 | CN91: 110 | CO91: 0.1 | CP91: Derating_Heat_Eff | CQ91: IL TRM v12 vol3 | CR91: 112 | CS91: 2011 | CT91: Assumed installation cost for 80% AFUE furnace | CU91: IL TRM v12 vol3 | CW91: 600 | CX91: First Cost $/ton | CY91: IL TRM v12 vol3 | CZ91: 105 | DA91: 7286 | DB91: One-time per-system labor cost | DC91: IL TRM v12 vol3 | DD91: 105 | DE91: =(CS91/DI91)+952 -> 1598.623794 | DF91: Baseline install cost | DG91: IL TRM v12 vol3 | DH91: 105 | DI91: 3.11 | DJ91: Equipment size (tons) | DK91: Average equipment size (in tons) from the SEER 16 ASHP units in the 2022 HCHC program tracking data | DM91: 0.8 | DN91: HSPF_ClimateAdj | DO91: IL TRM v12 vol3 - Statewide | DP91: 113
A92: Income Eligible Program | B92: ASHP SEER2 17 - replace ASHP - Early Replacement: MF | C92: 784 | D92: Multi-Family | E92: HVAC | G92: per ton | H92: =(((CW92*DI92)+DA92)/DI92)-DE92 -> 311.8624443 | I92: IL TRM v11 vol3 / Program Tracking Data | J92: 91 | K92: =ROUND(((BM92*AS92*(1/(AF92*(1-BU92))-1/(AB92*BY92*(1-CC92))))/1000)+((BQ92*AS92*(1/(BA92*DM92*(1-CG92))-1/(AW92*DM92*CK92*(1-CO92))))/1000),4) -> 2317.757 | L92: Calculated Value | N92: =K92/U92 -> 3.140592141 | O92: 0.72 | P92: IL TRM v11 vol3 | Q92: 92 | R92: =ROUND((AS92*(1/(BI92*(1-BU92))-1/(BE92*(1-CC92))))/1000*O92,4) -> 0.5105 | S92: Calculated Value | U92: 738 | V92: EFLHcool, from 2017 MO TRM Vol. 3 | W92: 85 | X92: 6 | Y92: IL TRM v11 vol3 | Z92: 90 | AA92: SEER2ee | AB92: 17 | AC92: Nameplate rating | AE92: SEER2exist | AF92: =9.7*0.955 -> 9.2635 | AG92: IL TRM v11 vol3 | AH92: 94 | AI92: =ROUND(((BM92*AS92*(1/(AF92*(1-BU92))-1/(AB92*BY92*(1-CC92))))/1000)+((BQ92*AS92*(1/(BA92*DM92*(1-CG92))-1/(AW92*DM92*CK92*(1-CO92))))/1000),4) | AJ92: =ROUND((AS92*(1/(BI92*(1-BU92))-1/(BE92*(1-CC92))))/1000*O92,4) | AK92: IL TRM v11 vol3 | AL92: 92, 102 | AM92: 2024-01-01 | AN92: 2024-12-31 | AS92: 12000 | AT92: Allows for Capacity input in Tons; converts tons to BTUs | AW92: 9.83 | AX92: HSPF2ee | AY92: Average efficient HSPF value from all SEER 17 ASHP units in the 2022 HCHC program tracking data | BA92: =5.78*0.852 -> 4.92456 | BB92: HSPF2exist | BC92: IL TRM v11 vol3 | BD92: 96 | BE92: 12.5 | BF92: EER2ee | BG92: IL TRM v11 vol3 | BH92: 103 | BI92: =7.83*0.959 -> 7.50897 | BJ92: EER2exist | BK92: IL TRM v11 vol3 | BL92: 103 | BM92: 738 | BN92: EFLHcool | BO92: EFLHcool, from 2017 MO TRM Vol. 3 | BP92: 85 | BQ92: 1376 | BR92: EFLHheat | BS92: The EFLH Cooling and Heating hours are based on a EnergyStar study that was normalized (based on HDD and CDD) to Kansas City. This was for both AC and HP units. | BU92: 0.1 | BV92: Derating_Cool_Base | BW92: IL TRM v11 vol3 | BX92: 97 | BY92: =0.805*(BE92/AB92)+0.367 -> 0.9589117647 | BZ92: SEER2adj | CA92: IL TRM v11 vol3 | CB92: 95 | CC92: 0.1 | CD92: Derating_Cool_Eff | CE92: IL TRM v11 vol3 | CF92: 95 | CG92: 0.1 | CH92: Derating_Heat_Base | CI92: IL TRM v11 vol3 | CJ92: 97 | CK92: 1 | CL92: HSPFadj | CM92: IL TRM v11 vol3 | CN92: 97 | CO92: 0.1 | CP92: Derating_Heat_Eff | CQ92: IL TRM v11 vol3 | CR92: 97 | CS92: 0.03 | CT92: Societal Discount Rate | CU92: Evergy Standard | CW92: 600 | CX92: First Cost $/ton | CY92: IL TRM v11 vol3 | CZ92: 91 | DA92: 7286 | DB92: One-time per-system labor cost | DC92: IL TRM v11 vol3 | DD92: 91 | DE92: =-PV(CS92,6,0,(7527 +(688*DI92)))/DI92 -> 2424.794447 | DF92: Deferred cost savings | DG92: IL TRM v11 vol3 | DH92: 91 | DI92: 3.41 | DJ92: Equipment size (tons) | DK92: Average equipment size (in tons) from the SEER 17 ASHP units in the 2022 HCHC program tracking data | DM92: 1 | DN92: HSPF_ClimateAdj | DO92: IL TRM v11 vol3 | DP92: 97
A93: Income Eligible Program | B93: ASHP SEER2 17 - replace ASHP - Early Replacement: MF | C93: 784.1 | D93: Multi-Family | E93: HVAC | G93: per ton | H93: =(((CW93*DI93)+DA93)/DI93)-DE93 -> 336.986218 | I93: IL TRM v12 vol3 | J93: 105 | K93: =ROUND(((((BM93*AS93)/BY93*(1/(AF93*(1-CC93))))-(BM93*AS93*1/(AB93*(1-BU93))))/1000)+(((BQ93*AS93*CK93)/BY93*(1/(BA93*DM93*(1-CG93))))-((BQ93*AS93*CK93)*1/(AW93*DM93*(1-CO93))))/1000,4) -> 2828.4874 | L93: Calculated Value | N93: =ROUND(K93/U93,4) -> 3.8326 | O93: 0.72 | P93: IL TRM v12 vol3 | Q93: 107 | R93: =ROUND((((AS93)/BY93*(1/(BI93*(1-CC93))))-(AS93*1/(BE93*(1-BU93))))/1000*O93,4) -> 0.5231 | S93: Calculated Value | U93: 738 | V93: EFLHcool, from 2017 MO TRM Vol. 3 | W93: 122 | X93: 6 | Y93: IL TRM v12 vol3 | Z93: 105 | AA93: SEER2ee | AB93: 17 | AC93: Nameplate rating | AE93: SEER2exist | AF93: 9.2 | AG93: IL TRM v12 vol3 | AH93: 110 | AI93: =ROUND(((((BM93*AS93)/BY93*(1/(AF93*(1-CC93))))-(BM93*AS93*1/(AB93*(1-BU93))))/1000)+(((BQ93*AS93*CK93)/BY93*(1/(BA93*DM93*(1-CG93))))-((BQ93*AS93*CK93)*1/(AW93*DM93*(1-CO93))))/1000,4) | AJ93: =ROUND((((AS93)/BY93*(1/(BI93*(1-CC93))))-(AS93*1/(BE93*(1-BU93))))/1000*O93,4) | AK93: IL TRM v12 vol3 | AL93: 107, 118 | AM93: 2025-01-01 | AS93: 12000 | AT93: Allows for Capacity input in Tons; converts tons to BTUs | AW93: 9.83 | AX93: HSPF2ee | AY93: Average efficient HSPF value from all SEER 17 ASHP units in the 2022 HCHC program tracking data | BA93: 4.91 | BB93: HSPF2exist | BC93: IL TRM v12 vol3 | BD93: 112 | BE93: 12.4 | BF93: EER2ee | BG93: IL TRM v12 vol3 | BH93: 119 | BI93: 7.4 | BJ93: EER2exist | BK93: IL TRM v12 vol3 | BL93: 119 | BM93: 738 | BN93: EFLHcool | BO93: EFLHcool, from 2017 MO TRM Vol. 3 | BP93: 85 | BQ93: 1376 | BR93: EFLHheat | BS93: The EFLH Cooling and Heating hours are based on a EnergyStar study that was normalized (based on HDD and CDD) to Kansas City. This was for both AC and HP units. | BU93: 0.1 | BV93: DeratingCoolEff | BW93: IL TRM v12 vol3 | BX93: 112 | BY93: 1 | BZ93: DuctlessSave | CA93: IL TRM v12 vol3 | CB93: 109 | CC93: 0.1 | CD93: Derating_Cool_Base | CE93: IL TRM v12 vol3 | CF93: 110 | CG93: 0.1 | CH93: Derating_Heat_Base | CI93: IL TRM v12 vol3 | CJ93: 112 | CK93: 1 | CL93: HeatLoadFactor | CM93: IL TRM v12 vol3 | CN93: 110 | CO93: 0.1 | CP93: Derating_Heat_Eff | CQ93: IL TRM v12 vol3 | CR93: 112 | CS93: 0.03 | CT93: Societal Discount Rate | CU93: Evergy Standard | CW93: 600 | CX93: First Cost $/ton | CY93: IL TRM v12 vol3 | CZ93: 105 | DA93: 7495 | DB93: One-time per-system labor cost | DC93: IL TRM v12 vol3 | DD93: 105 | DE93: =-PV(CS93,6,0,(7722 +(674*DI93)))/DI93 -> 2460.960996 | DF93: Deferred cost savings | DG93: IL TRM v12 vol3 | DH93: 105 | DI93: 3.41 | DJ93: Equipment size (tons) | DK93: Average equipment size (in tons) from the SEER 17 ASHP units in the 2022 HCHC program tracking data | DM93: 0.8 | DN93: HSPF_ClimateAdj | DO93: IL TRM v12 vol3 - Statewide | DP93: 113
A94: Income Eligible Program | B94: ASHP SEER2 17 - replace ASHP - Early Replacement: MF (future) | C94: 785 | D94: Multi-Family | E94: HVAC | G94: per ton | H94: 0 | I94: IL TRM v11 vol3 | J94: 91 | K94: =ROUND(((BM94*AS94*(1/(AF94*(1-BU94))-1/(AB94*BY94*(1-CC94))))/1000)+((BQ94*AS94*(1/(BA94*DM94*(1-CG94))-1/(AW94*DM94*CK94*(1-CO94))))/1000),4) -> 664.3133 | L94: Calculated Value | N94: =K94/U94 -> 0.900153523 | O94: 0.72 | P94: IL TRM v11 vol3 | Q94: 92 | R94: =ROUND((AS94*(1/(BI94*(1-BU94))-1/(BE94*(1-CC94))))/1000*O94,4) -> 0.142 | S94: Calculated Value | U94: 738 | V94: EFLHcool, from 2017 MO TRM Vol. 3 | W94: 85 | X94: 10 | Y94: IL TRM v11 vol3 | Z94: 90 | AA94: SEER2ee | AB94: 17 | AC94: Nameplate rating | AE94: SEER2base | AF94: 14.3 | AG94: Federal minimum efficiency standard - Northern region of U.S. | AI94: =ROUND(((BM94*AS94*(1/(AF94*(1-BU94))-1/(AB94*BY94*(1-CC94))))/1000)+((BQ94*AS94*(1/(BA94*DM94*(1-CG94))-1/(AW94*DM94*CK94*(1-CO94))))/1000),4) | AJ94: =ROUND((AS94*(1/(BI94*(1-BU94))-1/(BE94*(1-CC94))))/1000*O94,4) | AK94: IL TRM v11 vol3 | AL94: 92, 102 | AM94: 2024-01-01 | AN94: 2024-12-31 | AS94: 12000 | AT94: Allows for Capacity input in Tons; converts tons to BTUs | AW94: 9.83 | AX94: HSPF2ee | AY94: Average efficient HSPF value from all SEER 17 ASHP units in the 2022 HCHC program tracking data | BA94: 7.5 | BB94: HSPF2base | BC94: 2023 Federal Minimum Baseline | BE94: 12.5 | BF94: EER2ee | BG94: IL TRM v11 vol3 | BH94: 103 | BI94: =11*0.959 -> 10.549 | BJ94: EER2base | BK94: IL TRM v11 vol3 | BL94: 103 | BM94: 738 | BN94: EFLHcool | BO94: EFLHcool, from 2017 MO TRM Vol. 3 | BP94: 85 | BQ94: 1376 | BR94: EFLHheat | BS94: The EFLH Cooling and Heating hours are based on a EnergyStar study that was normalized (based on HDD and CDD) to Kansas City. This was for both AC and HP units. | BU94: 0.1 | BV94: Derating_Cool_Base | BW94: IL TRM v11 vol3 | BX94: 97 | BY94: =0.805*(BE94/AB94)+0.367 -> 0.9589117647 | BZ94: SEER2adj | CA94: IL TRM v11 vol3 | CB94: 95 | CC94: 0.1 | CD94: Derating_Cool_Eff | CE94: IL TRM v11 vol3 | CF94: 95 | CG94: 0.1 | CH94: Derating_Heat_Base | CI94: IL TRM v11 vol3 | CJ94: 97 | CK94: 1 | CL94: HSPFadj | CM94: IL TRM v11 vol3 | CN94: 97 | CO94: 0.1 | CP94: Derating_Heat_Eff | CQ94: IL TRM v11 vol3 | CR94: 97 | CS94: 0.03 | CT94: Societal Discount Rate | CU94: Evergy Standard | CW94: 600 | CX94: First Cost $/ton | CY94: IL TRM v11 vol3 | CZ94: 91 | DA94: 7286 | DB94: One-time per-system labor cost | DC94: IL TRM v11 vol3 | DD94: 91 | DE94: =-PV(CS94,6,0,(7527 +(688*DI94)))/DI94 -> 2424.794447 | DF94: Deferred cost savings | DG94: IL TRM v11 vol3 | DH94: 91 | DI94: 3.41 | DJ94: Equipment size (tons) | DK94: Average equipment size (in tons) from the SEER 17 ASHP units in the 2022 HCHC program tracking data | DM94: 1 | DN94: HSPF_ClimateAdj | DO94: IL TRM v11 vol3 | DP94: 97
A95: Income Eligible Program | B95: ASHP SEER2 17 - replace ASHP - Early Replacement: MF (future) | C95: 785.1 | D95: Multi-Family | E95: HVAC | G95: per ton | H95: 0 | I95: IL TRM v12 vol3 | J95: 105 | K95: =ROUND(((((BM95*AS95)/BY95*(1/(AF95*(1-CC95))))-(BM95*AS95*1/(AB95*(1-BU95))))/1000)+(((BQ95*AS95*CK95)/BY95*(1/(BA95*DM95*(1-CG95))))-((BQ95*AS95*CK95)*1/(AW95*DM95*(1-CO95))))/1000,4) -> 834.0719 | L95: Calculated Value | N95: =ROUND(K95/U95,4) -> 1.1302 | O95: 0.72 | P95: IL TRM v12 vol3 | Q95: 107 | R95: =ROUND((((AS95)/BY95*(1/(BI95*(1-CC95))))-(AS95*1/(BE95*(1-BU95))))/1000*O95,4) -> 0.2471 | S95: Calculated Value | U95: 738 | V95: EFLHcool, from 2017 MO TRM Vol. 3 | W95: 122 | X95: 10 | Y95: IL TRM v12 vol3 | Z95: 105 | AA95: SEER2ee | AB95: 17 | AC95: Nameplate rating | AE95: SEER2base | AF95: 14.3 | AG95: IL TRM v12 vol3, Federal minimum efficiency standard - Northern region of U.S. | AH95: 110 | AI95: =ROUND(((((BM95*AS95)/BY95*(1/(AF95*(1-CC95))))-(BM95*AS95*1/(AB95*(1-BU95))))/1000)+(((BQ95*AS95*CK95)/BY95*(1/(BA95*DM95*(1-CG95))))-((BQ95*AS95*CK95)*1/(AW95*DM95*(1-CO95))))/1000,4) | AJ95: =ROUND((((AS95)/BY95*(1/(BI95*(1-CC95))))-(AS95*1/(BE95*(1-BU95))))/1000*O95,4) | AK95: IL TRM v12 vol3 | AL95: 107, 118 | AM95: 2025-01-01 | AS95: 12000 | AT95: Allows for Capacity input in Tons; converts tons to BTUs | AW95: 9.83 | AX95: HSPF2ee | AY95: Average efficient HSPF value from all SEER 17 ASHP units in the 2022 HCHC program tracking data | BA95: 7.5 | BB95: HSPF2base | BC95: IL TRM v12 vol3 - 2023 Federal Minimum Baseline | BD95: 112 | BE95: 12.4 | BF95: EER2ee | BG95: IL TRM v12 vol3 | BH95: 119 | BI95: 9.4 | BJ95: EER2base | BK95: IL TRM v12 vol3 | BL95: 119 | BM95: 738 | BN95: EFLHcool | BO95: EFLHcool, from 2017 MO TRM Vol. 3 | BP95: 85 | BQ95: 1376 | BR95: EFLHheat | BS95: The EFLH Cooling and Heating hours are based on a EnergyStar study that was normalized (based on HDD and CDD) to Kansas City. This was for both AC and HP units. | BU95: 0.1 | BV95: DeratingCoolEff | BW95: IL TRM v12 vol3 | BX95: 112 | BY95: 1 | BZ95: DuctlessSave | CA95: IL TRM v12 vol3 | CB95: 109 | CC95: 0.1 | CD95: Derating_Cool_Base | CE95: IL TRM v12 vol3 | CF95: 110 | CG95: 0.1 | CH95: Derating_Heat_Base | CI95: IL TRM v12 vol3 | CJ95: 112 | CK95: 1 | CL95: HeatLoadFactor | CM95: IL TRM v12 vol3 | CN95: 110 | CO95: 0.1 | CP95: Derating_Heat_Eff | CQ95: IL TRM v12 vol3 | CR95: 112 | CS95: 0.03 | CT95: Societal Discount Rate | CU95: Evergy Standard | CW95: 600 | CX95: First Cost $/ton | CY95: IL TRM v12 vol3 | CZ95: 105 | DA95: 7495 | DB95: One-time per-system labor cost | DC95: IL TRM v12 vol3 | DD95: 105 | DE95: =-PV(CS95,6,0,(7722 +(674*DI95)))/DI95 -> 2460.960996 | DF95: Deferred cost savings | DG95: IL TRM v12 vol3 | DH95: 105 | DI95: 3.41 | DJ95: Equipment size (tons) | DK95: Average equipment size (in tons) from the SEER 17 ASHP units in the 2022 HCHC program tracking data | DM95: 0.8 | DN95: HSPF_ClimateAdj | DO95: IL TRM v12 vol3 - Statewide | DP95: 113
A96: Income Eligible Program | B96: ASHP SEER2 17 - replace ASHP-ROF: MF | C96: 783 | D96: Multi-Family | E96: HVAC | G96: per ton | H96: =(((CW96*DI96)+DA96)/DI96)-DE96 -> 212.3167155 | I96: IL TRM v11 vol3 / Program Tracking Data | J96: 91 | K96: =ROUND(((BM96*AS96*(1/(AF96*(1-BU96))-1/(AB96*BY96*(1-CC96))))/1000)+((BQ96*AS96*(1/(BA96*DM96*(1-CG96))-1/(AW96*DM96*CK96*(1-CO96))))/1000),4) -> 664.3133 | L96: Calculated Value | N96: =K96/U96 -> 0.900153523 | O96: 0.72 | P96: IL TRM v11 vol3 | Q96: 92 | R96: =ROUND((AS96*(1/(BI96*(1-BU96))-1/(BE96*(1-CC96))))/1000*O96,4) -> 0.142 | S96: Calculated Value | U96: 738 | V96: EFLHcool, from 2017 MO TRM Vol. 3 | W96: 85 | X96: 16 | Y96: IL TRM v11 vol3 | Z96: 90 | AA96: SEER2ee | AB96: 17 | AC96: Nameplate rating | AE96: SEER2base | AF96: 14.3 | AG96: Federal minimum efficiency standard - Northern region of U.S. | AI96: =ROUND(((BM96*AS96*(1/(AF96*(1-BU96))-1/(AB96*BY96*(1-CC96))))/1000)+((BQ96*AS96*(1/(BA96*DM96*(1-CG96))-1/(AW96*DM96*CK96*(1-CO96))))/1000),4) | AJ96: =ROUND((AS96*(1/(BI96*(1-BU96))-1/(BE96*(1-CC96))))/1000*O96,4) | AK96: IL TRM v11 vol3 | AL96: 92, 102 | AM96: 2024-01-01 | AN96: 2024-12-31 | AS96: 12000 | AT96: Allows for Capacity input in Tons; converts tons to BTUs | AW96: 9.83 | AX96: HSPF2ee | AY96: Average efficient HSPF value from all SEER 17 ASHP units in the 2022 HCHC program tracking data | BA96: 7.5 | BB96: HSPF2base | BC96: 2023 Federal Minimum Baseline | BE96: 12.5 | BF96: EER2ee | BG96: IL TRM v11 vol3 | BH96: 103 | BI96: =11*0.959 -> 10.549 | BJ96: EER2base | BK96: IL TRM v11 vol3 | BL96: 103 | BM96: 738 | BN96: EFLHcool | BO96: EFLHcool, from 2017 MO TRM Vol. 3 | BP96: 85 | BQ96: 1376 | BR96: EFLHheat | BS96: The EFLH Cooling and Heating hours are based on a EnergyStar study that was normalized (based on HDD and CDD) to Kansas City. This was for both AC and HP units. | BU96: 0.1 | BV96: Derating_Cool_Base | BW96: IL TRM v11 vol3 | BX96: 97 | BY96: =0.805*(BE96/AB96)+0.367 -> 0.9589117647 | BZ96: SEER2adj | CA96: IL TRM v11 vol3 | CB96: 95 | CC96: 0.1 | CD96: Derating_Cool_Eff | CE96: IL TRM v11 vol3 | CF96: 95 | CG96: 0.1 | CH96: Derating_Heat_Base | CI96: IL TRM v11 vol3 | CJ96: 97 | CK96: 1 | CL96: HSPFadj | CM96: IL TRM v11 vol3 | CN96: 97 | CO96: 0.1 | CP96: Derating_Heat_Eff | CQ96: IL TRM v11 vol3 | CR96: 97 | CW96: 600 | CX96: First Cost $/ton | CY96: IL TRM v11 vol3 | CZ96: 91 | DA96: 7286 | DB96: One-time per-system labor cost | DC96: IL TRM v11 vol3 | DD96: 91 | DE96: =(CW96*DI96+6562)/DI96 -> 2524.340176 | DF96: Baseline install cost | DG96: IL TRM v11 vol3 | DH96: 91 | DI96: 3.41 | DJ96: Equipment size (tons) | DK96: Average equipment size (in tons) from the SEER 17 ASHP units in the 2022 HCHC program tracking data | DM96: 1 | DN96: HSPF_ClimateAdj | DO96: IL TRM v11 vol3 | DP96: 97
A97: Income Eligible Program | B97: ASHP SEER2 17 - replace ASHP-ROF: MF | C97: 783.1 | D97: Multi-Family | E97: HVAC | G97: per ton | H97: =(((CW97*DI97)+DA97)/DI97)-DE97 -> 184.7507331 | I97: IL TRM v12 vol3 | J97: 105 | K97: =ROUND(((((BM97*AS97)/BY97*(1/(AF97*(1-CC97))))-(BM97*AS97*1/(AB97*(1-BU97))))/1000)+(((BQ97*AS97*CK97)/BY97*(1/(BA97*DM97*(1-CG97))))-((BQ97*AS97*CK97)*1/(AW97*DM97*(1-CO97))))/1000,4) -> 834.0719 | L97: Calculated Value | N97: =ROUND(K97/U97,4) -> 1.1302 | O97: 0.72 | P97: IL TRM v12 vol3 | Q97: 107 | R97: =ROUND((((AS97)/BY97*(1/(BI97*(1-CC97))))-(AS97*1/(BE97*(1-BU97))))/1000*O97,4) -> 0.2471 | S97: Calculated Value | U97: 738 | V97: EFLHcool, from 2017 MO TRM Vol. 3 | W97: 122 | X97: 16 | Y97: IL TRM v12 vol3 | Z97: 105 | AA97: SEER2ee | AB97: 17 | AC97: Nameplate rating | AE97: SEER2base | AF97: 14.3 | AG97: IL TRM v12 vol3, Federal minimum efficiency standard - Northern region of U.S. | AH97: 110 | AI97: =ROUND(((((BM97*AS97)/BY97*(1/(AF97*(1-CC97))))-(BM97*AS97*1/(AB97*(1-BU97))))/1000)+(((BQ97*AS97*CK97)/BY97*(1/(BA97*DM97*(1-CG97))))-((BQ97*AS97*CK97)*1/(AW97*DM97*(1-CO97))))/1000,4) | AJ97: =ROUND((((AS97)/BY97*(1/(BI97*(1-CC97))))-(AS97*1/(BE97*(1-BU97))))/1000*O97,4) | AK97: IL TRM v12 vol3 | AL97: 107, 118 | AM97: 2025-01-01 | AS97: 12000 | AT97: Allows for Capacity input in Tons; converts tons to BTUs | AW97: 9.83 | AX97: HSPF2ee | AY97: Average efficient HSPF value from all SEER 17 ASHP units in the 2022 HCHC program tracking data | BA97: 7.5 | BB97: HSPF2base | BC97: IL TRM v12 vol3 - 2023 Federal Minimum Baseline | BD97: 112 | BE97: 12.4 | BF97: EER2ee | BG97: IL TRM v12 vol3 | BH97: 119 | BI97: 9.4 | BJ97: EER2base | BK97: IL TRM v12 vol3 | BL97: 119 | BM97: 738 | BN97: EFLHcool | BO97: EFLHcool, from 2017 MO TRM Vol. 3 | BP97: 85 | BQ97: 1376 | BR97: EFLHheat | BS97: The EFLH Cooling and Heating hours are based on a EnergyStar study that was normalized (based on HDD and CDD) to Kansas City. This was for both AC and HP units. | BU97: 0.1 | BV97: DeratingCoolEff | BW97: IL TRM v12 vol3 | BX97: 112 | BY97: 1 | BZ97: DuctlessSave | CA97: IL TRM v12 vol3 | CB97: 109 | CC97: 0.1 | CD97: Derating_Cool_Base | CE97: IL TRM v12 vol3 | CF97: 110 | CG97: 0.1 | CH97: Derating_Heat_Base | CI97: IL TRM v12 vol3 | CJ97: 112 | CK97: 1 | CL97: HeatLoadFactor | CM97: IL TRM v12 vol3 | CN97: 110 | CO97: 0.1 | CP97: Derating_Heat_Eff | CQ97: IL TRM v12 vol3 | CR97: 112 | CW97: 600 | CX97: First Cost $/ton | CY97: IL TRM v12 vol3 | CZ97: 105 | DA97: 7495 | DB97: One-time per-system labor cost | DC97: IL TRM v12 vol3 | DD97: 105 | DE97: =(CW97*DI97+6865)/DI97 -> 2613.196481 | DF97: Baseline install cost - ASHP | DG97: IL TRM v12 vol3 | DH97: 105 | DI97: 3.41 | DJ97: Equipment size (tons) | DK97: Average equipment size (in tons) from the SEER 17 ASHP units in the 2022 HCHC program tracking data | DM97: 0.8 | DN97: HSPF_ClimateAdj | DO97: IL TRM v12 vol3 - Statewide | DP97: 113
A98: Income Eligible Program | B98: ASHP SEER2 17 - replace electric furnace / CAC - Early Replacement: MF | C98: 781 | D98: Multi-Family | E98: HVAC | G98: per ton | H98: =(((CW98*DI98)+DA98)/DI98)-DE98 -> 1274.658362 | I98: IL TRM v11 vol3 / Program Tracking Data | J98: 91 | K98: =ROUND(((BM98*AS98*(1/(AF98*(1-BU98))-1/(AB98*BY98*(1-CC98))))/1000)+((BQ98*AS98*(1/(BA98*DM98*(1-CG98))-1/(AW98*DM98*CK98*(1-CO98))))/1000),4) -> 3972.4668 | L98: Calculated Value | N98: =K98/U98 -> 5.382746341 | O98: 0.72 | P98: IL TRM v11 vol3 | Q98: 92 | R98: =ROUND((AS98*(1/(BI98*(1-BU98))-1/(BE98*(1-CC98))))/1000*O98,4) -> 0.5105 | S98: Calculated Value | U98: 738 | V98: EFLHcool, from 2017 MO TRM | W98: 85 | X98: 6 | Y98: IL TRM v11 vol3 | Z98: 90 | AA98: SEER2ee | AB98: 17 | AC98: Nameplate rating | AE98: SEER2exist | AF98: =9.7*0.955 -> 9.2635 | AG98: IL TRM v11 vol3 | AH98: 94 | AI98: =ROUND(((BM98*AS98*(1/(AF98*(1-BU98))-1/(AB98*BY98*(1-CC98))))/1000)+((BQ98*AS98*(1/(BA98*DM98*(1-CG98))-1/(AW98*DM98*CK98*(1-CO98))))/1000),4) | AJ98: =ROUND((AS98*(1/(BI98*(1-BU98))-1/(BE98*(1-CC98))))/1000*O98,4) | AK98: IL TRM v11 vol3 | AL98: 92, 102 | AM98: 2024-01-01 | AN98: 2024-12-31 | AS98: 12000 | AT98: Allows for Capacity input in Tons; converts tons to BTUs | AW98: 9.83 | AX98: HSPF2ee | AY98: Average efficient HSPF value from all SEER 17 ASHP units in the 2022 HCHC program tracking data | BA98: 3.41 | BB98: HSPF2exist | BC98: IL TRM v11 vol3 | BD98: 96 | BE98: 12.5 | BF98: EER2ee | BG98: IL TRM v11 vol3 | BH98: 103 | BI98: =7.83*0.959 -> 7.50897 | BJ98: EER2exist | BK98: IL TRM v11 vol3 | BL98: 103 | BM98: 738 | BN98: EFLHcool | BO98: EFLHcool, from 2017 MO TRM | BP98: 85 | BQ98: 1376 | BR98: EFLHheat | BS98: The EFLH Cooling and Heating hours are based on a EnergyStar study that was normalized (based on HDD and CDD) to Kansas City. This was for both AC and HP units. | BU98: 0.1 | BV98: Derating_Cool_Base | BW98: IL TRM v11 vol3 | BX98: 97 | BY98: =0.805*(BE98/AB98)+0.367 -> 0.9589117647 | BZ98: SEER2adj | CA98: IL TRM v11 vol3 | CB98: 95 | CC98: 0.1 | CD98: Derating_Cool_Eff | CE98: IL TRM v11 vol3 | CF98: 95 | CG98: 0.1 | CH98: Derating_Heat_Base | CI98: IL TRM v11 vol3 | CJ98: 97 | CK98: 1 | CL98: HSPFadj | CM98: IL TRM v11 vol3 | CN98: 97 | CO98: 0.1 | CP98: Derating_Heat_Eff | CQ98: IL TRM v11 vol3 | CR98: 97 | CS98: 0.03 | CT98: Societal Discount Rate | CU98: Evergy Standard | CW98: 600 | CX98: First Cost $/ton | CY98: IL TRM v11 vol3 | CZ98: 91 | DA98: 7286 | DB98: One-time per-system labor cost | DC98: IL TRM v11 vol3 | DD98: 91 | DE98: =-PV(CS98, 6, 0, (1092))+-PV(CS98, 7, 0, (2296))/DI98 -> 1461.99853 | DF98: Deferred cost savings | DG98: IL TRM v11 vol3 | DH98: 91 | DI98: 3.41 | DJ98: Equipment size (tons) | DK98: Average equipment size (in tons) from the SEER 17 ASHP units in the 2022 HCHC program tracking data | DM98: 1 | DN98: HSPF_ClimateAdj | DO98: IL TRM v11 vol3 | DP98: 97
A99: Income Eligible Program | B99: ASHP SEER2 17 - replace electric furnace / CAC - Early Replacement: MF | C99: 781.1 | D99: Multi-Family | E99: HVAC | G99: per ton | H99: =(((CW99*DI99)+DA99)/DI99)-DE99 -> 1335.948684 | I99: IL TRM v12 vol3 | J99: 105 | K99: =ROUND(((((BM99*AS99)/BY99*(1/(AF99*(1-CC99))))-(BM99*AS99*1/(AB99*(1-BU99))))/1000)+(((BQ99*AS99*CK99)/BY99*(1/(BA99*DM99*(1-CG99))))-((BQ99*AS99*CK99)*1/(AW99*DM99*(1-CO99))))/1000,4) -> 4883.0651 | L99: Calculated Value | N99: =ROUND(K99/U99,4) -> 6.6166 | O99: 0.72 | P99: IL TRM v12 vol3 | Q99: 107 | R99: =ROUND((((AS99)/BY99*(1/(BI99*(1-CC99))))-(AS99*1/(BE99*(1-BU99))))/1000*O99,4) -> 0.5231 | S99: Calculated Value | U99: 738 | V99: EFLHcool, from 2017 MO TRM Vol. 3 | W99: 122 | X99: 6 | Y99: IL TRM v12 vol3 | Z99: 105 | AA99: SEER2ee | AB99: 17 | AC99: Nameplate rating | AE99: SEER2exist | AF99: 9.2 | AG99: IL TRM v12 vol3 | AH99: 110 | AI99: =ROUND(((((BM99*AS99)/BY99*(1/(AF99*(1-CC99))))-(BM99*AS99*1/(AB99*(1-BU99))))/1000)+(((BQ99*AS99*CK99)/BY99*(1/(BA99*DM99*(1-CG99))))-((BQ99*AS99*CK99)*1/(AW99*DM99*(1-CO99))))/1000,4) | AJ99: =ROUND((((AS99)/BY99*(1/(BI99*(1-CC99))))-(AS99*1/(BE99*(1-BU99))))/1000*O99,4) | AK99: IL TRM v12 vol3 | AL99: 107, 118 | AM99: 2025-01-01 | AS99: 12000 | AT99: Allows for Capacity input in Tons; converts tons to BTUs | AW99: 9.83 | AX99: HSPF2ee | AY99: Average efficient HSPF value from all SEER 17 ASHP units in the 2022 HCHC program tracking data | BA99: 3.41 | BB99: HSPF2exist | BC99: IL TRM v12 vol3 | BD99: 112 | BE99: 12.4 | BF99: EER2ee | BG99: IL TRM v12 vol3 | BH99: 119 | BI99: 7.4 | BJ99: EER2exist | BK99: IL TRM v12 vol3 | BL99: 119 | BM99: 738 | BN99: EFLHcool | BO99: EFLHcool, from 2017 MO TRM Vol. 3 | BP99: 85 | BQ99: 1376 | BR99: EFLHheat | BS99: The EFLH Cooling and Heating hours are based on a EnergyStar study that was normalized (based on HDD and CDD) to Kansas City. This was for both AC and HP units. | BU99: 0.1 | BV99: DeratingCoolEff | BW99: IL TRM v12 vol3 | BX99: 112 | BY99: 1 | BZ99: DuctlessSave | CA99: IL TRM v12 vol3 | CB99: 109 | CC99: 0.1 | CD99: Derating_Cool_Base | CE99: IL TRM v12 vol3 | CF99: 110 | CG99: 0.1 | CH99: Derating_Heat_Base | CI99: IL TRM v12 vol3 | CJ99: 112 | CK99: 1 | CL99: HeatLoadFactor | CM99: IL TRM v12 vol3 | CN99: 110 | CO99: 0.1 | CP99: Derating_Heat_Eff | CQ99: IL TRM v12 vol3 | CR99: 112 | CS99: 0.03 | CT99: Societal Discount Rate | CU99: Evergy Standard | CW99: 600 | CX99: First Cost $/ton | CY99: IL TRM v12 vol3 | CZ99: 105 | DA99: 7495 | DB99: One-time per-system labor cost | DC99: IL TRM v12 vol3 | DD99: 105 | DE99: =-PV(CS99, 6, 0, (1092))+-PV(CS99, 7, 0, (2296))/DI99 -> 1461.99853 | DF99: Deferred cost savings | DG99: IL TRM v12 vol3 | DH99: 105 | DI99: 3.41 | DJ99: Equipment size (tons) | DK99: Average equipment size (in tons) from the SEER 17 ASHP units in the 2022 HCHC program tracking data | DM99: 0.8 | DN99: HSPF_ClimateAdj | DO99: IL TRM v12 vol3 - Statewide | DP99: 113
A100: Income Eligible Program | B100: ASHP SEER2 17 - replace electric furnace / CAC - Early Replacement: MF (future) | C100: 782 | D100: Multi-Family | E100: HVAC | G100: per ton | H100: 0 | I100: IL TRM v11 vol3 | J100: 65 | K100: =ROUND(((BM100*AS100*(1/(AF100*(1-BU100))-1/(AB100*BY100*(1-CC100))))/1000)+((BQ100*AS100*(1/(BA100*DM100*(1-CG100))-1/(AW100*DM100*CK100*(1-CO100))))/1000),4) -> 3598.3452 | L100: Calculated Value | N100: =K100/U100 -> 4.875806504 | O100: 0.72 | P100: IL TRM v11 vol3 | Q100: 92 | R100: =ROUND((AS100*(1/(BI100*(1-BU100))-1/(BE100*(1-CC100))))/1000*O100,4) -> 0.142 | S100: Calculated Value | U100: 738 | V100: EFLHcool, from 2017 MO TRM | W100: 85 | X100: 10 | Y100: IL TRM v11 vol3 | Z100: 90 | AA100: SEER2ee | AB100: 17 | AC100: Nameplate rating | AE100: SEER2base | AF100: 14.3 | AG100: Federal minimum efficiency standard - Northern region of U.S. | AI100: =ROUND(((BM100*AS100*(1/(AF100*(1-BU100))-1/(AB100*BY100*(1-CC100))))/1000)+((BQ100*AS100*(1/(BA100*DM100*(1-CG100))-1/(AW100*DM100*CK100*(1-CO100))))/1000),4) | AJ100: =ROUND((AS100*(1/(BI100*(1-BU100))-1/(BE100*(1-CC100))))/1000*O100,4) | AK100: IL TRM v11 vol3 | AL100: 92, 102 | AM100: 2024-01-01 | AN100: 2024-12-31 | AS100: 12000 | AT100: Allows for Capacity input in Tons; converts tons to BTUs | AW100: 9.83 | AX100: HSPF2ee | AY100: Average efficient HSPF value from all SEER 17 ASHP units in the 2022 HCHC program tracking data | BA100: 3.41 | BB100: HSPF2base | BC100: IL TRM v11 vol3 | BD100: 96 | BE100: 12.5 | BF100: EER2ee | BG100: IL TRM v11 vol3 | BH100: 103 | BI100: =11*0.959 -> 10.549 | BJ100: EER2base | BK100: IL TRM v11 vol3 | BL100: 103 | BM100: 738 | BN100: EFLHcool | BO100: EFLHcool, from 2017 MO TRM | BP100: 85 | BQ100: 1376 | BR100: EFLHheat | BS100: The EFLH Cooling and Heating hours are based on a EnergyStar study that was normalized (based on HDD and CDD) to Kansas City. This was for both AC and HP units. | BU100: 0.1 | BV100: Derating_Cool_Base | BW100: IL TRM v11 vol3 | BX100: 97 | BY100: =0.805*(BE100/AB100)+0.367 -> 0.9589117647 | BZ100: SEER2adj | CA100: IL TRM v11 vol3 | CB100: 95 | CC100: 0.1 | CD100: Derating_Cool_Eff | CE100: IL TRM v11 vol3 | CF100: 95 | CG100: 0.1 | CH100: Derating_Heat_Base | CI100: IL TRM v11 vol3 | CJ100: 97 | CK100: 1 | CL100: HSPFadj | CM100: IL TRM v11 vol3 | CN100: 97 | CO100: 0.1 | CP100: Derating_Heat_Eff | CQ100: IL TRM v11 vol3 | CR100: 97 | CS100: 0.03 | CT100: Societal Discount Rate | CU100: Evergy Standard | CW100: 600 | CX100: First Cost $/ton | CY100: IL TRM v11 vol3 | CZ100: 91 | DA100: 7286 | DB100: One-time per-system labor cost | DC100: IL TRM v11 vol3 | DD100: 91 | DE100: =-PV(CS100, 6, 0, (1092))+-PV(CS100, 7, 0, (2296))/DI100 -> 1461.99853 | DF100: Deferred cost savings | DG100: IL TRM v11 vol3 | DH100: 91 | DI100: 3.41 | DJ100: Equipment size (tons) | DK100: Average equipment size (in tons) from the SEER 17 ASHP units in the 2022 HCHC program tracking data | DM100: 1 | DN100: HSPF_ClimateAdj | DO100: IL TRM v11 vol3 | DP100: 97
A101: Income Eligible Program | B101: ASHP SEER2 17 - replace electric furnace / CAC - Early Replacement: MF (future) | C101: 782.1 | D101: Multi-Family | E101: HVAC | G101: per ton | H101: 0 | I101: IL TRM v12 vol3 | J101: 105 | K101: =ROUND(((((BM101*AS101)/BY101*(1/(AF101*(1-CC101))))-(BM101*AS101*1/(AB101*(1-BU101))))/1000)+(((BQ101*AS101*CK101)/BY101*(1/(BA101*DM101*(1-CG101))))-((BQ101*AS101*CK101)*1/(AW101*DM101*(1-CO101))))/1000,4) -> 4501.6118 | L101: Calculated Value | N101: =ROUND(K101/U101,4) -> 6.0997 | O101: 0.72 | P101: IL TRM v12 vol3 | Q101: 107 | R101: =ROUND((((AS101)/BY101*(1/(BI101*(1-CC101))))-(AS101*1/(BE101*(1-BU101))))/1000*O101,4) -> 0.1315 | S101: Calculated Value | U101: 738 | V101: EFLHcool, from 2017 MO TRM Vol. 3 | W101: 122 | X101: 10 | Y101: IL TRM v12 vol3 | Z101: 105 | AA101: SEER2ee | AB101: 17 | AC101: Nameplate rating | AE101: SEER2base | AF101: 14.3 | AG101: IL TRM v12 vol3, Federal minimum efficiency standard - Northern region of U.S. | AH101: 110 | AI101: =ROUND(((((BM101*AS101)/BY101*(1/(AF101*(1-CC101))))-(BM101*AS101*1/(AB101*(1-BU101))))/1000)+(((BQ101*AS101*CK101)/BY101*(1/(BA101*DM101*(1-CG101))))-((BQ101*AS101*CK101)*1/(AW101*DM101*(1-CO101))))/1000,4) | AJ101: =ROUND((((AS101)/BY101*(1/(BI101*(1-CC101))))-(AS101*1/(BE101*(1-BU101))))/1000*O101,4) | AK101: IL TRM v12 vol3 | AL101: 107, 118 | AM101: 2025-01-01 | AS101: 12000 | AT101: Allows for Capacity input in Tons; converts tons to BTUs | AW101: 9.83 | AX101: HSPF2ee | AY101: Average efficient HSPF value from all SEER 17 ASHP units in the 2022 HCHC program tracking data | BA101: 3.41 | BB101: HSPF2base | BC101: IL TRM v12 vol3 | BD101: 112 | BE101: 12.4 | BF101: EER2ee | BG101: IL TRM v12 vol3 | BH101: 119 | BI101: 10.6 | BJ101: EER2base | BK101: IL TRM v12 vol3 | BL101: 119 | BM101: 738 | BN101: EFLHcool | BO101: EFLHcool, from 2017 MO TRM Vol. 3 | BP101: 85 | BQ101: 1376 | BR101: EFLHheat | BS101: The EFLH Cooling and Heating hours are based on a EnergyStar study that was normalized (based on HDD and CDD) to Kansas City. This was for both AC and HP units. | BU101: 0.1 | BV101: DeratingCoolEff | BW101: IL TRM v12 vol3 | BX101: 112 | BY101: 1 | BZ101: DuctlessSave | CA101: IL TRM v12 vol3 | CB101: 109 | CC101: 0.1 | CD101: Derating_Cool_Base | CE101: IL TRM v12 vol3 | CF101: 110 | CG101: 0.1 | CH101: Derating_Heat_Base | CI101: IL TRM v12 vol3 | CJ101: 112 | CK101: 1 | CL101: HeatLoadFactor | CM101: IL TRM v12 vol3 | CN101: 110 | CO101: 0.1 | CP101: Derating_Heat_Eff | CQ101: IL TRM v12 vol3 | CR101: 112 | CS101: 0.03 | CT101: Societal Discount Rate | CU101: Evergy Standard | CW101: 600 | CX101: First Cost $/ton | CY101: IL TRM v12 vol3 | CZ101: 105 | DA101: 7495 | DB101: One-time per-system labor cost | DC101: IL TRM v12 vol3 | DD101: 105 | DE101: =-PV(CS101, 6, 0, (1092))+-PV(CS101, 7, 0, (2296))/DI101 -> 1461.99853 | DF101: Deferred cost savings | DG101: IL TRM v12 vol3 | DH101: 105 | DI101: 3.41 | DJ101: Equipment size (tons) | DK101: Average equipment size (in tons) from the SEER 17 ASHP units in the 2022 HCHC program tracking data | DM101: 0.8 | DN101: HSPF_ClimateAdj | DO101: IL TRM v12 vol3 - Statewide | DP101: 113
A102: Income Eligible Program | B102: ASHP SEER2 17 - replace electric furnace / CAC - ROF: MF | C102: 780 | D102: Multi-Family | E102: HVAC | G102: per ton | H102: =(((CW102*DI102)+DA102)/DI102)-DE102 -> 1194.920821 | I102: IL TRM v11 vol3 / Program Tracking Data | J102: 91 | K102: =ROUND(((BM102*AS102*(1/(AF102*(1-BU102))-1/(AB102*BY102*(1-CC102))))/1000)+((BQ102*AS102*(1/(BA102*DM102*(1-CG102))-1/(AW102*DM102*CK102*(1-CO102))))/1000),4) -> 3598.3452 | L102: Calculated Value | N102: =K102/U102 -> 4.875806504 | O102: 0.72 | P102: IL TRM v11 vol3 | Q102: 92 | R102: =ROUND((AS102*(1/(BI102*(1-BU102))-1/(BE102*(1-CC102))))/1000*O102,4) -> 0.142 | S102: Calculated Value | U102: 738 | V102: EFLHcool, from 2017 MO TRM Vol. 3 | W102: 85 | X102: 16 | Y102: IL TRM v11 vol3 | Z102: 90 | AA102: SEER2ee | AB102: 17 | AC102: Nameplate rating | AE102: SEER2base | AF102: 14.3 | AG102: Federal minimum efficiency standard - Northern region of U.S. | AI102: =ROUND(((BM102*AS102*(1/(AF102*(1-BU102))-1/(AB102*BY102*(1-CC102))))/1000)+((BQ102*AS102*(1/(BA102*DM102*(1-CG102))-1/(AW102*DM102*CK102*(1-CO102))))/1000),4) | AJ102: =ROUND((AS102*(1/(BI102*(1-BU102))-1/(BE102*(1-CC102))))/1000*O102,4) | AK102: IL TRM v11 vol3 | AL102: 92, 102 | AM102: 2024-01-01 | AN102: 2024-12-31 | AS102: 12000 | AT102: Allows for Capacity input in Tons; converts tons to BTUs | AW102: 9.83 | AX102: HSPF2ee | AY102: Average efficient HSPF value from all SEER 17 ASHP units in the 2022 HCHC program tracking data | BA102: 3.41 | BB102: HSPF2base | BC102: IL TRM v11 vol3 | BD102: 96 | BE102: 12.5 | BF102: EER2ee | BG102: IL TRM v11 vol3 | BH102: 103 | BI102: =11*0.959 -> 10.549 | BJ102: EER2base | BK102: IL TRM v11 vol3 | BL102: 103 | BM102: 738 | BN102: EFLHcool | BO102: EFLHcool, from 2017 MO TRM Vol. 3 | BP102: 85 | BQ102: 1376 | BR102: EFLHheat | BS102: The EFLH Cooling and Heating hours are based on a EnergyStar study that was normalized (based on HDD and CDD) to Kansas City. This was for both AC and HP units. | BU102: 0.1 | BV102: Derating_Cool_Base | BW102: IL TRM v11 vol3 | BX102: 97 | BY102: =0.805*(BE102/AB102)+0.367 -> 0.9589117647 | BZ102: SEER2adj | CA102: IL TRM v11 vol3 | CB102: 95 | CC102: 0.1 | CD102: Derating_Cool_Eff | CE102: IL TRM v11 vol3 | CF102: 95 | CG102: 0.1 | CH102: Derating_Heat_Base | CI102: IL TRM v11 vol3 | CJ102: 97 | CK102: 1 | CL102: HSPFadj | CM102: IL TRM v11 vol3 | CN102: 97 | CO102: 0.1 | CP102: Derating_Heat_Eff | CQ102: IL TRM v11 vol3 | CR102: 97 | CS102: 2011 | CT102: assumed installation cost for 80% AFUE furnace | CU102: IL TRM v11 vol3 | CV102: 91 | CW102: 600 | CX102: First Cost $/ton | CY102: IL TRM v11 vol3 | CZ102: 91 | DA102: 7286 | DB102: One-time per-system labor cost | DC102: IL TRM v11 vol3 | DD102: 91 | DE102: =(CS102/DI102)+952 -> 1541.73607 | DF102: Baseline install cost | DG102: IL TRM v11 vol3 | DH102: 91 | DI102: 3.41 | DJ102: Equipment size (tons) | DK102: Average equipment size (in tons) from the SEER 17 ASHP units in the 2022 HCHC program tracking data | DM102: 1 | DN102: HSPF_ClimateAdj | DO102: IL TRM v11 vol3 | DP102: 97
A103: Income Eligible Program | B103: ASHP SEER2 17 - replace electric furnace / CAC - ROF: MF | C103: 780.1 | D103: Multi-Family | E103: HVAC | G103: per ton | H103: =(((CW103*DI103)+DA103)/DI103)-DE103 -> 1256.211144 | I103: IL TRM v12 vol3 | J103: 105 | K103: =ROUND(((((BM103*AS103)/BY103*(1/(AF103*(1-CC103))))-(BM103*AS103*1/(AB103*(1-BU103))))/1000)+(((BQ103*AS103*CK103)/BY103*(1/(BA103*DM103*(1-CG103))))-((BQ103*AS103*CK103)*1/(AW103*DM103*(1-CO103))))/1000,4) -> 4501.6118 | L103: Calculated Value | N103: =ROUND(K103/U103,4) -> 6.0997 | O103: 0.72 | P103: IL TRM v12 vol3 | Q103: 107 | R103: =ROUND((((AS103)/BY103*(1/(BI103*(1-CC103))))-(AS103*1/(BE103*(1-BU103))))/1000*O103,4) -> 0.1315 | S103: Calculated Value | U103: 738 | V103: EFLHcool, from 2017 MO TRM Vol. 3 | W103: 122 | X103: 16 | Y103: IL TRM v12 vol3 | Z103: 105 | AA103: SEER2ee | AB103: 17 | AC103: Nameplate rating | AE103: SEER2base | AF103: 14.3 | AG103: IL TRM v12 vol3, Federal minimum efficiency standard - Northern region of U.S. | AH103: 110 | AI103: =ROUND(((((BM103*AS103)/BY103*(1/(AF103*(1-CC103))))-(BM103*AS103*1/(AB103*(1-BU103))))/1000)+(((BQ103*AS103*CK103)/BY103*(1/(BA103*DM103*(1-CG103))))-((BQ103*AS103*CK103)*1/(AW103*DM103*(1-CO103))))/1000,4) | AJ103: =ROUND((((AS103)/BY103*(1/(BI103*(1-CC103))))-(AS103*1/(BE103*(1-BU103))))/1000*O103,4) | AK103: IL TRM v12 vol3 | AL103: 107, 118 | AM103: 2025-01-01 | AS103: 12000 | AT103: Allows for Capacity input in Tons; converts tons to BTUs | AW103: 9.83 | AX103: HSPF2ee | AY103: Average efficient HSPF value from all SEER 17 ASHP units in the 2022 HCHC program tracking data | BA103: 3.41 | BB103: HSPF2base | BC103: IL TRM v12 vol3 | BD103: 112 | BE103: 12.4 | BF103: EER2ee | BG103: IL TRM v12 vol3 | BH103: 119 | BI103: 10.6 | BJ103: EER2base | BK103: IL TRM v12 vol3 | BL103: 119 | BM103: 738 | BN103: EFLHcool | BO103: EFLHcool, from 2017 MO TRM Vol. 3 | BP103: 85 | BQ103: 1376 | BR103: EFLHheat | BS103: The EFLH Cooling and Heating hours are based on a EnergyStar study that was normalized (based on HDD and CDD) to Kansas City. This was for both AC and HP units. | BU103: 0.1 | BV103: DeratingCoolEff | BW103: IL TRM v12 vol3 | BX103: 112 | BY103: 1 | BZ103: DuctlessSave | CA103: IL TRM v12 vol3 | CB103: 109 | CC103: 0.1 | CD103: Derating_Cool_Base | CE103: IL TRM v12 vol3 | CF103: 110 | CG103: 0.1 | CH103: Derating_Heat_Base | CI103: IL TRM v12 vol3 | CJ103: 112 | CK103: 1 | CL103: HeatLoadFactor | CM103: IL TRM v12 vol3 | CN103: 110 | CO103: 0.1 | CP103: Derating_Heat_Eff | CQ103: IL TRM v12 vol3 | CR103: 112 | CS103: 2011 | CT103: Assumed installation cost for 80% AFUE furnace | CU103: IL TRM v12 vol3 | CW103: 600 | CX103: First Cost $/ton | CY103: IL TRM v12 vol3 | CZ103: 105 | DA103: 7495 | DB103: One-time per-system labor cost | DC103: IL TRM v12 vol3 | DD103: 105 | DE103: =(CS103/DI103)+952 -> 1541.73607 | DF103: Baseline install cost | DG103: IL TRM v12 vol3 | DH103: 105 | DI103: 3.41 | DJ103: Equipment size (tons) | DK103: Average equipment size (in tons) from the SEER 17 ASHP units in the 2022 HCHC program tracking data | DM103: 0.8 | DN103: HSPF_ClimateAdj | DO103: IL TRM v12 vol3 - Statewide | DP103: 113
A104: Income Eligible Program | B104: CAC SEER 15 - Early Replacement: MF | C104: 443.2 | D104: Multi-Family | E104: HVAC | G104: per ton | H104: =((CC104*CO104+CG104)/CO104)-CK104 -> 51.392655 | I104: IL TRM v11 vol3 | J104: 112 | K104: =ROUND((BE104*AW104*(1/((1-BM104)*AF104)-1/((1-BQ104)*(BU104)*AB104)))/1000,4) -> 409.202 | L104: Calculated Value | N104: =K104/U104 -> 0.5544742547 | O104: 0.68 | P104: IL TRM v11 vol3 | Q104: 113 | R104: =ROUND(((AW104*((1/((1-BM104)*BA104))-(1/((1-BQ104)*AS104))))/1000)*O104,4) -> 0.4533 | S104: Calculated Value | U104: 738 | V104: EFLHcool, from 2017 MO TRM Vol. 3 | W104: 114 | X104: 6 | Y104: IL TRM v11 vol3 | Z104: 112 | AA104: SEERee | AB104: 15 | AC104: Nameplate rating | AE104: SEERexist | AF104: 9.3 | AG104: IL TRM v11 vol3 | AH104: 114 | AI104: =ROUND((BE104*AW104*(1/((1-BM104)*AF104)-1/((1-BQ104)*(BU104)*AB104)))/1000,4) | AJ104: =ROUND(((AW104*((1/((1-BM104)*BA104))-(1/((1-BQ104)*AS104))))/1000)*O104,4) | AK104: IL TRM v11 vol3 | AL104: 92, 94 | AM104: 2024-01-01 | AN104: 2024-12-31 | AS104: 12 | AT104: EERee | AU104: IL TRM v11 vol3 | AV104: 116 | AW104: 12000 | AX104: Allows for Capacity input in Tons; converts tons to BTUs | BA104: 7.5 | BB104: EERexist | BC104: IL TRM v11 vol3 | BD104: 116 | BE104: 738 | BF104: EFLHcool | BG104: EFLHcool, from 2017 MO TRM Vol. 3 | BH104: 122 | BI104: 1376 | BJ104: EFLHheat | BK104: The EFLH Cooling and Heating hours are based on a EnergyStar study that was normalized (based on HDD and CDD) to Kansas City. This was for both AC and HP units. | BM104: 0.1 | BN104: DeratingCoolBase | BO104: IL TRM v11 vol3 | BP104: 115 | BQ104: 0.1 | BR104: DeratingCoolEff | BS104: IL TRM v11 vol3 | BT104: 115 | BU104: =0.805*(AS104/AB104)+0.367 -> 1.011 | BV104: SEERadj | BW104: Caclulated value, using alhgorthim from IL TRM v11 vol3 | BX104: 115 | BY104: 0.03 | BZ104: Societal Discount Rate | CA104: Evergy Standard | CC104: 952 | CD104: First Cost $/ton | CE104: IL TRM v11 vol3 | CF104: 112 | CG104: 108 | CH104: One-time per-system labor cost | CI104: IL TRM v11 vol3 | CJ104: 112 | CK104: =-PV(BY104, 6, 0, (3140))/CO104 -> 939.1787736 | CL104: Deferred cost savings, per UNIT | CM104: IL TRM v11 vol3 | CN104: 112 | CO104: 2.8 | CP104: Equipment size (tons) | CQ104: IL TRM v11 vol3 (for single family homes; multi-family default caused a negative incremental cost) | CR104: 114
A105: Income Eligible Program | B105: CAC SEER 15 - Early Replacement: MF (future) | C105: 444.3 | D105: Multi-Family | E105: HVAC | G105: per ton | H105: 0 | I105: IL TRM v11 vol3 | J105: 112 | K105: =ROUND((BE105*AW105*(1/((1-BM105)*AF105)-1/((1-BQ105)*(BU105)*AB105)))/1000,4) -> 53.9946 | L105: Calculated Value | N105: =K105/U105 -> 0.07316341463 | O105: 0.68 | P105: IL TRM v11 vol3 | Q105: 113 | R105: =ROUND(((AW105*((1/((1-BM105)*BA105))-(1/((1-BQ105)*AS105))))/1000)*O105,4) -> 0.1079 | S105: Calculated Value | U105: 738 | V105: EFLHcool, from 2017 MO TRM Vol. 3 | W105: 122 | X105: 12 | Y105: IL TRM v11 vol3 | Z105: 91 | AA105: SEERee | AB105: 15 | AC105: Nameplate rating | AE105: SEERbase | AF105: 14 | AG105: Federal minimum efficiency standard - Northern region of U.S. | AI105: =ROUND((BE105*AW105*(1/((1-BM105)*AF105)-1/((1-BQ105)*(BU105)*AB105)))/1000,4) | AJ105: =ROUND(((AW105*((1/((1-BM105)*BA105))-(1/((1-BQ105)*AS105))))/1000)*O105,4) | AK105: IL TRM v11 vol3 | AL105: 92, 94 | AM105: 2024-01-01 | AN105: 2024-12-31 | AS105: 12 | AT105: EERee | AU105: IL TRM v11 vol3 | AV105: 116 | AW105: 12000 | AX105: Allows for Capacity input in Tons; converts tons to BTUs | BA105: 10.5 | BB105: EERbase | BC105: IL TRM v11 vol3 | BD105: 116 | BE105: 738 | BF105: EFLHcool | BG105: EFLHcool, from 2017 MO TRM Vol. 3 | BH105: 122 | BI105: 1376 | BJ105: EFLHheat | BK105: The EFLH Cooling and Heating hours are based on a EnergyStar study that was normalized (based on HDD and CDD) to Kansas City. This was for both AC and HP units. | BM105: 0.1 | BN105: DeratingCoolBase | BO105: IL TRM v11 vol3 | BP105: 115 | BQ105: 0.1 | BR105: DeratingCoolEff | BS105: IL TRM v11 vol3 | BT105: 115 | BU105: =0.805*(AS105/AB105)+0.367 -> 1.011 | BV105: SEERadj | BW105: Caclulated value, using alhgorthim from IL TRM v11 vol3 | BX105: 115 | BY105: 0.03 | BZ105: Societal Discount Rate | CA105: Evergy Standard | CC105: 952 | CD105: First Cost $/ton | CE105: IL TRM v11 vol3 | CF105: 112 | CG105: 108 | CH105: One-time per-system labor cost | CI105: IL TRM v11 vol3 | CJ105: 112 | CK105: =-PV(BY105, 6, 0, (3140))/CO105 -> 939.1787736 | CL105: Deferred cost savings, per UNIT | CM105: IL TRM v11 vol3 | CN105: 112 | CO105: 2.8 | CP105: Equipment size (tons) | CQ105: IL TRM v11 vol3 (for single family homes; multi-family default caused a negative incremental cost) | CR105: 114
A106: Income Eligible Program | B106: CAC SEER 15 - Replace at Fail: MF | C106: 445.3 | D106: Multi-Family | E106: HVAC | G106: per ton | H106: =CC106/BY106 -> 38.57142857 | I106: IL TRM v11 vol3 | J106: 112 | K106: =ROUND((BE106*AW106*(1/((1-BM106)*AF106)-1/((1-BQ106)*(BU106)*AB106)))/1000,4) -> 53.9946 | L106: Calculated Value | N106: =K106/U106 -> 0.07316341463 | O106: 0.68 | P106: IL TRM v11 vol3 | Q106: 113 | R106: =ROUND(((AW106*((1/((1-BM106)*BA106))-(1/((1-BQ106)*AS106))))/1000)*O106,4) -> 0.1079 | S106: Calculated Value | U106: 738 | V106: EFLHcool, from 2017 MO TRM Vol. 3 | W106: 122 | X106: 18 | Y106: IL TRM v11 vol3 | Z106: 91 | AA106: SEERee | AB106: 15 | AC106: Nameplate rating | AE106: SEERbase | AF106: 14 | AG106: Federal minimum efficiency standard - Northern region of U.S. | AI106: =ROUND((BE106*AW106*(1/((1-BM106)*AF106)-1/((1-BQ106)*(BU106)*AB106)))/1000,4) | AJ106: =ROUND(((AW106*((1/((1-BM106)*BA106))-(1/((1-BQ106)*AS106))))/1000)*O106,4) | AK106: IL TRM v11 vol3 | AL106: 92, 94 | AM106: 2024-01-01 | AN106: 2024-12-31 | AS106: 12 | AT106: EERee | AU106: IL TRM v11 vol3 | AV106: 116 | AW106: 12000 | AX106: Allows for Capacity input in Tons; converts tons to BTUs | BA106: 10.5 | BB106: EERbase | BC106: IL TRM v11 vol3 | BD106: 116 | BE106: 738 | BF106: EFLHcool | BG106: EFLHcool, from 2017 MO TRM Vol. 3 | BH106: 122 | BI106: 1376 | BJ106: EFLHheat | BK106: The EFLH Cooling and Heating hours are based on a EnergyStar study that was normalized (based on HDD and CDD) to Kansas City. This was for both AC and HP units. | BM106: 0.1 | BN106: DeratingCoolBase | BO106: IL TRM v11 vol3 | BP106: 115 | BQ106: 0.1 | BR106: DeratingCoolEff | BS106: IL TRM v11 vol3 | BT106: 115 | BU106: =0.805*(AS106/AB106)+0.367 -> 1.011 | BV106: SEERadj | BW106: Caclulated value, using alhgorthim from IL TRM v11 vol3 | BX106: 115 | BY106: 2.8 | BZ106: Equipment size (tons) | CA106: IL TRM v11 vol3 (for single family homes; multi-family default caused a negative incremental cost) | CB106: 114 | CC106: 108 | CD106: Incremental Cost | CE106: IL TRM v11 vol3 | CF106: 112
A107: Income Eligible Program | B107: CAC SEER2 15 - Early Replacement: MF | C107: 759 | D107: Multi-Family | E107: HVAC | G107: per ton | H107: =((CC107*CO107+CG107)/CO107)-CK107 -> 51.392655 | I107: IL TRM v11 vol3 / Program Tracking Data | J107: 112 | K107: =ROUND((BE107*AW107*(1/((1-BM107)*AF107)-1/((1-BQ107)*(BU107)*AB107)))/1000,4) -> 459.0584 | L107: Calculated Value | N107: =K107/U107 -> 0.6220303523 | O107: 0.68 | P107: IL TRM v11 vol3 | Q107: 113 | R107: =ROUND(((AW107*((1/((1-BM107)*BA107))-(1/((1-BQ107)*AS107))))/1000)*O107,4) -> 0.505 | S107: Calculated Value | U107: 738 | V107: EFLHcool, from 2017 MO TRM Vol. 3 | W107: 122 | X107: 6 | Y107: IL TRM v11 vol3 | Z107: 112 | AA107: SEER2ee | AB107: 15 | AC107: Nameplate rating | AE107: SEER2exist | AF107: =9.3*0.955 -> 8.8815 | AG107: IL TRM v11 vol3 | AH107: 114 | AI107: =ROUND((BE107*AW107*(1/((1-BM107)*AF107)-1/((1-BQ107)*(BU107)*AB107)))/1000,4) | AJ107: =ROUND(((AW107*((1/((1-BM107)*BA107))-(1/((1-BQ107)*AS107))))/1000)*O107,4) | AK107: IL TRM v11 vol3 | AL107: 113, 116 | AM107: 2024-01-01 | AN107: 2024-12-31 | AS107: 12 | AT107: EER2ee | AU107: IL TRM v11 vol3 | AV107: 116 | AW107: 12000 | AX107: Allows for Capacity input in Tons; converts tons to BTUs | BA107: =7.5*0.959 -> 7.1925 | BB107: EER2exist | BC107: IL TRM v11 vol3 | BD107: 116 | BE107: 738 | BF107: EFLHcool | BG107: EFLHcool, from 2017 MO TRM Vol. 3 | BH107: 122 | BI107: 1376 | BJ107: EFLHheat | BK107: The EFLH Cooling and Heating hours are based on a EnergyStar study that was normalized (based on HDD and CDD) to Kansas City. This was for both AC and HP units. | BM107: 0.1 | BN107: DeratingCoolBase | BO107: IL TRM v11 vol3 | BP107: 115 | BQ107: 0.1 | BR107: DeratingCoolEff | BS107: IL TRM v11 vol3 | BT107: 115 | BU107: =0.805*(AS107/AB107)+0.367 -> 1.011 | BV107: SEER2adj | BW107: Calculated value, using alhgorthim from IL TRM v11 vol3 | BX107: 115 | BY107: 0.03 | BZ107: Societal Discount Rate | CA107: Evergy Standard | CC107: 952 | CD107: First Cost $/ton | CE107: IL TRM v11 vol3 | CF107: 112 | CG107: 108 | CH107: One-time per-system labor cost | CI107: IL TRM v11 vol3 | CJ107: 112 | CK107: =-PV(BY107,6,0,3140)/CO107 -> 939.1787736 | CL107: Deferred cost savings, per UNIT | CM107: IL TRM v11 vol3 | CN107: 112 | CO107: 2.8 | CP107: Equipment size (tons) | CQ107: IL TRM v11 vol3 (for single family homes; multi-family default caused a negative incremental cost) | CR107: 114
A108: Income Eligible Program | B108: CAC SEER2 15 - Early Replacement: MF | C108: 759.1 | D108: Multi-Family | E108: HVAC | G108: per ton | H108: =((CC108*CO108+CG108)/CO108)-CK108 -> 394.9640836 | I108: IL TRM v12 vol3 | J108: 128 | K108: =ROUND((U108*AW108*(1/(AF108*(1-BM108))-1/(AB108*(1-BQ108))))/1000,4) -> 449.618 | L108: Calculated Value | N108: =ROUND(K108/U108,4) -> 0.6092 | O108: 0.68 | P108: IL TRM v12 vol3 | Q108: 129 | R108: =ROUND((AW108*(1/(BA108*(1-BM108))-1/(AS108*(1-BQ108))))/1000*O108,4) -> 0.5281 | S108: Calculated Value | U108: 738 | V108: EFLHcool, from 2017 MO TRM Vol. 3 | W108: 122 | X108: 6 | Y108: IL TRM v12 vol3 | Z108: 128 | AA108: SEER2ee | AB108: 15 | AC108: Nameplate rating | AE108: SEER2exist | AF108: 8.9 | AG108: IL TRM v12 vol3 | AH108: 130 | AI108: =ROUND((U108*AW108*(1/(AF108*(1-BM108))-1/(AB108*(1-BQ108))))/1000,4) | AJ108: =ROUND((AW108*(1/(BA108*(1-BM108))-1/(AS108*(1-BQ108))))/1000*O108,4) | AK108: IL TRM v12 vol3 | AL108: 129, 131 | AM108: 2025-01-01 | AS108: 12.4 | AT108: EER2ee | AU108: IL TRM v12 vol3 | AV108: 132 | AW108: 12000 | AX108: Allows for Capacity input in Tons; converts tons to BTUs | BA108: 7.2 | BB108: EER2exist | BC108: IL TRM v12 vol3 | BD108: 132 | BE108: 738 | BF108: EFLHcool | BG108: EFLHcool, from 2017 MO TRM Vol. 3 | BH108: 122 | BI108: 1376 | BJ108: EFLHheat | BK108: The EFLH Cooling and Heating hours are based on a EnergyStar study that was normalized (based on HDD and CDD) to Kansas City. This was for both AC and HP units. | BM108: 0.1 | BN108: DeratingCoolBase | BO108: IL TRM v12 vol3 | BP108: 131 | BQ108: 0.1 | BR108: DeratingCoolEff | BS108: IL TRM v12 vol3 | BT108: 131 | BY108: 0.03 | BZ108: Societal Discount Rate | CA108: Evergy Standard | CC108: 952 | CD108: First Cost $/ton | CE108: IL TRM v12 vol3 | CF108: 128 | CG108: 1070 | CH108: One-time per-system labor cost | CI108: IL TRM v12 vol3 | CJ108: 128 | CK108: =-PV(BY108,6,0,3140)/CO108 -> 939.1787736 | CL108: Deferred cost savings, per UNIT | CM108: IL TRM v12 vol3 | CN108: 128 | CO108: 2.8 | CP108: Equipment size (tons) | CQ108: IL TRM v12 vol3 - Multifamily | CR108: 130
A109: Income Eligible Program | B109: CAC SEER2 15 - Early Replacement: MF (future) | C109: 760 | D109: Multi-Family | E109: HVAC | G109: per ton | H109: 0 | I109: IL TRM v11 vol3 | J109: 112 | K109: =ROUND((BE109*AW109*(1/((1-BM109)*AF109)-1/((1-BQ109)*(BU109)*AB109)))/1000,4) -> 85.4658 | L109: Calculated Value | N109: =K109/U109 -> 0.1158073171 | O109: 0.68 | P109: IL TRM v11 vol3 | Q109: 113 | R109: =ROUND(((AW109*((1/((1-BM109)*BA109))-(1/((1-BQ109)*AS109))))/1000)*O109,4) -> 0.1449 | S109: Calculated Value | U109: 738 | V109: EFLHcool, from 2017 MO TRM Vol. 3 | W109: 122 | X109: 12 | Y109: IL TRM v11 vol3 | Z109: 112 | AA109: SEER2ee | AB109: 15 | AC109: Nameplate rating | AE109: SEER2base | AF109: 13.4 | AG109: Federal minimum efficiency standard - Northern region of U.S. | AI109: =ROUND((BE109*AW109*(1/((1-BM109)*AF109)-1/((1-BQ109)*(BU109)*AB109)))/1000,4) | AJ109: =ROUND(((AW109*((1/((1-BM109)*BA109))-(1/((1-BQ109)*AS109))))/1000)*O109,4) | AK109: IL TRM v11 vol3 | AL109: 113, 116 | AM109: 2024-01-01 | AN109: 2024-12-31 | AS109: 12 | AT109: EER2ee | AU109: IL TRM v11 vol3 | AV109: 116 | AW109: 12000 | AX109: Allows for Capacity input in Tons; converts tons to BTUs | BA109: =10.5*0.959 -> 10.0695 | BB109: EER2base | BC109: IL TRM v11 vol3 | BD109: 116 | BE109: 738 | BF109: EFLHcool | BG109: EFLHcool, from 2017 MO TRM Vol. 3 | BH109: 122 | BI109: 1376 | BJ109: EFLHheat | BK109: The EFLH Cooling and Heating hours are based on a EnergyStar study that was normalized (based on HDD and CDD) to Kansas City. This was for both AC and HP units. | BM109: 0.1 | BN109: DeratingCoolBase | BO109: IL TRM v11 vol3 | BP109: 115 | BQ109: 0.1 | BR109: DeratingCoolEff | BS109: IL TRM v11 vol3 | BT109: 115 | BU109: =0.805*(AS109/AB109)+0.367 -> 1.011 | BV109: SEER2adj | BW109: Calculated value, using alhgorthim from IL TRM v11 vol3 | BX109: 115 | BY109: 0.03 | BZ109: Societal Discount Rate | CA109: Evergy Standard | CC109: 952 | CD109: First Cost $/ton | CE109: IL TRM v11 vol3 | CF109: 112 | CG109: 108 | CH109: One-time per-system labor cost | CI109: IL TRM v11 vol3 | CJ109: 112 | CK109: =-PV(BY109,6,0,3140)/CO109 -> 939.1787736 | CL109: Deferred cost savings, per UNIT | CM109: IL TRM v11 vol3 | CN109: 112 | CO109: 2.8 | CP109: Equipment size (tons) | CQ109: IL TRM v11 vol3 (for single family homes; multi-family default caused a negative incremental cost) | CR109: 114
A110: Income Eligible Program | B110: CAC SEER2 15 - Early Replacement: MF (future) | C110: 760.1 | D110: Multi-Family | E110: HVAC | G110: per ton | H110: 0 | I110: IL TRM v12 vol3 | J110: 128 | K110: =ROUND((U110*AW110*(1/(AF110*(1-BM110))-1/(AB110*(1-BQ110))))/1000,4) -> 78.3284 | L110: Calculated Value | N110: =ROUND(K110/U110,4) -> 0.1061 | O110: 0.68 | P110: IL TRM v12 vol3 | Q110: 129 | R110: =ROUND((AW110*(1/(BA110*(1-BM110))-1/(AS110*(1-BQ110))))/1000*O110,4) -> 0.1242 | S110: Calculated Value | U110: 738 | V110: EFLHcool, from 2017 MO TRM Vol. 3 | W110: 122 | X110: 12 | Y110: IL TRM v12 vol3 | Z110: 128 | AA110: SEER2ee | AB110: 15 | AC110: Nameplate rating | AE110: SEER2base | AF110: 13.4 | AG110: IL TRM v12 vol3, Federal minimum efficiency standard - Northern region of U.S. | AH110: 130 | AI110: =ROUND((U110*AW110*(1/(AF110*(1-BM110))-1/(AB110*(1-BQ110))))/1000,4) | AJ110: =ROUND((AW110*(1/(BA110*(1-BM110))-1/(AS110*(1-BQ110))))/1000*O110,4) | AK110: IL TRM v12 vol3 | AL110: 129, 131 | AM110: 2025-01-01 | AS110: 12.4 | AT110: EER2ee | AU110: IL TRM v12 vol3 | AV110: 132 | AW110: 12000 | AX110: Allows for Capacity input in Tons; converts tons to BTUs | BA110: 10.6 | BB110: EER2base | BC110: IL TRM v12 vol3 | BD110: 132 | BE110: 738 | BF110: EFLHcool | BG110: EFLHcool, from 2017 MO TRM Vol. 3 | BH110: 122 | BI110: 1376 | BJ110: EFLHheat | BK110: The EFLH Cooling and Heating hours are based on a EnergyStar study that was normalized (based on HDD and CDD) to Kansas City. This was for both AC and HP units. | BM110: 0.1 | BN110: DeratingCoolBase | BO110: IL TRM v12 vol3 | BP110: 131 | BQ110: 0.1 | BR110: DeratingCoolEff | BS110: IL TRM v12 vol3 | BT110: 131 | BY110: 0.03 | BZ110: Societal Discount Rate | CA110: Evergy Standard | CC110: 952 | CD110: First Cost $/ton | CE110: IL TRM v12 vol3 | CF110: 128 | CG110: 1070 | CH110: One-time per-system labor cost | CI110: IL TRM v12 vol3 | CJ110: 128 | CK110: =-PV(BY110,6,0,3140)/CO110 -> 939.1787736 | CL110: Deferred cost savings, per UNIT | CM110: IL TRM v12 vol3 | CN110: 128 | CO110: 2.8 | CP110: Equipment size (tons) | CQ110: IL TRM v12 vol3 - Multifamily | CR110: 130
A111: Income Eligible Program | B111: CAC SEER2 15 - Replace at Fail: MF | C111: 761 | D111: Multi-Family | E111: HVAC | G111: per ton | H111: =CC111/CO111 -> 38.57142857 | I111: IL TRM v11 vol3 | J111: 112 | K111: =ROUND((BE111*AW111*(1/((1-BM111)*AF111)-1/((1-BQ111)*(BU111)*AB111)))/1000,4) -> 85.4658 | L111: Calculated Value | N111: =K111/U111 -> 0.1158073171 | O111: 0.68 | P111: IL TRM v11 vol3 | Q111: 113 | R111: =ROUND(((AW111*((1/((1-BM111)*BA111))-(1/((1-BQ111)*AS111))))/1000)*O111,4) -> 0.1449 | S111: Calculated Value | U111: 738 | V111: EFLHcool, from 2017 MO TRM Vol. 3 | W111: 122 | X111: 18 | Y111: IL TRM v11 vol3 | Z111: 112 | AA111: SEER2ee | AB111: 15 | AC111: Nameplate rating | AE111: SEER2base | AF111: 13.4 | AG111: Federal minimum efficiency standard - Northern region of U.S. | AI111: =ROUND((BE111*AW111*(1/((1-BM111)*AF111)-1/((1-BQ111)*(BU111)*AB111)))/1000,4) | AJ111: =ROUND(((AW111*((1/((1-BM111)*BA111))-(1/((1-BQ111)*AS111))))/1000)*O111,4) | AK111: IL TRM v11 vol3 | AL111: 113, 116 | AM111: 2024-01-01 | AN111: 2024-12-31 | AS111: 12 | AT111: EER2ee | AU111: IL TRM v11 vol3 | AV111: 116 | AW111: 12000 | AX111: Allows for Capacity input in Tons; converts tons to BTUs | BA111: =10.5*0.959 -> 10.0695 | BB111: EER2base | BC111: IL TRM v11 vol3 | BD111: 116 | BE111: 738 | BF111: EFLHcool | BG111: EFLHcool, from 2017 MO TRM Vol. 3 | BH111: 122 | BI111: 1376 | BJ111: EFLHheat | BK111: The EFLH Cooling and Heating hours are based on a EnergyStar study that was normalized (based on HDD and CDD) to Kansas City. This was for both AC and HP units. | BM111: 0.1 | BN111: DeratingCoolBase | BO111: IL TRM v11 vol3 | BP111: 115 | BQ111: 0.1 | BR111: DeratingCoolEff | BS111: IL TRM v11 vol3 | BT111: 115 | BU111: =0.805*(AS111/AB111)+0.367 -> 1.011 | BV111: SEER2adj | BW111: Calculated value, using alhgorthim from IL TRM v11 vol3 | BX111: 115 | CC111: 108 | CD111: Incremental Cost | CE111: IL TRM v11 vol3 | CF111: 112 | CO111: 2.8 | CP111: Equipment size (tons) | CQ111: IL TRM v11 vol3 (for single family homes; multi-family default caused a negative incremental cost) | CR111: 114
A112: Income Eligible Program | B112: CAC SEER2 15 - Replace at Fail: MF | C112: 761.1 | D112: Multi-Family | E112: HVAC | G112: per ton | H112: =CC112/CO112 -> 382.1428571 | I112: IL TRM v12 vol3 | J112: 128 | K112: =ROUND((U112*AW112*(1/(AF112*(1-BM112))-1/(AB112*(1-BQ112))))/1000,4) -> 78.3284 | L112: Calculated Value | N112: =ROUND(K112/U112,4) -> 0.1061 | O112: 0.68 | P112: IL TRM v12 vol3 | Q112: 129 | R112: =ROUND((AW112*(1/(BA112*(1-BM112))-1/(AS112*(1-BQ112))))/1000*O112,4) -> 0.1242 | S112: Calculated Value | U112: 738 | V112: EFLHcool, from 2017 MO TRM Vol. 3 | W112: 122 | X112: 18 | Y112: IL TRM v12 vol3 | Z112: 128 | AA112: SEER2ee | AB112: 15 | AC112: Nameplate rating | AE112: SEER2base | AF112: 13.4 | AG112: IL TRM v12 vol3, Federal minimum efficiency standard - Northern region of U.S. | AH112: 130 | AI112: =ROUND((U112*AW112*(1/(AF112*(1-BM112))-1/(AB112*(1-BQ112))))/1000,4) | AJ112: =ROUND((AW112*(1/(BA112*(1-BM112))-1/(AS112*(1-BQ112))))/1000*O112,4) | AK112: IL TRM v12 vol3 | AL112: 129, 131 | AM112: 2025-01-01 | AS112: 12.4 | AT112: EER2ee | AU112: IL TRM v12 vol3 | AV112: 132 | AW112: 12000 | AX112: Allows for Capacity input in Tons; converts tons to BTUs | BA112: 10.6 | BB112: EER2base | BC112: IL TRM v12 vol3 | BD112: 132 | BE112: 738 | BF112: EFLHcool | BG112: EFLHcool, from 2017 MO TRM Vol. 3 | BH112: 122 | BI112: 1376 | BJ112: EFLHheat | BK112: The EFLH Cooling and Heating hours are based on a EnergyStar study that was normalized (based on HDD and CDD) to Kansas City. This was for both AC and HP units. | BM112: 0.1 | BN112: DeratingCoolBase | BO112: IL TRM v12 vol3 | BP112: 131 | BQ112: 0.1 | BR112: DeratingCoolEff | BS112: IL TRM v12 vol3 | BT112: 131 | CC112: 1070 | CD112: Incremental Cost | CE112: IL TRM v12 vol3 | CF112: 128 | CO112: 2.8 | CP112: Equipment size (tons) | CQ112: IL TRM v12 vol3 - Multifamily | CR112: 130
A113: Income Eligible Program | B113: CAC SEER2 16 - Early Replacement: MF | C113: 762 | D113: Multi-Family | E113: HVAC | G113: per ton | H113: =((CC113*CO113+CG113)/CO113)-CK113 -> 91.74979786 | I113: IL TRM v11 vol3 / Program Tracking Data | J113: 112 | K113: =ROUND((BE113*AW113*(1/((1-BM113)*AF113)-1/((1-BQ113)*(BU113)*AB113)))/1000,4) -> 474.3902 | L113: Calculated Value | N113: =K113/U113 -> 0.6428051491 | O113: 0.68 | P113: IL TRM v11 vol3 | Q113: 113 | R113: =ROUND(((AW113*((1/((1-BM113)*BA113))-(1/((1-BQ113)*AS113))))/1000)*O113,4) -> 0.505 | S113: Calculated Value | U113: 738 | V113: EFLHcool, from 2017 MO TRM Vol. 3 | W113: 122 | X113: 6 | Y113: IL TRM v11 vol3 | Z113: 112 | AA113: SEER2ee | AB113: 16 | AC113: Nameplate rating | AE113: SEER2exist | AF113: =9.3*0.955 -> 8.8815 | AG113: IL TRM v11 vol3 | AH113: 114 | AI113: =ROUND((BE113*AW113*(1/((1-BM113)*AF113)-1/((1-BQ113)*(BU113)*AB113)))/1000,4) | AJ113: =ROUND(((AW113*((1/((1-BM113)*BA113))-(1/((1-BQ113)*AS113))))/1000)*O113,4) | AK113: IL TRM v11 vol3 | AL113: 113, 116 | AM113: 2024-01-01 | AN113: 2024-12-31 | AS113: 12 | AT113: EER2ee | AU113: IL TRM v11 vol3 | AV113: 116 | AW113: 12000 | AX113: Allows for Capacity input in Tons; converts tons to BTUs | BA113: =7.5*0.959 -> 7.1925 | BB113: EER2exist | BC113: IL TRM v11 vol3 | BD113: 116 | BE113: 738 | BF113: EFLHcool | BG113: EFLHcool, from 2017 MO TRM Vol. 3 | BH113: 122 | BI113: 1376 | BJ113: EFLHheat | BK113: The EFLH Cooling and Heating hours are based on a EnergyStar study that was normalized (based on HDD and CDD) to Kansas City. This was for both AC and HP units. | BM113: 0.1 | BN113: DeratingCoolBase | BO113: IL TRM v11 vol3 | BP113: 115 | BQ113: 0.1 | BR113: DeratingCoolEff | BS113: IL TRM v11 vol3 | BT113: 115 | BU113: =0.805*(AS113/AB113)+0.367 -> 0.97075 | BV113: SEER2adj | BW113: Calculated value, using alhgorthim from IL TRM v11 vol3 | BX113: 115 | BY113: 0.03 | BZ113: Societal Discount Rate | CA113: Evergy Standard | CC113: 952 | CD113: First Cost $/ton | CE113: IL TRM v11 vol3 | CF113: 112 | CG113: 221 | CH113: One-time per-system labor cost | CI113: IL TRM v11 vol3 | CJ113: 112 | CK113: =-PV(BY113,6,0,3140)/CO113 -> 939.1787736 | CL113: Deferred cost savings, per UNIT | CM113: IL TRM v11 vol3 | CN113: 112 | CO113: 2.8 | CP113: Equipment size (tons) | CQ113: IL TRM v11 vol3 (for single family homes; multi-family default caused a negative incremental cost) | CR113: 114
A114: Income Eligible Program | B114: CAC SEER2 16 - Early Replacement: MF | C114: 762.1 | D114: Multi-Family | E114: HVAC | G114: per ton | H114: =((CC114*CO114+CG114)/CO114)-CK114 -> 466.392655 | I114: IL TRM v12 vol3 | J114: 128 | K114: =ROUND((U114*AW114*(1/(AF114*(1-BM114))-1/(AB114*(1-BQ114))))/1000,4) -> 490.618 | L114: Calculated Value | N114: =ROUND(K114/U114,4) -> 0.6648 | O114: 0.68 | P114: IL TRM v12 vol3 | Q114: 129 | R114: =ROUND((AW114*(1/(BA114*(1-BM114))-1/(AS114*(1-BQ114))))/1000*O114,4) -> 0.5281 | S114: Calculated Value | U114: 738 | V114: EFLHcool, from 2017 MO TRM Vol. 3 | W114: 122 | X114: 6 | Y114: IL TRM v12 vol3 | Z114: 128 | AA114: SEER2ee | AB114: 16 | AC114: Nameplate rating | AE114: SEER2exist | AF114: 8.9 | AG114: IL TRM v12 vol3 | AH114: 130 | AI114: =ROUND((U114*AW114*(1/(AF114*(1-BM114))-1/(AB114*(1-BQ114))))/1000,4) | AJ114: =ROUND((AW114*(1/(BA114*(1-BM114))-1/(AS114*(1-BQ114))))/1000*O114,4) | AK114: IL TRM v12 vol3 | AL114: 129, 131 | AM114: 2025-01-01 | AS114: 12.4 | AT114: EER2ee | AU114: IL TRM v12 vol3 | AV114: 132 | AW114: 12000 | AX114: Allows for Capacity input in Tons; converts tons to BTUs | BA114: 7.2 | BB114: EER2exist | BC114: IL TRM v12 vol3 | BD114: 132 | BE114: 738 | BF114: EFLHcool | BG114: EFLHcool, from 2017 MO TRM Vol. 3 | BH114: 122 | BI114: 1376 | BJ114: EFLHheat | BK114: The EFLH Cooling and Heating hours are based on a EnergyStar study that was normalized (based on HDD and CDD) to Kansas City. This was for both AC and HP units. | BM114: 0.1 | BN114: DeratingCoolBase | BO114: IL TRM v12 vol3 | BP114: 131 | BQ114: 0.1 | BR114: DeratingCoolEff | BS114: IL TRM v12 vol3 | BT114: 131 | BY114: 0.03 | BZ114: Societal Discount Rate | CA114: Evergy Standard | CC114: 952 | CD114: First Cost $/ton | CE114: IL TRM v12 vol3 | CF114: 128 | CG114: 1270 | CH114: One-time per-system labor cost | CI114: IL TRM v12 vol3 | CJ114: 128 | CK114: =-PV(BY114,6,0,3140)/CO114 -> 939.1787736 | CL114: Deferred cost savings, per UNIT | CM114: IL TRM v12 vol3 | CN114: 128 | CO114: 2.8 | CP114: Equipment size (tons) | CQ114: IL TRM v12 vol3 - Multifamily | CR114: 130
A115: Income Eligible Program | B115: CAC SEER2 16 - Early Replacement: MF (future) | C115: 763 | D115: Multi-Family | E115: HVAC | G115: per ton | H115: 0 | I115: IL TRM v11 vol3 | J115: 112 | K115: =ROUND((BE115*AW115*(1/((1-BM115)*AF115)-1/((1-BQ115)*(BU115)*AB115)))/1000,4) -> 100.7976 | L115: Calculated Value | N115: =K115/U115 -> 0.1365821138 | O115: 0.68 | P115: IL TRM v11 vol3 | Q115: 113 | R115: =ROUND(((AW115*((1/((1-BM115)*BA115))-(1/((1-BQ115)*AS115))))/1000)*O115,4) -> 0.1449 | S115: Calculated Value | U115: 738 | V115: EFLHcool, from 2017 MO TRM Vol. 3 | W115: 122 | X115: 12 | Y115: IL TRM v11 vol3 | Z115: 112 | AA115: SEER2ee | AB115: 16 | AC115: Nameplate rating | AE115: SEER2base | AF115: 13.4 | AG115: Federal minimum efficiency standard - Northern region of U.S. | AI115: =ROUND((BE115*AW115*(1/((1-BM115)*AF115)-1/((1-BQ115)*(BU115)*AB115)))/1000,4) | AJ115: =ROUND(((AW115*((1/((1-BM115)*BA115))-(1/((1-BQ115)*AS115))))/1000)*O115,4) | AK115: IL TRM v11 vol3 | AL115: 113, 116 | AM115: 2024-01-01 | AN115: 2024-12-31 | AS115: 12 | AT115: EER2ee | AU115: IL TRM v11 vol3 | AV115: 116 | AW115: 12000 | AX115: Allows for Capacity input in Tons; converts tons to BTUs | BA115: =10.5*0.959 -> 10.0695 | BB115: EER2base | BC115: IL TRM v11 vol3 | BD115: 116 | BE115: 738 | BF115: EFLHcool | BG115: EFLHcool, from 2017 MO TRM Vol. 3 | BH115: 122 | BI115: 1376 | BJ115: EFLHheat | BK115: The EFLH Cooling and Heating hours are based on a EnergyStar study that was normalized (based on HDD and CDD) to Kansas City. This was for both AC and HP units. | BM115: 0.1 | BN115: DeratingCoolBase | BO115: IL TRM v11 vol3 | BP115: 115 | BQ115: 0.1 | BR115: DeratingCoolEff | BS115: IL TRM v11 vol3 | BT115: 115 | BU115: =0.805*(AS115/AB115)+0.367 -> 0.97075 | BV115: SEER2adj | BW115: Calculated value, using alhgorthim from IL TRM v11 vol3 | BX115: 115 | BY115: 0.03 | BZ115: Societal Discount Rate | CA115: Evergy Standard | CC115: 952 | CD115: First Cost $/ton | CE115: IL TRM v11 vol3 | CF115: 112 | CG115: 221 | CH115: One-time per-system labor cost | CI115: IL TRM v11 vol3 | CJ115: 112 | CK115: =-PV(BY115,6,0,3140)/CO115 -> 939.1787736 | CL115: Deferred cost savings, per UNIT | CM115: IL TRM v11 vol3 | CN115: 112 | CO115: 2.8 | CP115: Equipment size (tons) | CQ115: IL TRM v11 vol3 (for single family homes; multi-family default caused a negative incremental cost) | CR115: 114
A116: Income Eligible Program | B116: CAC SEER2 16 - Early Replacement: MF (future) | C116: 763.1 | D116: Multi-Family | E116: HVAC | G116: per ton | H116: 0 | I116: IL TRM v12 vol3 | J116: 128 | K116: =ROUND((U116*AW116*(1/(AF116*(1-BM116))-1/(AB116*(1-BQ116))))/1000,4) -> 119.3284 | L116: Calculated Value | N116: =ROUND(K116/U116,4) -> 0.1617 | O116: 0.68 | P116: IL TRM v12 vol3 | Q116: 129 | R116: =ROUND((AW116*(1/(BA116*(1-BM116))-1/(AS116*(1-BQ116))))/1000*O116,4) -> 0.1242 | S116: Calculated Value | U116: 738 | V116: EFLHcool, from 2017 MO TRM Vol. 3 | W116: 122 | X116: 12 | Y116: IL TRM v12 vol3 | Z116: 128 | AA116: SEER2ee | AB116: 16 | AC116: Nameplate rating | AE116: SEER2base | AF116: 13.4 | AG116: IL TRM v12 vol3, Federal minimum efficiency standard - Northern region of U.S. | AH116: 130 | AI116: =ROUND((U116*AW116*(1/(AF116*(1-BM116))-1/(AB116*(1-BQ116))))/1000,4) | AJ116: =ROUND((AW116*(1/(BA116*(1-BM116))-1/(AS116*(1-BQ116))))/1000*O116,4) | AK116: IL TRM v12 vol3 | AL116: 129, 131 | AM116: 2025-01-01 | AS116: 12.4 | AT116: EER2ee | AU116: IL TRM v12 vol3 | AV116: 132 | AW116: 12000 | AX116: Allows for Capacity input in Tons; converts tons to BTUs | BA116: 10.6 | BB116: EER2base | BC116: IL TRM v12 vol3 | BD116: 132 | BE116: 738 | BF116: EFLHcool | BG116: EFLHcool, from 2017 MO TRM Vol. 3 | BH116: 122 | BI116: 1376 | BJ116: EFLHheat | BK116: The EFLH Cooling and Heating hours are based on a EnergyStar study that was normalized (based on HDD and CDD) to Kansas City. This was for both AC and HP units. | BM116: 0.1 | BN116: DeratingCoolBase | BO116: IL TRM v12 vol3 | BP116: 131 | BQ116: 0.1 | BR116: DeratingCoolEff | BS116: IL TRM v12 vol3 | BT116: 131 | BY116: 0.03 | BZ116: Societal Discount Rate | CA116: Evergy Standard | CC116: 952 | CD116: First Cost $/ton | CE116: IL TRM v12 vol3 | CF116: 128 | CG116: 1270 | CH116: One-time per-system labor cost | CI116: IL TRM v12 vol3 | CJ116: 128 | CK116: =-PV(BY116,6,0,3140)/CO116 -> 939.1787736 | CL116: Deferred cost savings, per UNIT | CM116: IL TRM v12 vol3 | CN116: 128 | CO116: 2.8 | CP116: Equipment size (tons) | CQ116: IL TRM v12 vol3 - Multifamily | CR116: 130
A117: Income Eligible Program | B117: CAC SEER2 16 - Replace at Fail: MF | C117: 764 | D117: Multi-Family | E117: HVAC | G117: per ton | H117: =CC117/CO117 -> 78.92857143 | I117: IL TRM v11 vol3 | J117: 112 | K117: =ROUND((BE117*AW117*(1/((1-BM117)*AF117)-1/((1-BQ117)*(BU117)*AB117)))/1000,4) -> 100.7976 | L117: Calculated Value | N117: =K117/U117 -> 0.1365821138 | O117: 0.68 | P117: IL TRM v11 vol3 | Q117: 113 | R117: =ROUND(((AW117*((1/((1-BM117)*BA117))-(1/((1-BQ117)*AS117))))/1000)*O117,4) -> 0.1449 | S117: Calculated Value | U117: 738 | V117: EFLHcool, from 2017 MO TRM Vol. 3 | W117: 122 | X117: 18 | Y117: IL TRM v11 vol3 | Z117: 112 | AA117: SEER2ee | AB117: 16 | AC117: Nameplate rating | AE117: SEER2base | AF117: 13.4 | AG117: Federal minimum efficiency standard - Northern region of U.S. | AI117: =ROUND((BE117*AW117*(1/((1-BM117)*AF117)-1/((1-BQ117)*(BU117)*AB117)))/1000,4) | AJ117: =ROUND(((AW117*((1/((1-BM117)*BA117))-(1/((1-BQ117)*AS117))))/1000)*O117,4) | AK117: IL TRM v11 vol3 | AL117: 113, 116 | AM117: 2024-01-01 | AN117: 2024-12-31 | AS117: 12 | AT117: EER2ee | AU117: IL TRM v11 vol3 | AV117: 116 | AW117: 12000 | AX117: Allows for Capacity input in Tons; converts tons to BTUs | BA117: =10.5*0.959 -> 10.0695 | BB117: EER2base | BC117: IL TRM v11 vol3 | BD117: 116 | BE117: 738 | BF117: EFLHcool | BG117: EFLHcool, from 2017 MO TRM Vol. 3 | BH117: 122 | BI117: 1376 | BJ117: EFLHheat | BK117: The EFLH Cooling and Heating hours are based on a EnergyStar study that was normalized (based on HDD and CDD) to Kansas City. This was for both AC and HP units. | BM117: 0.1 | BN117: DeratingCoolBase | BO117: IL TRM v11 vol3 | BP117: 115 | BQ117: 0.1 | BR117: DeratingCoolEff | BS117: IL TRM v11 vol3 | BT117: 115 | BU117: =0.805*(AS117/AB117)+0.367 -> 0.97075 | BV117: SEER2adj | BW117: Calculated value, using alhgorthim from IL TRM v11 vol3 | BX117: 115 | CC117: 221 | CD117: Incremental Cost | CE117: IL TRM v11 vol3 | CF117: 112 | CO117: 2.8 | CP117: Equipment size (tons) | CQ117: IL TRM v11 vol3 (for single family homes; multi-family default caused a negative incremental cost) | CR117: 114
A118: Income Eligible Program | B118: CAC SEER2 16 - Replace at Fail: MF | C118: 764.1 | D118: Multi-Family | E118: HVAC | G118: per ton | H118: =CC118/CO118 -> 453.5714286 | I118: IL TRM v12 vol3 | J118: 128 | K118: =ROUND((U118*AW118*(1/(AF118*(1-BM118))-1/(AB118*(1-BQ118))))/1000,4) -> 119.3284 | L118: Calculated Value | N118: =ROUND(K118/U118,4) -> 0.1617 | O118: 0.68 | P118: IL TRM v12 vol3 | Q118: 129 | R118: =ROUND((AW118*(1/(BA118*(1-BM118))-1/(AS118*(1-BQ118))))/1000*O118,4) -> 0.1242 | S118: Calculated Value | U118: 738 | V118: EFLHcool, from 2017 MO TRM Vol. 3 | W118: 122 | X118: 18 | Y118: IL TRM v12 vol3 | Z118: 128 | AA118: SEER2ee | AB118: 16 | AC118: Nameplate rating | AE118: SEER2base | AF118: 13.4 | AG118: IL TRM v12 vol3, Federal minimum efficiency standard - Northern region of U.S. | AH118: 130 | AI118: =ROUND((U118*AW118*(1/(AF118*(1-BM118))-1/(AB118*(1-BQ118))))/1000,4) | AJ118: =ROUND((AW118*(1/(BA118*(1-BM118))-1/(AS118*(1-BQ118))))/1000*O118,4) | AK118: IL TRM v12 vol3 | AL118: 129, 131 | AM118: 2025-01-01 | AS118: 12.4 | AT118: EER2ee | AU118: IL TRM v12 vol3 | AV118: 132 | AW118: 12000 | AX118: Allows for Capacity input in Tons; converts tons to BTUs | BA118: 10.6 | BB118: EER2base | BC118: IL TRM v12 vol3 | BD118: 132 | BE118: 738 | BF118: EFLHcool | BG118: EFLHcool, from 2017 MO TRM Vol. 3 | BH118: 122 | BI118: 1376 | BJ118: EFLHheat | BK118: The EFLH Cooling and Heating hours are based on a EnergyStar study that was normalized (based on HDD and CDD) to Kansas City. This was for both AC and HP units. | BM118: 0.1 | BN118: DeratingCoolBase | BO118: IL TRM v12 vol3 | BP118: 131 | BQ118: 0.1 | BR118: DeratingCoolEff | BS118: IL TRM v12 vol3 | BT118: 131 | CC118: 1270 | CD118: Incremental Cost | CE118: IL TRM v12 vol3 | CF118: 128 | CO118: 2.8 | CP118: Equipment size (tons) | CQ118: IL TRM v12 vol3 - Multifamily | CR118: 130
A119: Income Eligible Program | B119: CAC SEER2 17+ - Early Replacement: MF | C119: 765 | D119: Multi-Family | E119: HVAC | G119: per ton | H119: =((CC119*CO119+CG119)/CO119)-CK119 -> 234.2497979 | I119: IL TRM v11 vol3 / Program Tracking Data | J119: 112 | K119: =ROUND((BE119*AW119*(1/((1-BM119)*AF119)-1/((1-BQ119)*(BU119)*AB119)))/1000,4) -> 489.0141 | L119: Calculated Value | N119: =K119/U119 -> 0.6626207317 | O119: 0.68 | P119: IL TRM v11 vol3 | Q119: 113 | R119: =ROUND(((AW119*((1/((1-BM119)*BA119))-(1/((1-BQ119)*AS119))))/1000)*O119,4) -> 0.505 | S119: Calculated Value | U119: 738 | V119: EFLHcool, from 2017 MO TRM Vol. 3 | W119: 122 | X119: 6 | Y119: IL TRM v11 vol3 | Z119: 112 | AA119: SEER2ee | AB119: 17 | AC119: Nameplate rating | AE119: SEER2exist | AF119: =9.3*0.955 -> 8.8815 | AG119: IL TRM v11 vol3 | AH119: 114 | AI119: =ROUND((BE119*AW119*(1/((1-BM119)*AF119)-1/((1-BQ119)*(BU119)*AB119)))/1000,4) | AJ119: =ROUND(((AW119*((1/((1-BM119)*BA119))-(1/((1-BQ119)*AS119))))/1000)*O119,4) | AK119: IL TRM v11 vol3 | AL119: 113, 116 | AM119: 2024-01-01 | AN119: 2024-12-31 | AS119: 12 | AT119: EER2ee | AU119: IL TRM v11 vol3 | AV119: 116 | AW119: 12000 | AX119: Allows for Capacity input in Tons; converts tons to BTUs | BA119: =7.5*0.959 -> 7.1925 | BB119: EER2exist | BC119: IL TRM v11 vol3 | BD119: 116 | BE119: 738 | BF119: EFLHcool | BG119: EFLHcool, from 2017 MO TRM Vol. 3 | BH119: 122 | BI119: 1376 | BJ119: EFLHheat | BK119: The EFLH Cooling and Heating hours are based on a EnergyStar study that was normalized (based on HDD and CDD) to Kansas City. This was for both AC and HP units. | BM119: 0.1 | BN119: DeratingCoolBase | BO119: IL TRM v11 vol3 | BP119: 115 | BQ119: 0.1 | BR119: DeratingCoolEff | BS119: IL TRM v11 vol3 | BT119: 115 | BU119: =0.805*(AS119/AB119)+0.367 -> 0.9352352941 | BV119: SEER2adj | BW119: Calculated value, using alhgorthim from IL TRM v11 vol3 | BX119: 115 | BY119: 0.03 | BZ119: Societal Discount Rate | CA119: Evergy Standard | CC119: 952 | CD119: First Cost $/ton | CE119: IL TRM v11 vol3 | CF119: 112 | CG119: 620 | CH119: One-time per-system labor cost | CI119: IL TRM v11 vol3 | CJ119: 112 | CK119: =-PV(BY119,6,0,3140)/CO119 -> 939.1787736 | CL119: Deferred cost savings, per UNIT | CM119: IL TRM v11 vol3 | CN119: 112 | CO119: 2.8 | CP119: Equipment size (tons) | CQ119: IL TRM v11 vol3 (for single family homes; multi-family default caused a negative incremental cost) | CR119: 114
A120: Income Eligible Program | B120: CAC SEER2 17+ - Early Replacement: MF | C120: 765.1 | D120: Multi-Family | E120: HVAC | G120: per ton | H120: =((CC120*CO120+CG120)/CO120)-CK120 -> 466.392655 | I120: IL TRM v12 vol3 | J120: 128 | K120: =ROUND((U120*AW120*(1/(AF120*(1-BM120))-1/(AB120*(1-BQ120))))/1000,4) -> 526.7944 | L120: Calculated Value | N120: =ROUND(K120/U120,4) -> 0.7138 | O120: 0.68 | P120: IL TRM v12 vol3 | Q120: 129 | R120: =ROUND((AW120*(1/(BA120*(1-BM120))-1/(AS120*(1-BQ120))))/1000*O120,4) -> 0.5281 | S120: Calculated Value | U120: 738 | V120: EFLHcool, from 2017 MO TRM Vol. 3 | W120: 122 | X120: 6 | Y120: IL TRM v12 vol3 | Z120: 128 | AA120: SEER2ee | AB120: 17 | AC120: Nameplate rating | AE120: SEER2exist | AF120: 8.9 | AG120: IL TRM v12 vol3 | AH120: 130 | AI120: =ROUND((U120*AW120*(1/(AF120*(1-BM120))-1/(AB120*(1-BQ120))))/1000,4) | AJ120: =ROUND((AW120*(1/(BA120*(1-BM120))-1/(AS120*(1-BQ120))))/1000*O120,4) | AK120: IL TRM v12 vol3 | AL120: 129, 131 | AM120: 2025-01-01 | AS120: 12.4 | AT120: EER2ee | AU120: IL TRM v12 vol3 | AV120: 132 | AW120: 12000 | AX120: Allows for Capacity input in Tons; converts tons to BTUs | BA120: 7.2 | BB120: EER2exist | BC120: IL TRM v12 vol3 | BD120: 132 | BE120: 738 | BF120: EFLHcool | BG120: EFLHcool, from 2017 MO TRM Vol. 3 | BH120: 122 | BI120: 1376 | BJ120: EFLHheat | BK120: The EFLH Cooling and Heating hours are based on a EnergyStar study that was normalized (based on HDD and CDD) to Kansas City. This was for both AC and HP units. | BM120: 0.1 | BN120: DeratingCoolBase | BO120: IL TRM v12 vol3 | BP120: 131 | BQ120: 0.1 | BR120: DeratingCoolEff | BS120: IL TRM v12 vol3 | BT120: 131 | BY120: 0.03 | BZ120: Societal Discount Rate | CA120: Evergy Standard | CC120: 952 | CD120: First Cost $/ton | CE120: IL TRM v12 vol3 | CF120: 128 | CG120: 1270 | CH120: One-time per-system labor cost | CI120: IL TRM v12 vol3 | CJ120: 128 | CK120: =-PV(BY120,6,0,3140)/CO120 -> 939.1787736 | CL120: Deferred cost savings, per UNIT | CM120: IL TRM v12 vol3 | CN120: 128 | CO120: 2.8 | CP120: Equipment size (tons) | CQ120: IL TRM v12 vol3 - Multifamily | CR120: 130
A121: Income Eligible Program | B121: CAC SEER2 17+ - Early Replacement: MF (future) | C121: 766 | D121: Multi-Family | E121: HVAC | G121: per ton | H121: 0 | I121: IL TRM v11 vol3 | J121: 112 | K121: =ROUND((BE121*AW121*(1/((1-BM121)*AF121)-1/((1-BQ121)*(BU121)*AB121)))/1000,4) -> 115.4215 | L121: Calculated Value | N121: =K121/U121 -> 0.1563976965 | O121: 0.68 | P121: IL TRM v11 vol3 | Q121: 113 | R121: =ROUND(((AW121*((1/((1-BM121)*BA121))-(1/((1-BQ121)*AS121))))/1000)*O121,4) -> 0.1449 | S121: Calculated Value | U121: 738 | V121: EFLHcool, from 2017 MO TRM Vol. 3 | W121: 122 | X121: 12 | Y121: IL TRM v11 vol3 | Z121: 112 | AA121: SEER2ee | AB121: 17 | AC121: Nameplate rating | AE121: SEER2base | AF121: 13.4 | AG121: Federal minimum efficiency standard - Northern region of U.S. | AI121: =ROUND((BE121*AW121*(1/((1-BM121)*AF121)-1/((1-BQ121)*(BU121)*AB121)))/1000,4) | AJ121: =ROUND(((AW121*((1/((1-BM121)*BA121))-(1/((1-BQ121)*AS121))))/1000)*O121,4) | AK121: IL TRM v11 vol3 | AL121: 113, 116 | AM121: 2024-01-01 | AN121: 2024-12-31 | AS121: 12 | AT121: EER2ee | AU121: IL TRM v11 vol3 | AV121: 116 | AW121: 12000 | AX121: Allows for Capacity input in Tons; converts tons to BTUs | BA121: =10.5*0.959 -> 10.0695 | BB121: EER2base | BC121: IL TRM v11 vol3 | BD121: 116 | BE121: 738 | BF121: EFLHcool | BG121: EFLHcool, from 2017 MO TRM Vol. 3 | BH121: 122 | BI121: 1376 | BJ121: EFLHheat | BK121: The EFLH Cooling and Heating hours are based on a EnergyStar study that was normalized (based on HDD and CDD) to Kansas City. This was for both AC and HP units. | BM121: 0.1 | BN121: DeratingCoolBase | BO121: IL TRM v11 vol3 | BP121: 115 | BQ121: 0.1 | BR121: DeratingCoolEff | BS121: IL TRM v11 vol3 | BT121: 115 | BU121: =0.805*(AS121/AB121)+0.367 -> 0.9352352941 | BV121: SEER2adj | BW121: Calculated value, using alhgorthim from IL TRM v11 vol3 | BX121: 115 | BY121: 0.03 | BZ121: Societal Discount Rate | CA121: Evergy Standard | CC121: 952 | CD121: First Cost $/ton | CE121: IL TRM v11 vol3 | CF121: 112 | CG121: 620 | CH121: One-time per-system labor cost | CI121: IL TRM v11 vol3 | CJ121: 112 | CK121: =-PV(BY121,6,0,3140)/CO121 -> 939.1787736 | CL121: Deferred cost savings, per UNIT | CM121: IL TRM v11 vol3 | CN121: 112 | CO121: 2.8 | CP121: Equipment size (tons) | CQ121: IL TRM v11 vol3 (for single family homes; multi-family default caused a negative incremental cost) | CR121: 114
A122: Income Eligible Program | B122: CAC SEER2 17+ - Early Replacement: MF (future) | C122: 766.1 | D122: Multi-Family | E122: HVAC | G122: per ton | H122: 0 | I122: IL TRM v12 vol3 | J122: 128 | K122: =ROUND((U122*AW122*(1/(AF122*(1-BM122))-1/(AB122*(1-BQ122))))/1000,4) -> 155.5048 | L122: Calculated Value | N122: =ROUND(K122/U122,4) -> 0.2107 | O122: 0.68 | P122: IL TRM v12 vol3 | Q122: 129 | R122: =ROUND((AW122*(1/(BA122*(1-BM122))-1/(AS122*(1-BQ122))))/1000*O122,4) -> 0.1242 | S122: Calculated Value | U122: 738 | V122: EFLHcool, from 2017 MO TRM Vol. 3 | W122: 122 | X122: 12 | Y122: IL TRM v12 vol3 | Z122: 128 | AA122: SEER2ee | AB122: 17 | AC122: Nameplate rating | AE122: SEER2base | AF122: 13.4 | AG122: IL TRM v12 vol3, Federal minimum efficiency standard - Northern region of U.S. | AH122: 130 | AI122: =ROUND((U122*AW122*(1/(AF122*(1-BM122))-1/(AB122*(1-BQ122))))/1000,4) | AJ122: =ROUND((AW122*(1/(BA122*(1-BM122))-1/(AS122*(1-BQ122))))/1000*O122,4) | AK122: IL TRM v12 vol3 | AL122: 129, 131 | AM122: 2025-01-01 | AS122: 12.4 | AT122: EER2ee | AU122: IL TRM v12 vol3 | AV122: 132 | AW122: 12000 | AX122: Allows for Capacity input in Tons; converts tons to BTUs | BA122: 10.6 | BB122: EER2base | BC122: IL TRM v12 vol3 | BD122: 132 | BE122: 738 | BF122: EFLHcool | BG122: EFLHcool, from 2017 MO TRM Vol. 3 | BH122: 122 | BI122: 1376 | BJ122: EFLHheat | BK122: The EFLH Cooling and Heating hours are based on a EnergyStar study that was normalized (based on HDD and CDD) to Kansas City. This was for both AC and HP units. | BM122: 0.1 | BN122: DeratingCoolBase | BO122: IL TRM v12 vol3 | BP122: 131 | BQ122: 0.1 | BR122: DeratingCoolEff | BS122: IL TRM v12 vol3 | BT122: 131 | BY122: 0.03 | BZ122: Societal Discount Rate | CA122: Evergy Standard | CC122: 952 | CD122: First Cost $/ton | CE122: IL TRM v12 vol3 | CF122: 128 | CG122: 1270 | CH122: One-time per-system labor cost | CI122: IL TRM v12 vol3 | CJ122: 128 | CK122: =-PV(BY122,6,0,3140)/CO122 -> 939.1787736 | CL122: Deferred cost savings, per UNIT | CM122: IL TRM v12 vol3 | CN122: 128 | CO122: 2.8 | CP122: Equipment size (tons) | CQ122: IL TRM v12 vol3 - Multifamily | CR122: 130
A123: Income Eligible Program | B123: CAC SEER2 17+ - Replace at Fail: MF | C123: 767 | D123: Multi-Family | E123: HVAC | G123: per ton | H123: =CC123/CO123 -> 221.4285714 | I123: IL TRM v11 vol3 | J123: 112 | K123: =ROUND((BE123*AW123*(1/((1-BM123)*AF123)-1/((1-BQ123)*(BU123)*AB123)))/1000,4) -> 115.4215 | L123: Calculated Value | N123: =K123/U123 -> 0.1563976965 | O123: 0.68 | P123: IL TRM v11 vol3 | Q123: 113 | R123: =ROUND(((AW123*((1/((1-BM123)*BA123))-(1/((1-BQ123)*AS123))))/1000)*O123,4) -> 0.1449 | S123: Calculated Value | U123: 738 | V123: EFLHcool, from 2017 MO TRM Vol. 3 | W123: 122 | X123: 18 | Y123: IL TRM v11 vol3 | Z123: 112 | AA123: SEER2ee | AB123: 17 | AC123: Nameplate rating | AE123: SEER2base | AF123: 13.4 | AG123: Federal minimum efficiency standard - Northern region of U.S. | AI123: =ROUND((BE123*AW123*(1/((1-BM123)*AF123)-1/((1-BQ123)*(BU123)*AB123)))/1000,4) | AJ123: =ROUND(((AW123*((1/((1-BM123)*BA123))-(1/((1-BQ123)*AS123))))/1000)*O123,4) | AK123: IL TRM v11 vol3 | AL123: 113, 116 | AM123: 2024-01-01 | AN123: 2024-12-31 | AS123: 12 | AT123: EER2ee | AU123: IL TRM v11 vol3 | AV123: 116 | AW123: 12000 | AX123: Allows for Capacity input in Tons; converts tons to BTUs | BA123: =10.5*0.959 -> 10.0695 | BB123: EER2base | BC123: IL TRM v11 vol3 | BD123: 116 | BE123: 738 | BF123: EFLHcool | BG123: EFLHcool, from 2017 MO TRM Vol. 3 | BH123: 122 | BI123: 1376 | BJ123: EFLHheat | BK123: The EFLH Cooling and Heating hours are based on a EnergyStar study that was normalized (based on HDD and CDD) to Kansas City. This was for both AC and HP units. | BM123: 0.1 | BN123: DeratingCoolBase | BO123: IL TRM v11 vol3 | BP123: 115 | BQ123: 0.1 | BR123: DeratingCoolEff | BS123: IL TRM v11 vol3 | BT123: 115 | BU123: =0.805*(AS123/AB123)+0.367 -> 0.9352352941 | BV123: SEER2adj | BW123: Calculated value, using alhgorthim from IL TRM v11 vol3 | BX123: 115 | CC123: 620 | CD123: Incremental Cost | CE123: IL TRM v11 vol3 | CF123: 112 | CO123: 2.8 | CP123: Equipment size (tons) | CQ123: IL TRM v11 vol3 (for single family homes; multi-family default caused a negative incremental cost) | CR123: 114
A124: Income Eligible Program | B124: CAC SEER2 17+ - Replace at Fail: MF | C124: 767.1 | D124: Multi-Family | E124: HVAC | G124: per ton | H124: =CC124/CO124 -> 453.5714286 | I124: IL TRM v12 vol3 | J124: 128 | K124: =ROUND((U124*AW124*(1/(AF124*(1-BM124))-1/(AB124*(1-BQ124))))/1000,4) -> 155.5048 | L124: Calculated Value | N124: =ROUND(K124/U124,4) -> 0.2107 | O124: 0.68 | P124: IL TRM v12 vol3 | Q124: 129 | R124: =ROUND((AW124*(1/(BA124*(1-BM124))-1/(AS124*(1-BQ124))))/1000*O124,4) -> 0.1242 | S124: Calculated Value | U124: 738 | V124: EFLHcool, from 2017 MO TRM Vol. 3 | W124: 122 | X124: 18 | Y124: IL TRM v12 vol3 | Z124: 128 | AA124: SEER2ee | AB124: 17 | AC124: Nameplate rating | AE124: SEER2base | AF124: 13.4 | AG124: IL TRM v12 vol3, Federal minimum efficiency standard - Northern region of U.S. | AH124: 130 | AI124: =ROUND((U124*AW124*(1/(AF124*(1-BM124))-1/(AB124*(1-BQ124))))/1000,4) | AJ124: =ROUND((AW124*(1/(BA124*(1-BM124))-1/(AS124*(1-BQ124))))/1000*O124,4) | AK124: IL TRM v12 vol3 | AL124: 129, 131 | AM124: 2025-01-01 | AS124: 12.4 | AT124: EER2ee | AU124: IL TRM v12 vol3 | AV124: 132 | AW124: 12000 | AX124: Allows for Capacity input in Tons; converts tons to BTUs | BA124: 10.6 | BB124: EER2base | BC124: IL TRM v12 vol3 | BD124: 132 | BE124: 738 | BF124: EFLHcool | BG124: EFLHcool, from 2017 MO TRM Vol. 3 | BH124: 122 | BI124: 1376 | BJ124: EFLHheat | BK124: The EFLH Cooling and Heating hours are based on a EnergyStar study that was normalized (based on HDD and CDD) to Kansas City. This was for both AC and HP units. | BM124: 0.1 | BN124: DeratingCoolBase | BO124: IL TRM v12 vol3 | BP124: 131 | BQ124: 0.1 | BR124: DeratingCoolEff | BS124: IL TRM v12 vol3 | BT124: 131 | CC124: 1270 | CD124: Incremental Cost | CE124: IL TRM v12 vol3 | CF124: 128 | CO124: 2.8 | CP124: Equipment size (tons) | CQ124: IL TRM v12 vol3 - Multifamily | CR124: 130
A125: Income Eligible Program | B125: CAC Tune-up /Outdoor Coil (Condenser) Cleaning MF | C125: 411.2 | D125: Multi-Family | E125: HVAC | F125: Kits | G125: per unit | H125: 122.48 | I125: WI TRM 2023 | J125: 868 | K125: =ROUND((AS125*12*AW125)/(BA125*(1-BE125))*BE125,4) -> 78.7975 | L125: Calculated Value | O125: 0.68 | P125: WI TRM 2023 | Q125: 869 | R125: =ROUND((AS125*12*AW125)/(BI125*(1-BE125))*BE125*O125,4) -> 61.1647 | S125: Calculated Value | X125: 2 | Y125: WI TRM 2023 | Z125: 868 | AA125: Cleaning the condensing coil and replacing the filter on a CAC or HP | AC125: WI TRM 2023 | AD125: 868 | AE125: The baseline condition is an AC or ASHP that has not been maintained in the last 2 years | AG125: WI TRM 2023 | AH125: 868 | AI125: =ROUND((AS125*12*AW125)/(BA125*(1-BE125))*BE125,4) | AJ125: =ROUND((AS125*12*AW125)/(BI125*(1-BE125))*BE125*O125,4) | AK125: WI TRM 2023 | AL125: 868, 869 | AM125: 2025-01-01 | AS125: 2.425 | AT125: Unit Capacity (tons) | AU125: WI TRM 2023 | AV125: 869 | AW125: 410 | AX125: Equivalent Full Load Hours | AY125: WI TRM 2023 | AZ125: 869 | BA125: 12.1 | BB125: SEER | BC125: WI TRM 2023 | BD125: 869 | BE125: 0.074 | BF125: SF | BG125: WI TRM 2023 | BH125: 869 | BI125: 10.6 | BJ125: EER | BK125: WI TRM 2023 | BL125: 869
A126: Income Eligible Program | B126: Commercial Grade Dryers (Electric) | C126: 408.1 | D126: Common Area MF | E126: Appliances | G126: per unit | H126: 850 | I126: Evergy Guidance | J126: 47 | K126: =ROUND((AS126/AW126-AS126/BA126)*BE126*BI126,4) -> 160.4368 | L126: Calculated Value | N126: =K126/U126 -> 0.5669144876 | O126: 0.038 | P126: IL TRM v11 vol3 | Q126: 50 | R126: =ROUND(K126/BM126*BQ126,4) -> 0.0215 | S126: Calculated Value | U126: 283 | V126: IL TRM v11 vol3 | W126: 54 | X126: 16 | Y126: IL TRM v11 vol3 | Z126: 50 | AA126: CEF_eff | AB126: 3.93 | AC126: IL TRM v11 vol3 - Vented or Ventless Electric, Standard (>= 4.4 ft3) | AD126: 52 | AE126: CEF_base | AF126: 3.11 | AG126: IL TRM v11 vol3 - Vented or Ventless Electric, Standard (>= 4.4 ft3) | AH126: 52 | AI126: =ROUND((AS126/AW126-AS126/BA126)*BE126*BI126,4) | AJ126: =ROUND(K126/BM126*BQ126,4) | AK126: IL TRM v11 vol3 | AL126: 51, 54 | AM126: 2022-01-01 | AN126: 2024-12-31 | AS126: 8.45 | AT126: Load (Standard) | AU126: IL TRM v11 vol3 | AV126: 51 | AW126: 3.11 | AX126: CEF_base | AY126: IL TRM v11 vol3 | AZ126: 52 | BA126: 3.93 | BB126: CEF_eff | BC126: IL TRM v11 vol3 | BD126: 52 | BE126: 283 | BF126: N_cycles | BG126: IL TRM v11 vol3 | BH126: 52 | BI126: 1 | BJ126: %Electric | BK126: IL TRM v11 vol3 | BL126: 52 | BM126: 283 | BN126: Hours | BO126: IL TRM v11 vol3 | BP126: 54 | BQ126: 0.038 | BR126: CF | BS126: IL TRM v11 vol3 | BT126: 54
A127: Income Eligible Program | B127: Commercial Grade Dryers (Electric) | C127: 408.2 | D127: Common Area MF | E127: Appliances | G127: per unit | H127: 850 | I127: Evergy Guidance | K127: =ROUND(((AS127/AW127*BU127)-AS127/BA127)*BE127*BI127,4) -> 185.8113 | L127: Calculated Value | N127: =ROUND(K127/U127,4) -> 0.6566 | O127: 0.038 | P127: IL TRM v12 vol3 | Q127: 53 | R127: =ROUND((((AS127/AW127*BU127)-AS127/BA127)*BE127*BI127)/U127*O127,4) -> 0.0249 | S127: Calculated Value | U127: 283 | V127: IL TRM v12 vol3 | W127: 58 | X127: 16 | Y127: IL TRM v12 vol3 | Z127: 53 | AA127: CEF_eff - Vented or Ventless Electric, Standard (>= 4.4 ft3) | AB127: 3.93 | AC127: IL TRM v12 vol3 - Vented or Ventless Electric, Standard (>= 4.4 ft3) | AD127: 55 | AE127: CEF_base - Vented, Electric, Standard (>= 4.4 ft3) | AF127: 3.11 | AG127: IL TRM v12 vol3 | AH127: 55 | AI127: =ROUND(((AS127/AW127*BU127)-AS127/BA127)*BE127*BI127,4) | AJ127: =ROUND((((AS127/AW127*BU127)-AS127/BA127)*BE127*BI127)/U127*O127,4) | AK127: IL TRM v12 vol3 | AL127: 54, 57 | AM127: 2025-01-01 | AS127: 8.45 | AT127: Load (Standard) | AU127: IL TRM v12 vol3 | AV127: 55 | AW127: 3.11 | AX127: CEF_base - Vented Electric, Standard (>= 4.4 ft3) | AY127: IL TRM v12 vol3 | AZ127: 55 | BA127: 3.93 | BB127: CEF_eff - Vented or Ventless Electric, Standard (>= 4.4 ft3) | BC127: IL TRM v12 vol3 | BD127: 55 | BE127: 283 | BF127: N_cycles | BG127: IL TRM v12 vol3 | BH127: 56 | BI127: 1 | BJ127: %Electric | BK127: IL TRM v12 vol3 | BL127: 56 | BM127: 283 | BN127: Hours | BO127: IL TRM v12 vol3 | BP127: 58 | BQ127: 0.038 | BR127: CF | BS127: IL TRM v12 vol3 | BT127: 58 | BU127: 1.033 | BV127: IQAdj | BW127: IL TRM v12 vol3 | BX127: 55
A128: Income Eligible Program | B128: Commercial Grade Dryers (Gas) | C128: 698 | D128: Common Area MF | E128: Appliances | G128: per unit | H128: 850 | I128: Evergy Guidance | J128: 47 | K128: =ROUND((AS128/AW128-AS128/BA128)*BE128*BI128,4) -> 25.6699 | L128: Calculated Value | N128: =K128/U128 -> 0.09070636042 | O128: 0.038 | P128: IL TRM v11 vol3 | Q128: 50 | R128: =ROUND(K128/BM128*BQ128,4) -> 0.0034 | S128: Calculated Value | U128: 283 | V128: IL TRM v11 vol3 | W128: 54 | X128: 16 | Y128: IL TRM v11 vol3 | Z128: 50 | AA128: CEF_eff | AB128: 3.93 | AC128: IL TRM v11 vol3 - Vented or Ventless Electric, Standard (>= 4.4 ft3) | AD128: 52 | AE128: CEF_base | AF128: 3.11 | AG128: IL TRM v11 vol3 - Vented or Ventless Electric, Standard (>= 4.4 ft3) | AH128: 52 | AI128: =ROUND((AS128/AW128-AS128/BA128)*BE128*BI128,4) | AJ128: =ROUND(K128/BM128*BQ128,4) | AK128: IL TRM v11 vol3 | AL128: 51, 54 | AM128: 2024-01-01 | AN128: 2024-12-31 | AS128: 8.45 | AT128: Load (Standard) | AU128: IL TRM v11 vol3 | AV128: 51 | AW128: 3.11 | AX128: CEF_base | AY128: IL TRM v11 vol3 | AZ128: 52 | BA128: 3.93 | BB128: CEF_eff | BC128: IL TRM v11 vol3 | BD128: 52 | BE128: 283 | BF128: N_cycles | BG128: IL TRM v11 vol3 | BH128: 52 | BI128: 0.16 | BJ128: %Electric | BK128: IL TRM v11 vol3 | BL128: 52 | BM128: 283 | BN128: Hours | BO128: IL TRM v11 vol3 | BP128: 54 | BQ128: 0.038 | BR128: CF | BS128: IL TRM v11 vol3 | BT128: 54
A129: Income Eligible Program | B129: Commercial Grade Dryers (Gas) | C129: 698.1 | D129: Common Area MF | E129: Appliances | G129: per unit | H129: 850 | I129: Evergy Guidance | K129: =ROUND(((AS129/AW129*BU129)-AS129/BA129)*BE129*BI129,4) -> 29.7298 | L129: Calculated Value | N129: =ROUND(K129/U129,4) -> 0.1051 | O129: 0.038 | P129: IL TRM v12 vol3 | Q129: 53 | R129: =ROUND((((AS129/AW129*BU129)-AS129/BA129)*BE129*BI129)/U129*O129,4) -> 0.004 | S129: Calculated Value | U129: 283 | V129: IL TRM v12 vol3 | W129: 58 | X129: 16 | Y129: IL TRM v12 vol3 | Z129: 53 | AA129: CEF_eff - Vented or Ventless Electric, Standard (>= 4.4 ft3) | AB129: 3.93 | AC129: IL TRM v12 vol3 - Vented or Ventless Electric, Standard (>= 4.4 ft3) | AD129: 55 | AE129: CEF_base - Vented, Electric, Standard (>= 4.4 ft3) | AF129: 3.11 | AG129: IL TRM v12 vol3 | AH129: 55 | AI129: =ROUND(((AS129/AW129*BU129)-AS129/BA129)*BE129*BI129,4) | AJ129: =ROUND((((AS129/AW129*BU129)-AS129/BA129)*BE129*BI129)/U129*O129,4) | AK129: IL TRM v12 vol3 | AL129: 54, 57 | AM129: 2025-01-01 | AS129: 8.45 | AT129: Load (Standard) | AU129: IL TRM v12 vol3 | AV129: 55 | AW129: 3.11 | AX129: CEF_base - Vented Electric, Standard (>= 4.4 ft3) | AY129: IL TRM v12 vol3 | AZ129: 55 | BA129: 3.93 | BB129: CEF_eff - Vented or Ventless Electric, Standard (>= 4.4 ft3) | BC129: IL TRM v12 vol3 | BD129: 55 | BE129: 283 | BF129: N_cycles | BG129: IL TRM v12 vol3 | BH129: 56 | BI129: 0.16 | BJ129: %Electric | BK129: IL TRM v12 vol3 | BL129: 56 | BM129: 283 | BN129: Hours | BO129: IL TRM v12 vol3 | BP129: 58 | BQ129: 0.038 | BR129: CF | BS129: IL TRM v12 vol3 | BT129: 58 | BU129: 1.033 | BV129: IQAdj | BW129: IL TRM v12 vol3 | BX129: 55
A130: Income Eligible Program | B130: Commercial Grade Washing Machines (Electric DHW) | C130: 407.2 | D130: Common Area MF | E130: Appliances | G130: per unit | H130: 850 | I130: Evergy Guidance | J130: 8 | K130: =ROUND((AS130*1/AW130*BA130*(BE130+(BI130*BM130)+(BQ130*BU130)))-(AS130*1/BY130*BA130*(CC130+(CG130*CK130)+(CO130*CS130))),4) -> 138.5581 | L130: Calculated Value | N130: =K130/U130 -> 0.4696884746 | O130: 0.038 | P130: IL TRM v11 vol3 | Q130: 11 | R130: =ROUND(K130/CW130*DA130,4) -> 0.0178 | S130: Calculated Value | U130: 295 | V130: IL TRM v11 vol3 | W130: 14 | X130: 14 | Y130: IL TRM v11 vol3 | Z130: 10 | AA130: IMEF | AB130: 2.21 | AC130: IL TRM v11 vol3 - ENERGY STAR | AD130: 12 | AE130: IMEF | AF130: 1.71 | AG130: IL TRM v11 vol3 - Federal Standard | AH130: 12 | AI130: =ROUND((AS130*1/AW130*BA130*(BE130+(BI130*BM130)+(BQ130*BU130)))-(AS130*1/BY130*BA130*(CC130+(CG130*CK130)+(CO130*CS130))),4) | AJ130: =ROUND(K130/CW130*DA130,4) | AK130: IL TRM v11 vol3 | AL130: 11, 14 | AM130: 2024-01-01 | AN130: 2024-12-31 | AS130: 3.55 | AT130: Capacity | AU130: IL TRM v11 vol3 | AV130: 11 | AW130: 1.71 | AX130: IMEFbase | AY130: IL TRM v11 vol3 | AZ130: 11 | BA130: 295 | BB130: Ncycles | BC130: IL TRM v11 vol3 | BD130: 11 | BE130: 0.067 | BF130: %Cwbase | BG130: IL TRM v11 vol3 | BH130: 12 | BI130: 0.158 | BJ130: %DHWbase | BK130: IL TRM v11 vol3 | BL130: 12 | BM130: 1 | BN130: %Electric_DHW | BO130: IL TRM v11 vol3 | BP130: 12 | BQ130: 0.775 | BR130: %Dryerbase | BS130: IL TRM v11 vol3 | BT130: 12 | BU130: 1 | BV130: %Electric_dryer | BW130: IL TRM v11 vol3 | BX130: 12 | BY130: 2.21 | BZ130: IMEFeff | CA130: IL TRM v11 vol3 | CB130: 12 | CC130: 0.066 | CD130: %Cweff | CE130: IL TRM v11 vol3 | CF130: 12 | CG130: 0.13 | CH130: %DHWeff | CI130: IL TRM v11 vol3 | CJ130: 12 | CK130: 1 | CL130: %Electric_DHW | CM130: IL TRM v11 vol3 | CN130: 12 | CO130: 0.804 | CP130: %Dryereff | CQ130: IL TRM v11 vol3 | CR130: 12 | CS130: 1 | CT130: %Electric_Dryer | CU130: IL TRM v11 vol3 | CV130: 12 | CW130: 295 | CX130: Hours | CY130: IL TRM v11 vol3 | CZ130: 14 | DA130: 0.038 | DB130: CF | DC130: IL TRM v11 vol3 | DD130: 14
A131: Income Eligible Program | B131: Commercial Grade Washing Machines (Electric DHW) | C131: 407.3 | D131: Common Area MF | E131: Appliances | G131: per unit | H131: 850 | I131: Evergy Guidance | K131: =ROUND((AS131*1/AW131*BA131*(BE131+(BI131*BM131)+(BQ131*BU131)))-(AS131*1/BY131*BA131*(CC131+(CG131*CK131)+(CO131*CS131))),4) -> 138.5581 | L131: Calculated Value | N131: =ROUND(K131/U131,4) -> 0.4697 | O131: 0.038 | P131: IL TRM v12 vol3 | Q131: 11 | R131: =ROUND(K131/U131*O131,4) -> 0.0178 | S131: Calculated Value | U131: 295 | V131: IL TRM v12 vol3 | W131: 15 | X131: 14 | Y131: IL TRM v12 vol3 | Z131: 10 | AA131: IEMF - ENERGY STAR | AB131: 2.21 | AC131: IL TRM v12 vol3 - ENERGY STAR | AD131: 12 | AE131: IEMF - Federal Standard | AF131: 1.75 | AG131: IL TRM v12 vol3 - Federal Standard | AH131: 12 | AI131: =ROUND((AS131*1/AW131*BA131*(BE131+(BI131*BM131)+(BQ131*BU131)))-(AS131*1/BY131*BA131*(CC131+(CG131*CK131)+(CO131*CS131))),4) | AJ131: =ROUND(K131/U131*O131,4) | AK131: IL TRM v12 vol3 | AL131: 11, 15 | AM131: 2025-01-01 | AS131: 3.55 | AT131: Capacity - unknown | AU131: IL TRM v12 vol3 | AV131: 11 | AW131: 1.71 | AX131: IMEFbase | AY131: IL TRM v12 vol3 | AZ131: 12 | BA131: 295 | BB131: Ncycles | BC131: IL TRM v12 vol3 | BD131: 12 | BE131: 0.067 | BF131: %CW_base | BG131: IL TRM v12 vol3 | BH131: 12 | BI131: 0.158 | BJ131: %DHW_base | BK131: IL TRM v12 vol3 | BL131: 12 | BM131: 1 | BN131: %Electric_DHW | BO131: IL TRM v12 vol3 | BP131: 13 | BQ131: 0.775 | BR131: %Dryerbase | BS131: IL TRM v12 vol3 | BT131: 13 | BU131: 1 | BV131: %Electric_dryer | BW131: IL TRM v12 vol3 | BX131: 13 | BY131: 2.21 | BZ131: IMEFeff | CA131: IL TRM v12 vol3 | CB131: 12 | CC131: 0.066 | CD131: %CW_eff - ENERGY STAR | CE131: IL TRM v12 vol3 | CF131: 12 | CG131: 0.13 | CH131: %DHW_eff | CI131: IL TRM v12 vol3 | CJ131: 12 | CK131: 1 | CL131: %Electric_DHW | CM131: IL TRM v12 vol3 | CN131: 13 | CO131: 0.804 | CP131: %Dryer_eff | CQ131: IL TRM v12 vol3 | CR131: 12 | CS131: 1 | CT131: %Electric_Dryer | CU131: IL TRM v12 vol3 | CV131: 13 | CW131: 295 | CX131: Hours | CY131: IL TRM v12 vol3 | CZ131: 15 | DA131: 0.038 | DB131: CF | DC131: IL TRM v12 vol3 | DD131: 15 | DE131: 1.02 | DF131: IQAdj - 2025 | DG131: IL TRM v12 vol3 | DH131: 11
A132: Income Eligible Program | B132: Commercial Grade Washing Machines (Gas DHW) | C132: 697 | D132: Common Area MF | E132: Appliances | G132: per unit | H132: 850 | I132: Evergy Guidance | J132: 8 | K132: =ROUND((AS132*1/AW132*BA132*(BE132+(BI132*BM132)+(BQ132*BU132)))-(AS132*1/BY132*BA132*(CC132+(CG132*CK132)+(CO132*CS132))),4) -> 103.3976 | L132: Calculated Value | N132: =K132/U132 -> 0.350500339 | O132: 0.038 | P132: IL TRM v11 vol3 | Q132: 11 | R132: =ROUND(K132/CW132*DA132,4) -> 0.0133 | S132: Calculated Value | U132: 295 | V132: IL TRM v11 vol3 | W132: 14 | X132: 14 | Y132: IL TRM v11 vol3 | Z132: 10 | AA132: IMEF | AB132: 2.21 | AC132: IL TRM v11 vol3 - ENERGY STAR | AD132: 12 | AE132: IMEF | AF132: 1.71 | AG132: IL TRM v11 vol3 - Federal Standard | AH132: 12 | AI132: =ROUND((AS132*1/AW132*BA132*(BE132+(BI132*BM132)+(BQ132*BU132)))-(AS132*1/BY132*BA132*(CC132+(CG132*CK132)+(CO132*CS132))),4) | AJ132: =ROUND(K132/CW132*DA132,4) | AK132: IL TRM v11 vol3 | AL132: 11, 14 | AM132: 2024-01-01 | AN132: 2024-12-31 | AS132: 3.55 | AT132: Capacity | AU132: IL TRM v11 vol3 | AV132: 11 | AW132: 1.71 | AX132: IMEFbase | AY132: IL TRM v11 vol3 | AZ132: 11 | BA132: 295 | BB132: Ncycles | BC132: IL TRM v11 vol3 | BD132: 11 | BE132: 0.067 | BF132: %Cwbase | BG132: IL TRM v11 vol3 | BH132: 12 | BI132: 0.158 | BJ132: %DHWbase | BK132: IL TRM v11 vol3 | BL132: 12 | BM132: 0 | BN132: %Electric_DHW | BO132: IL TRM v11 vol3 | BP132: 12 | BQ132: 0.775 | BR132: %Dryerbase | BS132: IL TRM v11 vol3 | BT132: 12 | BU132: 1 | BV132: %Electric_dryer | BW132: IL TRM v11 vol3 | BX132: 12 | BY132: 2.21 | BZ132: IMEFeff | CA132: IL TRM v11 vol3 | CB132: 12 | CC132: 0.066 | CD132: %Cweff | CE132: IL TRM v11 vol3 | CF132: 12 | CG132: 0.13 | CH132: %DHWeff | CI132: IL TRM v11 vol3 | CJ132: 12 | CK132: 0 | CL132: %Electric_DHW | CM132: IL TRM v11 vol3 | CN132: 12 | CO132: 0.804 | CP132: %Dryereff | CQ132: IL TRM v11 vol3 | CR132: 12 | CS132: 1 | CT132: %Electric_Dryer | CU132: IL TRM v11 vol3 | CV132: 12 | CW132: 295 | CX132: Hours | CY132: IL TRM v11 vol3 | CZ132: 14 | DA132: 0.038 | DB132: CF | DC132: IL TRM v11 vol3 | DD132: 14
A133: Income Eligible Program | B133: Commercial Grade Washing Machines (Gas DHW) | C133: 697.1 | D133: Common Area MF | E133: Appliances | G133: per unit | H133: 850 | I133: Evergy Guidance | K133: =ROUND((AS133*1/AW133*BA133*(BE133+(BI133*BM133)+(BQ133*BU133)))-(AS133*1/BY133*BA133*(CC133+(CG133*CK133)+(CO133*CS133))),4) -> 103.3976 | L133: Calculated Value | N133: =ROUND(K133/U133,4) -> 0.3505 | O133: 0.038 | P133: IL TRM v12 vol3 | Q133: 11 | R133: =ROUND(K133/U133*O133,4) -> 0.0133 | S133: Calculated Value | U133: 295 | V133: IL TRM v12 vol3 | W133: 15 | X133: 14 | Y133: IL TRM v12 vol3 | Z133: 10 | AA133: IEMF - ENERGY STAR | AB133: 2.21 | AC133: IL TRM v12 vol3 - ENERGY STAR | AD133: 12 | AE133: IEMF - Federal Standard | AF133: 1.75 | AG133: IL TRM v12 vol3 - Federal Standard | AH133: 12 | AI133: =ROUND((AS133*1/AW133*BA133*(BE133+(BI133*BM133)+(BQ133*BU133)))-(AS133*1/BY133*BA133*(CC133+(CG133*CK133)+(CO133*CS133))),4) | AJ133: =ROUND(K133/U133*O133,4) | AK133: IL TRM v12 vol3 | AL133: 11, 15 | AM133: 2025-01-01 | AS133: 3.55 | AT133: Capacity - unknown | AU133: IL TRM v12 vol3 | AV133: 11 | AW133: 1.71 | AX133: IMEFbase | AY133: IL TRM v12 vol3 | AZ133: 12 | BA133: 295 | BB133: Ncycles | BC133: IL TRM v12 vol3 | BD133: 12 | BE133: 0.067 | BF133: %CW_base | BG133: IL TRM v12 vol3 | BH133: 12 | BI133: 0.158 | BJ133: %DHW_base | BK133: IL TRM v12 vol3 | BL133: 12 | BM133: 0 | BN133: %Electric_DHW | BO133: IL TRM v12 vol3 | BP133: 13 | BQ133: 0.775 | BR133: %Dryerbase | BS133: IL TRM v12 vol3 | BT133: 13 | BU133: 1 | BV133: %Electric_dryer | BW133: IL TRM v12 vol3 | BX133: 13 | BY133: 2.21 | BZ133: IMEFeff | CA133: IL TRM v12 vol3 | CB133: 12 | CC133: 0.066 | CD133: %CW_eff - ENERGY STAR | CE133: IL TRM v12 vol3 | CF133: 12 | CG133: 0.13 | CH133: %DHW_eff | CI133: IL TRM v12 vol3 | CJ133: 12 | CK133: 0 | CL133: %Electric_DHW | CM133: IL TRM v12 vol3 | CN133: 13 | CO133: 0.804 | CP133: %Dryer_eff | CQ133: IL TRM v12 vol3 | CR133: 12 | CS133: 1 | CT133: %Electric_Dryer | CU133: IL TRM v12 vol3 | CV133: 13 | CW133: 295 | CX133: Hours | CY133: IL TRM v12 vol3 | CZ133: 15 | DA133: 0.038 | DB133: CF | DC133: IL TRM v12 vol3 | DD133: 15 | DE133: 1.02 | DF133: IQAdj - 2025 | DG133: IL TRM v12 vol3 | DH133: 11
A134: Income Eligible Program | B134: Corner Door Jam Pads : MF | C134: 701 | D134: Multi-Family | E134: HVAC - Shell | F134: No TRM source found for Corner Door Jam Pads; used estimate sources for Door Sweep measure (adjusted square footage) | G134: per unit | H134: Equals Incentive | I134: Program Tracking Data | K134: =ROUND((((AS134*AO134*24*AW134*(1-BA134))/(1000*BE134))+((AS134*AP134*24*AW134*(1-BA134))/(1000*BI134))/6), 4) -> 2.7219 | L134: NJ TRM 2023 | M134: 170 | N134: =IF(R134=0,0,R134/O134) -> 0 | O134: 0.69 | P134: NJ TRM 2023 | Q134: 175 | R134: =ROUND(((AS134*AW134*(1-BA134))/(1000*BM134))*O134, 4) -> 0 | S134: NJ TRM 2023 | T134: 172 | X134: 25 | Y134: NJ TRM 2023 | Z134: 175 | AA134: Single 2"x2" door jam pad | AI134: =ROUND((((AS134*AO134*24*AW134*(1-BA134))/(1000*BE134))+((AS134*AP134*24*AW134*(1-BA134))/(1000*BI134))/6), 4) | AJ134: =ROUND(((AS134*AW134*(1-BA134))/(1000*BM134))*O134, 4) | AK134: NJ TRM 2023 | AL134: 171172 | AM134: 2024-01-01 | AN134: 2024-12-31 | AO134: 1445 | AP134: 5155 | AQ134: MO TRM and Navigant Analysis | AS134: 0.639 | AT134: Air Leakage Reduction (CFM/ft) | AU134: PA TRM 2021 | AV134: 156 | AW134: 1 | AX134: Area (sqft) | AY134: NJ TRM 2023 | AZ134: 171 | BA134: =(0.07+0.25+0.12)/3 -> 0.1466666667 | BB134: F_framing: Average value for ceiling, wall and floor | BC134: NJ TRM 2023 | BD134: 172 | BE134: 14 | BF134: SEER | BG134: NJ TRM 2023 | BH134: 173 | BI134: 8.2 | BJ134: HSPF | BK134: NJ TRM 2023 | BL134: 174 | BM134: 11.3 | BN134: EER | BO134: NJ TRM 2023 | BP134: 692
A135: Income Eligible Program, PAYS | B135: Corner Door Jam Pads : MF | C135: 701.1 | D135: Multi-Family | E135: HVAC - Shell | F135: No TRM source found for Corner Door Jam Pads; used estimate sources for Door Sweep measure (adjusted square footage) | G135: per unit | H135: Equals Incentive | I135: Program Tracking Data | K135: =ROUND((((AS135*AO135*24*AW135*(1-BA135))/(1000*BE135))+((AS135*AP135*24*AW135*(1-BA135))/(1000*BI135))/6), 4) -> 2.7219 | L135: NJ TRM 2023 | M135: 170 | N135: =IF(R135=0,0,R135/O135) -> 0 | O135: 0.69 | P135: NJ TRM 2023 | Q135: 175 | R135: =ROUND(((AS135*AW135*(1-BA135))/(1000*BM135))*O135, 4) -> 0 | S135: NJ TRM 2023 | T135: 172 | X135: 25 | Y135: NJ TRM 2023 | Z135: 175 | AA135: Single 2"x2" door jam pad | AI135: =cellformula(K135) -> =ROUND((((AS135*AO135*24*AW135*(1-BA135))/(1000*BE135))+((AS135*AP135*24*AW135*(1-BA135))/(1000*BI135))/6), 4) | AJ135: =cellformula(R135) -> =ROUND(((AS135*AW135*(1-BA135))/(1000*BM135))*O135, 4) | AK135: NJ TRM 2023 | AL135: 171172 | AM135: 2024-01-01 | AO135: 1445 | AP135: 5155 | AQ135: MO TRM and Navigant Analysis | AS135: 0.639 | AT135: Air Leakage Reduction (CFM/ft) | AU135: PA TRM 2021 | AV135: 156 | AW135: 1 | AX135: Area (sqft) | AY135: NJ TRM 2023 | AZ135: 171 | BA135: =(0.07+0.25+0.12)/3 -> 0.1466666667 | BB135: F_framing: Average value for ceiling, wall and floor | BC135: NJ TRM 2023 | BD135: 172 | BE135: 14 | BF135: SEER | BG135: NJ TRM 2023 | BH135: 173 | BI135: 8.2 | BJ135: HSPF | BK135: NJ TRM 2023 | BL135: 174 | BM135: 11.3 | BN135: EER | BO135: NJ TRM 2023 | BP135: 692
A136: Income Eligible Program | B136: Deluxe Window Film Kit :MF | C136: 703 | D136: Multi-Family | E136: HVAC - Shell | F136: Deemed values for Northern AR | G136: per sqft | H136: Equals Incentive | I136: Program Tracking Data | K136: =ROUND(0.94,4) -> 0.94 | L136: AR TRM v9.1 | M136: 114 | R136: =ROUND(0,4) -> 0 | S136: AR TRM v9.1 | T136: 114 | X136: 10 | Y136: AR TRM v9.1 | Z136: 114 | AA136: Window film kit for double-pane and AC with gas heat | AI136: =ROUND(0.94,4) | AJ136: =ROUND(0,4) | AM136: 2024-01-01 | AN136: 2024-12-31
A137: Income Eligible Program, PAYS | B137: Deluxe Window Film Kit :MF | C137: 703.1 | D137: Multi-Family | E137: HVAC - Shell | F137: Deemed values for Northern AR | G137: per sqft | H137: Equals Incentive | I137: Program Tracking Data | K137: =ROUND(0.94,4) -> 0.94 | L137: AR TRM v9.1 | M137: 114 | R137: =ROUND(0,4) -> 0 | S137: AR TRM v9.1 | T137: 114 | X137: 10 | Y137: AR TRM v9.1 | Z137: 114 | AA137: Window film kit for double-pane and AC with gas heat | AI137: =ROUND(0.94,4) | AJ137: =ROUND(0,4) | AM137: 2025-01-01
A138: Income Eligible Program | B138: ECM Auto Fan Early Replacement - MF | C138: 390.1 | D138: Multi-Family | E138: Motor | G138: per unit | H138: 120 | I138: WI TRM 2022 | J138: 298 | K138: =ROUND(AS138*AW138*((1/BA138)-(1/BE138))*U138,4) -> 1469.9691 | L138: Calculated Value | N138: =R138/O138 -> 0.99225 | O138: 0.8 | P138: WI TRM 2022 | Q138: 299 | R138: =ROUND(AS138*AW138*((1/BA138)-(1/BE138))*BI138,4) -> 0.7938 | S138: Calculated Value | U138: 1481.5 | V138: WI TRM 2022 | W138: 299 | X138: 6 | Y138: WI TRM 2022 - total is 18 years | Z138: 298 | AA138: ECM Blower Motor | AE138: Non-ECM Blower Motor | AI138: =ROUND(AS138*AW138*((1/BA138)-(1/BE138))*U138,4) | AJ138: =ROUND(AS138*AW138*((1/BA138)-(1/BE138))*BI138,4) | AK138: WI TRM 2022 | AL138: 299, 230 | AM138: 2024-01-01 | AN138: 2024-12-31 | AS138: 1 | AT138: hp | AU138: WI TRM 2022 | AV138: 300 | AW138: 0.746 | AX138: Conversion factor from horsepower to kW | AY138: WI TRM 2022 | AZ138: 299 | BA138: 0.3625 | BB138: EFF_exist | BC138: WI TRM 2022 | BD138: 301 | BE138: 0.7 | BF138: EFF_ee | BG138: WI TRM 2022 | BH138: 299 | BI138: 0.8 | BJ138: CF | BK138: WI TRM 2022 | BL138: 299
A139: Income Eligible Program | B139: ECM Auto Fan Early Replacement - MF | C139: 390.2 | D139: Multi-Family | E139: Motor | G139: per unit | H139: 120 | I139: WI TRM 2023 | J139: 291 | K139: =ROUND(AS139*AW139*(1/BA139-1/BE139)*U139,4) -> 1469.9691 | L139: Calculated Value | N139: =ROUND(R139/O139,4) -> 0.9923 | O139: 0.8 | P139: WI TRM 2023 | Q139: 292 | R139: =ROUND(AS139*AW139*(1/BA139-1/BE139)*O139,4) -> 0.7938 | S139: Calculated Value | U139: 1481.5 | V139: WI TRM 2023 - Avg. of Heating and Cooling | W139: 292 | X139: 6 | Y139: WI TRM 2023 - total is 21 years | Z139: 291 | AA139: ECM Blower Motor | AE139: Non-ECM Blower Motor | AI139: =ROUND(AS139*AW139*(1/BA139-1/BE139)*U139,4) | AJ139: =ROUND(AS139*AW139*(1/BA139-1/BE139)*O139,4) | AK139: WI TRM 2023 | AL139: 291, 292 | AM139: 2025-01-01 | AS139: 1 | AT139: hp - input | AU139: WI TRM 2023 | AV139: 292 | AW139: 0.746 | AX139: Conversion factor from horsepower to kW | AY139: WI TRM 2023 | AZ139: 292 | BA139: 0.3625 | BB139: EFF_exist | BC139: WI TRM 2023 | BD139: 292 | BE139: 0.7 | BF139: EFF_ee | BG139: WI TRM 2023 | BH139: 292 | BI139: 0.8 | BJ139: CF | BK139: WI TRM 2023 | BL139: 292
A140: Income Eligible Program | B140: ECM Auto Fan Early Replacement (future) - MF | C140: 391.1 | D140: Multi-Family | E140: Motor | G140: per unit | H140: 0 | I140: WI TRM 2022 | J140: 915 | K140: =ROUND(AS140*AW140*((1/BA140)-(1/BE140))*U140,4) -> 631.5423 | L140: Calculated Value | N140: =R140/O140 -> 0.42625 | O140: 0.8 | P140: WI TRM 2022 | Q140: 299 | R140: =ROUND(AS140*AW140*((1/BA140)-(1/BE140))*BI140,4) -> 0.341 | S140: Calculated Value | U140: 1481.5 | V140: WI TRM 2022 | W140: 299 | X140: 12 | Y140: WI TRM 2022 - total is 18 years | Z140: 298 | AA140: ECM Blower Motor | AE140: Non-ECM Blower Motor | AI140: =ROUND(AS140*AW140*((1/BA140)-(1/BE140))*U140,4) | AJ140: =ROUND(AS140*AW140*((1/BA140)-(1/BE140))*BI140,4) | AK140: WI TRM 2022 | AL140: 299, 230 | AM140: 2024-01-01 | AN140: 2024-12-31 | AS140: 1 | AT140: hp | AU140: WI TRM 2022 | AV140: 300 | AW140: 0.746 | AX140: Conversion factor from horsepower to kW | AY140: WI TRM 2022 | AZ140: 299 | BA140: 0.5 | BB140: EFF_base | BC140: WI TRM 2022 | BD140: 299 | BE140: 0.7 | BF140: EFF_ee | BG140: WI TRM 2022 | BH140: 299 | BI140: 0.8 | BJ140: CF | BK140: WI TRM 2022 | BL140: 299
A141: Income Eligible Program | B141: ECM Auto Fan Early Replacement (future) - MF | C141: 391.2 | D141: Multi-Family | E141: Motor | G141: per unit | H141: 0 | I141: WI TRM 2023 | J141: 291 | K141: =ROUND(AS141*AW141*(1/BA141-1/BE141)*U141,4) -> 631.5423 | L141: Calculated Value | N141: =ROUND(R141/O141,4) -> 0.4263 | O141: 0.8 | P141: WI TRM 2023 | Q141: 292 | R141: =ROUND(AS141*AW141*(1/BA141-1/BE141)*O141,4) -> 0.341 | S141: Calculated Value | U141: 1481.5 | V141: WI TRM 2023 - Avg. of Heating and Cooling | W141: 292 | X141: 15 | Y141: WI TRM 2023 - total is 21 years | Z141: 291 | AA141: ECM Blower Motor | AE141: Non-ECM Blower Motor | AI141: =ROUND(AS141*AW141*(1/BA141-1/BE141)*U141,4) | AJ141: =ROUND(AS141*AW141*(1/BA141-1/BE141)*O141,4) | AK141: WI TRM 2023 | AL141: 291, 292 | AM141: 2025-01-01 | AS141: 1 | AT141: hp - input | AU141: WI TRM 2023 | AV141: 292 | AW141: 0.746 | AX141: Conversion factor from horsepower to kW | AY141: WI TRM 2023 | AZ141: 292 | BA141: 0.5 | BB141: EFF_base | BC141: WI TRM 2023 | BD141: 292 | BE141: 0.7 | BF141: EFF_ee | BG141: WI TRM 2023 | BH141: 292 | BI141: 0.8 | BJ141: CF | BK141: WI TRM 2023 | BL141: 292
A142: Income Eligible Program | B142: ECM Continous Fan Early Replacement - MF | C142: 393.1 | D142: Multi-Family | E142: Motor | G142: per unit | H142: 120 | I142: WI TRM 2022 | J142: 915 | K142: =ROUND(AS142*AW142*((1/BA142)-(1/BE142))*U142,4) -> 8691.8187 | L142: Calculated Value | N142: =R142/O142 -> 0.99225 | O142: 0.8 | P142: WI TRM 2022 | Q142: 299 | R142: =ROUND(AS142*AW142*((1/BA142)-(1/BE142))*BI142,4) -> 0.7938 | S142: Calculated Value | U142: 8760 | V142: WI TRM 2022 | W142: 299 | X142: 6 | Y142: WI TRM 2022 - total is 18 years | Z142: 298 | AA142: ECM Blower Motor | AE142: Non-ECM Blower Motor | AI142: =ROUND(AS142*AW142*((1/BA142)-(1/BE142))*U142,4) | AJ142: =ROUND(AS142*AW142*((1/BA142)-(1/BE142))*BI142,4) | AK142: WI TRM 2022 | AL142: 299, 230 | AM142: 2024-01-01 | AN142: 2024-12-31 | AS142: 1 | AT142: hp | AU142: WI TRM 2022 | AV142: 300 | AW142: 0.746 | AX142: Conversion factor from horsepower to kW | AY142: WI TRM 2022 | AZ142: 299 | BA142: 0.3625 | BB142: EFF_exist | BC142: WI TRM 2022 | BD142: 301 | BE142: 0.7 | BF142: EFF_ee | BG142: WI TRM 2022 | BH142: 299 | BI142: 0.8 | BJ142: CF | BK142: WI TRM 2022 | BL142: 299
A143: Income Eligible Program | B143: ECM Continous Fan Early Replacement - MF | C143: 393.2 | D143: Multi-Family | E143: Motor | G143: per unit | H143: 120 | I143: WI TRM 2023 | J143: 291 | K143: =ROUND(AS143*AW143*(1/BA143-1/BE143)*U143,4) -> 8691.8187 | L143: Calculated Value | N143: =ROUND(R143/O143,4) -> 0.9922 | O143: 1 | P143: WI TRM 2023 - 24/7 Ventilation | Q143: 292 | R143: =ROUND(AS143*AW143*(1/BA143-1/BE143)*O143,4) -> 0.9922 | S143: Calculated Value | U143: 8760 | V143: WI TRM 2023 - 24/7 Ventilation | W143: 292 | X143: 6 | Y143: WI TRM 2023 - total is 21 years | Z143: 291 | AA143: ECM Blower Motor | AE143: Non-ECM Blower Motor | AI143: =ROUND(AS143*AW143*(1/BA143-1/BE143)*U143,4) | AJ143: =ROUND(AS143*AW143*(1/BA143-1/BE143)*O143,4) | AK143: WI TRM 2023 | AL143: 291, 292 | AM143: 2025-01-01 | AS143: 1 | AT143: hp - input | AU143: WI TRM 2023 | AV143: 292 | AW143: 0.746 | AX143: Conversion factor from horsepower to kW | AY143: WI TRM 2023 | AZ143: 292 | BA143: 0.3625 | BB143: EFF_exist | BC143: WI TRM 2023 | BD143: 292 | BE143: 0.7 | BF143: EFF_ee | BG143: WI TRM 2023 | BH143: 292 | BI143: 1 | BJ143: CF - 24/7 Ventilation | BK143: WI TRM 2023 | BL143: 292
A144: Income Eligible Program | B144: ECM Continous Fan Early Replacement (future) - MF | C144: 394.1 | D144: Multi-Family | E144: Motor | G144: per unit | H144: 0 | I144: WI TRM 2022 | J144: 915 | K144: =ROUND(AS144*AW144*((1/BA144)-(1/BE144))*U144,4) -> 3734.2629 | L144: Calculated Value | N144: =R144/O144 -> 0.42625 | O144: 0.8 | P144: WI TRM 2022 | Q144: 299 | R144: =ROUND(AS144*AW144*((1/BA144)-(1/BE144))*BI144,4) -> 0.341 | S144: Calculated Value | U144: 8760 | V144: WI TRM 2022 | W144: 299 | X144: 12 | Y144: WI TRM 2022 - total is 18 years | Z144: 298 | AA144: ECM Blower Motor | AE144: Non-ECM Blower Motor | AI144: =ROUND(AS144*AW144*((1/BA144)-(1/BE144))*U144,4) | AJ144: =ROUND(AS144*AW144*((1/BA144)-(1/BE144))*BI144,4) | AK144: WI TRM 2022 | AL144: 299, 230 | AM144: 2024-01-01 | AN144: 2024-12-31 | AS144: 1 | AT144: hp | AU144: WI TRM 2022 | AV144: 300 | AW144: 0.746 | AX144: Conversion factor from horsepower to kW | AY144: WI TRM 2022 | AZ144: 299 | BA144: 0.5 | BB144: EFF_base | BC144: WI TRM 2022 | BD144: 299 | BE144: 0.7 | BF144: EFF_ee | BG144: WI TRM 2022 | BH144: 299 | BI144: 0.8 | BJ144: CF | BK144: WI TRM 2022 | BL144: 299
A145: Income Eligible Program | B145: ECM Continous Fan Early Replacement (future) - MF | C145: 394.2 | D145: Multi-Family | E145: Motor | G145: per unit | H145: 0 | I145: WI TRM 2023 | J145: 291 | K145: =ROUND(AS145*AW145*(1/BA145-1/BE145)*U145,4) -> 3734.2629 | L145: Calculated Value | N145: =ROUND(R145/O145,4) -> 0.4263 | O145: 1 | P145: WI TRM 2023 - 24/7 Ventilation | Q145: 292 | R145: =ROUND(AS145*AW145*(1/BA145-1/BE145)*O145,4) -> 0.4263 | S145: Calculated Value | U145: 8760 | V145: WI TRM 2023 - 24/7 Ventilation | W145: 292 | X145: 15 | Y145: WI TRM 2023 - total is 21 years | Z145: 291 | AA145: ECM Blower Motor | AE145: Non-ECM Blower Motor | AI145: =ROUND(AS145*AW145*(1/BA145-1/BE145)*U145,4) | AJ145: =ROUND(AS145*AW145*(1/BA145-1/BE145)*O145,4) | AK145: WI TRM 2023 | AL145: 291, 292 | AM145: 2025-01-01 | AS145: 1 | AT145: hp - input | AU145: WI TRM 2023 | AV145: 292 | AW145: 0.746 | AX145: Conversion factor from horsepower to kW | AY145: WI TRM 2023 | AZ145: 292 | BA145: 0.5 | BB145: EFF_base | BC145: WI TRM 2023 | BD145: 292 | BE145: 0.7 | BF145: EFF_ee | BG145: WI TRM 2023 | BH145: 292 | BI145: 1 | BJ145: CF - 24/7 Ventilation | BK145: WI TRM 2023 | BL145: 292
A146: Income Eligible Program | B146: ENERGY STAR Dishwasher (Gas DHW) | C146: 634.1 | D146: Multi-Family | E146: Appliances | G146: Per unit | H146: 75.67 | I146: IL TRM v11 vol3 | J146: 22 | K146: =ROUND((BE146-BI146)*(AS146+(AW146*BA146)),4) -> 16.28 | L146: Calculated Value | N146: =R146/O146 -> 0.04615384615 | O146: 0.026 | P146: IL TRM v11 vol 3 | Q146: 23 | R146: =ROUND((K146/U146)*O146,4) -> 0.0012 | S146: Calculated Value | U146: 353 | V146: IL TRM v11 vol3 | W146: 25 | X146: 11 | Y146: IL TRM v11 vol3 | Z146: 22 | AA146: ENERGY STAR V6.0 Standard Dishwasher (> 8 place settings + six serving pieces) | AB146: 270 | AC146: IL TRM v11 vol3 | AD146: 22 | AE146: Dishwasher meeting minimum Federal standards | AF146: 307 | AG146: IL TRM v11 vol3 | AH146: 22 | AI146: =ROUND((BE146-BI146)*(AS146+(AW146*BA146)),4) | AJ146: =ROUND((K146/U146)*O146,4) | AK146: IL TRM v11 vol3 | AL146: 23, 25 | AM146: 2024-01-01 | AN146: 2024-12-31 | AS146: 0.44 | AT146: %kWh_op: Percentage of dishwasher energy consumption used for unit operation | AU146: IL TRM v11 vol3 | AV146: 23 | AW146: 0.56 | AX146: %kWh_heat: Percentage of dishwasher energy consumption used for water heating | AY146: IL TRM v11 vol3 | AZ146: 23 | BA146: 0 | BB146: %Electric_DHW | BC146: IL TRM v11 vol3 | BD146: 24 | BE146: =AF146 -> 307 | BF146: kWhBase : Baseline kWh consumption per year | BG146: IL TRM v11 vol3 | BH146: 23 | BI146: =AB146 -> 270 | BJ146: kWhEStar : ENERGY STAR kWh consumption per year | BK146: IL TRM v11 vol3 | BL146: 23
A147: Income Eligible Program | B147: ENERGY STAR Dishwasher (Gas DHW) | C147: 634.2 | D147: Multi-Family | E147: Appliances | G147: Per unit | H147: 118.28 | I147: IL TRM v12 vol3 | J147: 25 | K147: =ROUND(((AF147-AB147)*(AS147+(AW147*BA147))),4) -> 30.8 | L147: Calculated Value | N147: =ROUND(R147/O147,4) -> 0.0885 | O147: 0.026 | P147: IL TRM v12 vol3 | Q147: 25 | R147: =ROUND((K147/U147)*O147,4) -> 0.0023 | S147: Calculated Value | U147: 353 | V147: IL TRM v12 vol3 | W147: 27 | X147: 11 | Y147: IL TRM v12 vol3 | Z147: 24 | AA147: ENERGY STAR V6.0 Standard Dishwasher (> 8 place settings + six serving pieces) | AB147: 240 | AC147: IL TRM v12 vol3 | AD147: 24 | AE147: Dishwasher meeting minimum Federal standards | AF147: 310 | AG147: IL TRM v12 vol3 | AH147: 24 | AI147: =ROUND(((AF147-AB147)*(AS147+(AW147*BA147))),4) | AJ147: =ROUND((K147/U147)*O147,4) | AK147: IL TRM v12 vol3 | AL147: 25, 27 | AM147: 2025-01-01 | AS147: 0.44 | AT147: %kWh_op: Percentage of dishwasher energy consumption used for unit operation | AU147: IL TRM v12 vol3 | AV147: 26 | AW147: 0.56 | AX147: %kWh_heat: Percentage of dishwasher energy consumption used for water heating | AY147: IL TRM v12 vol3 | AZ147: 26 | BA147: 0 | BB147: %Electric_DHW | BC147: IL TRM v12 vol3 | BD147: 26 | BE147: 310 | BF147: kWhBase : Baseline kWh consumption per year, Standard IQ | BG147: IL TRM v12 vol3 | BH147: 25 | BI147: 240 | BJ147: kWhEStar : ENERGY STAR kWh consumption per year | BK147: IL TRM v12 vol3 | BL147: 25
A148: Income Eligible Program | B148: ENERGY STAR Electric Clothes Dryers | C148: 486.2 | D148: Single Family | E148: Appliances | G148: per unit | H148: 152 | I148: IL TRM v11 vol3 | J148: 50 | K148: =ROUND((AS148/AW148-AS148/BA148)*BE148*BI148,4) -> 160.4368 | L148: IL TRM v11 vol3 (algorithm) | M148: 51 | N148: =R148/O148 -> 0.5657894737 | O148: 0.038 | P148: IL TRM v11 vol3 | Q148: 50 | R148: =ROUND(K148/BM148*BQ148,4) -> 0.0215 | S148: IL TRM v11 vol3 (algorithm) | T148: 54 | U148: 283 | V148: IL TRM v11 vol3 | W148: 54 | X148: 16 | Y148: IL TRM v11 vol3 | Z148: 50 | AA148: Electric clothes dryer meeting Energy Star V1.0 qualification | AB148: 3.93 | AC148: IL TRM v11 vol3 | AD148: 52 | AE148: Electric clothes dryer meeting federal standard efficiency | AF148: 3.11 | AG148: IL TRM v11 vol3 | AH148: 52 | AI148: =ROUND((AS148/AW148-AS148/BA148)*BE148*BI148,4) | AJ148: =ROUND(K148/BM148*BQ148,4) | AK148: IL TRM v11 vol3 | AL148: 51,54 | AM148: 2024-01-01 | AN148: 2024-12-31 | AS148: 8.45 | AT148: Load | AU148: IL TRM v11 vol3 (Standard size) | AV148: 51 | AW148: 3.11 | AX148: CEF_base | AY148: IL TRM v11 vol3 (Standard size) | AZ148: 52 | BA148: 3.93 | BB148: CEF_eff | BC148: IL TRM v11 vol3 (Standard size) | BD148: 52 | BE148: 283 | BF148: N_cycles | BG148: IL TRM v11 vol3 | BH148: 52 | BI148: 1 | BJ148: %Electric | BK148: IL TRM v11 vol3 | BL148: 52 | BM148: 283 | BN148: Hours | BO148: IL TRM v11 vol3 | BP148: 52 | BQ148: 0.038 | BR148: CF | BS148: IL TRM v11 vol3 | BT148: 54
A149: Income Eligible Program | B149: ENERGY STAR Electric Clothes Dryers | C149: 486.3 | D149: Single Family | E149: Appliances | G149: per unit | H149: 246 | I149: IL TRM v12 vol3 | J149: 53 | K149: =ROUND(((AS149/AW149*BU149)-AS149/BA149)*BE149*BI149,4) -> 185.8113 | L149: IL TRM v12 vol3 (algorithm) | M149: 54 | N149: =ROUND(R149/O149,4) -> 0.6553 | O149: 0.038 | P149: IL TRM v12 vol3 | Q149: 58 | R149: =ROUND(K149/BM149*BQ149,4) -> 0.0249 | S149: IL TRM v12 vol3 (algorithm) | T149: 58 | U149: 283 | V149: IL TRM v12 vol3 | W149: 58 | X149: 16 | Y149: IL TRM v12 vol3 | Z149: 53 | AA149: Electric clothes dryer meeting Energy Star V1.0 qualification | AB149: 3.93 | AC149: IL TRM v12 vol3 | AD149: 55 | AE149: Electric clothes dryer meeting federal standard efficiency | AF149: 3.11 | AG149: IL TRM v12 vol3 | AH149: 55 | AI149: =ROUND(((AS149/AW149*BU149)-AS149/BA149)*BE149*BI149,4) | AJ149: =ROUND(K149/BM149*BQ149,4) | AK149: IL TRM v12 vol 3 | AL149: 54,57 | AM149: 2025-01-01 | AS149: 8.45 | AT149: Load | AU149: IL TRM v12 vol3 (Standard size) | AV149: 54 | AW149: 3.11 | AX149: CEF_base | AY149: IL TRM v12 vol3 (Standard size) | AZ149: 55 | BA149: 3.93 | BB149: CEF_eff | BC149: IL TRM v12 vol3 (Standard size) | BD149: 55 | BE149: 283 | BF149: N_cycles | BG149: IL TRM v12 vol3 | BH149: 56 | BI149: 1 | BJ149: %Electric | BK149: IL TRM v12 vol3 | BL149: 56 | BM149: 283 | BN149: Hours | BO149: IL TRM v12 vol3 | BP149: 55 | BQ149: 0.038 | BR149: CF | BS149: IL TRM v12 vol3 | BT149: 58 | BU149: 1.033 | BV149: IQAdj | BW149: IL TRM v12 vol3 | BX149: 55
A150: Income Eligible Program | B150: Exterior LED replacing < 175W Fixture or Mogul Screw-Base Lamp | C150: 653.1 | D150: C&I | E150: Lighting | F150: Annual Operating Hours and CF source: IN TRM, Measure Life source: IL TRM | G150: per fixture | H150: 248 | I150: IL TRM v11 vol2 | J150: 669 | K150: =ROUND(((AF150-AB150)/1000)*U150*AS150*BA150,4) -> 724.0486 | L150: Calculated Value | N150: 0 | O150: 0 | P150: IL TRM v11 vol2 | Q150: 637 | R150: =ROUND(((AF150-AB150)/1000)*BA150*AW150*O150,4) -> 0 | S150: Calculated Value | U150: 4303 | V150: IL TRM v11 vol2 | W150: 637 | X150: =50000/U150 -> 11.61980014 | Y150: IL TRM v11 vol2 (calculated value based on lifetime hours) | Z150: 659 | AA150: LED Exterior Lighting Fixtures (Includes Street and Area, Decorative, Soffit and Canopy, Wall-mounted, and Landscape and Flood lighting) | AB150: 27.2 | AC150: Spec sheet (as reported by implementer) | AE150: 175W Pulse Start Metal Halide | AF150: 198.9 | AG150: IL TRM v11 vol2, or program tracking data if available | AH150: 669 | AI150: =ROUND(((AF150-AB150)/1000)*U150*AS150*BA150,4) | AJ150: =ROUND(((AF150-AB150)/1000)*BA150*AW150*O150,4) | AK150: IL TRM v11 vol2 | AL150: 660, 665 | AM150: 2024-01-01 | AN150: 2024-12-31 | AS150: 1 | AT150: Waste Heat Factor Energy | AU150: IL TRM v11 vol2 | AV150: 637 | AW150: 1 | AX150: Waste Heat Factor_Demand | AY150: IL TRM v11 vol2 | AZ150: 637 | BA150: 0.98 | BB150: ISR | BC150: IL TRM v11 vol2 | BD150: 664
A151: Income Eligible Program | B151: Exterior LED replacing < 175W Fixture or Mogul Screw-Base Lamp | C151: 653.2 | D151: C&I | E151: Lighting | F151: Annual Operating Hours, CF, Measure Life source: IL TRM | G151: per fixture | H151: 123.81 | I151: IL TRM v12 vol2 | J151: 717 | K151: 724.0486 | L151: Calculated Value | N151: 0 | O151: 0 | P151: IL TRM v12 vol2, Exterior - Dusk to Dawn | Q151: 684 | R151: 0 | S151: Calculated Value | U151: 4303 | V151: IL TRM v12 vol2, Exterior - Dusk to Dawn | W151: 684 | X151: 16 | Y151: IL TRM v12 vol2 ("For exterior fixtures, the lifetime is assumed to be 16 years for Dusk-to-Dawn (4303 hours) applications") | Z151: 706 | AA151: LED Exterior Lighting Fixtures (Includes Street and Area, Decorative, Soffit and Canopy, Wall-mounted, and Landscape and Flood lighting) | AB151: 27.2 | AC151: Spec sheet (as reported by implementer) | AE151: 175W Pulse Start Metal Halide | AF151: 198.9 | AG151: IL TRM v12 vol2 | AH151: 717 | AI151: =ROUND(((AF151-AB151)/1000)*U151*AS151*BA151,4) | AJ151: =ROUND(((AF151-AB151)/1000)*BA151*AW151*O151,4) | AK151: IL TRM v12 vol2 | AL151: 707, 713 | AM151: 2025-01-01 | AS151: 1 | AT151: Waste Heat Factor Energy | AU151: IL TRM v12 vol2 | AV151: 684 | AW151: 1 | AX151: Waste Heat Factor_Demand | AY151: IL TRM v12 vol2 | AZ151: 684 | BA151: 0.98 | BB151: ISR | BC151: IL TRM v12 vol2 | BD151: 711
A152: Income Eligible Program | B152: Exterior LED replacing > 400W Fixture or Mogul Screw-Base Lamp | C152: 650.1 | D152: C&I | E152: Lighting | F152: Annual Operating Hours and CF source: IN TRM, Measure Life source: IL TRM | G152: per fixture | H152: 946 | I152: IL TRM v11 vol2 | J152: 669 | K152: 1134.7786 | L152: Calculated Value | N152: 0 | O152: 0 | P152: IL TRM v11 vol2 | Q152: 637 | R152: 0 | S152: Calculated Value | U152: 4303 | V152: IL TRM v11 vol2 | W152: 637 | X152: =50000/U152 -> 11.61980014 | Y152: IL TRM v11 vol2 (calculated value based on lifetime hours) | Z152: 659 | AA152: LED Exterior Lighting Fixtures (Includes Street and Area, Decorative, Soffit and Canopy, Wall-mounted, and Landscape and Flood lighting) | AB152: 185.3 | AC152: Spec sheet (as reported by implementer) | AE152: 400W Pulse Start Metal Halide | AF152: 454.4 | AG152: IL TRM v11 vol2, or program tracking data if available | AH152: 669 | AI152: =ROUND(((AF152-AB152)/1000)*U152*AS152*BA152,4) | AJ152: =ROUND(((AF152-AB152)/1000)*BA152*AW152*O152,4) | AK152: IL TRM v11 vol2 | AL152: 660, 665 | AM152: 2024-01-01 | AN152: 2024-12-31 | AS152: 1 | AT152: Waste Heat Factor Energy | AU152: IL TRM v11 vol2 | AV152: 637 | AW152: 1 | AX152: Waste Heat Factor_Demand | AY152: IL TRM v11 vol2 | AZ152: 637 | BA152: 0.98 | BB152: ISR | BC152: IL TRM v11 vol2 | BD152: 664
A153: Income Eligible Program | B153: Exterior LED replacing > 400W Fixture or Mogul Screw-Base Lamp | C153: 650.2 | D153: C&I | E153: Lighting | F153: Annual Operating Hours, CF, Measure Life source: IL TRM | G153: per fixture | H153: 196.16 | I153: IL TRM v12 vol2 | J153: 717 | K153: 1134.7786 | L153: Calculated Value | N153: 0 | O153: 0 | P153: IL TRM v12 vol2, Exterior - Dusk to Dawn | Q153: 684 | R153: 0 | S153: Calculated Value | U153: 4303 | V153: IL TRM v12 vol2, Exterior - Dusk to Dawn | W153: 684 | X153: 16 | Y153: IL TRM v12 vol2 ("For exterior fixtures, the lifetime is assumed to be 16 years for Dusk-to-Dawn (4303 hours) applications") | Z153: 706 | AA153: LED Exterior Lighting Fixtures (Includes Street and Area, Decorative, Soffit and Canopy, Wall-mounted, and Landscape and Flood lighting) | AB153: 185.3 | AC153: Spec sheet (as reported by implementer) | AE153: 400W Pulse Start Metal Halide | AF153: 454.4 | AG153: IL TRM v12 vol3 | AH153: 717 | AI153: =ROUND(((AF153-AB153)/1000)*U153*AS153*BA153,4) | AJ153: =ROUND(((AF153-AB153)/1000)*BA153*AW153*O153,4) | AK153: IL TRM v12 vol2 | AL153: 707, 713 | AM153: 2025-01-01 | AS153: 1 | AT153: Waste Heat Factor Energy | AU153: IL TRM v12 vol2 | AV153: 684 | AW153: 1 | AX153: Waste Heat Factor_Demand | AY153: IL TRM v12 vol2 | AZ153: 684 | BA153: 0.98 | BB153: ISR | BC153: IL TRM v12 vol2 | BD153: 711
A154: Income Eligible Program | B154: Exterior LED replacing > 400W Fixture or Mogul Screw-Base Lamp | C154: 654.1 | D154: Small C&I | E154: Lighting | F154: Annual Operating Hours and CF source: IN TRM, Measure Life source: IL TRM | G154: per fixture | H154: 946 | I154: IL TRM v11 vol2 | J154: 669 | K154: 1136.0436 | L154: Calculated Value | N154: 0 | O154: 0 | P154: IL TRM v11 vol2 | Q154: 637 | R154: 0 | S154: Calculated Value | U154: 4303 | V154: IL TRM v11 vol2 | W154: 637 | X154: =50000/U154 -> 11.61980014 | Y154: IL TRM v11 vol2 (calculated value based on lifetime hours) | Z154: 659 | AA154: LED Exterior Lighting Fixtures (Includes Street and Area, Decorative, Soffit and Canopy, Wall-mounted, and Landscape and Flood lighting) | AB154: 185 | AC154: Spec sheet (as reported by implementer) | AE154: 400W Pulse Start Metal Halide | AF154: 454.4 | AG154: IL TRM v11 vol2, or program tracking data if available | AH154: 669 | AI154: =ROUND(((AF154-AB154)/1000)*U154*AS154*BA154,4) | AJ154: =ROUND(((AF154-AB154)/1000)*BA154*AW154*O154,4) | AK154: IL TRM v11 vol2 | AL154: 660, 665 | AM154: 2024-01-01 | AN154: 2024-12-31 | AS154: 1 | AT154: Waste Heat Factor Energy | AU154: IL TRM v11 vol2 | AV154: 637 | AW154: 1 | AX154: Waste Heat Factor Demand | AY154: IL TRM v11 vol2 | AZ154: 637 | BA154: 0.98 | BB154: ISR | BC154: IL TRM v11 vol2 | BD154: 664
A155: Income Eligible Program | B155: Exterior LED replacing > 400W Fixture or Mogul Screw-Base Lamp | C155: 654.2 | D155: C&I | E155: Lighting | F155: Annual Operating Hours, CF, Measure Life source: IL TRM | G155: per fixture | H155: 196.16 | I155: IL TRM v12 vol2 | J155: 717 | K155: 1136.0436 | L155: Calculated Value | N155: 0 | O155: 0 | P155: IL TRM v12 vol2, Exterior - Dusk to Dawn | Q155: 684 | R155: 0 | S155: Calculated Value | U155: 4303 | V155: IL TRM v12 vol2, Exterior - Dusk to Dawn | W155: 684 | X155: 16 | Y155: IL TRM v12 vol2 ("For exterior fixtures, the lifetime is assumed to be 16 years for Dusk-to-Dawn (4303 hours) applications") | Z155: 706 | AA155: LED Exterior Lighting Fixtures (Includes Street and Area, Decorative, Soffit and Canopy, Wall-mounted, and Landscape and Flood lighting) | AB155: 185 | AC155: Spec sheet (as reported by implementer) | AE155: 400W Pulse Start Metal Halide | AF155: 454.4 | AG155: IL TRM v12 vol3 | AH155: 717 | AI155: =ROUND(((AF155-AB155)/1000)*U155*AS155*BA155,4) | AJ155: =ROUND(((AF155-AB155)/1000)*BA155*AW155*O155,4) | AK155: IL TRM v12 vol2 | AL155: 707, 713 | AM155: 2025-01-01 | AS155: 1 | AT155: Waste Heat Factor Energy | AU155: IL TRM v12 vol2 | AV155: 684 | AW155: 1 | AX155: Waste Heat Factor_Demand | AY155: IL TRM v12 vol2 | AZ155: 684 | BA155: 0.98 | BB155: ISR | BC155: IL TRM v12 vol2 | BD155: 711
A156: Income Eligible Program | B156: Exterior LED replacing 175W-250W Fixture or Mogul Screw-Base Lamp | C156: 652.1 | D156: C&I | E156: Lighting | F156: Annual Operating Hours and CF source: IN TRM, Measure Life source: IL TRM | G156: per fixture | H156: 566 | I156: IL TRM v11 vol2 | J156: 669 | K156: 888.5093 | L156: Calculated Value | N156: 0 | O156: 0 | P156: IL TRM v11 vol2 | Q156: 637 | R156: 0 | S156: Calculated Value | U156: 4303 | V156: IL TRM v11 vol2 | W156: 637 | X156: =50000/U156 -> 11.61980014 | Y156: IL TRM v11 vol2 (calculated value based on lifetime hours) | Z156: 659 | AA156: LED Exterior Lighting Fixtures (Includes Street and Area, Decorative, Soffit and Canopy, Wall-mounted, and Landscape and Flood lighting) | AB156: 73.4 | AC156: Spec sheet (as reported by implementer) | AE156: 250W Pulse Start Metal Halide | AF156: 284.1 | AG156: IL TRM v11 vol2, or program tracking data if available | AH156: 669 | AI156: =ROUND(((AF156-AB156)/1000)*U156*AS156*BA156,4) | AJ156: =ROUND(((AF156-AB156)/1000)*BA156*AW156*O156,4) | AK156: IL TRM v11 vol2 | AL156: 660, 665 | AM156: 2024-01-01 | AN156: 2024-12-31 | AS156: 1 | AT156: Waste Heat Factor Energy | AU156: IL TRM v11 vol2 | AV156: 637 | AW156: 1 | AX156: Waste Heat Factor_Demand | AY156: IL TRM v11 vol2 | AZ156: 637 | BA156: 0.98 | BB156: ISR | BC156: IL TRM v11 vol2 | BD156: 664
A157: Income Eligible Program | B157: Exterior LED replacing 175W-250W Fixture or Mogul Screw-Base Lamp | C157: 652.2 | D157: C&I | E157: Lighting | F157: Annual Operating Hours, CF, Measure Life source: IL TRM | G157: per fixture | H157: 134.35 | I157: IL TRM v12 vol2 | J157: 717 | K157: 888.5093 | L157: Calculated Value | N157: 0 | O157: 0 | P157: IL TRM v12 vol2, Exterior - Dusk to Dawn | Q157: 684 | R157: 0 | S157: Calculated Value | U157: 4303 | V157: IL TRM v12 vol2, Exterior - Dusk to Dawn | W157: 684 | X157: 16 | Y157: IL TRM v12 vol2 ("For exterior fixtures, the lifetime is assumed to be 16 years for Dusk-to-Dawn (4303 hours) applications") | Z157: 706 | AA157: LED Exterior Lighting Fixtures (Includes Street and Area, Decorative, Soffit and Canopy, Wall-mounted, and Landscape and Flood lighting) | AB157: 73.4 | AC157: Spec sheet (as reported by implementer) | AE157: 250W Pulse Start Metal Halide | AF157: 284.1 | AG157: IL TRM v12 vol2 | AH157: 717 | AI157: =ROUND(((AF157-AB157)/1000)*U157*AS157*BA157,4) | AJ157: =ROUND(((AF157-AB157)/1000)*BA157*AW157*O157,4) | AK157: IL TRM v12 vol2 | AL157: 707, 713 | AM157: 2025-01-01 | AS157: 1 | AT157: Waste Heat Factor Energy | AU157: IL TRM v12 vol2 | AV157: 684 | AW157: 1 | AX157: Waste Heat Factor_Demand | AY157: IL TRM v12 vol2 | AZ157: 684 | BA157: 0.98 | BB157: ISR | BC157: IL TRM v12 vol2 | BD157: 711
A158: Income Eligible Program | B158: Exterior LED replacing 175W-250W Fixture or Mogul Screw-Base Lamp | C158: 655.1 | D158: Small C&I | E158: Lighting | F158: Annual Operating Hours and CF source: IN TRM, Measure Life source: IL TRM | G158: per fixture | H158: 566 | I158: IL TRM v11 vol2 | J158: 669 | K158: 890.196 | L158: Calculated Value | N158: 0 | O158: 0 | P158: IL TRM v11 vol2 | Q158: 637 | R158: 0 | S158: Calculated Value | U158: 4303 | V158: IL TRM v11 vol2 | W158: 637 | X158: =50000/U158 -> 11.61980014 | Y158: IL TRM v11 vol2 (calculated value based on lifetime hours) | Z158: 659 | AA158: LED Exterior Lighting Fixtures (Includes Street and Area, Decorative, Soffit and Canopy, Wall-mounted, and Landscape and Flood lighting) | AB158: 73 | AC158: Spec sheet (as reported by implementer) | AE158: 250W Pulse Start Metal Halide | AF158: 284.1 | AG158: IL TRM v11 vol2, or program tracking data if available | AH158: 669 | AI158: =ROUND(((AF158-AB158)/1000)*U158*AS158*BA158,4) | AJ158: =ROUND(((AF158-AB158)/1000)*BA158*AW158*O158,4) | AK158: IL TRM v11 vol2 | AL158: 660, 665 | AM158: 2024-01-01 | AN158: 2024-12-31 | AS158: 1 | AT158: Waste Heat Factor Energy | AU158: IL TRM v11 vol2 | AV158: 637 | AW158: 1 | AX158: Waste Heat Factor Demand | AY158: IL TRM v11 vol2 | AZ158: 637 | BA158: 0.98 | BB158: ISR | BC158: IL TRM v11 vol2 | BD158: 664
A159: Income Eligible Program | B159: Exterior LED replacing 175W-250W Fixture or Mogul Screw-Base Lamp | C159: 655.2 | D159: Small C&I | E159: Lighting | F159: Annual Operating Hours, CF, Measure Life source: IL TRM | G159: per fixture | H159: 134.35 | I159: IL TRM v12 vol2 | J159: 717 | K159: 890.196 | L159: Calculated Value | N159: 0 | O159: 0 | P159: IL TRM v12 vol2, Exterior - Dusk to Dawn | Q159: 684 | R159: 0 | S159: Calculated Value | U159: 4303 | V159: IL TRM v12 vol2, Exterior - Dusk to Dawn | W159: 684 | X159: 16 | Y159: IL TRM v12 vol2 ("For exterior fixtures, the lifetime is assumed to be 16 years for Dusk-to-Dawn (4303 hours) applications") | Z159: 706 | AA159: LED Exterior Lighting Fixtures (Includes Street and Area, Decorative, Soffit and Canopy, Wall-mounted, and Landscape and Flood lighting) | AB159: 73 | AC159: Spec sheet (as reported by implementer) | AE159: 250W Pulse Start Metal Halide | AF159: 284.1 | AG159: IL TRM v12 vol2 | AH159: 717 | AI159: =ROUND(((AF159-AB159)/1000)*U159*AS159*BA159,4) | AJ159: =ROUND(((AF159-AB159)/1000)*BA159*AW159*O159,4) | AK159: IL TRM v12 vol2 | AL159: 707, 713 | AM159: 2025-01-01 | AS159: 1 | AT159: Waste Heat Factor Energy | AU159: IL TRM v12 vol2 | AV159: 684 | AW159: 1 | AX159: Waste Heat Factor_Demand | AY159: IL TRM v12 vol2 | AZ159: 684 | BA159: 0.98 | BB159: ISR | BC159: IL TRM v12 vol2 | BD159: 711
A160: Income Eligible Program | B160: Exterior LED replacing 251W-400W Fixture or Mogul Screw‐Base Lamp | C160: 651.1 | D160: C&I | E160: Lighting | F160: Annual Operating Hours and CF source: IN TRM, Measure Life source: IL TRM | G160: per fixture | H160: 566 | I160: IL TRM v11 vol2 | J160: 669 | K160: 608.9261 | L160: Calculated Value | N160: 0 | O160: 0 | P160: IL TRM v11 vol2 | Q160: 637 | R160: 0 | S160: Calculated Value | U160: 4303 | V160: IL TRM v11 vol2 | W160: 637 | X160: =50000/U160 -> 11.61980014 | Y160: IL TRM v11 vol2 (calculated value based on lifetime hours) | Z160: 659 | AA160: LED Exterior Lighting Fixtures (Includes Street and Area, Decorative, Soffit and Canopy, Wall-mounted, and Landscape and Flood lighting) | AB160: 139.7 | AC160: Spec sheet (as reported by implementer) | AE160: 250W Pulse Start Metal Halide | AF160: 284.1 | AG160: IL TRM v11 vol2, or program tracking data if available | AH160: 669 | AI160: =ROUND(((AF160-AB160)/1000)*U160*AS160*BA160,4) | AJ160: =ROUND(((AF160-AB160)/1000)*BA160*AW160*O160,4) | AK160: IL TRM v11 vol2 | AL160: 660, 665 | AM160: 2024-01-01 | AN160: 2024-12-31 | AS160: 1 | AT160: Waste Heat Factor Energy | AU160: IL TRM v11 vol2 | AV160: 637 | AW160: 1 | AX160: Waste Heat Factor_Demand | AY160: IL TRM v11 vol2 | AZ160: 637 | BA160: 0.98 | BB160: ISR | BC160: IL TRM v11 vol2 | BD160: 664
A161: Income Eligible Program | B161: Exterior LED replacing 251W-400W Fixture or Mogul Screw‐Base Lamp | C161: 651.2 | D161: C&I | E161: Lighting | F161: Annual Operating Hours, CF, Measure Life source: IL TRM | G161: per fixture | H161: 134.35 | I161: IL TRM v12 vol2 | J161: 717 | K161: 608.9261 | L161: Calculated Value | N161: 0 | O161: 0 | P161: IL TRM v12 vol2, Exterior - Dusk to Dawn | Q161: 684 | R161: 0 | S161: Calculated Value | U161: 4303 | V161: IL TRM v12 vol2, Exterior - Dusk to Dawn | W161: 684 | X161: 16 | Y161: IL TRM v12 vol2 ("For exterior fixtures, the lifetime is assumed to be 16 years for Dusk-to-Dawn (4303 hours) applications") | Z161: 706 | AA161: LED Exterior Lighting Fixtures (Includes Street and Area, Decorative, Soffit and Canopy, Wall-mounted, and Landscape and Flood lighting) | AB161: 139.7 | AC161: Spec sheet (as reported by implementer) | AE161: 250W Pulse Start Metal Halide | AF161: 284.1 | AG161: IL TRM v12 vol2 | AH161: 717 | AI161: =ROUND(((AF161-AB161)/1000)*U161*AS161*BA161,4) | AJ161: =ROUND(((AF161-AB161)/1000)*BA161*AW161*O161,4) | AK161: IL TRM v12 vol2 | AL161: 707, 713 | AM161: 2025-01-01 | AS161: 1 | AT161: Waste Heat Factor Energy | AU161: IL TRM v12 vol2 | AV161: 684 | AW161: 1 | AX161: Waste Heat Factor_Demand | AY161: IL TRM v12 vol2 | AZ161: 684 | BA161: 0.98 | BB161: ISR | BC161: IL TRM v12 vol2 | BD161: 711
A162: Income Eligible Program | B162: High Bay Fluorescent Fixture w/ HE Electronic Ballast (T5 >4 lamps) | C162: 60.4 | D162: Multi-Family | E162: Lighting | F162: Common Area - DI | G162: per fixture | H162: 100 | I162: IL TRM v11 vol2 | J162: 720 | K162: =ROUND((AF162-AB162)/1000*U162*AS162*BA162,4) -> 1026.9876 | L162: Calculated Value | N162: =(AF162-AB162)/1000*AW162*BA162 -> 0.2057608 | O162: 0.62 | P162: IL TRM v11 vol2 | Q162: 636 | R162: =ROUND((AF162-AB162)/1000*AW162*O162*BA162,4) -> 0.1276 | S162: Calculated Value | U162: 5216 | V162: IL TRM v11 vol2 (MF Midrise) | W162: 636 | X162: 12 | Y162: IL TRM v11 vol2 | Z162: 717 | AA162: High Bay - T5 >4 lamp | AB162: 295 | AC162: Spec sheet (as reported by implementer) | AE162: Metal Halide (watts) | AF162: 476 | AG162: IL TRM v11 vol2 | AH162: 720 | AI162: =ROUND((AF162-AB162)/1000*U162*AS162*BA162,4) | AJ162: =ROUND((AF162-AB162)/1000*AW162*O162*BA162,4) | AK162: IL TRM v11 vol2 | AL162: 718, 719 | AM162: 2024-01-01 | AN162: 2024-12-31 | AS162: 1.11 | AT162: Waste Heat Factor (energy), LED Mid Rise - Common | AU162: IL TRM v11 vol2 | AV162: 636 | AW162: 1.16 | AX162: Waste Heat Factor (demand), LED Mid Rise - Common | AY162: IL TRM v11 vol2 | AZ162: 636 | BA162: 0.98 | BB162: ISR | BC162: IL TRM v11 vol2 | BD162: 718
A163: Income Eligible Program | B163: High Bay Fluorescent Fixture w/ HE Electronic Ballast (T5 >4 lamps) | C163: 60.5 | D163: Multi-Family | E163: Lighting | F163: Common Area - DI | G163: per fixture | H163: 100 | I163: IL TRM v12 vol2 - Metal Halide Baseline | J163: 768 | K163: =ROUND(((AF163-AB163)/1000)*U163*AS163*BA163,4) -> 312.0681 | L163: Calculated Value | M163: 766 | N163: =ROUND(((AF163-AB163)/1000)*AW163*BA163,4) -> 0.0625 | O163: 0.62 | P163: IL TRM v12 vol2 - MF Mid Rise - Common | Q163: 683 | R163: =ROUND(((AF163-AB163)/1000)*AW163*BA163*O163,4) -> 0.0388 | S163: Calculated Value | T163: 767 | U163: 5216 | V163: IL TRM v12 vol2 - MF Mid Rise - Common | W163: 683 | X163: 12 | Y163: IL TRM v12 vol2 | Z163: 765 | AA163: High Bay - T5 >4 lamp | AB163: 295 | AC163: Spec sheet (as reported by implementer) | AE163: Metal Halide (watts) | AF163: 350 | AG163: IL TRM v12 vol2 | AH163: 768 | AI163: =ROUND(((AF163-AB163)/1000)*U163*AS163*BA163,4) | AJ163: =ROUND(((AF163-AB163)/1000)*AW163*BA163*O163,4) | AK163: IL TRM v12 vol2 | AL163: 766, 767 | AM163: 2025-01-01 | AS163: 1.11 | AT163: Waste Heat Factor (energy), LED Mid Rise - Common | AU163: IL TRM v12 vol2 | AV163: 683 | AW163: 1.16 | AX163: Waste Heat Factor (demand), LED Mid Rise - Common | AY163: IL TRM v12 vol2 | AZ163: 683 | BA163: 0.98 | BB163: ISR | BC163: IL TRM v12 vol2 | BD163: 766
A164: Income Eligible Program | B164: Income-Eligible Multi-Family Custom Measure | C164: 0.12 | D164: Multi-Family | E164: All | AM164: 2020-01-01
A165: Income Eligible Program | B165: Increased Ceiling Insulation - ASHP base (electric heating and cooling): MF | C165: 707 | D165: Multi-Family | E165: HVAC - Shell | G165: per sq ft (ceiling area) | H165: =948/CC165 -> 0.7783251232 | I165: Program Tracking Data, with 50% co-delivery costs shared with Spire Missouri | K165: =ROUND((((((1/AF165-1/AB165)*(1-BE165))*24*AO165*BA165)/AW165)*BI165)+(((((1/AF165-1/AB165)*(1-BE165))*24*AP165)/AS165)),4) -> 0.5634 | L165: Calculated Value | N165: =K165/U165 -> 0.0007634146341 | O165: 0.72 | P165: IL TRM v11 vol3 | Q165: 410 | R165: =ROUND(((K165/U165)*O165),8) -> 0.00054966 | S165: Calculated Value | U165: 738 | V165: EFLHcool, from 2017 MO TRM | W165: 122 | X165: 20 | Y165: IL TRM v11 vol3 | Z165: 410 | AA165: Final R-value | AB165: 31.99 | AC165: Average installed R-value in the 2022 HCHC program tracking data. | AE165: Previous R-value | AF165: 16.687668 | AG165: Average existing R-value in the 2022 HCHC program tracking data. | AI165: =ROUND((((((1/AF165-1/AB165)*(1-BE165))*24*AO165*BA165)/AW165)*BI165)+(((((1/AF165-1/AB165)*(1-BE165))*24*AP165)/AS165)),4) | AJ165: =ROUND(((K165/U165)*O165),8) | AK165: IL TRM v11 vol3 | AL165: 411, 415 | AM165: 2024-01-01 | AN165: 2024-12-31 | AO165: 1445 | AP165: 5155 | AQ165: MO TRM and Navigant Analysis | AS165: =1.92*3412 -> 6551.04 | AT165: Heating Coefficient: COP * 3,412 COP = 1.7 for units before 2006 COP = 1.92 for units between 2006-2014 COP = 2.4 for units after 2014 | AU165: IL TRM v11 vol3 | AV165: 413 | AW165: 14000 | AX165: Cooling Coefficient | AY165: IL TRM v11 vol3: SEER * 1,000. SEER 10 for units before 2006 SEER 13 for units after 2006 | AZ165: 412 | BA165: 0.75 | BB165: DUA: Discretionary Use Adjustment | BC165: IL TRM v11 vol3 (St Louis) | BD165: 412 | BE165: 0.07 | BF165: Framing Factor, Ceiling | BG165: IL TRM v11 vol3 | BH165: 411 | BI165: 1.21 | BJ165: ADJ_AtticCool: adjustment for cooling savings from basement wall insulation | BK165: IL TRM v11 vol3 | BL165: 412 | BM165: 0.6 | BN165: ADJ_AtticElectricHeat: adjustment for wall and attic insulation | BO165: IL TRM v11 vol3 | BP165: 414 | BQ165: 1.07 | BR165: ADJ_AtticHeatFan: adjustment for wall and attic insulation | BS165: IL TRM v11 vol3 | BT165: 415 | BU165: 0.72 | BV165: ADJ_AtticGasHeat: adjustment for wall and attic insulation | BW165: IL TRM v11 vol3 | BX165: 417 | BY165: 0.72 | BZ165: nHeat | CA165: IL TRM v11 vol3 | CB165: 417 | CC165: 1218 | CD165: Square footage installed | CE165: Average square footage of installed ceiling insulation in the 2022 HCHC program data
A166: Income Eligible Program | B166: Increased Ceiling Insulation - ASHP base (electric heating and cooling): MF | C166: 707.1 | D166: Multi-Family | E166: HVAC - Shell | G166: per sq ft (ceiling area) | H166: 0.7783251232 | I166: Program Tracking Data, with 50% co-delivery costs shared with Spire Missouri | K166: =ROUND((((((1/AF166-1/AB166)*(1-BE166))*24*AO166*BA166)/(AW166))*BI166*CG166)+((((1/AF166-1/AB166)*(1-BE166))*24*AP166)/(AS166))*BM166,4) -> 0.4413 | L166: Calculated Value | N166: =ROUND(K166/U166,4) -> 0.0006 | O166: 0.72 | P166: IL TRM v12 vol3 - HP | Q166: 421 | R166: =ROUND(((((((1/AF166-1/AB166)*(1-BE166))*24*AO166*BA166)/(AW166))*BI166*CG166*CK166)/U166)*O166,8) -> 0 | S166: Calculated Value | U166: 738 | V166: EFLHcool, from 2017 MO TRM | W166: 122 | X166: 30 | Y166: IL TRM v12 vol3 | Z166: 421 | AA166: Final R-value | AB166: 31.99 | AC166: Average installed R-value in the 2022 HCHC program tracking data. | AE166: Previous R-value | AF166: 16.687668 | AG166: Average existing R-value in the 2022 HCHC program tracking data. | AI166: =ROUND((((((1/AF166-1/AB166)*(1-BE166))*24*AO166*BA166)/(AW166))*BI166*CG166)+((((1/AF166-1/AB166)*(1-BE166))*24*AP166)/(AS166))*BM166,4) | AJ166: =ROUND(((((((1/AF166-1/AB166)*(1-BE166))*24*AO166*BA166)/(AW166))*BI166*CG166*CK166)/U166)*O166,8) | AK166: IL TRM v12 vol3 | AL166: 422, 427 | AM166: 2025-01-01 | AO166: 1445 | AP166: 5155 | AQ166: MO TRM and Navigant Analysis | AS166: =3412*1.62 -> 5527.44 | AT166: Heating Coefficient: COP * 3,412 COP = 1.44 for units before 2006 COP = 1.62 for units between 2006-2014 COP = 1.74 for units after 2015 | AU166: IL TRM v12 vol3 | AV166: 425 | AW166: =1000*13.3 -> 13300 | AX166: Cooling Coefficient, HP after 1/1/2015 | AY166: IL TRM v12 vol3: SEER2 * 1,000. SEER 13.3 for units after 1/1/2015 | AZ166: 423 | BA166: 0.75 | BB166: DUA: Discretionary Use Adjustment | BC166: IL TRM v12 vol3 | BD166: 423 | BE166: 0.07 | BF166: Framing Factor, Ceiling | BG166: IL TRM v12 vol3 | BH166: 422 | BI166: 1.14 | BJ166: ADJ_AtticCool: adjustment for cooling savings from basement wall insulation | BK166: IL TRM v12 vol3 | BL166: 412 | BM166: 0.63 | BN166: ADJ_AtticElectricHeat: adjustment for wall and attic insulation | BO166: IL TRM v12 vol3 | BP166: 425 | BQ166: 1.13 | BR166: ADJ_AtticHeatFan: adjustment for wall and attic insulation | BS166: IL TRM v12 vol3 | BT166: 426 | BU166: 0.76 | BV166: ADJ_AtticGasHeat: adjustment for wall and attic insulation | BW166: IL TRM v12 vol3 | BX166: 429 | BY166: 0.72 | BZ166: nHeat | CA166: IL TRM v12 vol3 | CB166: 429 | CC166: 1218 | CD166: Square footage installed | CE166: Average square footage of installed ceiling insulation in the 2022 HCHC program data | CG166: 1.1 | CH166: IE_NetCorrection | CI166: IL TRM v12 vol3 | CJ166: 424
A167: Income Eligible Program | B167: Increased Ceiling Insulation - CAC with electric resistance base: MF | C167: 708 | D167: Multi-Family | E167: HVAC - Shell | G167: per sq ft (ceiling area) | H167: 0.7783251232 | I167: Program Tracking Data, with 50% co-delivery costs shared with Spire Missouri | K167: =ROUND(((((1/AF167-1/AB167)*(1-BE167)*24*AO167*BA167)/AW167)*BI167)+(((((1/AF167-1/AB167)*(1-BE167))*24*AP167)/AS167)*BM167),4) -> 0.6399 | L167: Calculated Value | N167: =K167/U167 -> 0.0008670731707 | O167: 0.68 | P167: IL TRM v11 vol3 | Q167: 410 | R167: =ROUND(((K167/U167)*O167),8) -> 0.00058961 | S167: Calculated Value | U167: 738 | V167: EFLHcool, from 2017 MO TRM | W167: 122 | X167: 20 | Y167: IL TRM v11 vol3 | Z167: 410 | AA167: Final R-value | AB167: 31.99 | AC167: Average installed R-value in the 2022 HCHC program tracking data. | AE167: Previous R-value | AF167: 16.687668 | AG167: Average existing R-value in the 2022 HCHC program tracking data. | AI167: =ROUND(((((1/AF167-1/AB167)*(1-BE167)*24*AO167*BA167)/AW167)*BI167)+(((((1/AF167-1/AB167)*(1-BE167))*24*AP167)/AS167)*BM167),4) | AJ167: =ROUND(((K167/U167)*O167),8) | AK167: IL TRM v11 vol3 | AL167: 411, 415 | AM167: 2024-01-01 | AN167: 2024-12-31 | AO167: 1445 | AP167: 5155 | AQ167: MO TRM and Navigant Analysis | AS167: =1*3412 -> 3412 | AT167: Heating Coefficient: COP * 3,412 COP = 1.7 for units before 2006 COP = 1.92 for units between 2006-2014 COP = 2.4 for units after 2014 | AU167: IL TRM v11 vol3 | AV167: 413 | AW167: 14000 | AX167: Cooling Coefficient | AY167: IL TRM v11 vol3: SEER * 1,000. SEER 10 for units before 2006 SEER 13 for units after 2006 | AZ167: 412 | BA167: 0.75 | BB167: DUA: Discretionary Use Adjustment | BC167: IL TRM v11 vol3 (St Louis) | BD167: 412 | BE167: 0.07 | BF167: Framing Factor, Ceiling | BG167: IL TRM v11 vol3 | BH167: 411 | BI167: 1.21 | BJ167: ADJ_AtticCool: adjustment for cooling savings from basement wall insulation | BK167: IL TRM v11 vol3 | BL167: 412 | BM167: 0.6 | BN167: ADJ_AtticElectricHeat: adjustment for wall and attic insulation | BO167: IL TRM v11 vol3 | BP167: 414 | BQ167: 1.07 | BR167: ADJ_AtticHeatFan: adjustment for wall and attic insulation | BS167: IL TRM v11 vol3 | BT167: 415 | BU167: 0.72 | BV167: ADJ_AtticGasHeat: adjustment for wall and attic insulation | BW167: IL TRM v11 vol3 | BX167: 417 | BY167: 0.72 | BZ167: nHeat | CA167: IL TRM v11 vol3 | CB167: 417 | CC167: 1218 | CD167: Square footage installed | CE167: Average square footage of installed ceiling insulation in the 2022 HCHC program data
A168: Income Eligible Program | B168: Increased Ceiling Insulation - CAC with electric resistance base: MF | C168: 708.1 | D168: Multi-Family | E168: HVAC - Shell | G168: per sq ft (ceiling area) | H168: 0.7783251232 | I168: Program Tracking Data, with 50% co-delivery costs shared with Spire Missouri | K168: =ROUND((((((1/AF168-1/AB168)*(1-BE168))*24*AO168*BA168)/(AW168))*BI168*CG168)+((((1/AF168-1/AB168)*(1-BE168))*24*AP168)/(AS168))*BM168,4) -> 0.6791 | L168: Calculated Value | N168: =ROUND(K168/U168,4) -> 0.0009 | O168: 0.68 | P168: IL TRM v12 vol3 - CAC | Q168: 421 | R168: =ROUND(((((((1/AF168-1/AB168)*(1-BE168))*24*AO168*BA168)/(AW168))*BI168*BQ168*BU168)/U168)*O168,8) -> 5.044e-05 | S168: Calculated Value | U168: 738 | V168: EFLHcool, from 2017 MO TRM | W168: 122 | X168: 30 | Y168: IL TRM v12 vol3 | Z168: 421 | AA168: Final R-value | AB168: 31.99 | AC168: Average installed R-value in the 2022 HCHC program tracking data. | AE168: Previous R-value | AF168: 16.687668 | AG168: Average existing R-value in the 2022 HCHC program tracking data. | AI168: =ROUND((((((1/AF168-1/AB168)*(1-BE168))*24*AO168*BA168)/(AW168))*BI168*CG168)+((((1/AF168-1/AB168)*(1-BE168))*24*AP168)/(AS168))*BM168,4) | AJ168: =ROUND(((((((1/AF168-1/AB168)*(1-BE168))*24*AO168*BA168)/(AW168))*BI168*BQ168*BU168)/U168)*O168,8) | AK168: IL TRM v12 vol3 | AL168: 422, 427 | AM168: 2025-01-01 | AO168: 1445 | AP168: 5155 | AQ168: MO TRM and Navigant Analysis | AS168: =1*3412 -> 3412 | AT168: Heating Coefficient: COP * 3,412 COP = 1.44 for units before 2006 COP = 1.62 for units between 2006-2014 COP = 1.74 for units after 2015 | AU168: IL TRM v12 vol3 | AV168: 425 | AW168: =1000*12.4 -> 12400 | AX168: Cooling Coefficient, CAC after 1/1/2015 | AY168: IL TRM v12 vol3: SEER2 * 1,000. SEER 13.3 for units after 1/1/2015 | AZ168: 423 | BA168: 0.75 | BB168: DUA: Discretionary Use Adjustment | BC168: IL TRM v12 vol3 | BD168: 423 | BE168: 0.07 | BF168: Framing Factor, Ceiling | BG168: IL TRM v12 vol3 | BH168: 422 | BI168: 1.14 | BJ168: ADJ_AtticCool: adjustment for cooling savings from basement wall insulation | BK168: IL TRM v12 vol3 | BL168: 412 | BM168: 0.63 | BN168: ADJ_AtticElectricHeat: adjustment for wall and attic insulation | BO168: IL TRM v12 vol3 | BP168: 425 | BQ168: 1.13 | BR168: ADJ_AtticHeatFan: adjustment for wall and attic insulation | BS168: IL TRM v12 vol3 | BT168: 426 | BU168: 0.76 | BV168: ADJ_AtticGasHeat: adjustment for wall and attic insulation | BW168: IL TRM v12 vol3 | BX168: 429 | BY168: 0.72 | BZ168: nHeat | CA168: IL TRM v12 vol3 | CB168: 429 | CC168: 1218 | CD168: Square footage installed | CE168: Average square footage of installed ceiling insulation in the 2022 HCHC program data | CG168: 1.1 | CH168: IE_NetCorrection | CI168: IL TRM v12 vol3 | CJ168: 424
A169: Income Eligible Program | B169: Increased Ceiling Insulation - CAC with gas furnace base: MF | C169: 709 | D169: Multi-Family | E169: HVAC - Shell | G169: per sq ft (ceiling area) | H169: 0.7783251232 | I169: Program Tracking Data, with 50% co-delivery costs shared with Spire Missouri | K169: =ROUND(((((1/AF169-1/AB169)*(1-BE169)*24*AO169*BA169)/AW169)*BI169)+((((1/AF169-1/AB169)*(1-BE169))*24*AP169)/(BY169*100000)*BU169),4) -> 0.0929 | L169: Calculated Value | N169: =K169/U169 -> 0.0001258807588 | O169: 0.68 | P169: IL TRM v11 vol3 | Q169: 410 | R169: =ROUND(((K169/U169)*O169),8) -> 8.56e-05 | S169: Calculated Value | U169: 738 | V169: EFLHcool, from 2017 MO TRM | W169: 122 | X169: 20 | Y169: IL TRM v11 vol3 | Z169: 410 | AA169: Final R-value | AB169: 31.99 | AC169: Average installed R-value in the 2022 HCHC program tracking data. | AE169: Previous R-value | AF169: 16.687668 | AG169: Average existing R-value in the 2022 HCHC program tracking data. | AI169: =ROUND(((((1/AF169-1/AB169)*(1-BE169)*24*AO169*BA169)/AW169)*BI169)+((((1/AF169-1/AB169)*(1-BE169))*24*AP169)/(BY169*100000)*BU169),4) | AJ169: =ROUND(((K169/U169)*O169),8) | AK169: IL TRM v11 vol3 | AL169: 411, 415 | AM169: 2024-01-01 | AN169: 2024-12-31 | AO169: 1445 | AP169: 5155 | AQ169: MO TRM and Navigant Analysis | AS169: =1.92*3412 -> 6551.04 | AT169: Heating Coefficient: COP * 3,412 COP = 1.7 for units before 2006 COP = 1.92 for units between 2006-2014 COP = 2.4 for units after 2014 | AU169: IL TRM v11 vol3 | AV169: 413 | AW169: 14000 | AX169: Cooling Coefficient | AY169: IL TRM v11 vol3: SEER * 1,000. SEER 10 for units before 2006 SEER 13 for units after 2006 | AZ169: 412 | BA169: 0.75 | BB169: DUA: Discretionary Use Adjustment | BC169: IL TRM v11 vol3 (St Louis) | BD169: 412 | BE169: 0.07 | BF169: Framing Factor, Ceiling | BG169: IL TRM v11 vol3 | BH169: 411 | BI169: 1.21 | BJ169: ADJ_AtticCool: adjustment for cooling savings from basement wall insulation | BK169: IL TRM v11 vol3 | BL169: 412 | BM169: 0.6 | BN169: ADJ_AtticElectricHeat: adjustment for wall and attic insulation | BO169: IL TRM v11 vol3 | BP169: 414 | BQ169: 1.07 | BR169: ADJ_AtticHeatFan: adjustment for wall and attic insulation | BS169: IL TRM v11 vol3 | BT169: 415 | BU169: 0.72 | BV169: ADJ_AtticGasHeat: adjustment for wall and attic insulation | BW169: IL TRM v11 vol3 | BX169: 417 | BY169: 0.72 | BZ169: nheat | CA169: IL TRM v11 vol3 | CB169: 417 | CC169: 1218 | CD169: Square footage installed | CE169: Average square footage of installed ceiling insulation in the 2022 HCHC program data
A170: Income Eligible Program | B170: Increased Ceiling Insulation - CAC with gas furnace base: MF | C170: 709.1 | D170: Multi-Family | E170: HVAC - Shell | G170: per sq ft (ceiling area) | H170: 0.7783251232 | I170: Program Tracking Data, with 50% co-delivery costs shared with Spire Missouri | K170: =ROUND((((((1/AF170-1/AB170)*(1-BE170))*24*AO170*BA170)/(AW170))*BI170*CG170)+(((((1/AF170-1/AB170)*(1-BE170))*24*AP170)/(BY170*100000))*BU170*CG170)*BQ170*CK170*CO170,4) -> 0.1099 | L170: Calculated Value | N170: =ROUND(K170/U170,4) -> 0.0001 | O170: 0.68 | P170: IL TRM v12 vol3 - CAC | Q170: 421 | R170: =ROUND(((((((1/AF170-1/AB170)*(1-BE170))*24*AO170*BA170)/(AW170))*BI170*BQ170*BU170)/U170)*O170,8) -> 5.044e-05 | S170: Calculated Value | U170: 738 | V170: EFLHcool, from 2017 MO TRM | W170: 122 | X170: 30 | Y170: IL TRM v12 vol3 | Z170: 421 | AA170: Final R-value | AB170: 31.99 | AC170: Average installed R-value in the 2022 HCHC program tracking data. | AE170: Previous R-value | AF170: 16.687668 | AG170: Average existing R-value in the 2022 HCHC program tracking data. | AI170: =ROUND((((((1/AF170-1/AB170)*(1-BE170))*24*AO170*BA170)/(AW170))*BI170*CG170)+(((((1/AF170-1/AB170)*(1-BE170))*24*AP170)/(BY170*100000))*BU170*CG170)*BQ170*CK170*CO170,4) | AJ170: =ROUND(((((((1/AF170-1/AB170)*(1-BE170))*24*AO170*BA170)/(AW170))*BI170*BQ170*BU170)/U170)*O170,8) | AK170: IL TRM v12 vol3 | AL170: 422, 427 | AM170: 2025-01-01 | AO170: 1445 | AP170: 5155 | AQ170: MO TRM and Navigant Analysis | AS170: =1.62*3412 -> 5527.44 | AT170: Heating Coefficient: COP * 3,412 COP = 1.44 for units before 2006 COP = 1.62 for units between 2006-2014 COP = 1.74 for units after 2015 | AU170: IL TRM v12 vol3 | AV170: 425 | AW170: =1000*12.4 -> 12400 | AX170: Cooling Coefficient, HP after 1/1/2015 | AY170: IL TRM v12 vol3: SEER2 * 1,000. SEER 13.3 for units after 1/1/2015 | AZ170: 423 | BA170: 0.75 | BB170: DUA: Discretionary Use Adjustment | BC170: IL TRM v12 vol3 | BD170: 423 | BE170: 0.07 | BF170: Framing Factor, Ceiling | BG170: IL TRM v12 vol3 | BH170: 422 | BI170: 1.14 | BJ170: ADJ_AtticCool: adjustment for cooling savings from basement wall insulation | BK170: IL TRM v12 vol3 | BL170: 412 | BM170: 0.63 | BN170: ADJ_AtticElectricHeat: adjustment for wall and attic insulation | BO170: IL TRM v12 vol3 | BP170: 425 | BQ170: 1.13 | BR170: ADJ_AtticHeatFan: adjustment for wall and attic insulation | BS170: IL TRM v12 vol3 | BT170: 426 | BU170: 0.76 | BV170: ADJ_AtticGasHeat: adjustment for wall and attic insulation | BW170: IL TRM v12 vol3 | BX170: 429 | BY170: 0.72 | BZ170: nHeat | CA170: IL TRM v12 vol3 | CB170: 429 | CC170: 1218 | CD170: Square footage installed | CE170: Average square footage of installed ceiling insulation in the 2022 HCHC program data | CG170: 1.1 | CH170: IE_NetCorrection | CI170: IL TRM v12 vol3 | CJ170: 424 | CK170: 0.0314 | CL170: F_e | CM170: IL TRM v12 vol3 | CN170: 426 | CO170: 29.3 | CP170: kWh per therm | CQ170: IL TRM v12 vol3 | CR170: 426
A171: Income Eligible Program | B171: Increased Ceiling Insulation - Electric furnace/electric resistance base with no cooling: MF | C171: 710 | D171: Multi-Family | E171: HVAC - Shell | G171: per sq ft (ceiling area) | H171: 0.7783251232 | I171: Program Tracking Data, with 50% co-delivery costs shared with Spire Missouri | K171: =ROUND((((((1/AF171-1/AB171)*(1-BE171))*24*AP171)/AS171)*BM171),4) -> 0.58 | L171: Calculated Value | N171: =K171/U171 -> 0.0007859078591 | O171: - | P171: IL TRM v11 vol3 | Q171: 410 | R171: =ROUND(0,8) -> 0 | S171: Calculated Value | U171: 738 | V171: EFLHcool, from 2017 MO TRM | W171: 122 | X171: 20 | Y171: IL TRM v11 vol3 | Z171: 410 | AA171: Final R-value | AB171: 31.99 | AC171: Average installed R-value in the 2022 HCHC program tracking data. | AE171: Previous R-value | AF171: 16.687668 | AG171: Average existing R-value in the 2022 HCHC program tracking data. | AI171: =ROUND((((((1/AF171-1/AB171)*(1-BE171))*24*AP171)/AS171)*BM171),4) | AJ171: =ROUND(0,8) | AK171: IL TRM v11 vol3 | AL171: 411, 415 | AM171: 2024-01-01 | AN171: 2024-12-31 | AO171: 1445 | AP171: 5155 | AQ171: MO TRM and Navigant Analysis | AS171: =1*3412 -> 3412 | AT171: Heating Coefficient: COP * 3,412 COP = 1.7 for units before 2006 COP = 1.92 for units between 2006-2014 COP = 2.4 for units after 2014 | AU171: IL TRM v11 vol3 | AV171: 413 | AW171: 14000 | AX171: Cooling Coefficient | AY171: IL TRM v11 vol3: SEER * 1,000. SEER 10 for units before 2006 SEER 13 for units after 2006 | AZ171: 412 | BA171: 0.75 | BB171: DUA: Discretionary Use Adjustment | BC171: IL TRM v11 vol3 (St Louis) | BD171: 412 | BE171: 0.07 | BF171: Framing Factor, Ceiling | BG171: IL TRM v11 vol3 | BH171: 411 | BI171: 1.21 | BJ171: ADJ_AtticCool: adjustment for cooling savings from basement wall insulation | BK171: IL TRM v11 vol3 | BL171: 412 | BM171: 0.6 | BN171: ADJ_AtticElectricHeat: adjustment for wall and attic insulation | BO171: IL TRM v11 vol3 | BP171: 414 | BQ171: 1.07 | BR171: ADJ_AtticHeatFan: adjustment for wall and attic insulation | BS171: IL TRM v11 vol3 | BT171: 415 | BU171: 0.72 | BV171: ADJ_AtticGasHeat: adjustment for wall and attic insulation | BW171: IL TRM v11 vol3 | BX171: 417 | BY171: 0.72 | BZ171: nHeat | CA171: IL TRM v11 vol3 | CB171: 417 | CC171: 1218 | CD171: Square footage installed | CE171: Average square footage of installed ceiling insulation in the 2022 HCHC program data
A172: Income Eligible Program | B172: Increased Ceiling Insulation - Electric furnace/electric resistance base with no cooling: MF | C172: 710.1 | D172: Multi-Family | E172: HVAC - Shell | G172: per sq ft (ceiling area) | H172: 0.7783251232 | I172: Program Tracking Data, with 50% co-delivery costs shared with Spire Missouri | K172: =ROUND(((((1/AF172-1/AB172)*(1-BE172))*24*AP172)/(AS172))*BM172*CG172,4) -> 0.6699 | L172: Calculated Value | N172: =ROUND(K172/U172,4) -> 0.0009 | O172: 0 | P172: IL TRM v12 vol3 | Q172: 421 | R172: =ROUND(0,8) -> 0 | S172: Calculated Value | U172: 738 | V172: EFLHcool, from 2017 MO TRM | W172: 122 | X172: 30 | Y172: IL TRM v12 vol3 | Z172: 421 | AA172: Final R-value | AB172: 31.99 | AC172: Average installed R-value in the 2022 HCHC program tracking data. | AE172: Previous R-value | AF172: 16.687668 | AG172: Average existing R-value in the 2022 HCHC program tracking data. | AI172: =ROUND(((((1/AF172-1/AB172)*(1-BE172))*24*AP172)/(AS172))*BM172*CG172,4) | AJ172: =ROUND(0,8) | AK172: IL TRM v12 vol3 | AL172: 422, 427 | AM172: 2025-01-01 | AO172: 1445 | AP172: 5155 | AQ172: MO TRM and Navigant Analysis | AS172: =1*3412 -> 3412 | AT172: Heating Coefficient: COP * 3,412 COP = 1.44 for units before 2006 COP = 1.62 for units between 2006-2014 COP = 1.74 for units after 2015 | AU172: IL TRM v12 vol3 | AV172: 425 | AW172: 0 | AX172: Cooling Coefficient, HP after 1/1/2015 | AY172: IL TRM v12 vol3: SEER2 * 1,000. SEER 13.3 for units after 1/1/2015 | AZ172: 423 | BA172: 0.75 | BB172: DUA: Discretionary Use Adjustment | BC172: IL TRM v12 vol3 | BD172: 423 | BE172: 0.07 | BF172: Framing Factor, Ceiling | BG172: IL TRM v12 vol3 | BH172: 422 | BI172: 1.14 | BJ172: ADJ_AtticCool: adjustment for cooling savings from basement wall insulation | BK172: IL TRM v12 vol3 | BL172: 412 | BM172: 0.63 | BN172: ADJ_AtticElectricHeat: adjustment for wall and attic insulation | BO172: IL TRM v12 vol3 | BP172: 425 | BQ172: 1.13 | BR172: ADJ_AtticHeatFan: adjustment for wall and attic insulation | BS172: IL TRM v12 vol3 | BT172: 426 | BU172: 0.76 | BV172: ADJ_AtticGasHeat: adjustment for wall and attic insulation | BW172: IL TRM v12 vol3 | BX172: 429 | BY172: 0.72 | BZ172: nHeat | CA172: IL TRM v12 vol3 | CB172: 429 | CC172: 1218 | CD172: Square footage installed | CE172: Average square footage of installed ceiling insulation in the 2022 HCHC program data | CG172: 1.1 | CH172: IE_NetCorrection | CI172: IL TRM v12 vol3 | CJ172: 424
